Workbook

Sheet Introduction (hidden)
A1: Virginia Department of Education | R1: Posted 12/18/2012 | X1: 1
A2: =Instructions!A2 -> Projected FY 2025 and Projected FY 2026 State Payments, Based on Amendments Adopted by the 2024 Special Session I General Assembly to the 2024-2026 Biennial Budget (Chapter 2)
A3: =Instructions!A3 -> Standards of Quality (SOQ), Incentive, Categorical, and Lottery-Funded Programs in Direct Aid to Public Education
A4: =Instructions!A4 -> As of May 13, 2024
A24: 1

Sheet Instructions
A1: Virginia Department of Education | M1: Posted 12/18/2017 | N1: 2024-2026
A2: Projected FY 2025 and Projected FY 2026 State Payments, Based on Amendments Adopted by the 2024 Special Session I General Assembly to the 2024-2026 Biennial Budget (Chapter 2) | N2: FY 2025 | O2: ="Fiscal Year "&RIGHT(N2,4) -> Fiscal Year 2025 | P2: ="FY"&RIGHT(N2,2) -> FY25 | Q2: =VALUE(RIGHT(N2,4)) -> 2025
A3: Standards of Quality (SOQ), Incentive, Categorical, and Lottery-Funded Programs in Direct Aid to Public Education | N3: FY 2026 | O3: ="Fiscal Year "&RIGHT(N3,4) -> Fiscal Year 2026 | P3: ="FY"&RIGHT(N3,2) -> FY26 | Q3: =VALUE(RIGHT(N3,4)) -> 2026
A4: As of May 13, 2024 | N4: Amendments Adopted by the 2024 Special Session I General Assembly to the 2024-2026 Biennial Budget (Chapter 2)
A6: INSTRUCTIONS FOR USING THE STATE PAYMENT SHEETS: | N6: Projected FY 2025 and Projected FY 2026 Payments Based on Amendments Adopted by the 2024 Special Session I General Assembly to the 2024-2026 Biennial Budget (Chapter 2)
A8: NOTE: The Special Session I General Assembly adopted its amendments to the 2024-2026 biennial budget which will begin on July 1, 2024, and which the Governor signed into law, without amendment on May 13, 2024, as Chapter 2. | N8: Amendments Adopted to the 2024 Special Session I General Assembly to the 2024-2026 Biennial Budget (Chapter 2)
A9: For additional information regarding the estimated payments contained in this Excel file, please see Virginia Education Update Newsletter #2023-25, dated December 20, 2023.
A10: Superintendent's Memorandum #102-12, dated April 19, 2012, and Superintendent's Memorandum #134-12, dated May 18, 2012 (Amendments to the 2012-2014 Biennial Budget Adopted by the 2012 Special Session I of the General Assembly at the Reconvened (Veto)
A11: NOTE: Please read these instructions carefully. Then, click on the yellow box at the bottom of this page to open all of the worksheets.
A12: 1. At the top of the sheet labeled "State & Local Funds Summary," select your division using the drop-down box.
A13: 2. Next, a box will appear that asks you to confirm that you have selected the correct division. If the division name is correct, click "Yes." If you have selected the wrong division, click "No" and select the correct division using the drop-down box. PLEASE REMEMBER TO SAVE THE FILE BEFORE PROCEEDING; the file will not save automatically.
A14: 3. After you have confirmed your division selection, the projected FY 2025 and projected FY 2026 state payments based on the amendments adopted by the 2024 Special Session I General Assembly to the 2024-2026 Biennial Budget (Chapter 2), will be shown on the State & Local Funds Summary. If you would like to use your own local enrollment projections to calculate projected state payments, you may click on the "Click here to run new enrollment" button or select the "Enrollment Projections" worksheet to enter your local enrollment projections.
A15: 4. The "Budget Variables" worksheet provides you with many of the variables used to calculate projected FY 2025 and FY 2026 state payments and required local match, such as the per pupil amounts and your 2024-2026 composite index. Please note that the semi-monthly SOQ account state payments are based only on state projections of division March 31 ADM, pending the recalculation of state payments based on actual March 31 ADM at the end of each fiscal year.
A17: 5. If you need to access the Department of Education's budget office website, please click here:
A18: http://www.doe.virginia.gov/school_finance/budget/index.shtml
A19: 6. This calculation tool contains the following worksheets which provide you with additional information. These worksheets include:
A20: A. "State & Local Funds Summary" worksheet: This worksheet allows you to view projected FY 2025 and FY 2026 state payments and required local match amounts based on the amendments adopted by the 2024 Special Session I General Assembly to the 2024-2026 Biennium Budget (Chapter 2).
A21: B. "Federal Funds for Basic Aid" worksheet: This worksheet provides additional detail on each school division's portion of the FY 2011 state share of Basic Aid that will be funded from the K-12 portion of SFSF funds.
A22: B. “Enrollment Projections” worksheet: This worksheet allows you to either choose the budgeted projections or enter local projections for FY 2025 and FY 2026 ADM, Remedial Summer School, English Language Learners, and Virginia Preschool Initiative (i.e. Student Slots) enrollment.
A23: C. "Budget Variables" worksheet: This worksheet provides you with many of the variables used to calculate your projected FY 2025 and FY 2026 state payments and required local matches, such as fringe benefit rates, funded salaries, cost of competing adjustment (COCA) rates, per pupil amounts, your 2024-2026 composite index, and enrollment projections for Remedial Summer School and English Learner Teachers.
A24: D. "Required Local Effort" worksheet: This worksheet calculates the amount of local operational funds required to meet the SOQ funding requirements, based on projected March 31 ADM and the per pupil amounts for each fiscal year. No data entry is required as this sheet uses the data from the "State & Local Funds Summary" to calculate required local effort.
A25: E. "Budgeted Local Operational Exp." worksheet: This sheet is provided as a tool to estimate whether planned local operational expenditures are sufficient to meet budgeted required local effort, and is provided for planning purposes only. Completion does not fulfill annual state reporting requirements for Required Local Effort. You are NOT required to submit this completed form to the Department of Education.
A26: F. "RLM Projection" worksheet: This sheet is provided as a tool to estimate whether planned local operational expenditures are sufficient to meet budgeted required local match for the incentive and Lottery-funded programs (Early Reading Specialists, Virginia Preschool Initiative, At-Risk, Infrastructure & Operations Per Pupil Fund, Compensation Supplement, K-3 Primary Class Size Reduction, and Math/Reading Instructional Specialists) and is provided for planning purposes only. Estimated state revenues for VPI and the local match requirements for each program are pre-populated based on the projected state payments shown on the "State & Local Funds Summary" spreadsheet. Completion does not fulfill annual state reporting requirements for Required Local Match. You are NOT required to return this completed form to the Department.
A27: G. "ESEA Programs MOE" worksheet: This sheet is provided as a tool to estimate whether planned local operational expenditures are sufficient to meet Maintenance of Effort (MOE) requirements for ESEA programs and is provided for planning purposes only. Completion does not fulfill annual state or federal reporting requirements for Maintenance of Effort for ESEA programs. You are NOT required to return this completed form to the Department.
A28: G. "IDEA MOE" worksheet: This sheet is provided as a tool to estimate whether planned local operational expenditures are sufficient to meet IDEA Maintenance of Effort (MOE) requirements and is provided for planning purposes only. Completion does not fulfill annual state or federal reporting requirements for IDEA maintenance of effort. You are NOT required to return this completed form to the Department.
A29: H. "March 31, 2013 ADM" worksheet: This worksheet shows the division-level average daily membership (ADM) used to calculate your school division's final state payments for accounts calculated using ADM. Also included in this file are the specific additions and deductions used to generate the final fiscal year 2013 ADM for your school division.
A30: I. "Adjustments to FY2013 Basic Aid" worksheet: This worksheet reflects any adjustments made to the FY 2013 Basic Aid state payment, such as payments made by DOE on behalf of school divisions to the School for the Deaf and Blind, Mental Health, Training Centers, and Driver's Education.
A31: H. "Basic Aid" worksheet: This worksheet provides information on Basic Aid funded positions, costs, projected per pupil amounts, Basic Aid adjustments, and the calculation of the state and local shares of Basic Aid.
A32: I. "Funded Positions" worksheet: This worksheet provides additional detail on funded instructional and support positions that are funded as part of Basic Aid.
A33: X. "FY23 School Nurses" worksheet: This worksheet displays the division-level detail on the estimated fiscal year 2023 school nurse support cost funded in Basic Aid. Please note the Amendments Adopted by the Special Session I General Assembly to the Governor's Amended 2020-2022 Bienial Budget as Introduced (HB 1800/SB 1100) have included school nurses with specialized student support. Information for specialized student support can be found in the Funded Positions tab.
A34: X. "FY24 School Nurses" worksheet: This worksheet displays the division-level detail on the estimated fiscal year 2023 school nurse support cost funded in Basic Aid. Please note the Amendments Adopted by the Special Session I General Assembly to the Governor's Amended 2020-2022 Bienial Budget as Introduced (HB 1800/SB 1100) have included school nurses with specialized student support. Information for specialized student support can be found in the Funded Positions tab.
A35: J. "VPI" worksheet: This worksheet provides a division summary of projected FY 2025 and FY 2026 Virginia Preschool Initiative number of funded slots as well as the estimated state and local share of costs for the program.
A36: K. "K-3" worksheet: This worksheet provides a division summary of the projected FY 2025 and FY 2026 K-3 Primary Class Size Reduction Program funding. Please note that calculations use a three-year average (October 2018, 2019, and 2022) of free lunch eligibility data. For schools that participate in the Community Eligibility Provision program, such entitlements are based on the most recent Free Lunch eligibility data available prior to that school's enrollment in the Community Eligibility Provision program. New schools that open during each fiscal year will be assigned the K-3 division-average free lunch eligibility rate for calculation purposes in the first year of operation only. In subsequent years, the actual school-level eligibility percentages will be updated and used.
A37: L. "Governor's School" worksheet: This worksheet provides a division summary of the projected FY 2025 and FY 2026 Academic Year Governor's Schools enrollment and funding.
A38: M. "Alternative Education" worksheet: This worksheet provides a division summary of the projected FY 2025 and FY 2026 Regional Alternative Education slots and funding.
A39: N. "VPSA" worksheet: This worksheet provides a division summary of funding provided in the Technology - VPSA account which includes the Educational Technology Grants for a division and the e-Learning Backpack Grants for qualifying schools.
A40: O. "Math or Reading Specialists" worksheet: This worksheet provides the division a list of the schools which rank lowest statewide on the Spring Standards of Learning (SOL) Math or Reading assessment. Funding for FY25 & FY26 for one math or reading specialist shall be based on the results of the Spring 2023 SOL assessments.
A41: P. "Early Reading Specialists" worksheet: This worksheet provides the division a list of the schools with a third grade that rank lowest statewide on the Reading Standards of Learning (SOL) assessments. Funding for FY25 and FY26 shall be based on the results of the Spring 2023 reading SOL assessments.
A42: Q. "Statewide Totals" worksheet: This worksheet provides a statewide summary of the Direct Aid distributions and local match requirements for Standards of Quality, Incentive, Categorical, Supplemental Education Assistance, and Lottery-Funded accounts. Statewide ADM is also included.
A43: R. "Account Funding Matrix" worksheet: This worksheet indicates which state accounts are based on September 30 Fall Membership or March 31 ADM as well as which accounts require a local match in order to receive state funds. In addition, it indicates which accounts are automatically paid each fiscal year on a semi-monthly basis, and which accounts require an application or certification before payment begins.
A44: S. "Account Funding Explanations" worksheet: This worksheet provides a general explanation of the state funding formulas used to calculate the state's share of the Direct Aid accounts included on the Excel template.
A45: If you have questions regarding the instructions or the Excel template, please contact the VDOE budget office at (804) 225-2025 or e-mail us at doebudgetoffice@doe.virginia.gov.

Sheet Bedford County-City (hidden)
A1: Bedford County and Bedford City Consolidation in Fiscal Year 2014
A3: Effective July 1, 2013, Bedford City will revert to town status, which will result in the consolidation of Bedford City and Bedford County and, consequently, the consolidation of their respective school divisions. Pursuant to Chapter 806, 2013 Acts of Assembly (Item 139, Paragraph A.4.c.1), the consolidated Bedford County school division is entitled to state payments based on the lower of the composite indices for the two separate school divisions for a period of fifteen years. For fiscal year 2014, the use of Bedford City’s lower composite index for the consolidated school division results in an increase in state funds to Bedford County.
A5: For fiscal year 2014, although Bedford County and Bedford City are consolidated, this calculation tool still shows estimated payments, required local effort, and required local match amounts separately.
A7: Users must separately select Bedford County AND Bedford City and then add together the estimated payments, required local effort, and required local match to get the correct total for the combined Bedford County for fiscal year 2014.

Sheet Federal Funds for Basic Aid (hidden)
A1: Allocations of the State Share of Basic Aid Funded From the
A2: Final Award of Phase II State Fiscal Stabilization Funds under the
A3: American Recovery and Reinvestment Act of 2009 1,2
A4: Distribution Based on School Divisions' Proportion of Total Basic Aid as Funded in
A5: Chapter 874, 2010 Acts of Assembly
A6: Fiscal Year 2011 Only
A8: Div Num | B8: Division | C8: Portion of FY 2011 Basic Aid Funded with the Final Award of Phase II State Fiscal Stabilization Funds 1,2
A9: 1 | B9: ACCOMACK | C9: 555546.1
A10: 2 | B10: ALBEMARLE | C10: 864008.91
A11: 3 | B11: ALLEGHANY | C11: 409434.46
A12: 4 | B12: AMELIA | C12: 229567.47
A13: 5 | B13: AMHERST | C13: 606993.95
A14: 6 | B14: APPOMATTOX | C14: 326993.41
A15: 7 | B15: ARLINGTON | C15: 743931.46
A16: 8 | B16: AUGUSTA | C16: 1234346.01
A17: 9 | B17: BATH | C17: 28655.94
A18: 10 | B18: BEDFORD | C18: 1124117.72
A19: 11 | B19: BLAND | C19: 139310.96
A20: 12 | B20: BOTETOURT | C20: 587765.05
A21: 13 | B21: BRUNSWICK | C21: 297277.54
A22: 14 | B22: BUCHANAN | C22: 454696.4
A23: 15 | B23: BUCKINGHAM | C23: 287186.77
A24: 16 | B24: CAMPBELL | C24: 1105656.51
A25: 17 | B25: CAROLINE | C25: 461142.01
A26: 18 | B26: CARROLL | C26: 542830.47
A27: 19 | B27: CHARLES CITY | C27: 103807.27
A28: 20 | B28: CHARLOTTE | C28: 331147.3
A29: 21 | B29: CHESTERFIELD | C29: 6897555.99
A30: 22 | B30: CLARKE | C30: 162689.1
A31: 23 | B31: CRAIG | C31: 102971.4
A32: 24 | B32: CULPEPER | C32: 785895.23
A33: 25 | B33: CUMBERLAND | C33: 202200.3
A34: 26 | B34: DICKENSON | C34: 396226.98
A35: 27 | B35: DINWIDDIE | C35: 678593.26
A36: 28 | B36: ESSEX | C36: 187140.72
A37: 29 | B37: FAIRFAX | C37: 7808703.83
A38: 30 | B38: FAUQUIER | C38: 670219.63
A39: 31 | B39: FLOYD | C39: 273154.98
A40: 32 | B40: FLUVANNA | C40: 447018.64
A41: 33 | B41: FRANKLIN | C41: 799371.37
A42: 34 | B42: FREDERICK | C42: 1405264.67
A43: 35 | B43: GILES | C43: 350933.79
A44: 36 | B44: GLOUCESTER | C44: 708996.35
A45: 37 | B45: GOOCHLAND | C45: 92825.82
A46: 38 | B46: GRAYSON | C46: 287903.84
A47: 39 | B47: GREENE | C47: 372688.22
A48: 40 | B48: GREENSVILLE | C48: 234073.71
A49: 41 | B49: HALIFAX | C49: 789022.82
A50: 42 | B50: HANOVER | C50: 1926365.42
A51: 43 | B51: HENRICO | C51: 5088029.69
A52: 44 | B52: HENRY | C52: 963245.87
A53: 45 | B53: HIGHLAND | C53: 20016.39
A54: 46 | B54: ISLE OF WIGHT | C54: 614378.62
A55: 47 | B55: JAMES CITY | C55: 860658.86
A56: 48 | B56: KING GEORGE | C56: 455612.89
A57: 49 | B57: KING QUEEN | C57: 85122.33
A58: 50 | B58: KING WILLIAM | C58: 285171.61
A59: 51 | B59: LANCASTER | C59: 51520.95
A60: 52 | B60: LEE | C60: 583305.49
A61: 53 | B61: LOUDOUN | C61: 4004015.79
A62: 54 | B62: LOUISA | C62: 367395.17
A63: 55 | B63: LUNENBURG | C63: 227011.14
A64: 56 | B64: MADISON | C64: 175239.17
A65: 57 | B65: MATHEWS | C65: 109537.18
A66: 58 | B66: MECKLENBURG | C66: 609948.46
A67: 59 | B67: MIDDLESEX | C67: 68535.83
A68: 60 | B68: MONTGOMERY | C68: 1083706.22
A69: 62 | B69: NELSON | C69: 144292.77
A70: 63 | B70: NEW KENT | C70: 315615.92
A71: 65 | B71: NORTHAMPTON | C71: 163653.2
A72: 66 | B72: NORTHUMBERLAND | C72: 68266.25
A73: 67 | B73: NOTTOWAY | C73: 317638.04
A74: 68 | B74: ORANGE | C74: 526025.63
A75: 69 | B75: PAGE | C75: 438034.47
A76: 70 | B76: PATRICK | C76: 352061.46
A77: 71 | B77: PITTSYLVANIA | C77: 1250364.27
A78: 72 | B78: POWHATAN | C78: 509266.75
A79: 73 | B79: PRINCE EDWARD | C79: 322500.19
A80: 74 | B80: PRINCE GEORGE | C80: 921301.95
A81: 75 | B81: PRINCE WILLIAM | C81: 8626208.87
A82: 77 | B82: PULASKI | C82: 596605.52
A83: 78 | B83: RAPPAHANNOCK | C83: 35970.23
A84: 79 | B84: RICHMOND | C84: 154368.98
A85: 80 | B85: ROANOKE | C85: 1636005.31
A86: 81 | B86: ROCKBRIDGE | C86: 232180.38
A87: 82 | B87: ROCKINGHAM | C87: 1328231.58
A88: 83 | B88: RUSSELL | C88: 592472.16
A89: 84 | B89: SCOTT | C89: 608170.73
A90: 85 | B90: SHENANDOAH | C90: 649641.23
A91: 86 | B91: SMYTH | C91: 717261.19
A92: 87 | B92: SOUTHAMPTON | C92: 398024.13
A93: 88 | B93: SPOTSYLVANIA | C93: 2713456.36
A94: 89 | B94: STAFFORD | C94: 3216468.22
A95: 90 | B95: SURRY | C95: 61871
A96: 91 | B96: SUSSEX | C96: 175770.86
A97: 92 | B97: TAZEWELL | C97: 908796.3
A98: 93 | B98: WARREN | C98: 539751.39
A99: 94 | B99: WASHINGTON | C99: 859767.73
A100: 95 | B100: WESTMORELAND | C100: 162005.07
A101: 96 | B101: WISE | C101: 945487.61
A102: 97 | B102: WYTHE | C102: 533491.85
A103: 98 | B103: YORK | C103: 1450778.28
A104: 101 | B104: ALEXANDRIA | C104: 458187.66
A105: 102 | B105: BRISTOL | C105: 250781.96
A106: 103 | B106: BUENA VISTA | C106: 172109.23
A107: 104 | B107: CHARLOTTESVILLE | C107: 250910.3
A108: 106 | B108: COLONIAL HEIGHTS | C108: 279712.71
A109: 107 | B109: COVINGTON | C109: 106068.07
A110: 108 | B110: DANVILLE | C110: 817583.67
A111: 109 | B111: FALLS CHURCH | C111: 78607.07
A112: 110 | B112: FREDERICKSBURG | C112: 117724.46
A113: 111 | B113: GALAX | C113: 174486.82
A114: 112 | B114: HAMPTON | C114: 2710343.01
A115: 113 | B115: HARRISONBURG | C115: 461911.99
A116: 114 | B116: HOPEWELL | C116: 571387.56
A117: 115 | B117: LYNCHBURG | C117: 899600.9
A118: 116 | B118: MARTINSVILLE | C118: 297239.89
A119: 117 | B119: NEWPORT NEWS | C119: 3621216.89
A120: 118 | B120: NORFOLK | C120: 3860039.94
A121: 119 | B121: NORTON | C121: 104833.7
A122: 120 | B122: PETERSBURG | C122: 570018.65
A123: 121 | B123: PORTSMOUTH | C123: 1950883.52
A124: 122 | B124: RADFORD | C124: 193787.95
A125: 123 | B125: RICHMOND CITY | C125: 1994625.71
A126: 124 | B126: ROANOKE CITY | C126: 1366451.5
A127: 126 | B127: STAUNTON | C127: 272555.65
A128: 127 | B128: SUFFOLK | C128: 1717577.12
A129: 128 | B129: VIRGINIA BEACH | C129: 7528270.44
A130: 130 | B130: WAYNESBORO | C130: 333914.33
A131: 131 | B131: WILLIAMSBURG | C131: 28711.36
A132: 132 | B132: WINCHESTER | C132: 302137.83
A133: 134 | B133: FAIRFAX CITY | C133: 110545.6
A134: 135 | B134: FRANKLIN CITY | C134: 151987.19
A135: 136 | B135: CHESAPEAKE CITY | C135: 4788605.86
A136: 137 | B136: LEXINGTON | C136: 69900.74
A137: 138 | B137: EMPORIA | C137: 140058.78
A138: 139 | B138: SALEM | C138: 435245.97
A139: 140 | B139: BEDFORD CITY | C139: 103291.67
A140: 142 | B140: POQUOSON | C140: 282478.04
A141: 143 | B141: MANASSAS CITY | C141: 696643.12
A142: 144 | B142: MANASSAS PARK | C142: 339134.09
A143: 202 | B143: COLONIAL BEACH | C143: 76975.93
A144: 207 | B144: WEST POINT | C144: 116277.82
A145: STATEWIDE TOTAL | C145: =SUM(C9:C144) -> 122941314
A146: 1 The original fiscal year 2011 amount allocated to K-12 by the 2010 General Assembly was $126,372,427. However, based on the state’s final Phase II application, incorporating all actions of Chapter 874, 2010 Acts of Assembly, the fiscal year 2011 portion allocated to K-12 has been reduced to $122,941,314.
A147: 2 The fiscal year 2011 SFSF allocations will be available for use by school divisions through the SFSF obligation deadline of September 30, 2011. Please note, final approval of the revised Phase II application by the U.S. Department of Education (USED) is pending and could be amended based on final guidance from USED. However, it is not anticipated that changes will occur in the allocations shown in this attachment.

Sheet State & Local Funds Summary (hidden)
A1: =Instructions!A1 -> Virginia Department of Education | H1: 1 | I1: 3 | J1: 2 | K1: 4
A2: =+Instructions!A2 -> Projected FY 2025 and Projected FY 2026 State Payments, Based on Amendments Adopted by the 2024 Special Session I General Assembly to the 2024-2026 Biennial Budget (Chapter 2)
A3: =LEFT(Instructions!A3,124)&" "&Instructions!A4 -> Standards of Quality (SOQ), Incentive, Categorical, and Lottery-Funded Programs in Direct Aid to Public Education As of May 13, 2024
C5: Projected FY 2025 | D5: =+C5 -> Projected FY 2025 | E5: Projected FY 2026 | F5: =+E5 -> Projected FY 2026
A6: NUM | B6: DIVISION | C6: Unadjusted ADM2 | D6: Adjusted ADM2 | E6: Unadjusted ADM2 | F6: Adjusted ADM2
C7: ='Budget Variables'!B9 -> 0 | D7: ='Budget Variables'!B10 -> 0 | E7: ='Budget Variables'!C9 -> 0 | F7: ='Budget Variables'!C10 -> 0
C9: =Instructions!$N$1&" Composite Index:" -> 2024-2026 Composite Index: | E9: =Instructions!$N$1&" Composite Index:" -> 2024-2026 Composite Index:
C10: ='Budget Variables'!$B$11 -> 0 | E10: ='Budget Variables'!$C$11 -> 0
C11: =IF('Enrollment Projections'!F88>0,"Please note: some accounts have been updated for local enrollment projections. See footnotes for more details.","") -> 
B12: =Instructions!N1&" Composite Index" -> 2024-2026 Composite Index | C12: =Instructions!$N$2 -> FY 2025 | E12: =Instructions!$N$3 -> FY 2026
B13: ='Budget Variables'!$B$11 -> 0 | C13: =C12&" State Share" -> FY 2025 State Share | D13: =C12&" Local Share" -> FY 2025 Local Share | E13: =E12&" State Share" -> FY 2026 State Share | F13: =E12&" Local Share" -> FY 2026 Local Share
A14: Standards of Quality Programs: | M14: Local projection toggles
A15: a | B15: Basic Aid | C15: =ROUND((('Budget Variables'!$B10*'Budget Variables'!$B12)-C16-C44)*(1-'Budget Variables'!$B11),0) ->  | D15: =ROUND((('Budget Variables'!B10*'Budget Variables'!B12)-C16-C44)*'Budget Variables'!B11, 0) ->  | E15: =ROUND((('Budget Variables'!$C10*'Budget Variables'!$C12)-E16-E44)*(1-'Budget Variables'!$C11),0) ->  | F15: =ROUND((('Budget Variables'!C10*'Budget Variables'!C12)-E16-E44)*'Budget Variables'!C11, 0) ->  | M15: =IF('Enrollment Projections'!$C$25="DOE",0,1) -> 1
B16: Sales Tax 4 | C16: =IF($A$7=0,0, ROUND(VLOOKUP($A$7, 'FINAL SOURCE DATA'!$A$3:$F$139, 5, FALSE),2)) -> 0 | D16: N/A1 | E16: =IF($A$7=0, 0, ROUND(VLOOKUP($A$7, 'FINAL SOURCE DATA'!$A$3:$F$139, 6, FALSE),2)) -> 0 | F16: N/A1
A17: a | B17: Textbooks 5 | C17: =ROUND(('FINAL SOURCE DATA'!$FC$26)*'Budget Variables'!B$10*(1-'Budget Variables'!B$11), 0) -> 0 | D17: =ROUND('FINAL SOURCE DATA'!$FC$26*'Budget Variables'!B$10*'Budget Variables'!B$11,0) -> 0 | E17: =ROUND(('FINAL SOURCE DATA'!$FD$26)*'Budget Variables'!C$10*(1-'Budget Variables'!C$11), 0) -> 0 | F17: =ROUND('FINAL SOURCE DATA'!$FD$26*'Budget Variables'!C$10*'Budget Variables'!C$11,0) -> 0 | M17: =IF('Enrollment Projections'!$C$26="DOE",0,1) -> 1
A18: a | B18: Vocational Education | C18: =ROUND('Budget Variables'!B14*'Budget Variables'!B9*(1-'Budget Variables'!B11), 0) -> 0 | D18: =ROUND('Budget Variables'!B14*'Budget Variables'!B9*'Budget Variables'!B11, 0) -> 0 | E18: =ROUND('Budget Variables'!C14*'Budget Variables'!C9*(1-'Budget Variables'!C11), 0) -> 0 | F18: =ROUND('Budget Variables'!C14*'Budget Variables'!C9*'Budget Variables'!C11, 0) -> 0 | M18: =IF('Enrollment Projections'!$C$25="DOE",0,1) -> 1
A19: a | B19: Gifted Education | C19: =ROUND('Budget Variables'!B15*'Budget Variables'!B10*(1-'Budget Variables'!B11), 0) -> 0 | D19: =ROUND('Budget Variables'!B15*'Budget Variables'!B10*'Budget Variables'!B11, 0) -> 0 | E19: =ROUND('Budget Variables'!C15*'Budget Variables'!C10*(1-'Budget Variables'!C11), 0) -> 0 | F19: =ROUND('Budget Variables'!C15*'Budget Variables'!C10*'Budget Variables'!C11, 0) -> 0 | M19: =IF('Enrollment Projections'!$C$26="DOE",0,1) -> 1
A20: a | B20: Special Education | C20: =ROUND('Budget Variables'!B16*'Budget Variables'!B9*(1-'Budget Variables'!B11), 0) -> 0 | D20: =ROUND('Budget Variables'!B16*'Budget Variables'!B9*'Budget Variables'!B11, 0) -> 0 | E20: =ROUND('Budget Variables'!C16*'Budget Variables'!C9*(1-'Budget Variables'!C11), 0) -> 0 | F20: =ROUND('Budget Variables'!C16*'Budget Variables'!C9*'Budget Variables'!C11, 0) -> 0 | M20: =IF('Enrollment Projections'!$C$25="DOE",0,1) -> 1
B21: Prevention, Intervention, & Remediation 17 | C21: =ROUND('Budget Variables'!B17*'Budget Variables'!B9*(1-'Budget Variables'!B11), 0) -> 0 | D21: =ROUND('Budget Variables'!B17*'Budget Variables'!B9*'Budget Variables'!B11, 0) -> 0 | E21: =ROUND('Budget Variables'!C17*'Budget Variables'!C9*(1-'Budget Variables'!C11), 0) -> 0 | F21: =ROUND('Budget Variables'!C17*'Budget Variables'!C9*'Budget Variables'!C11, 0) -> 0 | M21: =IF('Enrollment Projections'!$C$25="DOE",0,1) -> 1
A22: a | B22: VRS Retirement (Includes RHCC) 6 | C22: =ROUND('Budget Variables'!B18*'Budget Variables'!B10*(1-'Budget Variables'!B11), 0) -> 0 | D22: =ROUND('Budget Variables'!B18*'Budget Variables'!B10*'Budget Variables'!B11, 0) -> 0 | E22: =ROUND('Budget Variables'!C18*'Budget Variables'!C10*(1-'Budget Variables'!C11), 0) -> 0 | F22: =ROUND('Budget Variables'!C18*'Budget Variables'!C10*'Budget Variables'!C11, 0) -> 0 | M22: =IF('Enrollment Projections'!$C$26="DOE",0,1) -> 1
A23: a | B23: Social Security | C23: =ROUND('Budget Variables'!B19*'Budget Variables'!B10*(1-'Budget Variables'!B11), 0) -> 0 | D23: =ROUND('Budget Variables'!B19*'Budget Variables'!B10*'Budget Variables'!B11, 0) -> 0 | E23: =ROUND('Budget Variables'!C19*'Budget Variables'!C10*(1-'Budget Variables'!C11), 0) -> 0 | F23: =ROUND('Budget Variables'!C19*'Budget Variables'!C10*'Budget Variables'!C11, 0) -> 0 | M23: =IF('Enrollment Projections'!$C$26="DOE",0,1) -> 1
A24: a | B24: Group Life | C24: =ROUND('Budget Variables'!B20*'Budget Variables'!B10*(1-'Budget Variables'!B11), 0) -> 0 | D24: =ROUND('Budget Variables'!B20*'Budget Variables'!B10*'Budget Variables'!B11, 0) -> 0 | E24: =ROUND('Budget Variables'!C20*'Budget Variables'!C10*(1-'Budget Variables'!C11), 0) -> 0 | F24: =ROUND('Budget Variables'!C20*'Budget Variables'!C10*'Budget Variables'!C11, 0) -> 0 | M24: =IF('Enrollment Projections'!$C$26="DOE",0,1) -> 1
A25: a | B25: English Learner Teacher Payments 12 | C25: =ROUND('Budget Variables'!B28*'Budget Variables'!B27*(1-'Budget Variables'!B11), 0) ->  | D25: =IF($A$7=0, "#N/A", ROUND((C25/(1-'Budget Variables'!$B$11))*'Budget Variables'!$B$11, 0)) -> #N/A | E25: =ROUND('Budget Variables'!C28*'Budget Variables'!C27*(1-'Budget Variables'!C11), 0) ->  | F25: =IF($A$7=0, "#N/A", ROUND((E25/(1-'Budget Variables'!$C$11))*'Budget Variables'!$C$11, 0)) -> #N/A
B26: At-Risk (Split funded - See Lottery section below) 17 | C26: =IF($A$7=0,"#N/A",IF('Enrollment Projections'!C25="State Projection",VLOOKUP($A$7,'FINAL SOURCE DATA'!$A$3:$ET$139,37,FALSE), VLOOKUP($A$7,'Enroll. & At-Risk'!$A$12:$X$147,24,FALSE))) -> #N/A | D26: =IF($A$7=0,"#N/A",ROUND((C26/(1-'Budget Variables'!$B$11))*'Budget Variables'!$B$11, 0)) -> #N/A | E26: =IF($A$7=0,"#N/A",IF('Enrollment Projections'!E25="State Projection",VLOOKUP($A$7,'FINAL SOURCE DATA'!$A$3:$ET$139,38,FALSE), VLOOKUP($A$7,'Enroll. & At-Risk'!$A$161:$X$296,24,FALSE))) -> #N/A | F26: =IF($A$7=0,"#N/A",ROUND((E26/(1-'Budget Variables'!$C$11))*'Budget Variables'!$C$11, 0)) -> #N/A
B27: Remedial Summer School 7, 9 | C27: =IF($A$7=0,"#N/A",'Enrollment Projections'!B65) -> #N/A | D27: N/A1 | E27: =IF($A$7=0,"#N/A",'Enrollment Projections'!D65) -> #N/A | F27: N/A1 | M27: =IF('Enrollment Projections'!$C$27="DOE",0,1) -> 1
B28: Subtotal - SOQ Accounts 3 | C28: =SUM(C15:C27) ->  | D28: =SUM(D15:D27) ->  | E28: =SUM(E15:E27) ->  | F28: =SUM(F15:F27) -> 
A30: II. School Facilities:
B31: Additional Lottery | C31: 0 | D31: 0 | E31: 0 | F31: 0
B32: School Construction Grants Program 4 | C32: Funding Eliminated
B33: Subtotal - School Facilities 3 | C33: =ROUND(SUM(C31:C32), 0) -> 0 | D33: =ROUND(SUM(D31:D32), 0) -> 0 | E33: =ROUND(SUM(E31:E32), 0) -> 0 | F33: =ROUND(SUM(F31:F32), 0) -> 0
A35: Incentive Programs:
B36: Compensation Supplement 13 | C36: =ROUND('Budget Variables'!$B$24*'Budget Variables'!$B$10*(1-'Budget Variables'!$B$11),0)+ROUND(((('Budget Variables'!$B$28+(AVERAGE('Budget Variables'!$B$59,'Budget Variables'!$B$62)*(1+'Budget Variables'!$B$50)*('FINAL SOURCE DATA'!$FC$31/100)))*('Budget Variables'!$B$27))-('Budget Variables'!B27*'Budget Variables'!B28))*(1-'Budget Variables'!$B$11),0) ->  | D36: =IF($A$7=0, "#N/A", ROUND((C36/(1-'Budget Variables'!$B$11))*'Budget Variables'!$B$11, 0)) -> #N/A | E36: =ROUND('Budget Variables'!$C$24*'Budget Variables'!$C$10*(1-'Budget Variables'!$C$11),0)+ROUND(((('Budget Variables'!$C$28+(AVERAGE('Budget Variables'!$C$59,'Budget Variables'!$C$62)*(1+'Budget Variables'!$C$50)*('FINAL SOURCE DATA'!$FD$31/100)))*('Budget Variables'!$C$27))-('Budget Variables'!$C$27*'Budget Variables'!$C$28))*(1-'Budget Variables'!$C$11),0) ->  | F36: =IF($A$7=0, "#N/A", ROUND((E36/(1-'Budget Variables'!$C$11))*'Budget Variables'!$C$11, 0)) -> #N/A
B37: Academic Year Governor's School 8 | C37: =IF($A$7=0,"#N/A",VLOOKUP($A$7,'FINAL SOURCE DATA'!$A$3:$ET$139,101,FALSE)) -> #N/A | D37: N/A1 | E37: =IF($A$7=0,"#N/A",VLOOKUP($A$7,'FINAL SOURCE DATA'!$A$3:$ET$139,102,FALSE)) -> #N/A | F37: N/A1
B38: At-Risk (Split funded - See Lottery section below)
B39: Alleghany School Consolidation Incentive | C39: =IF($A$7=0,"#N/A",VLOOKUP($A$7,'FINAL SOURCE DATA'!$A$3:$ET$139,57,FALSE)) -> #N/A | D39: N/A1 | E39: =IF($A$7=0,"#N/A",VLOOKUP($A$7,'FINAL SOURCE DATA'!$A$3:$ET$139,58,FALSE)) -> #N/A | F39: N/A1
B40: Virginia Preschool Initiative 11 | C40: =IF('Enrollment Projections'!C28="Local Projection",'Enrollment Projections'!B66,VLOOKUP('State & Local Funds Summary'!$A$7,'FINAL SOURCE DATA'!$A$3:$ET$138,49,FALSE)) ->  | D40: =IF('Enrollment Projections'!C28="Local Projection",'Enrollment Projections'!C66,IF($A$7=0,"#N/A",ROUND((C40/(1-MIN(0.5,'Budget Variables'!$B$11)))*MIN(0.5,'Budget Variables'!$B$11),0))) -> #N/A | E40: =IF('Enrollment Projections'!E28="Local Projection",'Enrollment Projections'!D66,VLOOKUP('State & Local Funds Summary'!$A$7,'FINAL SOURCE DATA'!$A$3:$ET$138,50,FALSE)) ->  | F40: =IF('Enrollment Projections'!E28="Local Projection",'Enrollment Projections'!E66,IF($A$7=0,"#N/A",ROUND((E40/(1-MIN(0.5,'Budget Variables'!$C$11)))*MIN(0.5,'Budget Variables'!$C$11),0))) -> #N/A
B41: School Construction Grant Program Entitlement 17 | C41: =IF($A$7=0,"#N/A",VLOOKUP($A$7,'FINAL SOURCE DATA'!$A$3:$ET$139,105,FALSE)) -> #N/A | D41: N/A1 | E41: Not Funded in FY26
B42: Virginia Preschool Initiative - Additional Programs 15 | C42: =IF($A$7=0,"#N/A",VLOOKUP($A$7,'FINAL SOURCE DATA'!$A$3:$ET$139,61,FALSE)) -> #N/A | D42: N/A1 | E42: =IF($A$7=0,"#N/A",VLOOKUP($A$7,'FINAL SOURCE DATA'!$A$3:$ET$139,62,FALSE)) -> #N/A | F42: N/A1
B43: School Meals Expansion | C43: =IF($A$7=0,"#N/A",VLOOKUP($A$7,'FINAL SOURCE DATA'!$A$3:$ET$139,59,FALSE)) -> #N/A | D43: N/A1 | E43: =IF($A$7=0,"#N/A",VLOOKUP($A$7,'FINAL SOURCE DATA'!$A$3:$ET$139,60,FALSE)) -> #N/A | F43: N/A1
B44: Supplemental GF Payments in Lieu of Food and Hygiene Tax16 | C44: =IF($A$7=0,"#N/A",VLOOKUP($A$7,'FINAL SOURCE DATA'!$A$3:$ET$139,107,FALSE)) -> #N/A | D44: N/A1 | E44: =IF($A$7=0,"#N/A",VLOOKUP($A$7,'FINAL SOURCE DATA'!$A$3:$ET$139,108,FALSE)) -> #N/A | F44: N/A1
B45: Math/Reading Instructional Specialists | C45: =IF($A$7=0,"#N/A",VLOOKUP($A$7,'FINAL SOURCE DATA'!$A$3:$ET$139,89,FALSE)) -> #N/A | D45: =IF($A$7=0, "#N/A", ROUND((C45/(1-'Budget Variables'!$B$11))*'Budget Variables'!$B$11, 0)) -> #N/A | E45: =IF($A$7=0,"#N/A",VLOOKUP($A$7,'FINAL SOURCE DATA'!$A$3:$ET$139,90,FALSE)) -> #N/A | F45: =IF($A$7=0, "#N/A", ROUND((E45/(1-'Budget Variables'!$C$11))*'Budget Variables'!$C$11, 0)) -> #N/A
B46: Early Reading Specialists Initiative | C46: =IF($A$7=0,"#N/A",VLOOKUP($A$7,'FINAL SOURCE DATA'!$A$3:$ET$139,25,FALSE)) -> #N/A | D46: =IF($A$7=0,"#N/A",ROUND((C46/(1-'Budget Variables'!$C$11))*'Budget Variables'!$B$11,0)) -> #N/A | E46: =IF($A$7=0,"#N/A",VLOOKUP($A$7,'FINAL SOURCE DATA'!$A$3:$ET$139,26,FALSE)) -> #N/A | F46: =IF($A$7=0,"#N/A",ROUND((E46/(1-'Budget Variables'!$C$11))*'Budget Variables'!$C$11,0)) -> #N/A
A47: a | B47: Rebenchmarking Hold Harmless16 | C47: 0 | D47: =IF($A$7=0, "#N/A", ROUND(($C47/(1-'Budget Variables'!$B$11))*'Budget Variables'!$B$11, 0)) -> #N/A | E47: 0 | F47: =IF($A$7=0, "#N/A", ROUND(($E47/(1-'Budget Variables'!$C$11))*'Budget Variables'!$C$11, 0)) -> #N/A
B48: Bonus Payment | D48: =IF($A$7=0, "#N/A", ROUND((C48/(1-'Budget Variables'!$B$11))*'Budget Variables'!$B$11, 0)) -> #N/A | E48: Not Funded in FY26
B49: Technology - VPSA 10 | C49: =IF($A$7=0,"#N/A",VLOOKUP($A$7,'FINAL SOURCE DATA'!$A$3:$ET$139,69,FALSE)) -> #N/A | D49: =VLOOKUP($A$7, 'FINAL SOURCE DATA'!$A$3:$GU$138, 150, FALSE) ->  | E49: =IF($A$7=0,"#N/A",VLOOKUP($A$7,'FINAL SOURCE DATA'!$A$3:$ET$139,70,FALSE)) -> #N/A | F49: =VLOOKUP($A$7, 'FINAL SOURCE DATA'!$A$3:$GU$138, 151, FALSE) -> 
B50: Subtotal - Incentive Accounts 3 | C50: =SUM(C36:C49) ->  | D50: =SUM(D36:D49) ->  | E50: =SUM(E36:E49) ->  | F50: =SUM(F36:F49) -> 
A52: Categorical Programs:
B53: Adult Education 7 | C53: =IF($A$7=0,"#N/A",VLOOKUP($A$7,'FINAL SOURCE DATA'!$A$3:$ET$139,85,FALSE)) -> #N/A | D53: N/A1 | E53: =IF($A$7=0,"#N/A",VLOOKUP($A$7,'FINAL SOURCE DATA'!$A$3:$ET$139,86,FALSE)) -> #N/A | F53: N/A1
B55: American Indian Treaty Commitment 7 | C55: =IF($A$7=0,"#N/A",VLOOKUP($A$7,'FINAL SOURCE DATA'!$A$3:$ET$139,103,FALSE)) -> #N/A | D55: N/A1 | E55: =IF($A$7=0,"#N/A",VLOOKUP($A$7,'FINAL SOURCE DATA'!$A$3:$ET$139,104,FALSE)) -> #N/A | F55: N/A1
B56: School Lunch 7 | C56: =IF($A$7=0,"#N/A",VLOOKUP($A$7,'FINAL SOURCE DATA'!$A$3:$ET$139,99,FALSE)) -> #N/A | D56: N/A1 | E56: =IF($A$7=0,"#N/A",VLOOKUP($A$7,'FINAL SOURCE DATA'!$A$3:$ET$139,100,FALSE)) -> #N/A | F56: N/A1
B57: Special Education - Homebound 7 | C57: =IF($A$7=0,"#N/A",VLOOKUP($A$7,'FINAL SOURCE DATA'!$A$3:$ET$139,77,FALSE)) -> #N/A | D57: N/A1 | E57: =IF($A$7=0,"#N/A",VLOOKUP($A$7,'FINAL SOURCE DATA'!$A$3:$ET$139,78,FALSE)) -> #N/A | F57: N/A1
B58: Special Education - State-Operated Programs 7 | C58: =IF($A$7=0,"#N/A",VLOOKUP($A$7,'FINAL SOURCE DATA'!$A$3:$ET$139,79,FALSE)) -> #N/A | D58: N/A1 | E58: =IF($A$7=0,"#N/A",VLOOKUP($A$7,'FINAL SOURCE DATA'!$A$3:$ET$139,80,FALSE)) -> #N/A | F58: N/A1
B59: Special Education - Jails 7 | C59: =IF($A$7=0,"#N/A",VLOOKUP($A$7,'FINAL SOURCE DATA'!$A$3:$ET$139,81,FALSE)) -> #N/A | D59: N/A1 | E59: =IF($A$7=0,"#N/A",VLOOKUP($A$7,'FINAL SOURCE DATA'!$A$3:$ET$139,82,FALSE)) -> #N/A | F59: N/A1
B60: Subtotal - Categorical Accounts 3 | C60: =SUM(C53:C59) -> 0 | D60: =SUM(D53:D59) -> 0 | E60: =SUM(E53:E59) -> 0 | F60: =SUM(F53:F59) -> 0
A62: Lottery-Funded Programs
B63: Foster Care 7 | C63: =IF($A$7=0,"#N/A",VLOOKUP($A$7,'FINAL SOURCE DATA'!$A$3:$ET$139,93,FALSE)) -> #N/A | D63: N/A1 | E63: =IF($A$7=0,"#N/A",VLOOKUP($A$7,'FINAL SOURCE DATA'!$A$3:$ET$139,94,FALSE)) -> #N/A | F63: N/A1
B64: NOT IN USE | C64: =IF($A$7=0,"#N/A",VLOOKUP($A$7,'FINAL SOURCE DATA'!$A$3:$ET$139,27,FALSE)) -> #N/A | D64: N/A1 | E64: =IF($A$7=0,"#N/A",VLOOKUP($A$7,'FINAL SOURCE DATA'!$A$3:$ET$139,27,FALSE)) -> #N/A | F64: N/A1
B65: NOT IN USE | C65: =IF($A$7=0,"#N/A",VLOOKUP($A$7,'FINAL SOURCE DATA'!$A$3:$ET$139,27,FALSE)) -> #N/A | D65: N/A1 | E65: =IF($A$7=0,"#N/A",VLOOKUP($A$7,'FINAL SOURCE DATA'!$A$3:$ET$139,27,FALSE)) -> #N/A | F65: N/A1
B66: At-Risk (Split funded - See SOQ section above) 17 | C66: =IF($A$7=0,"#N/A",IF('Enrollment Projections'!C25="State Projection",VLOOKUP($A$7,'FINAL SOURCE DATA'!$A$3:$ET$139,39,FALSE),VLOOKUP($A$7,'Enroll. & At-Risk'!A12:Y147,25))) -> #N/A | D66: =IF($A7=0,"N/A",ROUND((C66/(1-'Budget Variables'!$B$11))*'Budget Variables'!$B$11, 0)) -> N/A | E66: =IF($A$7=0,"#N/A",IF('Enrollment Projections'!E25="State Projection",VLOOKUP($A$7,'FINAL SOURCE DATA'!$A$3:$ET$139,40,FALSE),VLOOKUP($A$7,'Enroll. & At-Risk'!A161:Y296,25,FALSE))) -> #N/A | F66: =IF($A7=0,"N/A",ROUND((E66/(1-'Budget Variables'!$C$11))*'Budget Variables'!$C$11, 0)) -> N/A
B67: Accomack-Northampton Distribution | C67: =IF($A$7=0,"#N/A",VLOOKUP($A$7,'FINAL SOURCE DATA'!$A$3:$ET$139,97,FALSE)) -> #N/A | D67: N/A1 | E67: =IF($A$7=0,"#N/A",VLOOKUP($A$7,'FINAL SOURCE DATA'!$A$3:$ET$139,98,FALSE)) -> #N/A | F67: N/A1 | M67: =IF('Enrollment Projections'!$G$86=0,0,1) -> 0
A68: a | B68: Early Reading Intervention | C68: =IF($A$7=0,"#N/A",VLOOKUP($A$7,'FINAL SOURCE DATA'!$A$3:$ET$139,45,FALSE)) -> #N/A | D68: =IF($A$7=0,"#N/A",ROUND((C68/(1-'Budget Variables'!$B$11))*'Budget Variables'!$B$11,0)) -> #N/A | E68: =IF($A$7=0,"#N/A",VLOOKUP($A$7,'FINAL SOURCE DATA'!$A$3:$ET$139,46,FALSE)) -> #N/A | F68: =IF($A$7=0,"#N/A",ROUND((E68/(1-'Budget Variables'!$C$11))*'Budget Variables'!$C$11,0)) -> #N/A
B69: Mentor Teacher Program | C69: =IF(ISNA(VLOOKUP($A$7,'FINAL SOURCE DATA'!$A$3:$AV$138,47,FALSE)),0,ROUND(VLOOKUP($A$7,'FINAL SOURCE DATA'!$A$3:$AV$138,47,FALSE),2)) -> 0 | D69: N/A1 | E69: =IF(ISNA(VLOOKUP($A$7,'FINAL SOURCE DATA'!$A$3:$AV$138,48,FALSE)),0,ROUND(VLOOKUP($A$7,'FINAL SOURCE DATA'!$A$3:$AV$138,48,FALSE),2)) -> 0 | F69: N/A1
B70: K-3 Primary Class Size Reduction | C70: =IF($A$7=0,"#N/A",VLOOKUP($A$7,'FINAL SOURCE DATA'!$A$3:$ET$139,41,FALSE)) -> #N/A | D70: =IF($A$7=0,"#N/A",ROUND((C70/(1-'Budget Variables'!$B$11))*'Budget Variables'!$B$11,0)) -> #N/A | E70: =IF($A$7=0,"#N/A",VLOOKUP($A$7,'FINAL SOURCE DATA'!$A$3:$ET$139,42,FALSE)) -> #N/A | F70: =IF($A$7=0,"#N/A",ROUND((E70/(1-'Budget Variables'!$C$11)*'Budget Variables'!$C$11),0)) -> #N/A
B71: School Breakfast 7 | C71: =IF($A$7=0,"#N/A",VLOOKUP($A$7,'FINAL SOURCE DATA'!$A$3:$CN$139,91,FALSE)) -> #N/A | D71: N/A1 | E71: =IF($A$7=0,"#N/A",VLOOKUP($A$7,'FINAL SOURCE DATA'!$A$3:$CN$139,92,FALSE)) -> #N/A | F71: N/A1
A72: a | B72: SOL Algebra Readiness | C72: =IF($A$7=0,"#N/A",VLOOKUP($A$7,'FINAL SOURCE DATA'!$A$3:$ET$139,67,FALSE)) -> #N/A | D72: =IF($A$7=0,"#N/A",ROUND((C72/(1-'Budget Variables'!$B$11))*'Budget Variables'!$B$11,0)) -> #N/A | E72: =IF($A$7=0,"#N/A",VLOOKUP($A$7,'FINAL SOURCE DATA'!$A$3:$ET$139,68,FALSE)) -> #N/A | F72: =IF($A$7=0,"#N/A",ROUND((E72/(1-'Budget Variables'!$C$11))*'Budget Variables'!$C$11,0)) -> #N/A
B73: Project Graduation | C73: =IF($A$7=0,"#N/A",VLOOKUP($A$7,'FINAL SOURCE DATA'!$A$3:$ET$139,71,FALSE)) -> #N/A | D73: N/A1 | E73: =IF($A$7=0,"#N/A",VLOOKUP($A$7,'FINAL SOURCE DATA'!$A$3:$ET$139,72,FALSE)) -> #N/A | F73: N/A1
B74: Alternative Education 7, 8 | C74: =IF($A$7=0,"#N/A",VLOOKUP($A$7,'FINAL SOURCE DATA'!$A$3:$ET$139,95,FALSE)) -> #N/A | D74: N/A1 | E74: =IF($A$7=0,"#N/A",VLOOKUP($A$7,'FINAL SOURCE DATA'!$A$3:$ET$139,96,FALSE)) -> #N/A | F74: N/A1
B75: ISAEP | C75: =IF($A$7=0,"#N/A",VLOOKUP($A$7,'FINAL SOURCE DATA'!$A$3:$ET$139,65,FALSE)) -> #N/A | D75: N/A1 | E75: =IF($A$7=0,"#N/A",VLOOKUP($A$7,'FINAL SOURCE DATA'!$A$3:$ET$139,66,FALSE)) -> #N/A | F75: N/A1
B76: Special Education-Regional Tuition 7, 8 | C76: =IF($A$7=0,"#N/A",VLOOKUP($A$7,'FINAL SOURCE DATA'!$A$3:$ET$139,83,FALSE)) -> #N/A | D76: N/A1 | E76: =IF($A$7=0,"#N/A",VLOOKUP($A$7,'FINAL SOURCE DATA'!$A$3:$ET$139,84,FALSE)) -> #N/A | F76: N/A1
B77: Career and Technical Education 7, 8 | C77: =IF($A$7=0,"#N/A",VLOOKUP($A$7,'FINAL SOURCE DATA'!$A$3:$ET$139,75,FALSE)) -> #N/A | D77: N/A1 | E77: =IF($A$7=0,"#N/A",VLOOKUP($A$7,'FINAL SOURCE DATA'!$A$3:$ET$139,76,FALSE)) -> #N/A | F77: N/A1
B78: Supplemental Basic Aid | C78: =IF($A$7=0,"#N/A",IF(AND($B$83="LOCAL", $A$7=45),(((('Budget Variables'!$B$10*'Budget Variables'!$B$12)-$C$16)*(1-'FINAL SOURCE DATA'!$DK$10))-$C$15), IF(AND($B$83="LOCAL", $A$7=78),MAX((1129280-$C$15),0),VLOOKUP($A$7,'FINAL SOURCE DATA'!$A$3:$BJ$139,35,FALSE)))) -> #N/A | D78: N/A1 | E78: =IF($A$7=0,"#N/A",IF(AND($B$83="LOCAL", $A$7=45),(((('Budget Variables'!$C$10*'Budget Variables'!$C$12)-$E$16)*(1-'FINAL SOURCE DATA'!$DL$10))-$E$15), IF(AND($B$83="LOCAL", $A$7=78),MAX((1129280-$E$15),0),VLOOKUP($A$7,'FINAL SOURCE DATA'!$A$3:$BJ$139,36,FALSE)))) -> #N/A | F78: N/A1
A79: a | B79: English as a Second Language 12 | C79: Funded in SOQ in FY 2019 | E79: Funded in SOQ in FY 2020 | M79: =IF('Enrollment Projections'!$C$34="DOE",0,1) -> 1
B80: Infrastructure and Operations Per Pupil Allocation 14 | C80: =IF($A$7=0,"#N/A",VLOOKUP($A$7,'FINAL SOURCE DATA'!$A$3:$ET$139,33,FALSE)) -> #N/A | D80: =IF($A$7=0,"#N/A",VLOOKUP($A$7,'FINAL SOURCE DATA'!$A$3:$GU$139,192,FALSE)) -> #N/A | E80: =IF($A$7=0,"#N/A",VLOOKUP($A$7,'FINAL SOURCE DATA'!$A$3:$ET$139,34,FALSE)) -> #N/A | F80: =IF($A$7=0,"#N/A",VLOOKUP($A$7,'FINAL SOURCE DATA'!$A$3:$GU$139,193,FALSE)) -> #N/A
A81: a | B81: Textbooks 5 (See SOQ Programs above) | C81: 0 | D81: 0 | E81: 0 | F81: 0
B82: Subtotal - Lottery-Funded Programs 3 | C82: =SUM(C63:C80) -> 0 | D82: =SUM(D63:D80) -> 0 | E82: =SUM(E63:E80) -> 0 | F82: =SUM(F63:F80) -> 0
B84: Total State & Local Funds | C84: =C28+C33+C50+C60+C82 ->  | D84: =D28+D33+D50+D60+D82 ->  | E84: =E28+E33+E50+E60+E82 ->  | F84: =F28+F33+F50+F60+F82 -> 
B85: =IF(A7>0,IF('Enrollment Projections'!G83=0,"DOE","LOCAL"),"") -> 
A86: Note: | B86: For FY 2014, although Bedford County and Bedford City are consolidated, this calculation tool still shows estimated payments, required local effort, and required local match amounts separately.
B87: Users must separately select Bedford County AND Bedford City and then add together the estimated payments, required local effort, and required local match to get the correct total
B88: for the combined Bedford County for FY 2014. See the Bedford County-City worksheet for more detail.
A89: 1 | B89: "N/A" = no local match required for this program.
A90: 2 | B90: ADM values shown are based on the March 31 ADM projections used in the amendments adopted by the 2024 Special Session I General Assembly to the 2024-2026 biennial budget for FY 2025 and FY 2026.
A91: 3 | B91: Columns may not add due to rounding.
A92: 4 | B92: Projected revenue estimate. Semi-monthly payments will be based on actual sales tax receipts. Pursuant to the Appropriation Act, the Basic Aid state payment calculation is based on the
B93: appropriated sales tax distribution only and is not adjusted for actual sales tax revenues received.
A94: 5 | B94: The amendments adopted by the 2024 Special Session I General Assembly to the 2024-2026 Biennial Budget assign the entire funding for Textbooks to the SOQ area. Required Local Effort
B95: for Textbooks is based on the payments in the SOQ area.
A96: 6 | B96: VRS Retirement includes payments for the Retiree Health Care Credit (RHCC). Please see the Budget Variables tab for the funded RHCC rate.
A97: 7 | B97: Projected state payment. Final payments will be based on actual expenditures, up to the projected state payment, subject to the availability of funds.
A98: 8 | B98: Includes state funding for regional vocational, special, and alternative education programs and Academic Year Governor's Schools.
A99: 9 | B99: Payments for Remedial Summer School are based on projected FY 2025 and FY 2026 enrollment used in the amendments adopted by the 2024 Special Session I General Assembly to the 2024-2026 biennial budget.
A100: 10 | B100: Payments for the VPSA Technology Grants are made from bond proceeds on a reimbursement basis and may begin following each bond issuance. These payments include funding for the school division and the
B101: regional programs for which the division serves as the fiscal agent.
A102: 11 | B102: Payments for the Virginia Preschool Initiative are based on projected FY 2025 and FY 2026 student slots used in the amendments adopted by the 2024 Special Session I General Assembly to the 2024-2026 biennial budget.
A103: 12 | B103: Payments for English Leaner Teachers projected for FY 2025 and FY 2026 are based on a new funding methodology adopted by the 2024 General Assembly. The new methodology bases state payments on student
B104: proficiency level aligned to corresponding instructional position ratios, in lieu of the current standard that provides one position per 50 identified English Language Learners. Please refer to the Account Funding
B105: Explanations tab for more detail.
A106: 13 | B106: The amendments adopted by the 2024 Special Session I General Assembly to the 2024-2026 biennial budget calculate the state share of Compensation Supplement funds based on a 3% salary increase
B107: effective July 1, 2024 and an additional 3% salary increase effective July 1, 2025 for funded SOQ instructional and support positions, Academic-Year Governor's Schools, and regional alternative education centers.
A108: 14 | B108: The proposed per pupil funding amount for the Infrastructure and Operations Per Pupil Allocation Payment is projected at $446.67 for FY 2025 and $410.62 for FY 2026.
B109: Divisions will be paid up to their calculated entitlement based on actual March 31 ADM, pending sufficient appropriation. The per pupil amount is adjusted for the local composite index.
B110: Estimates will not change when local ADM projections are selected.
A111: 15 | B111: Unspent School Construction Grant balances as of June 30, 2023, and June 30, 2024, shall be appropriated to school divisions the following year.
B112: Local match is required as part of the required local effort.
A113: 15 | B113: Additional VPI programs include mixed delivery grants and additional VPI slots for 3-year olds, expanded class sizes, and waitlist students.
A114: 16 | B114: According to the amendments adopted by the 2024 Special Session I General Assembly to the 2024-2026 biennial budget, the Supplemental General Fund Payments in Lieu of Food and Hygiene Tax Products shall be distributed on the basis of the latest annual estimate of school age population provided by the Weldon Cooper Center for Public Service.
A115: 17 | B115: State funding for the Prevention, Intervention, and Remediation program has been absorbed by the new At-Risk Add-on program.
A116: 18 | B116: The amendments adopted by the 2024 Special Session I General Assembly to the 2024-2026 Biennial Budget assigns the At-Risk GF to the SOQ area. Required Local Effort for both At-Risk GF and Lottery funds are now based on the payments in the SOQ area.
A117: a | B117: = SOQ accounts requiring a local match for purpose of meeting Required Local Effort.
A118: BOLD | B118: = Account funding based on ADM; any changes in ADM numbers will result in a change in the state payment amount.
C121: FY 2025 | D121: FY 2026
B122: Total Distribution Amount | C122: =VLOOKUP($A$7,'FINAL SOURCE DATA'!$A$3:$DF$138,109,FALSE) ->  | D122: =VLOOKUP($A$7,'FINAL SOURCE DATA'!$A$3:$DF$138,110,FALSE) -> 
B123: Variance Amount | C123: =ROUND(C122-C84,0) ->  | D123: =ROUND(D122-E84,0) ->  | E123: If variance is minimal, it maybe due to rounding.
B124: Data Validation Message | C124: =IF(C123=0,"NO VARIANCE", "Variance, please review and correct as necessary") ->  | D124: =IF(D123=0,"NO VARIANCE", "Variance, please review and correct as necessary") -> 

Sheet Enrollment Projections (hidden)
A1: PROJECTED ENROLLMENTS | G1: Run selection code
A2: Division Number: | B2: ='State & Local Funds Summary'!A7 -> 0
A3: Division Name: | B3: ='State & Local Funds Summary'!B7 -> 0
A5: This worksheet provides the option of using the enrollment projections for ADM, Remedial Summer School, English Language Learners (ELL), and Virginia Preschool Initiative (VPI) (i.e. student slots) that are included in the amendments adopted by the 2024 Special Session I General Assembly, or entering local enrollment projections. NOTE: Please note that fiscal year 2025 and 2026 student slots for VPI are capped at the number of slots that are included in the amendments adopted by the 2024 Special Session I General Assembly. Rows 38-41 provide additional detail on which accounts are affected by the enrollment projections reflected on this sheet.
A7: FY 2025 and FY 2026 Enrollment Projections Included in the amendments adopted by the 2024 Special Session I General Assembly to the 2024-2026 Biennial Budget. This section reflects projected FY 2025 and FY 2026 enrollment and participation projections used in the amendments adopted by the 2024 Special Session I General Assembly to the 2024-2026 biennial budget. This information is provided for your reference and cannot be changed. See the next section below to enter local enrollment projections.
B8: =Instructions!N2 -> FY 2025 | D8: =Instructions!N3 -> FY 2026 | G8: Local = DOE
A9: Unadjusted ADM | B9: =IF(B2=0,0,VLOOKUP('Enrollment Projections'!$B$2,'FINAL SOURCE DATA'!$A$3:$HC$138,111,FALSE)) -> 0 | D9: =IF(B2=0,0,VLOOKUP('Enrollment Projections'!$B$2,'FINAL SOURCE DATA'!$A$3:$HC$138,112,FALSE)) -> 0 | F9: =IF(AND(B9=B25,C25<>"State Projection"),1,0) -> 0 | H9: =IF(AND(D9=D25,E25<>"State Projection"),1,0) -> 0
A10: Adjusted ADM | B10: =IF(B2=0,0,VLOOKUP('Enrollment Projections'!$B$2,'FINAL SOURCE DATA'!$A$3:$HC$138,113,FALSE)) -> 0 | D10: =IF(B2=0,0,VLOOKUP('Enrollment Projections'!$B$2,'FINAL SOURCE DATA'!$A$3:$HC$138,114,FALSE)) -> 0 | F10: =IF(AND(B10=B26,C26<>"State Projection"),1,0) -> 0 | H10: =IF(AND(D10=D26,E26<>"State Projection"),1,0) -> 0
A11: Remedial Summer School Students | B11: =IF(B2=0,0,VLOOKUP('Enrollment Projections'!$B$2,'FINAL SOURCE DATA'!$A$3:$HC$138,148,FALSE)) -> 0 | D11: =IF(B2=0,0,VLOOKUP('Enrollment Projections'!$B$2,'FINAL SOURCE DATA'!$A$3:$HC$138,149,FALSE)) -> 0 | F11: =IF(AND(B11=B27,C27<>"State Projection"),1,0) -> 0 | H11: =IF(AND(D11=D27,E27<>"State Projection"),1,0) -> 0
A12: Virginia Preschool Initiative Full-Time Slots | B12: =IF(B2=0,0,VLOOKUP('Enrollment Projections'!$B$2,'FINAL SOURCE DATA'!$A$3:$HC$138,170,FALSE)) -> 0 | D12: =IF(B2=0,0,VLOOKUP('Enrollment Projections'!$B$2,'FINAL SOURCE DATA'!$A$3:$HC$138,171,FALSE)) -> 0 | F12: =IF(AND(B12=B28,C28<>"State Projection"),1,0) -> 0 | H12: =IF(AND(D12=D28,E28<>"State Projection"),1,0) -> 0
A13: Virginia Preschool Initiative Half-Time Slots | B13: 0 | D13: 0 | F13: =IF(AND(B13=B29,C29<>"State Projection"),1,0) -> 0 | H13: =IF(AND(D13=D29,E29<>"State Projection"),1,0) -> 0
A14: English Language Learner Proficiency Level 1 | B14: =IF($B$2=0,0,VLOOKUP('Enrollment Projections'!$B$2,ELL!$A$8:$N$143,4,FALSE)) -> 0 | D14: =IF($B$2=0,0,VLOOKUP('Enrollment Projections'!$B$2,ELL!$A$152:$N$287,4,FALSE)) -> 0 | F14: =IF(AND(B14=B30,C30<>"State Projection"),1,0) -> 0 | H14: =IF(AND(D14=D30,E30<>"State Projection"),1,0) -> 0
A15: English Language Learner Proficiency Level 2 | B15: =IF($B$2=0,0,VLOOKUP('Enrollment Projections'!$B$2,ELL!$A$8:$N$143,6,FALSE)) -> 0 | D15: =IF($B$2=0,0,VLOOKUP('Enrollment Projections'!$B$2,ELL!$A$152:$N$287,6,FALSE)) -> 0 | F15: 0 | H15: 0
A16: English Language Learner Proficiency Level 3 | B16: =IF($B$2=0,0,VLOOKUP('Enrollment Projections'!$B$2,ELL!$A$8:$N$143,8,FALSE)) -> 0 | D16: =IF($B$2=0,0,VLOOKUP('Enrollment Projections'!$B$2,ELL!$A$152:$N$287,8,FALSE)) -> 0 | F16: 0 | H16: 0
A17: English Language Learner Proficiency Level 4 | B17: =IF($B$2=0,0,VLOOKUP('Enrollment Projections'!$B$2,ELL!$A$8:$N$143,10,FALSE)) -> 0 | D17: =IF($B$2=0,0,VLOOKUP('Enrollment Projections'!$B$2,ELL!$A$152:$N$287,10,FALSE)) -> 0 | F17: 0 | H17: 0
A18: Other English Language Learner Proficiency | B18: =IF($B$2=0,0,VLOOKUP('Enrollment Projections'!$B$2,ELL!$A$8:$N$143,12,FALSE)) -> 0 | D18: =IF($B$2=0,0,VLOOKUP('Enrollment Projections'!$B$2,ELL!$A$152:$N$287,12,FALSE)) -> 0 | F18: 0 | H18: 0
A19: English Learner Total Enrollment | B19: =SUM(B14:B18) -> 0 | D19: =SUM(D14:D18) -> 0
F20: =SUM(F9:F19) -> 0 | H20: =SUM(F9:H19) -> 0
A22: Enrollment Projections Currently used in Calculation Tool Enter Local Projections in this Section
A23: Instructions: If you would like to use a local estimate for any of these enrollment figures: 1. Select 'Local Projection' in the dropdown menus in column C or E. 2. Input the local projection in column B or D. 3. Click hyperlink in row 36 to see funding impacts of the local projections. 4. To go back to the amendments adopted by the 2024 Special Session I General Assembly to the 2024-2026 biennial budget enrollment projections and funding estimates, select 'State Projection' for each entry.
B24: =B8 -> FY 2025 | D24: =D8 -> FY 2026 | G24: Toggles that work with code to switch entry back to State Projections
A25: Unadjusted ADM | B25: =IF(C25="State Projection",B9,"Input proj.") -> 0 | C25: State Projection | D25: =IF(E25="State Projection",D9,"Input proj.") -> 0 | E25: State Projection | G25: =IF(AND(B25<>B9,C25="State Projection"),"Update","-") -> - | H25: =IF(AND(D25<>D9,E25="State Projection"),"Update","-") -> -
A26: Adjusted ADM | B26: =B25 -> 0 | C26: =C25 -> State Projection | D26: =D25 -> 0 | E26: State Projection | G26: =IF(AND(B26<>B10,C26="State Projection"),"Update","-") -> - | H26: =IF(AND(D26<>D10,E26="State Projection"),"Update","-") -> -
A27: Remedial Summer School Students | B27: =IF(C27="State Projection",B11,"Input proj.") -> 0 | C27: State Projection | D27: =IF(E27="State Projection",D11,"Input proj.") -> 0 | E27: State Projection | G27: =IF(AND(B27<>B11,C27="State Projection"),"Update","-") -> - | H27: =IF(AND(D27<>D11,E27="State Projection"),"Update","-") -> -
A28: Virginia Preschool Initiative Full-Time Slots | B28: =IF(C28="State Projection",B12,"Input proj.") -> 0 | C28: State Projection | D28: =IF(E28="State Projection",D12,"Input proj.") -> 0 | E28: State Projection | G28: =IF(AND(B28<>B12,C28="State Projection"),"Update","-") -> - | H28: =IF(AND(D28<>D12,E28="State Projection"),"Update","-") -> -
A29: Virginia Preschool Initiative Half-Time Slots | B29: =IF(C29="State Projection",B13,"Input proj.") -> 0 | C29: State Projection | D29: =IF(E29="State Projection",D13,"Input proj.") -> 0 | E29: State Projection | G29: =IF(AND(B29<>B13,C29="State Projection"),"Update","-") -> - | H29: =IF(AND(D29<>D13,E29="State Projection"),"Update","-") -> -
A30: English Language Learner Proficiency Level 1 | B30: =IF(C30="State Projection",B14,"Input proj.") -> 0 | C30: State Projection | D30: =IF(E30="State Projection",D14,"Input proj.") -> 0 | E30: State Projection | G30: =IF(AND(B30<>B14,C30="State Projection"),"Update","-") -> - | H30: =IF(AND(D30<>D14,E30="State Projection"),"Update","-") -> -
A31: English Language Learner Proficiency Level 2 | B31: =IF(C31="State Projection",B15,"Input proj.") -> 0 | C31: State Projection | D31: =IF(E31="State Projection",D15,"Input proj.") -> 0 | E31: State Projection | G31: - | H31: -
A32: English Language Learner Proficiency Level 3 | B32: =IF(C32="State Projection",B16,"Input proj.") -> 0 | C32: State Projection | D32: =IF(E32="State Projection",D16,"Input proj.") -> 0 | E32: State Projection | G32: - | H32: -
A33: English Language Learner Proficiency Level 4 | B33: 0 | C33: State Projection | D33: =IF(E33="State Projection",D17,"Input proj.") -> 0 | E33: State Projection | G33: - | H33: -
A34: Other English Language Learner Proficiency | B34: 0 | C34: State Projection | D34: =IF(E34="State Projection",D18,"Input proj.") -> 0 | E34: State Projection | G34: =IF(AND(B34<>B18,C34="State Projection"),"Update","-") -> - | H34: =IF(AND(D34<>D18,E34="State Projection"),"Update","-") -> -
C35: 2024-10-11 | D35: 08:20:23 | F35: Total VPI Slots exceeded Toggles
A36: Click here to see funding impacts of the above Enrollment Projections. | F36: =IF(OR(ISTEXT(B28),ISTEXT(B29)),0,IF(B28+0.5*B29>B12,1,0)) -> 0 | G36: =IF(OR(ISTEXT(D28),ISTEXT(D29)),0,IF(D28+0.5*D29>D12,1,0)) -> 0 | H36: =CONCATENATE("Total number of VPI slots is greater than the formula cap of ",B12," in FY 2025. Please enter an amount less than or equal to this cap. Half-time slots are treated as one half of a full-time slot in determining the maximum number of slots.") -> Total number of VPI slots is greater than the formula cap of 0 in FY 2025. Please enter an amount less than or equal to this cap. Half-time slots are treated as one half of a full-time slot in determining the maximum number of slots. | I36: =CONCATENATE("Total number of VPI slots is greater than the formula cap of ",D12," in FY 2026. Please enter an amount less than or equal to this cap. Half-time slots are treated as one half of a full-time slot in determining the maximum number of slots.") -> Total number of VPI slots is greater than the formula cap of 0 in FY 2026. Please enter an amount less than or equal to this cap. Half-time slots are treated as one half of a full-time slot in determining the maximum number of slots.
A38: Changing your ADM projection will only change the following accounts, which are funded based on March 31 ADM: Basic Aid; Textbooks; Vocational Education; Gifted Education; Special Education; VRS; Social Security; Group Life; Supplemental Basic Aid; Compensation Supplement; and At-Risk. Note that, for each fiscal year, the payment of semi-monthly SOQ account payments is based only on the General Assembly's amended budget projections of division March 31 ADM, pending the recalculation of payments based on final March 31 ADM at the end of each fiscal year and subject to available state appropriation.
A39: Changing the projected number of Remedial Summer School students will ONLY update the estimated funding for the Remedial Summer School account. Final payments will be based on actual certified Remedial Summer School enrollment, subject to available state appropriation.
A40: Changing the projected number of Virginia Preschool Initiative slots will ONLY update the estimated funding for the Virginia Preschool Initiative account. Final payments will be based on actual certified Virginia Preschool Initiative enrollment, subject to available state appropriation and with a cap set at the formula-generated number of slots shown above in row 12.
A41: Changing the projected number of English Language Learner students will ONLY update the estimated funding for the English Learner Teacher account. Final payments will be based on actual certified English Language Learner enrollment by proficiency level, subject to available state appropriation.
A45: Last Used Values
B46: =+B24 -> FY 2025 | D46: =+D24 -> FY 2026
B47: Last Used Value | C47: 0 if same, 1 if new value | D47: Last Used Value | E47: 0 if same, 1 if new value | F47: Sum of changes
A48: Unadjusted ADM | B48: 0 | C48: =IF(B48=B25,0,1) -> 0 | D48: 0 | E48: =IF(D48=D25,0,1) -> 0 | F48: =SUM(E48,C48) -> 0
A49: Adjusted ADM | B49: 0 | C49: =IF(B49=B26,0,1) -> 0 | D49: 0 | E49: =IF(D49=D26,0,1) -> 0 | F49: 0 | G49: =SUM(F48:F49) -> 0
A50: Remedial Summer School Students | B50: 0 | C50: =IF(B50=B27,0,1) -> 0 | D50: 0 | E50: =IF(D50=D27,0,1) -> 0 | F50: 0
A51: Virginia Preschool Initiative Full-Time Slots | B51: 0 | C51: =IF(B51=B28,0,1) -> 0 | D51: 0 | E51: =IF(D51=D28,0,1) -> 0 | F51: 0
A52: Virginia Preschool Initiative Half-Time Slots | B52: 0 | C52: =IF(B52=B29,0,1) -> 0 | D52: 0 | E52: =IF(D52=D29,0,1) -> 0 | F52: 0
A53: English Language Learner Proficiency Level 1 | B53: 0 | C53: =IF(B53=B30,0,1) -> 0 | D53: 0 | E53: =IF(D53=D30,0,1) -> 0 | F53: 0
A54: English Language Learner Proficiency Level 2 | B54: 0 | C54: 0 | D54: 0 | E54: 0 | F54: 0
A55: English Language Learner Proficiency Level 3 | B55: 0 | C55: 0 | D55: 0 | E55: 0 | F55: 0
A56: English Language Learner Proficiency Level 4 | B56: 0 | C56: 0 | D56: 0 | E56: 0 | F56: 0
A57: English Language Learner Proficiency Level 5 | B57: 0 | C57: 0 | D57: 0 | E57: 0 | F57: 0
F58: =SUM(E48:E57,C48:C57) -> 0
A59: List for dropdowns: | B59: State Projection
B60: Local Projection
A62: New Account Calculations
B63: FY 2025 | D63: FY 2025
B64: State Share | C64: Local Share | D64: State Share | E64: Local Share
A65: Remedial Summer School | B65: =ROUND('Budget Variables'!B21*'Enrollment Projections'!B27*(1-'Budget Variables'!B11),0) -> 0 | D65: =ROUND('Budget Variables'!C21*'Enrollment Projections'!D27*(1-'Budget Variables'!C11),0) -> 0
A66: Virginia Preschool Initiative | B66: =ROUND(B28*(1-B69)*B70,0)+ROUND(B29*(1-B69)*B71,0) -> 0 | C66: =ROUND(B66/(1-B69)*B69,0) -> 0 | D66: =ROUND(D28*(1-D69)*D70,0)+ROUND(D29*(1-D69)*D71,0) -> 0 | E66: =ROUND(D66/(1-D69)*D69,0) -> 0
A67: English as a Second Language | B67: =ROUND(B77*VLOOKUP($B$2,ELL!$A$8:$S$143,19,FALSE)*(1-'Budget Variables'!$B$11),0) ->  | C67: =ROUND(B67/(1-'Budget Variables'!B11)*'Budget Variables'!B11,0) ->  | D67: =ROUND(D77*VLOOKUP($B$2,ELL!$A$152:$S$287,19,FALSE)*(1-'Budget Variables'!$C$11),0) ->  | E67: =ROUND(D67/(1-'Budget Variables'!C11)*'Budget Variables'!C11,0) -> 
A69: VPI Capped Composite Index | B69: =MIN(0.5,'Budget Variables'!B11) -> 0 | D69: =MIN(0.5,'Budget Variables'!C11) -> 0
A70: VPI Per Pupil (Full Day) | B70: =VLOOKUP($B$2,'FINAL SOURCE DATA'!$A$3:$GV$139,172,FALSE) -> 0 | D70: =VLOOKUP($B$2,'FINAL SOURCE DATA'!$A$3:$GV$139,173,FALSE) -> 0
A71: VPI Per Pupil (Half Day)
A72: EL Number of Teachers Proficiency Level 1 | B72: =ROUND(B53/20,2) -> 0 | D72: =ROUND(D53/20,2) -> 0
A73: EL Number of Teachers Proficiency Level 2 | B73: =ROUND(B54/30,2) -> 0 | D73: =ROUND(D54/30,2) -> 0
A74: EL Number of Teachers Proficiency Level 3 | B74: =ROUND(B55/40,2) -> 0 | D74: =ROUND(D55/40,2) -> 0
A75: EL Number of Teachers Proficiency Level 4 | B75: =ROUND(B56/50,2) -> 0 | D75: =ROUND(D56/50,2) -> 0
A76: EL Number of Teachers Proficiency Level 5 | B76: =ROUND(B57/100,2) -> 0 | D76: =ROUND(D57/100,2) -> 0
A77: TOTAL | B77: =SUM(B72:B76) -> 0 | D77: =SUM(D72:D76) -> 0
A79: Local vs. Budgeted Toggles
B80: =B63 -> FY 2025 | D80: =D63 -> FY 2025 | G80: =+B59 -> State Projection
B81: Labels | C81: 0 if Budgeted, 1 if Local | D81: Labels | E81: 0 if Budgeted, 1 if Local | F81: Sum of changes
A82: Unadjusted ADM | B82: =IF(C82>0,CONCATENATE("FY 2025 ",$A82,", "),"") ->  | C82: =IF(B9=B25,0,1) -> 0 | D82: =IF(E82>0,CONCATENATE("FY 2026 ",$A82,", "),"") ->  | E82: =IF(D9=D25,0,1) -> 0 | F82: =SUM(E82,C82) -> 0 | I82: =IF(AND(SUM(C82:C83)>0,SUM(E82:E83)=0),"FY 2025",IF(AND(SUM(C82:C83)=0,SUM(E82:E83)>0),"FY 2026","FY 2025 and FY 2026")) -> FY 2025 and FY 2026
A83: Adjusted ADM | C83: =IF(B10=B26,0,1) -> 0 | E83: =IF(D10=D26,0,1) -> 0 | F83: 0 | G83: =SUM(F82:F83) -> 0 | H83: Any Local ADM
A84: Remedial Summer School Students | C84: =IF(B11=B27,0,1) -> 0 | E84: =IF(D11=D27,0,1) -> 0 | F84: 0 | I84: =IF(AND(SUM(C84:C85)>0,SUM(E84:E85)=0),"FY 2025",IF(AND(SUM(C84:C85)=0,SUM(E84:E85)>0),"FY 2026","FY 2025 and FY 2026")) -> FY 2025 and FY 2026
A85: Virginia Preschool Initiative Full-Time Slots | C85: =IF(B12=B28,0,1) -> 0 | E85: =IF(D12=D28,0,1) -> 0 | F85: 0 | I85: =IF(AND(SUM(C85:C86)>0,SUM(E85:E86)=0),"FY 2025",IF(AND(SUM(C85:C86)=0,SUM(E85:E86)>0),"FY 2026","FY 2025 and FY 2026")) -> FY 2025 and FY 2026
A86: Virginia Preschool Initiative Half-Time Slots | C86: =IF(B13=B29,0,1) -> 0 | E86: =IF(D13=D29,0,1) -> 0 | F86: 0 | G86: =SUM(F85:F86) -> 0 | H86: Any local VPI
A87: English Language Learner Enrollment | C87: =IF(B19=SUM(B30:B34),0,1) -> 0 | E87: =IF(D19=SUM(D30:D34),0,1) -> 0 | F87: 0 | I87: =IF(AND(SUM(C87:C88)>0,SUM(E87:E88)=0),"FY 2025",IF(AND(SUM(C87:C88)=0,SUM(E87:E88)>0),"FY 2026","FY 2025 and FY 2025")) -> FY 2025 and FY 2025
F88: =SUM(F82:F87) -> 0 | G88: Total Local selected
A89: Message on which accounts are used: | E89: =IF(D10=D26,0,1) -> 0
A90: =IF(F88>0,CONCATENATE("Local enrollment projections for ",B82,B83,B84,B85,B86,B87,D82,D83,D84,D85,D86,D87),"") -> 
A91: =LEN(A90) -> 0
A92: =IF(F88=0,"Projected payments based on amendments adeopted by the General Assembly to the 2024-2026 Budget Enrollment Estimates",LEFT(A90,A91-2)) -> Projected payments based on amendments adeopted by the General Assembly to the 2024-2026 Budget Enrollment Estimates

Sheet Budget Variables (hidden)
A1: ="Budget Variables Used in "&Instructions!$N$1&" Direct Aid Budget Calculations" -> Budget Variables Used in 2024-2026 Direct Aid Budget Calculations
A2: ="Based on "&Instructions!N4 -> Based on Amendments Adopted by the 2024 Special Session I General Assembly to the 2024-2026 Biennial Budget (Chapter 2)
B3: =IF(ISNUMBER(VLOOKUP($B$4,'Funded Salaries'!$B$76:$B$116,1,FALSE)),1,0) -> 0
A4: Division Number: | B4: ='State & Local Funds Summary'!A7 -> 0
A5: Division Name: | B5: ='State & Local Funds Summary'!B7 -> 0
A8: BUDGET VARIABLES: | B8: ="Projected "&Instructions!$N$2 -> Projected FY 2025 | C8: ="Projected "&Instructions!$N$3 -> Projected FY 2026
A9: =IF('Enrollment Projections'!F82=0, "Unadjusted ADM - "&'Enrollment Projections'!$G$80, "Unadjusted ADM - Local Projection") -> Unadjusted ADM - State Projection | B9: =IF(OR('State & Local Funds Summary'!$B$85="DOE", 'State & Local Funds Summary'!$B$85="LOCAL"),'Enrollment Projections'!B25,0) -> 0 | C9: =IF(OR('State & Local Funds Summary'!$B$85="DOE", 'State & Local Funds Summary'!$B$85="LOCAL"),'Enrollment Projections'!D25,0) -> 0
A10: =IF('Enrollment Projections'!F83=0, "Adjusted ADM - "&'Enrollment Projections'!$G$80, "Adjusted ADM - Local Projection") -> Adjusted ADM - State Projection | B10: =IF(OR('State & Local Funds Summary'!$B$85="DOE", 'State & Local Funds Summary'!$B$85="LOCAL"),'Enrollment Projections'!B26,0) -> 0 | C10: =IF(OR('State & Local Funds Summary'!$B$85="DOE", 'State & Local Funds Summary'!$B$85="LOCAL"),'Enrollment Projections'!D26,0) -> 0
A11: Composite Index | B11: =IF(OR('State & Local Funds Summary'!$B$85="DOE", 'State & Local Funds Summary'!$B$85="LOCAL"),VLOOKUP($B$4, 'FINAL SOURCE DATA'!$A$3:$ET$140, 115),0) -> 0 | C11: =IF(OR('State & Local Funds Summary'!$B$85="DOE", 'State & Local Funds Summary'!$B$85="LOCAL"), VLOOKUP($B$4, 'FINAL SOURCE DATA'!$A$3:$ET$140, 116), 0) -> 0
A12: Basic Aid (PPA) | B12: =IF(OR('State & Local Funds Summary'!$B$85="DOE", 'State & Local Funds Summary'!$B$85="LOCAL"), VLOOKUP($B$4, 'FINAL SOURCE DATA'!$A$3:$ET$140, 117), 0) -> 0 | C12: =IF(OR('State & Local Funds Summary'!$B$85="DOE", 'State & Local Funds Summary'!$B$85="LOCAL"), VLOOKUP($B$4, 'FINAL SOURCE DATA'!$A$3:$ET$140, 118), 0) -> 0
A13: Textbook (PPA) | B13: =IF(OR('State & Local Funds Summary'!$B$85="DOE", 'State & Local Funds Summary'!$B$85="LOCAL"), VLOOKUP($B$4, 'FINAL SOURCE DATA'!$A$3:$ET$140, 121), 0) -> 0 | C13: =IF(OR('State & Local Funds Summary'!$B$85="DOE", 'State & Local Funds Summary'!$B$85="LOCAL"), VLOOKUP($B$4, 'FINAL SOURCE DATA'!$A$3:$ET$140, 122), 0) -> 0
A14: Vocational Education (PPA) | B14: =IF(OR('State & Local Funds Summary'!$B$85="DOE", 'State & Local Funds Summary'!$B$85="LOCAL"), VLOOKUP($B$4, 'FINAL SOURCE DATA'!$A$3:$ET$140, 123), 0) -> 0 | C14: =IF(OR('State & Local Funds Summary'!$B$85="DOE", 'State & Local Funds Summary'!$B$85="LOCAL"), VLOOKUP($B$4, 'FINAL SOURCE DATA'!$A$3:$ET$140, 124), 0) -> 0
A15: Gifted Education (PPA) | B15: =IF(OR('State & Local Funds Summary'!$B$85="DOE", 'State & Local Funds Summary'!$B$85="LOCAL"), VLOOKUP($B$4, 'FINAL SOURCE DATA'!$A$3:$ET$140, 125), 0) -> 0 | C15: =IF(OR('State & Local Funds Summary'!$B$85="DOE", 'State & Local Funds Summary'!$B$85="LOCAL"), VLOOKUP($B$4, 'FINAL SOURCE DATA'!$A$3:$ET$140, 126), 0) -> 0
A16: Special Education (PPA) | B16: =IF(OR('State & Local Funds Summary'!$B$85="DOE", 'State & Local Funds Summary'!$B$85="LOCAL"), VLOOKUP($B$4, 'FINAL SOURCE DATA'!$A$3:$ET$140, 127), 0) -> 0 | C16: =IF(OR('State & Local Funds Summary'!$B$85="DOE", 'State & Local Funds Summary'!$B$85="LOCAL"), VLOOKUP($B$4, 'FINAL SOURCE DATA'!$A$3:$ET$140, 128), 0) -> 0
A17: Prevention, Intervention, and Remediation (PPA) | B17: =IF(OR('State & Local Funds Summary'!$B$85="DOE", 'State & Local Funds Summary'!$B$85="LOCAL"), VLOOKUP($B$4, 'FINAL SOURCE DATA'!$A$3:$ET$140, 129), 0) -> 0 | C17: =IF(OR('State & Local Funds Summary'!$B$85="DOE",'State & Local Funds Summary'!$B$85="LOCAL"),VLOOKUP($B$4,'FINAL SOURCE DATA'!$A$3:$ET$140,130),0) -> 0
A18: VRS Retirement (PPA) | B18: =IF(OR('State & Local Funds Summary'!$B$85="DOE", 'State & Local Funds Summary'!$B$85="LOCAL"), VLOOKUP($B$4, 'FINAL SOURCE DATA'!$A$3:$ET$140, 131), 0) -> 0 | C18: =IF(OR('State & Local Funds Summary'!$B$85="DOE", 'State & Local Funds Summary'!$B$85="LOCAL"), VLOOKUP($B$4, 'FINAL SOURCE DATA'!$A$3:$ET$140, 132), 0) -> 0
A19: Social Security (PPA) | B19: =IF(OR('State & Local Funds Summary'!$B$85="DOE", 'State & Local Funds Summary'!$B$85="LOCAL"), VLOOKUP($B$4, 'FINAL SOURCE DATA'!$A$3:$ET$140, 133), 0) -> 0 | C19: =IF(OR('State & Local Funds Summary'!$B$85="DOE", 'State & Local Funds Summary'!$B$85="LOCAL"), VLOOKUP($B$4, 'FINAL SOURCE DATA'!$A$3:$ET$140, 134), 0) -> 0
A20: Group Life (PPA) | B20: =IF(OR('State & Local Funds Summary'!$B$85="DOE", 'State & Local Funds Summary'!$B$85="LOCAL"), VLOOKUP($B$4, 'FINAL SOURCE DATA'!$A$3:$ET$140, 135), 0) -> 0 | C20: =IF(OR('State & Local Funds Summary'!$B$85="DOE",'State & Local Funds Summary'!$B$85="LOCAL"),VLOOKUP($B$4,'FINAL SOURCE DATA'!$A$3:$ET$140,136),0) -> 0
A21: Remedial Summer School (PPA) | B21: =IF(OR('State & Local Funds Summary'!$B$85="DOE", 'State & Local Funds Summary'!$B$85="LOCAL"), VLOOKUP($B$4, 'FINAL SOURCE DATA'!$A$3:$ET$140, 137), 0) -> 0 | C21: =IF(OR('State & Local Funds Summary'!$B$85="DOE", 'State & Local Funds Summary'!$B$85="LOCAL"), VLOOKUP($B$4, 'FINAL SOURCE DATA'!$A$3:$ET$140, 138), 0) -> 0
A22: Supplemental Support for School Operating Costs (PPA)
A23: Bonus (PPA) | B23: =IF(OR('State & Local Funds Summary'!$B$85="DOE", 'State & Local Funds Summary'!$B$85="LOCAL"), VLOOKUP($B$4, 'FINAL SOURCE DATA'!$A$3:$ET$140, 139), 0) -> 0 | C23: =IF(OR('State & Local Funds Summary'!$B$85="DOE", 'State & Local Funds Summary'!$B$85="LOCAL"), VLOOKUP($B$4, 'FINAL SOURCE DATA'!$A$3:$ET$140, 140), 0) -> 0
A24: Compensation Supplement PPA | B24: =IF(OR('State & Local Funds Summary'!$B$85="DOE", 'State & Local Funds Summary'!$B$85="LOCAL"), VLOOKUP($B$4, 'FINAL SOURCE DATA'!$A$3:$ET$140, 119), 0) -> 0 | C24: =IF(OR('State & Local Funds Summary'!$B$85="DOE", 'State & Local Funds Summary'!$B$85="LOCAL"), VLOOKUP($B$4, 'FINAL SOURCE DATA'!$A$3:$ET$140, 120), 0) -> 0
A25: Governor's School (PPA) | B25: =IF(OR('State & Local Funds Summary'!$B$85="DOE", 'State & Local Funds Summary'!$B$85="LOCAL"), VLOOKUP($B$4, 'FINAL SOURCE DATA'!$A$3:$EZ$140, 155), 0) -> 0 | C25: =IF(OR('State & Local Funds Summary'!$B$85="DOE", 'State & Local Funds Summary'!$B$85="LOCAL"), VLOOKUP($B$4, 'FINAL SOURCE DATA'!$A$3:$EZ$140, 156), 0) -> 0
A26: =IF('Enrollment Projections'!F87>0, "Number of English Language Learners - Local Projection","Number of English Language Learners - "&'Enrollment Projections'!$G$80) -> Number of English Language Learners - State Projection | B26: =SUM('Enrollment Projections'!B30:B34) -> 0 | C26: =SUM('Enrollment Projections'!D30:D34) -> 0
A27: ELL Funded Teachers | B27: =ROUND('Enrollment Projections'!B30/20+'Enrollment Projections'!B31/30+'Enrollment Projections'!B32/40+'Enrollment Projections'!B33/50+'Enrollment Projections'!B34/100,2) -> 0 | C27: =ROUND('Enrollment Projections'!D30/20+'Enrollment Projections'!D31/30+'Enrollment Projections'!D32/40+'Enrollment Projections'!D33/50+'Enrollment Projections'!D34/100,2) -> 0
A28: ELL Funded Compensation | B28: =VLOOKUP($B$4, 'FINAL SOURCE DATA'!$A$3:$GK$138,143, FALSE) ->  | C28: =VLOOKUP($B$4, 'FINAL SOURCE DATA'!$A$3:$GK$138,144, FALSE) -> 
A29: =IF('Enrollment Projections'!F84>0, "Remedial Summer School - Local Projection","Remedial Summer School - "&'Enrollment Projections'!$G$80) -> Remedial Summer School - State Projection | B29: ='Enrollment Projections'!B27 -> 0 | C29: ='Enrollment Projections'!D27 -> 0
A30: At-Risk Add-on - Flat Rate | B30: ='Enroll. & At-Risk'!$Q$1 -> 0.11 | C30: ='Enroll. & At-Risk'!$Q$153 -> 0.11
A31: At-Risk Add-on - Concentration of Poverty Rate | B31: =IFERROR(VLOOKUP($B$4,'Enroll. & At-Risk'!$A$12:$Q$147,17,FALSE),0)-(B30) -> -0.11 | C31: =IFERROR(VLOOKUP($B$4,'Enroll. & At-Risk'!$A$161:$Q$296,17,FALSE),0)-(C30) -> -0.11
A32: Free Lunch (One-Year Rate) | B32: =IFERROR(VLOOKUP($B$4,'FINAL SOURCE DATA'!$A$3:$GN$138,195,FALSE),0) -> 0 | C32: =IFERROR(VLOOKUP($B$4,'FINAL SOURCE DATA'!$A$3:$GN$138,196,FALSE),0) -> 0
A33: Identified Student Percentage Rate (Three-Year Rate) | B33: =IFERROR(VLOOKUP($B$4,'Enroll. & At-Risk'!$A$12:$Q$147,11,FALSE),0) -> 0 | C33: =IFERROR(VLOOKUP($B$4,'Enroll. & At-Risk'!$A$161:$Q$296,11,FALSE),0) -> 0
A34: Infrastructure & Operations Per Pupil Fund (PPA)1 | B34: =IFERROR(VLOOKUP($B$4,'FINAL SOURCE DATA'!$A$3:$GN$138,141,FALSE),0) -> 0 | C34: =IFERROR(VLOOKUP($B$4,'FINAL SOURCE DATA'!$A$3:$GN$138,142,FALSE),0) -> 0
A35: VPI (PPA) | B35: =IF(OR('State & Local Funds Summary'!$B$85="DOE", 'State & Local Funds Summary'!$B$85="LOCAL"), VLOOKUP($B$4, 'FINAL SOURCE DATA'!$A$3:$GK$140, 172), 0) -> 0 | C35: =IF(OR('State & Local Funds Summary'!$B$85="DOE", 'State & Local Funds Summary'!$B$85="LOCAL"), VLOOKUP($B$4, 'FINAL SOURCE DATA'!$A$3:$GK$140, 173), 0) -> 0
A37: FUNDED FRINGE BENEFIT RATES: | B37: =B8 -> Projected FY 2025 | C37: =C8 -> Projected FY 2026
A38: Instructional / Professional Support VRS Retirement (Employer Share) (Does not include RHCC - see below) | B38: ='FINAL SOURCE DATA'!FC7 -> 0.1523 | C38: ='FINAL SOURCE DATA'!FD7 -> 0.1523
A39: Instructional / Professional Support VRS Retirement (Employee Share) | B39: ='FINAL SOURCE DATA'!FC9 -> 0.05 | C39: ='FINAL SOURCE DATA'!FD9 -> 0.05
A40: Total Instructional / Professional Support VRS Retirement Rate | B40: =IF((B38+B39)<>'FINAL SOURCE DATA'!FC10,"CHECK LINKS",(B38+B39)) -> 0.2023 | C40: =IF((C38+C39)<>'FINAL SOURCE DATA'!FD10,"CHECK LINKS",(C38+C39)) -> 0.2023
A42: Group Life (Employer Share) | B42: ='FINAL SOURCE DATA'!FC11 -> 0.0047 | C42: ='FINAL SOURCE DATA'!FD11 -> 0.0047
A43: Group Life (Employee Share)
A44: Total Group Life Rate
A46: Retiree Health Care Credit (RHCC) (Paid as part of the VRS per pupil amount) | B46: ='FINAL SOURCE DATA'!FC14 -> 0.0121 | C46: ='FINAL SOURCE DATA'!FD14 -> 0.0121
A47: Non-professional Support VRS Retirement 1 | B47: ='FINAL SOURCE DATA'!FC16 -> 0.0793 | C47: ='FINAL SOURCE DATA'!FD16 -> 0.0793
A48: Social Security (Employer Share) | B48: ='FINAL SOURCE DATA'!FC17 -> 0.0765 | C48: ='FINAL SOURCE DATA'!FD17 -> 0.0765
A49: Health Care Premium | B49: ='FINAL SOURCE DATA'!FC18 -> 6425 | C49: ='FINAL SOURCE DATA'!FD18 -> 6425
A50: Total Instructional / Professional Support Benefits Percent (Employer Share) | B50: =IF((B38+B42+B48+B46)<>'FINAL SOURCE DATA'!FC19,"CHECK LINKS",(B38+B42+B48+B46)) -> 0.2456 | C50: =IF((C38+C42+C48+C46)<>'FINAL SOURCE DATA'!FD19,"CHECK LINKS",(C38+C42+C48+C46)) -> 0.2456
A51: Total Non-professional Support Benefits Percent (Employer Share) | B51: =IF((B47+B42+B48)<>'FINAL SOURCE DATA'!FC20,"CHECK LINKS",(B47+B42+B48)) -> 0.1605 | C51: =IF((C47+C42+C48)<>'FINAL SOURCE DATA'!FD20,"CHECK LINKS",(C47+C42+C48)) -> 0.1605
A53: 1 The Infrastructure & Operations Per Pupil fund PPA sets the baseline distributions for the program. Adjustments are made to distributions to ensure all school divisions receive a minimum of $200,000 distribution pursuant to the state appropriation for the program. Please see the calculation in the "Account funding Explanations" tab for more details.
A54: 2 This statewide prevailing rate is calculated by the Department of Education on a biennial basis during the SOQ rebenchmarking process to serve as the state funded rate for non-professional support positions in the SOQ funding formula. It is based on a linear weighted average of the 2024-2026 non-professional rates charged to each school division by VRS. Please note that the non-professional VRS rate charged to divisions by VRS differs for each division and is not based on the state funded rate.
A56: Funded SOQ Instructional Salaries (without benefits): | B56: =IF(ISNUMBER(VLOOKUP($B$4,'Funded Salaries'!$B$76:$B$95,1,FALSE)),B8&" (incl. full COCA)",IF(ISNUMBER(VLOOKUP($B$4,'Funded Salaries'!$B$97:$B$116,1,FALSE)),B8&" (incl. 25% of COCA)", B8)) -> Projected FY 2025 | C56: =IF(ISNUMBER(VLOOKUP($B$4,'Funded Salaries'!$B$76:$B$95,1,FALSE)),C8&" (incl. full COCA)",IF(ISNUMBER(VLOOKUP($B$4,'Funded Salaries'!$B$97:$B$116,1,FALSE)),C8&" (incl. 25% of COCA)", C8)) -> Projected FY 2026
A57: Elementary Principals | B57: =VLOOKUP($B$4, 'Funded Salaries'!$E$5:$T$140, 3, FALSE) ->  | C57: =VLOOKUP($B$4, 'Funded Salaries'!$E$5:$T$140, 4, FALSE) -> 
A58: Elementary Asst. Principals | B58: =VLOOKUP($B$4, 'Funded Salaries'!$E$5:$T$140, 5, FALSE) ->  | C58: =VLOOKUP($B$4, 'Funded Salaries'!$E$5:$T$140, 6, FALSE) -> 
A59: Elementary Teachers | B59: =VLOOKUP($B$4, 'Funded Salaries'!$E$5:$T$140,7, FALSE) ->  | C59: =VLOOKUP($B$4, 'Funded Salaries'!$E$5:$T$140, 8, FALSE) -> 
A60: Secondary Principals | B60: =VLOOKUP($B$4, 'Funded Salaries'!$E$5:$T$140, 9, FALSE) ->  | C60: =VLOOKUP($B$4, 'Funded Salaries'!$E$5:$T$140, 10, FALSE) -> 
A61: Secondary Asst. Principals | B61: =VLOOKUP($B$4, 'Funded Salaries'!$E$5:$T$140, 11, FALSE) ->  | C61: =VLOOKUP($B$4, 'Funded Salaries'!$E$5:$T$140, 12, FALSE) -> 
A62: Secondary Teachers | B62: =VLOOKUP($B$4, 'Funded Salaries'!$E$5:$T$140, 13, FALSE) ->  | C62: =VLOOKUP($B$4, 'Funded Salaries'!$E$5:$T$140, 14, FALSE) -> 
A63: Spec. Ed. Basic Teachers | B63: =VLOOKUP($B$4, 'Funded Salaries'!$E$5:$T$140, 13, FALSE) ->  | C63: =VLOOKUP($B$4, 'Funded Salaries'!$E$5:$T$140, 14, FALSE) -> 
A64: Voc. Ed. Basic Teachers | B64: =VLOOKUP($B$4, 'Funded Salaries'!$E$5:$T$140, 13, FALSE) ->  | C64: =VLOOKUP($B$4, 'Funded Salaries'!$E$5:$T$140, 14, FALSE) -> 
A65: Kindergarten Aides | B65: =VLOOKUP($B$4, 'Funded Salaries'!$E$5:$T$140, 15, FALSE) ->  | C65: =VLOOKUP($B$4, 'Funded Salaries'!$E$5:$T$140, 16, FALSE) -> 
A67: COST OF COMPETING ADJUSTMENT (COCA): | B67: =B8 -> Projected FY 2025 | C67: =C8 -> Projected FY 2026
A68: Instructional COCA Rate | B68: =IF(ISNUMBER(VLOOKUP($B$4,'Funded Salaries'!$B$76:$B$95,1,FALSE)),'Funded Salaries'!$B$66,IF(ISNUMBER(VLOOKUP($B$4,'Funded Salaries'!$B$97:$B$116,1,FALSE)),'Funded Salaries'!$C$66,"N/A")) -> N/A | C68: =IF(ISNUMBER(VLOOKUP($B$4,'Funded Salaries'!$B$76:$B$95,1,FALSE)),'Funded Salaries'!$B$70,IF(ISNUMBER(VLOOKUP($B$4,'Funded Salaries'!$B$97:$B$116,1,FALSE)),'Funded Salaries'!$C$70,"N/A")) -> N/A
A69: Support COCA Rate | B69: =IF(ISNUMBER(VLOOKUP($B$4,'Funded Salaries'!$B$76:$B$95,1,FALSE)),'Funded Salaries'!$B$67,IF(ISNUMBER(VLOOKUP($B$4,'Funded Salaries'!$B$97:$B$116,1,FALSE)),'Funded Salaries'!$C$67,"N/A")) -> N/A | C69: =IF(ISNUMBER(VLOOKUP($B$4,'Funded Salaries'!$B$76:$B$95,1,FALSE)),'Funded Salaries'!$B$71,IF(ISNUMBER(VLOOKUP($B$4,'Funded Salaries'!$B$97:$B$116,1,FALSE)),'Funded Salaries'!$C$71,"N/A")) -> N/A
A71: Compensation Supplement Equivalency Tables:
A72: The Governor's Introduced budget provides the state's share of a two percent salary increase for SOQ recognized instructional and support positions in fiscal year 2020. The tables below provide the qualifying equivalent salary increases for different start dates in fiscal year 2020.
A73: Compensation supplement funds are intended to be incentive funding, and are not included as part of required local effort; however, in order to receive the state funds, a local match must be provided. These funds will be paid to school divisions that certify that a minimum average of a 2% salary increase for instructional and support positions has been granted in fiscal year 2018 by no later than January 1, 2018.
A76: Compensation Supplement for SOQ Instructional Positions: | B76: Local Salary Increase Start Date | C76: Equivalent Salary Increase in FY 2020
A77: FY 2020: | B77: July 1, 2019 | C77: 0.02
A78: The Governor's Introduced biennial budget provides, subject to revenue estimates for fiscal year 2017 being met or exceeded, the state's share of a two percent salary increase for SOQ recognized instructional positions (including teachers, guidance counselors, librarians, principals, assistant principals, and instructional aides), effective July 10, 2017. School divisions must provide at least an average 2.0 percent salary increase by January 1, 2018, and certify as such by June 15, 2017, in order to receive state funding. | B78: August 1, 2019 | C78: 0.02
B79: September 1, 2019 | C79: 0.02
B80: October 1, 2019 | C80: 0.02
B81: November 1, 2019 | C81: 0.02
B82: December 1, 2019 | C82: 0.02
B83: January 1, 2020 | C83: 0.02
B85: Local Salary Increase Start Date | C85: Required Equivalent Salary Increase in FY 2008
B86: July 1, 2007 | C86: 0.0175
B87: August 1, 2007 | C87: 0.0191
B88: September 1, 2007 | C88: 0.021
B89: October 1, 2007 | C89: 0.0233
B90: November 1, 2007 | C90: 0.0263
B91: December 1, 2007 | C91: 0.03
A93: Compensation Supplement for SOQ Support Positions: | B93: Local Salary Increase Start Date | C93: =C76 -> Equivalent Salary Increase in FY 2020
A94: FY 2020: | B94: July 1, 2019 | C94: 0.02
A95: The Governor's Introduced biennial budget provides, subject to revenue estimates for fiscal year 2017 being met or exceeded, the state's share of a two percent salary increase for SOQ recognized support positions (including superintendents, nurses, other support staff, and substitutes), effective July 10, 2017. School divisions must provide at least an average 2.0 percent salary increase by January 1, 2018, and certify as such by June 15, 2017, in order to receive state funding. | B95: August 1, 2019 | C95: 0.02
B96: September 1, 2019 | C96: 0.02
B97: October 1, 2019 | C97: 0.02
B98: November 1, 2019 | C98: 0.02
B99: December 1, 2019 | C99: 0.02
B100: January 1, 2020 | C100: 0.02
B103: Local Salary Increase Start Date | C103: Required Equivalent Salary Increase in FY 2008
B104: July 1, 2007 | C104: 0.0175
B105: August 1, 2007 | C105: 0.0191
B106: September 1, 2007 | C106: 0.021
B107: October 1, 2007 | C107: 0.0233
B108: November 1, 2007 | C108: 0.0263
B109: December 1, 2007 | C109: 0.03

Sheet Required Local Effort (hidden)
A1: ="Projected "&Instructions!N2&" and Projected "&Instructions!N3&" Required Local Effort " -> Projected FY 2025 and Projected FY 2026 Required Local Effort
A2: For Standards of Quality Accounts
A3: ="Projected "& Instructions!N2 &" and Projected " &Instructions!N3 &" Required Local Effort Based on " & Instructions!N4 -> Projected FY 2025 and Projected FY 2026 Required Local Effort Based on Amendments Adopted by the 2024 Special Session I General Assembly to the 2024-2026 Biennial Budget (Chapter 2)
A5: Division Number: | B5: ='State & Local Funds Summary'!A7 -> 0
A6: Division Name: | B6: ='State & Local Funds Summary'!B7 -> 0
B8: ='State & Local Funds Summary'!C5 -> Projected FY 2025 | C8: ='State & Local Funds Summary'!E5 -> Projected FY 2026
A9: Unadjusted ADM: | B9: ='State & Local Funds Summary'!C7 -> 0 | C9: ='State & Local Funds Summary'!E7 -> 0
A10: Adjusted ADM: | B10: ='State & Local Funds Summary'!D7 -> 0 | C10: ='State & Local Funds Summary'!F7 -> 0
B12: Required Local Effort | C12: Required Local Effort
A13: Basic Aid | B13: ='State & Local Funds Summary'!D15 ->  | C13: ='State & Local Funds Summary'!F15 -> 
A14: Textbooks 1 | B14: ='State & Local Funds Summary'!D17+'State & Local Funds Summary'!D81 -> 0 | C14: ='State & Local Funds Summary'!F17+'State & Local Funds Summary'!F81 -> 0
A15: Vocational Education | B15: ='State & Local Funds Summary'!D18 -> 0 | C15: ='State & Local Funds Summary'!F18 -> 0
A16: Gifted Education | B16: ='State & Local Funds Summary'!D19 -> 0 | C16: ='State & Local Funds Summary'!F19 -> 0
A17: Special Education | B17: ='State & Local Funds Summary'!D20 -> 0 | C17: ='State & Local Funds Summary'!F20 -> 0
A18: VRS Retirement | B18: ='State & Local Funds Summary'!D22 -> 0 | C18: ='State & Local Funds Summary'!F22 -> 0
A19: Social Security | B19: ='State & Local Funds Summary'!D23 -> 0 | C19: ='State & Local Funds Summary'!F23 -> 0
A20: Group Life | B20: ='State & Local Funds Summary'!D24 -> 0 | C20: ='State & Local Funds Summary'!F24 -> 0
A21: At-Risk Add-on3
A22: English Learner Teachers 2 | B22: ='State & Local Funds Summary'!D25 -> #N/A | C22: ='State & Local Funds Summary'!F25 -> #N/A
A23: Early Reading Intervention 2 | B23: ='State & Local Funds Summary'!D68 -> #N/A | C23: ='State & Local Funds Summary'!F68 -> #N/A
A24: SOL Algebra Readiness 2 | B24: ='State & Local Funds Summary'!D72 -> #N/A | C24: ='State & Local Funds Summary'!F72 -> #N/A
A25: Rebenchmarking Hold Harmless3 | B25: ='State & Local Funds Summary'!D47 -> #N/A | C25: ='State & Local Funds Summary'!F47 -> #N/A
A26: Required Local Effort: | B26: =SUM(B13:B25) ->  | C26: =SUM(C13:C25) -> 
A28: Note: For FY 2014, although Bedford County and Bedford City are consolidated, this calculation tool still shows estimated payments, required local effort, and required local match amounts separately. Users must separately select Bedford County AND Bedford City and then add together the estimated payments, required local effort, and required local match to get the correct total for the combined Bedford County for FY 2014. See the Bedford County-City worksheet for more detail.
A29: Note: The above amounts represent the projected FY 2025 and projected FY 2026 Required Local Effort based on amendments adopted to the 2024 Special Session I General Assembly to the 2024-2026 biennial budget (Chapter 2). Note: Final Required Local Effort is based on final March 31 ADM and the final per pupil amounts for each fiscal year.
A30: 1 State funding for Textbooks is provided from the general fund in the SOQ Service Area; the Required Local Effort for Textbooks is also based on the payments from the SOQ Service Area.
A31: 2 English Learner Teachers, Early Reading Intervention, and SOL Algebra Readiness are mandated as part of the Standards of Quality; therefore, local matching funds for these programs are included in school divisions' Required Local Effort. The Required Local Effort for these programs is based on the payments from the SOQ and Lottery Service Areas.
A32: 3 Beginning in FY 2025, the At-Risk Add-on is added to the Standards of Quality.

Sheet Budgeted Local Operational Exp. (hidden)
A1: CALCULATION OF BUDGETED EXPENDITURES FOR OPERATIONS FROM LOCAL FUNDS
A2: ="Based on "&Instructions!N4 -> Based on Amendments Adopted by the 2024 Special Session I General Assembly to the 2024-2026 Biennial Budget (Chapter 2)
B4: Division Number: | C4: ='Required Local Effort'!B5 -> 0
B5: Division Name: | C5: ='Required Local Effort'!B6 -> 0
A7: This form is a template that school divisions may use to estimate compliance with meeting Required Local Effort for FY 2025 and FY 2026. This form is intended for planning purposes only, and does not take the place of the required reporting for Required Local Effort. You are NOT required to return this completed form to the Department. Please contact the budget office with any questions regarding Required Local Effort. The methodology used on this form to calculate Required Local Effort is based on the amendments adopted by the 2024 Special Session I General Assembly to the 2024-2026 biennial budget (Chapter 2).
A9: INSTRUCTIONS: Fill in the yellow-shaded cells. The green-shaded cells will automatically calculate. Additional detail about function/object code reporting, as referenced in the Annual School Report Financial Section, is contained in the cell comments for the yellow-shaded cells. Use your mouse to scroll the cursor over the cells to view cell comments.
E11: ="Projected "&Instructions!$N$2 -> Projected FY 2025 | F11: ="Projected "&Instructions!$N$2 -> Projected FY 2025 | H11: ="Projected "&Instructions!$N$3 -> Projected FY 2026 | I11: ="Projected "&Instructions!$N$2 -> Projected FY 2025
A12: SECTION 1: Qualifying Expenditures for Operations
A13: Total Budgeted Expenditures
A14: (Include all appropriated funds, including operational and capital)
A15: (Less) Excluded Capital Expenditures:
A16: 1. Capital Outlay Additions
A17: All Functions, objects 8200 through 8230*
A18: 2. Facilities - Capital Outlay Replacements
A19: Function 66000 and sub-functions 68800 and 69800, objects 8100 through 8130*
A20: 3. Debt Service
A21: Sub-functions 67100, 68900, and 69900, objects 4000 through 9300*
B22: (Less) Other Benefits Expenditures (New For FY 2011 and FY 2012)
B24: (Less) Miscellaneous Expenditures (New For FY 2011 and FY 2012)
B26: (Less) Leases and Rentals Expenditures (New For FY 2011 and FY 2012)
B28: (Less) Travel (New For FY 2011 and FY 2012)
B30: (Less) Non-personal Facilities Support Expenditures (New For FY 2011 and FY 2012)
A32: (Less) School Nutrition, Enterprise & Community Services
A33: Sub-functions 65100, 65200, 65300, 68700, 69700, all objects - excluding objects 8200 through 8230*
A34: (Less) Excluded Intra-fund Transfers
A35: Sub-Functions 67200 and 69900; objects 9400 and 9800*
A36: (Less) Excluded Inter-fund Transfers - Capital Purchases by Locality
A37: Sub-Function 67300; objects 9600 and 9650*
A38: (Less) Excluded Inter-fund Transfers - Transfer to Inter-Agency Fund
A39: Sub-Function 67300; objects 9700 through 9740*
A40: (Less) Excluded Programs
A41: Programs 6, 7, 8, 9, and 10, all objects - excluding objects 8200*
A42: (Less) Payments Made by the School Division to the Virginia Retirement System (VRS) for the Employee Share of the VRS Rate When Such Payments Are Funded by EMPLOYEE Contributions (Do NOT include division-funded payments to VRS)
A44: Total Excluded Expenditures | F44: =(E16+E18+E20+E22+E24+E26+E28+E30+E32+E34+E36+E38+E40+E42)*-1 -> 0 | I44: =(H16+H18+H20+H22+H24+H26+H28+H30+H32+H34+H36+H38+H40+H42)*-1 -> 0
A46: SECTION 2: Adjustment for State Funds
A47: (Less) Sales Tax
A48: (Revenue source codes 240308 and 240312)*
A49: (Less) Other State Funds (See cell comment for exclusions)
A51: (Less) Carry-Forward State Textbook Funds From Prior Year (As of June 30, 2024, for FY 2025 and June 30, 2025, for FY 2026)
A53: (Less) Carry-Forward Other State Funds (Not Incl. Textbook Funds) From Prior Year (As of June 30, 2024, for FY 2025 and June 30, 2025, for FY 2026)
A55: (Plus) State Funds Passed Through - Excluding Regional Programs
A56: Sub-Function 67300; object 9700*
A58: (Plus) State Funds Passed Through to Regional Alternative Education Programs
A59: Sub-Function 67300; object 9710*
A61: (Plus) State Funds Passed Through to Regional Governor's School
A62: Sub-Function 67300; object 9720*
A64: (Plus) State Funds Passed Through to Regional Career & Technical Education Center
A65: Sub-Function 67300; object 9730*
A67: (Plus) State Funds Passed Through to Regional Special Education Program
A68: Sub-Function 67300; object 9740*
A70: (Plus) Unspent State Textbook Funds (Anticipated as of June 30, 2024, for FY 2025 and June 30, 2025, for FY 2026)
B72: (Plus) State Funds Deposited to Escrow from the Additional Support for School Construction and Operating Costs Account
A74: (Plus) Unspent Other State Funds (Not Incl. Textbook Funds) (Anticipated as of June 30, 2024, for FY 2025 and June 30, 2025, for FY 2026)
B76: (Plus) State Funds Deposited to Escrow from the Additional Support for School Construction and Operating Costs Account
A78: (Plus) Sum of Capital Expenditures Paid From State Funds
A79: (State funds only: All Functions, objects 8200 through 8230. Function 66000 and sub-functions 68800 and 69800, objects 8100 through 8130)*
A80: (Plus) Sum of Debt Service Expenditures Paid From State Funds
A81: (State funds only: Sub-function 67100, objects 4000 through 9300)*
A82: Total Excluded State Revenues | F82: =IF(SUM(E74,E70)>SUM(E53,E51),(((E47+E49+E51+E53)*-1)+E55+E58+E61+E64+E67+E74+E70+E78+E80-(E74+E70-E53-E51)),((E47+E49+E51+E53)*-1)+E55+E58+E61+E64+E67+E74+E70+E78+E80) -> 0 | I82: =IF(SUM(H74,H70)>SUM(H53,H51),(((H47+H49+H51+H53)*-1)+H55+H58+H61+H64+H67+H74+H70+H78+H80-(H74+H70-H53-H51)),((H47+H49+H51+H53)*-1)+H55+H58+H61+H64+H67+H74+H70+H78+H80) -> 0
A84: SECTION 3: Adjustment for Federal Funds (including all Federal Stimulus Funding)
A85: (Less) Federal Funds (See cell comment for exclusions)
A87: (Less) Carry-Forward Federal Funds From Prior Year
A88: (As of June 30, 2024, for FY 2025 and June 30, 2025, for FY 2026)
A89: (Plus) Unspent Federal Funds (Anticipated as of June 30, 2024, for FY 2025 and June 30, 2025, for FY 2026) - See cell comment for limitations)
A91: (Plus) Sum of Capital Expenditures Paid From Federal Funds
A92: (Federal funds only: All Functions, objects 8200 through 8230. Function 66000 and sub-functions 68800 and 69800, objects 8110 through 8130)*
A93: Total Excluded Federal Revenues | F93: =((E85+E87)*-1)+E89+E91 -> 0 | I93: =((H85+H87)*-1)+H89+H91 -> 0
A95: SECTION 4: Adjustment for Other Local Revenue
A96: (Less) Tuition and Other Payments from Another City or County
A97: (Beginning of year carry-forward amount)*
A98: (Less) Local Funds Carried Forward for Textbooks (As of June 30, 2024, for FY 2025 and June 30, 2025, for FY 2026)
A99: (Beginning of year carry-forward amount. Fund balance from prior qualifying fiscal years.)*
A100: (Less) Local Funds Carried Forward for School Construction Grants:
A101: (Beginning of year carry-forward amount. Fund balance from prior qualifying fiscal years.)*
A102: (Less) Local Funds Carried Forward from FY 2010 for Support for School Construction and Operating Costs
A103: (Beginning of year carry-forward amount. Funds can also be from other qualifying years prior to FY 2010)*
A104: (Less) Beginning of Year Carry-Forward Balance for Other State Funded Accounts (As of June 30, 2024, for FY 2025 and June 30, 2025, for FY 2026)
A106: (Plus) Unspent Local Matching Funds for Textbooks (End of Year Balance): (Anticipated as of June 30, 2024, for FY 2025 and June 30, 2025, for FY 2026)
A109: (Plus) Unspent Local Matching Funds for Other State Funded Accounts (End of Year Balance): (Anticipated as of June 30, 2024, for FY 2025 and June 30, 2025, for FY 2026)
A112: Total Excluded Local Revenues | F112: =(E96+E100+E104+E98+E102)*-1+E109+E106 -> 0 | I112: =(H96+H100+H104+H98+H102)*-1+H109+H106 -> 0
A114: SECTION 5: Required Local Effort
A115: Net Local Expenditures for Operations: | F115: =F13+F44+F82+F93+F112 -> 0 | I115: =I13+I44+I82+I93+I112 -> 0
A117: Required Local Effort for SOQ Accounts:* | F117: ='Required Local Effort'!B26 ->  | I117: ='Required Local Effort'!C26 -> 
E119: =IF(F115<F117,"For local planning purposes, "&C5&" has not met budgeted required local effort related to the SOQ for FY 2025.","For local planning purposes, "&C5&" has met budgeted required local effort related to the SOQ for FY 2025.") ->  | H119: =IF(I115<I117,"For local planning purposes, "&C5&" has not met budgeted required local effort related to the SOQ for FY 2026.","For local planning purposes, "&C5&" has met budgeted required local effort related to the SOQ for FY 2026.") -> 
A121: ="Note: The figures in Section 5 above do not include match requirements for incentive and Lottery-funded accounts for "&Instructions!N2&" and "&Instructions!N3&"."&" * Cell information noted with a * reference account structure detail from the Annual School Report - Financial Section (ASRFIN)." -> Note: The figures in Section 5 above do not include match requirements for incentive and Lottery-funded accounts for FY 2025 and FY 2026. * Cell information noted with a * reference account structure detail from the Annual School Report - Financial Section (ASRFIN).

Sheet RLM Projection (hidden)
A1: CALCULATION OF BUDGETED EXPENDITURES FOR OPERATIONS FROM LOCAL FUNDS IN SUPPORT OF THE DIVISION'S REQUIRED LOCAL MATCH
A2: ="Required Local Match amounts based on "& Instructions!N4 -> Required Local Match amounts based on Amendments Adopted by the 2024 Special Session I General Assembly to the 2024-2026 Biennial Budget (Chapter 2)
C4: Division Number: | E4: ='State & Local Funds Summary'!A7 -> 0
C5: Division Name: | E5: ='State & Local Funds Summary'!B7 -> 0
A7: This form is a template that school divisions may use to estimate compliance with meeting Required Local Match for Incentive and Lottery-funded programs for FY 2025 and FY 2026. This form is intended for planning purposes only, and does not take the place of the required reporting for Required Local Match. You are NOT required to return this completed form to the Department. Please contact the budget office with any questions regarding Required Local Match programs.
A9: INSTRUCTIONS: Fill in the yellow-shaded cells. The green-shaded cells will automatically calculate. Additional detail about function/object code reporting, as referenced in the Annual School Report Financial Section, is contained in the cell comments. Use your mouse to scroll the cursor over the cells to view cell comments.
A11: Summary of Required Local Effort Calculation
E13: =E27 -> Projected FY 2025 | I13: =I27 -> Projected FY 2026
A14: Net Local Expenditures for Operations | E14: ='Budgeted Local Operational Exp.'!F115 -> 0 | I14: ='Budgeted Local Operational Exp.'!I115 -> 0
A15: Required Local Effort for SOQ Accounts | E15: ='Budgeted Local Operational Exp.'!F117 ->  | I15: ='Budgeted Local Operational Exp.'!I117 -> 
A16: Section 1: TOTAL Funds Available for Local Match Requirements | E16: =(E14-E15)+IF(SUM('Budgeted Local Operational Exp.'!E16,'Budgeted Local Operational Exp.'!E18,'Budgeted Local Operational Exp.'!E20)<'State & Local Funds Summary'!C80,SUM('Budgeted Local Operational Exp.'!E16,'Budgeted Local Operational Exp.'!E18,'Budgeted Local Operational Exp.'!E20),'State & Local Funds Summary'!C80) ->  | I16: =(I14-I15)+IF(SUM('Budgeted Local Operational Exp.'!H16,'Budgeted Local Operational Exp.'!H18,'Budgeted Local Operational Exp.'!H20)<'State & Local Funds Summary'!E80,SUM('Budgeted Local Operational Exp.'!H16,'Budgeted Local Operational Exp.'!H18,'Budgeted Local Operational Exp.'!H20),'State & Local Funds Summary'!E80) -> 
A17: TOTAL Funds Available for Lottery-Funded Accounts (Local Match Only) This amount indicates the amount of total capital expenditures paid from local funds that were counted toward meeting the local match requirements for School Facilities programs. | E17: =E16+E36 ->  | I17: =I16+I36 -> 
A19: SECTION 1: Qualifying Expenditures and Revenues Affecting Required Local Match for Virginia Preschool Initiative (VPI)
A20: Section 1 identifies budgeted expenditures for pre-kindergarten programs that are not included in the Required Local Effort calculation but qualify toward the Required Local Match for VPI. The resulting budgeted local VPI expenditures will be added to the total available local operating funds in Section 2 below, for purposes of determining whether adequate local funds are available to meet the local match requirement for VPI.
E22: ="Projected "&Instructions!$N$2 -> Projected FY 2025 | I22: ="Projected "&Instructions!$N$3 -> Projected FY 2026
A23: Enter Total Expenditures for VPI, excluding Capital Outlay. For VPI programs operated by a local governing body, enter the total budgeted VPI expenditures here once that amount is confirmed by the reporting school division. | N23: =IF(ISBLANK(E23),1,0) -> 1 | O23: =IF(ISBLANK(I23),1,0) -> 1
A24: ="Enter the value of "&TRIM($E$5)&"'s in-kind contribution toward its Required Local Match for VPI. Up to 50% of the total VPI Required Local Match amount is available for designation as an in-kind contribution. Please enter 0 if there are none." -> Enter the value of 0's in-kind contribution toward its Required Local Match for VPI. Up to 50% of the total VPI Required Local Match amount is available for designation as an in-kind contribution. Please enter 0 if there are none. | N24: =IF(ISBLANK(E24),1,0) -> 1 | O24: =IF(ISBLANK(I24),1,0) -> 1
A26: Projected Revenues: Enter the amounts of state and federal revenues that are budgeted for VPI. The state revenues for projected state payments for VPI can be taken from the State & Local Funds Summary sheet; however, you may edit the value to include additional state revenues.
E27: =E22 -> Projected FY 2025 | I27: =I22 -> Projected FY 2026
A28: Enter ALL State revenues budgeted for VPI including, but not limited to, Virginia Preschool Initiative - 240286. | N28: =IF(ISBLANK(E28),1,0) -> 1 | O28: =IF(ISBLANK(I28),1,0) -> 1
A29: Enter State revenues from the Additional Assistance with Retirement, Inflation & Preschool account that are budgeted for VPI. | N29: 0 | O29: 0
A30: Enter Federal revenues budgeted for VPI | N30: =IF(ISBLANK(E30),1,0) -> 1 | O30: =IF(ISBLANK(I30),1,0) -> 1
A32: Selected Capital Expenditures
A33: Please fill in the following selected capital expenses. These are used in the Required Local Match available local matching funds calculations. Please only fill in these expenses paid from Local funds.
E34: =E27 -> Projected FY 2025 | I34: =I27 -> Projected FY 2026
E35: Locally Funded | I35: Locally Funded
A36: Total Selected Capital Expenditures | E36: 0 | I36: 0 | N36: =IF(ISBLANK(E36),1,0) -> 0 | O36: =IF(ISBLANK(I36),1,0) -> 0
A38: Please fill in projected required local match for these capital accounts. | E38: =E27 -> Projected FY 2025 | I38: =I13 -> Projected FY 2026
E39: Projected Required Local Match | F39: Local Capital Matching Funds | G39: Local Matching Funds Available | I39: Projected Required Local Match | J39: Local Capital Matching Funds | K39: Local Matching Funds Available
A40: Support for School Construction, Operating & Textbooks | E40: 0 | F40: =IF(E40<E17,(E40),IF(E40=E17,E40,IF(E40>E17,0))) ->  | G40: =IF(AND(E40<E17,E17<>0),(E17 - E40),0) ->  | I40: 0 | J40: =IF(I40<I17,(I40),IF(I40=I17,I40,IF(I40>I17,0))) ->  | K40: =IF(AND(I40<I17,I17<>0),(I17 - I40),0) ->  | N40: =IF(ISBLANK(E40),1,0) -> 0 | O40: =IF(ISBLANK(I40),1,0) -> 0
A41: School Construction Grants Program | E41: 0 | F41: =IF(E41<G40,(E41),IF(E41=G40,E41,IF(E41>G40,0))) ->  | G41: =(G40-E41) ->  | I41: 0 | J41: =IF(I41<K40,(I41),IF(I41=K40,I41,IF(I41>K40,0))) ->  | K41: =(K40-I41) ->  | N41: =IF(ISBLANK(E41),1,0) -> 0 | O41: =IF(ISBLANK(I41),1,0) -> 0
E42: =IF(N64>0,"Please fill in values or 0s for all yellow cells before determining if you are projected to meet required local match for "&Instructions!N2&".",IF(G41<=0,"Insufficient Local Funds Appropriated to meet "&E38&" Required Local Match.","Sufficient Local Funds Appropriated to meet "&E38&" Required Local Match.")) -> Please fill in values or 0s for all yellow cells before determining if you are projected to meet required local match for FY 2025. | I42: =IF(O64>0,"Please fill in values or 0s for all yellow cells before determining if you are projected to meet required local match for "&Instructions!N3&".",IF(K41<=0,"Insufficient Local Funds Appropriated to meet "&I38&" Required Local Match.","Sufficient Local Funds Appropriated to meet "&I38&" Required Local Match.")) -> Please fill in values or 0s for all yellow cells before determining if you are projected to meet required local match for FY 2026.
A46: SECTION 2: Calculation of Required Local Match Compliance for Incentive and Lottery-Funded Accounts 1 The total funds available for the Virginia Preschool Initiative local match requirement will only be applied to the VPI program. If or when these funds are exhausted, then the local match for this program can be met from the total operational funds carried forward for required local match purposes after required local effort for the SOQ is met. 2 The total funds available after required local effort has been met are the total funds available to meet the local match requirements for Incentive and Lottery-funded accounts.
A47: If you intend to opt out of this program, enter 0 under the "Projected Required Local Match" for that program. | E47: =E38 -> Projected FY 2025 | I47: =I38 -> Projected FY 2026
E48: Projected Required Local Match | G48: Local Matching Funds Available | I48: Projected Required Local Match | K48: Local Matching Funds Available
A49: Virginia Preschool Initiative: | E49: ='State & Local Funds Summary'!D40 -> #N/A | G49: =IF((E23+E24 -E28-E29-E30 ) >=0,(E23+E24 -E28-E29-E30),0) -> 0 | I49: ='State & Local Funds Summary'!F40 -> #N/A | K49: =IF((I23+I24 -I28-I29-I30 ) >=0,(I23+I24 -I28-I29-I30),0) -> 0 | N49: =IF(ISBLANK(E49),1,0) -> 0 | O49: =IF(ISBLANK(I49),1,0) -> 0
A50: ="Has "&E5&" met Required Local Match for the Virginia Preschool Initiative?" -> Has 0 met Required Local Match for the Virginia Preschool Initiative? | E50: =IF(N64>0,"Please fill in values or 0s for all yellow cells before determining if you are projected to meet required local match for " &Instructions!N2 &".",IF(AND(E49=0,L51=0),"Sufficient Local Funds Appropriated to meet projected " &Instructions!N2 &" Required Local Match for the Virginia Preschool Initiative.",IF((L51+E24+G54)<=E49,"Insufficient Local Funds Appropriated to meet projected " &Instructions!N2 &" Required Local Match for the Virginia Preschool Initiative.","Sufficient Local Funds Appropriated to meet projected " &Instructions!N2 &" Required Local Match for the Virginia Preschool Initiative."))) -> Please fill in values or 0s for all yellow cells before determining if you are projected to meet required local match for FY 2025. | I50: =IF(O64>0,"Please fill in values or 0s for all yellow cells before determining if you are projected to meet required local match for " &Instructions!N3 &".",IF(AND(I49=0,M51=0),"Sufficient Local Funds Appropriated to meet projected " &Instructions!N3 &" Required Local Match for the Virginia Preschool Initiative.",IF((M51+I24+K54)<=I49,"Insufficient Local Funds Appropriated to meet projected " &Instructions!N3 &" Required Local Match for the Virginia Preschool Initiative.","Sufficient Local Funds Appropriated to meet projected " &Instructions!N3 &" Required Local Match for the Virginia Preschool Initiative."))) -> Please fill in values or 0s for all yellow cells before determining if you are projected to meet required local match for FY 2026. | L50: Cash expended for VPI:
E51: =IF((L51+E24)<E49,E49-L51-E24,0) ->  | I51: =IF((M51+I24)<I49,I49-M51-I24,0) ->  | L51: =E23-SUM(E28:E30) -> 0 | M51: =I23-SUM(I28:I30) -> 0
A52: Note: These are pre-populated based on the projected state funds for Incentive and Lottery programs, however you may change these estimates. | E52: =E47 -> Projected FY 2025 | I52: =I47 -> Projected FY 2026
A53: If you intend to opt out of a program, enter 0 under the "Projected Required Local Match" for that program. | E53: =E48 -> Projected Required Local Match | G53: Local Matching Funds Available | I53: =I48 -> Projected Required Local Match | K53: Local Matching Funds Available
A54: At-Risk (changes based on ADM, see State & Local Funds Summary) | E54: ='State & Local Funds Summary'!D26+'State & Local Funds Summary'!D66 ->  | G54: =IF(G41>E16,E16-E54-E51,IF(E17=0,E16-E54-E51,IF(G41<E16,G41-E54-E51,IF(G41=E16,E16-E54-E51)))) ->  | I54: ='State & Local Funds Summary'!F26+'State & Local Funds Summary'!F66 ->  | K54: =IF(K41>I16,I16-I54-I51,IF(I17=0,I16-I54-I51,IF(K41<I16,K41-I54-I51,IF(K41=I16,I16-I54-I51)))) ->  | N54: =IF(ISBLANK(E54),1,0) -> 0 | O54: =IF(ISBLANK(I54),1,0) -> 0
A55: Early Reading Specialists Initiative | E55: ='State & Local Funds Summary'!D46 -> #N/A | G55: =IF(G54-E55>0,(G54-E55),IF(G54-E55<=0,0,IF(G54<E55,0))) ->  | I55: ='State & Local Funds Summary'!F46 -> #N/A | K55: =IF(K54-I55>0,(K54-I55),IF(K54-I55<=0,0,IF(K54<I55,0))) -> 
A56: K-3 Primary Class Size Reduction | E56: ='State & Local Funds Summary'!D70 -> #N/A | G56: =IF(G55-E56>0,(G55-E56),IF(G55-E56<=0,0,IF(G55<E56,0))) ->  | I56: ='State & Local Funds Summary'!F70 -> #N/A | K56: =IF(K55-I56>0,(K55-I56),IF(K55-I56<=0,0,IF(K55<I56,0))) -> 
A57: Math/Reading Instructional Specialists | E57: ='State & Local Funds Summary'!D45 -> #N/A | I57: ='State & Local Funds Summary'!F45 -> #N/A | N57: 0 | O57: 0
A58: Compensation Supplement | E58: ='State & Local Funds Summary'!D36 -> #N/A | I58: ='State & Local Funds Summary'!F36 -> #N/A
A59: Infrastructure & Operations Per Pupil Funds | E59: ='State & Local Funds Summary'!D80 -> #N/A | I59: ='State & Local Funds Summary'!F80 -> #N/A | N59: =IF(ISBLANK(E59),1,0) -> 0 | O59: =IF(ISBLANK(I59),1,0) -> 0
N60: =IF(ISBLANK(E60),1,0) -> 1 | O60: =IF(ISBLANK(I60),1,0) -> 1
N62: =IF(ISBLANK(E62),1,0) -> 1 | O62: =IF(ISBLANK(I62),1,0) -> 1
A63: ="Has "&E5&" met required local match for incentive and Lottery-funded match programs?" -> Has 0 met required local match for incentive and Lottery-funded match programs? | E63: =IF(N64>0,"Please fill in values or 0s for all yellow cells before determining if you are projected to meet required local match for " &Instructions!N2 & ".",IF(G60<= 0, "Based on projected expenditures, Insufficient Local Funds Appropriated to meet projected " &Instructions!N2 &" Required Local Match for incentive and Lottery-funded programs. It may be necessary to request additional local appropriation from the local governing body in order to meet Required Local Match for the programs in which you elect to participate.","Sufficient Local Funds Appropriated to meet projected " &Instructions!N2 &" Required Local Match for incentive and Lottery-funded programs.")) -> Please fill in values or 0s for all yellow cells before determining if you are projected to meet required local match for FY 2025. | I63: =IF(O64>0,"Please fill in values or 0s for all yellow cells before determining if you are projected to meet required local match for " &Instructions!N3 & ".",IF(K59<= 0, "Based on projected expenditures, Insufficient Local Funds Appropriated to meet projected " &Instructions!N3 &" Required Local Match for incentive and Lottery-funded programs. It may be necessary to request additional local appropriation from the local governing body in order to meet Required Local Match for the programs in which you elect to participate.","Sufficient Local Funds Appropriated to meet projected " &Instructions!N3 &" Required Local Match for incentive and Lottery-funded programs.")) -> Please fill in values or 0s for all yellow cells before determining if you are projected to meet required local match for FY 2026.
N64: =SUM(N23:N62) -> 6 | O64: =SUM(O23:O62) -> 6

Sheet ESEA Programs MOE (hidden)
A1: ESTIMATED TABLE 15 AND MAINTENANCE OF EFFORT CALCULATION FOR ESEA PROGRAMS (Title I, Part A; Title I, Part B; Title I, Part D; Title I, Part F; Title II, Part A; Title II, Part D; Title III, Part A; Title IV, Part A; Title IV, Part B; and Title VI, Part B)
A2: Calculation uses Superintendent's Annual Report Table 15 Methodology
B4: Division Number: | C4: ='Required Local Effort'!B5 -> 0
B5: Division Name: | C5: ='Required Local Effort'!B6 -> 0
A7: This form is a template that school divisions may use to estimate compliance with meeting Maintenance of Effort for ESEA programs for FY 2025 and FY 2026. This form is intended for planning purposes only, and does not take the place of the required reporting for budgeted Maintenance of Effort for ESEA programs. You are NOT required to return this completed form to the Department. Please contact the budget office with any questions regarding ESEA MOE.
A9: INSTRUCTIONS: Fill in the yellow-shaded cells. The green-shaded cells will automatically calculate. Use your mouse to scroll the cursor over the cells to view cell comments. Please see Superintendent's Memorandum #083-23, posted on May 4, 2023, for more information on Maintenance of Effort calculations. Please note that, for Table 15 and ESEA programs Maintenance of Effort purposes, expenditures for jointly operated divisions are consolidated and reported under the fiscal agent only. Values that have been prepopulated into this worksheet reflect data for the division selected on the State & Local Funds Summary worksheet. Please revise these values as needed. Please note that the End-Of-Year ADM used in Table 15 INCLUDES Pre-Kindergarten students, but the ADM used for Maintenance of Effort does NOT include these students.
A11: TABLE 15 CALCULATIONS
F13: =Instructions!N2&" Projected" -> FY 2025 Projected | J13: =Instructions!N3&" Projections" -> FY 2026 Projections
A15: 1a. Expenditures for operations*: (see cell comment) | T15: =IF(F15="",1,0) -> 1 | U15: =IF(J15="",1,0) -> 1
A17: 1b. Less tuition from another county or city (revenue 1901010 and 1901020): | T17: =IF(F17="",1,0) -> 1 | U17: =IF(J17="",1,0) -> 1
A19: 1c. Plus state revenues to divisions participating in regional programs
B21: Alternative Education | T21: =IF(F21="",1,0) -> 1 | U21: =IF(J21="",1,0) -> 1
B23: Academic Year Governor's Schools | T23: =IF(F23="",1,0) -> 1 | U23: =IF(J23="",1,0) -> 1
A25: 1d. Total expenditures for operations: | H25: =SUM(F15-F17+F21+F23) -> 0 | L25: =SUM(J15-J17+J21+J23) -> 0
A27: 2a. Less State Revenues: (see cell comment) | T27: =IF(F27="",1,0) -> 1 | U27: =IF(J27="",1,0) -> 1
A29: 2b. Plus the sum of all Beginning-Year Balances from State funds: | T29: =IF(F29="",1,0) -> 1 | U29: =IF(J29="",1,0) -> 1
A31: 2c. Plus state revenues to divisions participating in regional programs
B33: Alternative Education | F33: =F21 -> 0 | J33: =J21 -> 0 | T33: =IF(F33="",1,0) -> 0 | U33: =IF(J33="",1,0) -> 0
B35: Academic Year Governor's Schools | F35: =F23 -> 0 | J35: =J23 -> 0 | T35: =IF(F35="",1,0) -> 0 | U35: =IF(J35="",1,0) -> 0
A37: 2d. Less the sum of all End-Of-Year Balances from State funds: | T37: =IF(F37="",1,0) -> 1 | U37: =IF(J37="",1,0) -> 1
A39: 2e. Less total State funds used for capital expenditures and
A40: Debt Service (Schedule G of ASRFIN): | T40: =IF(F40="",1,0) -> 1 | U40: =IF(J40="",1,0) -> 1
A42: 2f. Total State Expenditures for Operations: | F42: =F27+F29+F33+F35-F37-F40 -> 0 | J42: =J27+J29+J33+J35-J37-J40 -> 0
A44: 2g. State Per Pupil Amount: | H44: =IF(ISNUMBER(F74),(ROUND(F42/$F$74,0)),"Enter ADM in Cell F70, F72") -> Enter ADM in Cell F70, F72 | L44: =IF(ISNUMBER($J$74),(ROUND(J42/$J$74,0)),"Enter ADM in Cell J70, J72") -> Enter ADM in Cell J70, J72
A46: 3a. Less State Sales Tax Revenues (revenues 240308 and 240312): | F46: =SUM('State & Local Funds Summary'!C16) -> 0 | J46: =SUM('State & Local Funds Summary'!E16) -> 0 | T46: =IF(F46="",1,0) -> 0 | U46: =IF(J46="",1,0) -> 0
A48: 3b. State Sales Tax Per Pupil Amount | H48: =IF(ISNUMBER(F74),(ROUND(F46/$F$74,0)),"Enter ADM in Cell F70, F72") -> Enter ADM in Cell F70, F72 | L48: =IF(ISNUMBER($J$74),(ROUND(J46/$J$74,0)),"Enter ADM in Cell J70, J72") -> Enter ADM in Cell J70, J72
A50: 4a. Less Federal Revenues: (see cell comment) | T50: =IF(F50="",1,0) -> 1 | U50: =IF(J50="",1,0) -> 1
A52: 4b. Plus the sum of all Beginning-Year Balances from Federal funds: | T52: =IF(F52="",1,0) -> 1 | U52: =IF(J52="",1,0) -> 1
A54: 4c. Less the sum of all End-Of-Year Balances from Federal funds: | T54: =IF(F54="",1,0) -> 1 | U54: =IF(J54="",1,0) -> 1
A56: 4d. Less total Federal funds used for capital expenditures (Schedule G of ASRFIN): | T56: =IF(F56="",1,0) -> 1 | U56: =IF(J56="",1,0) -> 1
A58: 4e. Total Federal Expenditures for Operations: | F58: =F50+F52-F54-F56 -> 0 | J58: =J50+J52-J54-J56 -> 0
A60: 4f. Federal Per Pupil Amount: | H60: =IF(ISNUMBER(F74),(ROUND(F58/$F$74,0)),"Enter ADM in Cell F70, F72") -> Enter ADM in Cell F70, F72 | L60: =IF(ISNUMBER($J$74),(ROUND(J58/$J$74,0)),"Enter ADM in Cell J70, J72") -> Enter ADM in Cell J70, J72
A62: 5a. Total Local Expenditures for Operations | F62: =H25-F42-F46-F58 -> 0 | J62: =L25-J42-J46-J58 -> 0
A64: 5b. Local Per Pupil Amount: | H64: =IF(ISNUMBER(F74),(ROUND(F62/$F$74,0)), "Enter ADM in Cell F70, F72") -> Enter ADM in Cell F70, F72 | L64: =IF(ISNUMBER($J$74),(ROUND(J62/$J$74,0)), "Enter ADM in Cell J70, J72") -> Enter ADM in Cell J70, J72
A66: 6a. Total Expenditures for Operations: | F66: =H25 -> 0 | J66: =L25 -> 0
A68: 6b. Total Per Pupil Amount: | H68: =IF(ISNUMBER(F74),(ROUND(F66/$F$74,0)),"Enter ADM in Cell F70, F72") -> Enter ADM in Cell F70, F72 | L68: =IF(ISNUMBER($J$74),(ROUND(J66/$J$74,0)),"Enter ADM in Cell J70, J72") -> Enter ADM in Cell J70, J72
A70: 7a. End-Of-Year Average Daily Membership (Grades K-12) | T70: =IF(F70="",1,0) -> 1 | U70: =IF(J70="",1,0) -> 1
A72: 7b. | B72: End-Of-Year Average Daily Membership - PRE-KINDERGARTEN STUDENTS
A74: 7c. | B74: Total End-Of-Year Average Daily Membership (Grades Pre-K - 12) | F74: =IF(AND(ISNUMBER(F70),ISNUMBER(F72)),F70+F72,"Enter ADM in F70 and F72") -> Enter ADM in F70 and F72 | J74: =IF(AND(ISNUMBER(J70),ISNUMBER(J72)),J70+J72,"Enter ADM in J70 and J72") -> Enter ADM in J70 and J72
A76: PRELIMINARY CALCULATION OF MAINTENANCE OF EFFORT FOR ESEA PROGRAMS
A77: As a requirement for ESEA programs funding, all school divisions must meet the maintenance of effort requirement. Divisions must be funded at 90% of the preceding year’s effort for local and state expenditures, including sales tax. The data below is based on preliminary numbers. Please note that the End-Of-Year ADM used in Table 15 INCLUDES Pre-Kindergarten students, but the ADM used for Maintenance of Effort does NOT include these students.
E78: FY 2024 Projections | F78: =F13 -> FY 2025 Projected | J78: =J13 -> FY 2026 Projections
A79: ="FY "&RIGHT(Instructions!N2,4)-1&" End-Of-Year Average Daily Membership" -> FY 2024 End-Of-Year Average Daily Membership | E79: =IF($C$4=0,0,VLOOKUP($C$4,'EOY ADM'!$B$3:$AM$139,38,FALSE)) -> 0
A80: EXCLUDING PRE-KINDERGARTEN (ADM for Maintenance of Effort is K-12 Only)
A82: Community Services Expenditures (Function 65300, all Objects except 8200) - Enter 0 if none. | T82: =IF(F82="",1,0) -> 1 | U82: =IF(J82="",1,0) -> 1
A84: Pre-Kindergarten Expenditures (Program 8, all Objects except 8200) - Enter 0 if none. | T84: =IF(F84="",1,0) -> 1 | U84: =IF(J84="",1,0) -> 1
A86: Total State and Local Expenditures
A87: (Excludes Community Services - Function 65300, all Objects except 8200) | E87: =IF(C4=0,0,VLOOKUP($C$4,'ASRFIN Queries'!$A$14:$G$145,7,FALSE)-SUMIF('ASRFIN Queries'!$I$14:$I$147,$C$4,'ASRFIN Queries'!$J$14:$J$147)) -> 0 | F87: =F62+F46+F42-F82-F84 -> 0 | J87: =J62+J46+J42-J82-J84 -> 0
A89: Total State and Local Expenditures - Current Year as a Percentage of Prior Year | H89: =IF(F87=0,"",F87/E87) ->  | L89: =IF(F87=0,"",J87/F87) -> 
A91: State and Local Per Pupil Expenditures | E91: =IF(E79=0,0,E87/E79) -> 0 | F91: =IF(F70=0,"Enter ADM in Cell F70",F87/F70) -> Enter ADM in Cell F70 | J91: =IF(J70=0,"Enter ADM in Cell J70",J87/J70) -> Enter ADM in Cell J70
A93: State and Local Per Pupil Expenditures - Current Year as a Percentage of Prior Year | H93: =IF(OR(E91="Enter ADM in Cell E75",F91="Enter ADM in Cell F70",E91="Complete Cell E80"),"",F91/E91) ->  | L93: =IF(OR(F91=0,J91="Enter ADM in Cell J70"),"",J91/F91) -> 
F95: =IF(OR(H89="",H93="",T95>0),"Please complete the yellow shaded cells in order to determine your current preliminary ESEA programs MOE status.",IF(OR(H89>=0.895,H93>=0.895),"For Local Planning Purposes, "&$C$5&" has met its ESEA programs Maintenance of Effort for "&Instructions!N2&".","For Local Planning Purposes, "&$C$5&" has NOT met its ESEA programs Maintenance of Effort for "&Instructions!N2&".")) -> Please complete the yellow shaded cells in order to determine your current preliminary ESEA programs MOE status. | J95: =IF(OR(L89="",L93="",U95>0),"Please complete the yellow shaded cells in order to determine your current preliminary ESEA programs MOE status.",IF(OR(L89>=0.895,L93>=0.895),"For Local Planning Purposes, "&$C$5&" has met its ESEA programs Maintenance of Effort for "&Instructions!N3&".","For Local Planning Purposes, "&$C$5&" has NOT met its ESEA programs Maintenance of Effort for "&Instructions!N3&".")) -> Please complete the yellow shaded cells in order to determine your current preliminary ESEA programs MOE status. | T95: =SUM(T15:T94) -> 15 | U95: =SUM(U15:U94) -> 15
A98: * The Expenditures for Operations used in Table 15 differ from the operational expenditures that qualify for Required Local Effort. The major difference between the two expenditure bases is that Table 15 includes expenditures for School Nutrition, Program 7 (Adult Education), and Program 8 (Pre-kindergarten), where these expenditures are excluded from consideration in the Required Local Effort calculation. Please see the calculation descriptions and cell comments on both schedules for more information.
A99: 1 FY 2013 values as reported and certified by school divisions on the 2012-2013 Annual School Report Financial Section.
A100: Cell Comment Detail:
A101: Item 1a: TOTAL EXPENDITURES FOR OPERATIONS DEFINED AS: The Expenditures for Operations used in Table 15 differ from the operational expenditures that qualify for Required Local Effort. The major difference between the two expenditure bases is that Table 15 includes expenditures for School Nutrition and Program 7 (Adult Education) and Program 8 (Pre-kindergarten), where these expenditures are excluded from consideration in the Required Local Effort calculation. Please see the calculation descriptions and cell comments on both schedules for more information. > From the Annual School Report Financial Section (ASRFIN) the sum of all expenditures in ASRFIN functions between 61100 and 69950; excluding functions 67100, 68900, and 69900; > ASRFIN Programs 1 through 8 only (exclude programs 9 and 10); > Exclude object code 8200, 8210, 8220 and 8230 from all functions; > Exclude object code 8100 from the Facilities function only (functions 66100 through 66600); > Exclude object codes 8110, 8120 and 8130 from Technology (Activity 68800); > Exclude object code 8100 from Contingency Reserve (Activity 69800); and, > Exclude the following function-object combinations: - Function 67200 - Object Code 9400 - Function 67200 - Object Code 9800 - Function 67300 - Object Code 9600 - Function 67300 - Object Codes 9700, 9710, 9720, 9730, 9740.
A102: Item 2a: Excludes the following revenue source codes: Special Education Hospitals, Clinics and Detention Homes (240220) State Sales Tax (240308 and 240312, which are included below) Special Education in Jails (240295) Alternative Education (240272) Academic Year Governor's Schools (240229) Career and Technical Education Adult - Regional Centers (240262) Career and Technical Education Equipment - Regional Centers (240270) Career and Technical Education Occupational Prep - Regional Centers (240282) Also excludes expenditures reported as Inter-Agency Fund Transfer - Transfer to Regional Program (Function 67300 - Objects 9700, 9710, 9720, 9730, 9740). This exclusion is based on these State funds being "passed-through" the fiscal agent's budget to a regional program. This amount is also deducted from "Total Expenditures for Operations." State revenues for Alternative Education and Academic Year Governor's Schools are excluded from the regional program fiscal agent's revenues and added back to associated divisions according to their respective participation. This ensures that the state revenues for these programs coincides with the ADM for purposes of calculating Per Pupil Amounts in Table 15.
A103: Item 4a: Expenditures for Pre-Kindergarten are now INCLUDED in Table 15. Please include ALL federal revenues in the amount entered on this line.
A104: Item 7a: The Average Daily Membership (ADM) calculated at the end of the school year includes the ADM of pupils served in the school division and the ADM of resident pupils for whom tuition is paid to another school division, regional special education program, or private school. It excludes Head Start, Pre-Kindergarten, junior kindergarten students, and students for whom the division receives tuition payments from another division or entity (i.e., out-of-state school division, Comprehensive Services Act, Interstate Compact Agreement).

Sheet IDEA MOE (hidden)
A1: PRELIMINARY CALCULATION OF MAINTENANCE OF EFFORT FOR IDEA, PART B
A3: Division Number: | B3: ='Required Local Effort'!B5 -> 0
A4: Division Name: | B4: ='Required Local Effort'!B6 -> 0 | E4: VDOE Contact for IDEA Maintenance of Effort: Paul Raskopf (804) 225-2080
A6: This form is a template that school divisions can use to estimate compliance with meeting IDEA Maintenance of Effort for FY 2023 and FY 2024. This form is intended for planning purposes only, and does not take the place of the required reporting for budgeted IDEA Maintenance of Effort. You are NOT required to return this completed form to the department. Please contact the budget office with any questions IDEA Maintenance of Effort.
A8: INSTRUCTIONS: Fill in the yellow-shaded cells. The green-shaded cells will automatically calculate. Use your mouse to scroll the cursor over the cells to view cell comments. Please see Superintendent's Memorandum #271-10, posted on November 5, 2010, for more information on Maintenance of Effort calculations. Please note that, for IDEA Maintenance of Effort purposes, expenditures for jointly operated divisions are consolidated and reported under the fiscal agent only. Values that have been prepopulated into this worksheet reflect data for the division selected on the State & Local Funds Summary worksheet. Please revise these values as needed.
A10: The calculations contained in this sheet encompass the major exception categories provided in IDEA and are not intended to provide an exhaustive list. If you need information on additional potential adjustments, please contact Paul Raskopf at (804) 225-2080.
A12: Section 1: Enter Projected Special Education Expenditures and December 1 Child Count
A14: Please Enter Projected Special Education and Related Services Expenditures | F14: Please Enter Projected December 1 Child Count
A15: Fund Source | B15: ="FY "&VALUE(RIGHT(C15,4))-1 -> FY 2024 | C15: =Instructions!N2 -> FY 2025 | D15: =Instructions!N3 -> FY 2026 | G15: =B$15 -> FY 2024 | H15: =C$15 -> FY 2025 | I15: =D$15 -> FY 2026
A16: Federal Funds
A17: State Funds | F17: December 1st Child Count (Unduplicated, 0-22 years, legally responsible)
A18: Local Funds | F18: December 1st Child Count - CSA funded students (Tuition Paid Code 7)
A19: Grand Total | B19: =SUM(B16:B18) -> 0 | C19: =SUM(C16:C18) -> 0 | D19: =SUM(D16:D18) -> 0 | F19: Total December 1 Child Count (Unduplicated, 0-22 years, legally responsible MINUS CSA-funded students) | G19: =G17-G18 -> 0 | H19: =H17-H18 -> 0 | I19: =I17-I18 -> 0 | Q19: =IF(COUNTA(B16:D18,G19:I19)<12,1,0) -> 1
A21: ="Section 2: Results of Initial IDEA Maintenance of Effort Options Based on Projected Data Entered by "&B4 -> Section 2: Results of Initial IDEA Maintenance of Effort Options Based on Projected Data Entered by 0
A23: Option 1: Local Special Education Spending (Total) | C23: =C$15 -> FY 2025 | D23: =D$15 -> FY 2026 | F23: Option 2: Local Special Education Spending Per Pupil (Per Capita) | H23: =C23 -> FY 2025 | I23: =D23 -> FY 2026
A24: Current Local Expenditures | C24: =C$18 -> 0 | D24: =D$18 -> 0 | F24: Current Local Expenditures Per Pupil Amount (Local Expenditures Divided by December 1 Special Education Child Count) | H24: =IF(H$17=0,0,C$18/H$17) -> 0 | I24: =IF(I$17=0,0,D$18/I$17) -> 0
A25: Prior Year Local Expenditures | C25: =B$18 -> 0 | D25: =C$18 -> 0 | F25: Prior Year Local Expenditures Per Pupil Amount (Local Expenditures Divided by December 1 Special Education Child Count) | H25: =IF(G$17=0,0,B$18/G$17) -> 0 | I25: =IF(H$17=0,0,C$18/H$17) -> 0
A26: Local Expenditure MOE (Current Year minus Prior Year) | C26: =C24-C25 -> 0 | D26: =D24-D25 -> 0 | F26: Local Expenditure MOE (Current Year minus Prior Year) | H26: =H24-H25 -> 0 | I26: =I24-I25 -> 0
A27: Projected Initial Status for Local Expenditure MOE: | C27: =IF(C24>0,IF(C26>=0,"OPTION 1 MET","OPTION 1 NOT MET"),"") ->  | D27: =IF(D24>0,IF(D26>=0,"OPTION 1 MET","OPTION 1 NOT MET"),"") ->  | F27: Projected Initial Status for Local Expenditure PPA MOE: | H27: =IF(H24>0,IF(H26>=0,"OPTION 2 MET","OPTION 2 NOT MET"),"") ->  | I27: =IF(I24>0,IF(I26>=0,"OPTION 2 MET","OPTION 2 NOT MET"),"") -> 
C28: =IF(ISERROR(FIND("NOT",C27,1)),0,1) -> 0 | D28: =IF(ISERROR(FIND("NOT",D27,1)),0,1) -> 0 | H28: =IF(ISERROR(FIND("NOT",H27,1)),0,1) -> 0 | I28: =IF(ISERROR(FIND("NOT",I27,1)),0,1) -> 0
A29: Option 3: Local & State Special Education Spending (Total) | C29: =C$15 -> FY 2025 | D29: =D$15 -> FY 2026 | F29: Option 4: Local & State Special Education Spending Per Pupil (Per Capita) | H29: =C29 -> FY 2025 | I29: =D29 -> FY 2026
A30: Current Local & State Expenditures | C30: =C$18+C$17 -> 0 | D30: =D$18+D$17 -> 0 | F30: Current Local & State Expenditures Per Pupil Amount (Local & State Expenditures Divided by December 1 Special Education Child Count) | H30: =IF(H$17=0,0,(C$18+C$17)/H$17) -> 0 | I30: =IF(I$17=0,0,(D$18+D$17)/I$17) -> 0
A31: Prior Year Local & State Expenditures | C31: =B$18+B$17 -> 0 | D31: =C$18+C$17 -> 0 | F31: Prior Year Local & State Expenditures Per Pupil Amount (Local & State Expenditures Divided by December 1 Special Education Child Count) | H31: =IF(G$17=0,0,(B$18+B$17)/G$17) -> 0 | I31: =IF(H$17=0,0,(C$18+C$17)/H$17) -> 0
A32: Local & State Expenditure MOE (Current Year minus Prior Year) | C32: =C30-C31 -> 0 | D32: =D30-D31 -> 0 | F32: Local & State Expenditure MOE (Current Year minus Prior Year) | H32: =H30-H31 -> 0 | I32: =I30-I31 -> 0
A33: Projected Initial Status for Local & State Expenditure MOE: | C33: =IF(C30>0,IF(C32>=0,"OPTION 3 MET","OPTION 3 NOT MET"),"") ->  | D33: =IF(D30>0,IF(D32>=0,"OPTION 3 MET","OPTION 3 NOT MET"),"") ->  | F33: Projected Initial Status for Local & State Expenditure PPA MOE: | H33: =IF(H30>0,IF(H32>=0,"OPTION 4 MET","OPTION 4 NOT MET"),"") ->  | I33: =IF(I30>0,IF(I32>=0,"OPTION 4 MET","OPTION 4 NOT MET"),"") ->  | Q33: =C28+C34+H28+H34 -> 0 | R33: =D28+D34+I28+I34 -> 0
C34: =IF(ISERROR(FIND("NOT",C33,1)),0,1) -> 0 | D34: =IF(ISERROR(FIND("NOT",D33,1)),0,1) -> 0 | H34: =IF(ISERROR(FIND("NOT",H33,1)),0,1) -> 0 | I34: =IF(ISERROR(FIND("NOT",I33,1)),0,1) -> 0
A35: ="Section 3: Possible Adjustment to Reported Expenditures Based on Projected Data Entered by "&B4 -> Section 3: Possible Adjustment to Reported Expenditures Based on Projected Data Entered by 0
A37: Local Match Expenditures for Comprehensive Services Act (CSA) Funded Students
G39: =B$15 -> FY 2024 | H39: =C$15 -> FY 2025 | I39: =D$15 -> FY 2026
A40: Enter the local matching portion of expenditures for CSA-funded students. The local portion is typically paid by the local governing body (county, city) and, therefore, is not reported on the school division's ASRFIN. If these expenditures are paid by your school division and reported on your ASRFIN, do NOT use this section.
A42: Option 1: Local Special Education Spending (Total), including Local CSA Matching Expenditures | C42: =C$15 -> FY 2025 | D42: =D$15 -> FY 2026 | F42: Option 2: Local Special Education Spending Per Pupil (Per Capita), including Local CSA Matching Expenditures | H42: =C42 -> FY 2025 | I42: =D42 -> FY 2026
A43: Current Local Expenditures | C43: =C24+$H$40 -> 0 | D43: =D24+$I$40 -> 0 | F43: Current Local Expenditures Per Pupil Amount (Local Expenditures Divided by December 1 Special Education Child Count) | H43: =IF(H$19=0,0,C43/H$19) -> 0 | I43: =IF(I$19=0,0,D43/I$19) -> 0
A44: Prior Year Local Expenditures | C44: =C25+$G$40 -> 0 | D44: =D25+$H$40 -> 0 | F44: Prior Year Local Expenditures Per Pupil Amount (Local Expenditures Divided by December 1 Special Education Child Count) | H44: =IF(G$19=0,0,C44/G$19) -> 0 | I44: =IF(H$19=0,0,D44/H$19) -> 0
A45: Local Expenditure MOE (Current Year minus Prior Year) | C45: =C43-C44 -> 0 | D45: =D43-D44 -> 0 | F45: Local Expenditure MOE (Current Year minus Prior Year) | H45: =H43-H44 -> 0 | I45: =I43-I44 -> 0
A46: Projected Status for Local Expenditure MOE: | C46: =IF(C43>0,IF(C45>=0,"OPTION 1 MET","OPTION 1 NOT MET"),"") ->  | D46: =IF(D43>0,IF(D45>=0,"OPTION 1 MET","OPTION 1 NOT MET"),"") ->  | F46: Projected Status for Local Expenditure PPA MOE: | H46: =IF(H43>0,IF(H45>=0,"OPTION 2 MET","OPTION 2 NOT MET"),"") ->  | I46: =IF(I43>0,IF(I45>=0,"OPTION 2 MET","OPTION 2 NOT MET"),"") -> 
C47: =IF(ISERROR(FIND("NOT",C46,1)),0,1) -> 0 | D47: =IF(ISERROR(FIND("NOT",D46,1)),0,1) -> 0 | H47: =IF(ISERROR(FIND("NOT",H46,1)),0,1) -> 0 | I47: =IF(ISERROR(FIND("NOT",I46,1)),0,1) -> 0
A48: Option 3: Local & State Special Education Spending (Total), including Local CSA Matching Expenditures | C48: =C$15 -> FY 2025 | D48: =D$15 -> FY 2026 | F48: Option 4: Local & State Special Education Spending Per Pupil (Per Capita), including Local CSA Matching Expenditures | H48: =C48 -> FY 2025 | I48: =D48 -> FY 2026
A49: Current Local & State Expenditures | C49: =C30+$H$40 -> 0 | D49: =D30+$I$40 -> 0 | F49: Current Local & State Expenditures Per Pupil Amount (Local & State Expenditures Divided by December 1 Special Education Child Count) | H49: =IF(H$19=0,0,C49/H$19) -> 0 | I49: =IF(I$19=0,0,D49/I$19) -> 0
A50: Prior Year Local & State Expenditures | C50: =C31+$G$40 -> 0 | D50: =D31+$H$40 -> 0 | F50: Prior Year Local & State Expenditures Per Pupil Amount (Local & State Expenditures Divided by December 1 Special Education Child Count) | H50: =IF(G$19=0,0,C50/G$19) -> 0 | I50: =IF(I$19=0,0,D50/I$19) -> 0
A51: Local & State Expenditure MOE (Current Year minus Prior Year) | C51: =C49-C50 -> 0 | D51: =D49-D50 -> 0 | F51: Local & State Expenditure MOE (Current Year minus Prior Year) | H51: =H49-H50 -> 0 | I51: =I49-I50 -> 0
A52: Projected Status for Local & State Expenditure MOE: | C52: =IF(C49>0,IF(C51>=0,"OPTION 3 MET","OPTION 3 NOT MET"),"") ->  | D52: =IF(D49>0,IF(D51>=0,"OPTION 3 MET","OPTION 3 NOT MET"),"") ->  | F52: Projected Status for Local & State Expenditure PPA MOE: | H52: =IF(H49>0,IF(H51>=0,"OPTION 4 MET","OPTION 4 NOT MET"),"") ->  | I52: =IF(I49>0,IF(I51>=0,"OPTION 4 MET","OPTION 4 NOT MET"),"") -> 
C53: =IF(ISERROR(FIND("NOT",C52,1)),0,1) -> 0 | D53: =IF(ISERROR(FIND("NOT",D52,1)),0,1) -> 0 | H53: =IF(ISERROR(FIND("NOT",H52,1)),0,1) -> 0 | I53: =IF(ISERROR(FIND("NOT",I52,1)),0,1) -> 0
A55: ="Section 4: Exceptions that May be Considered in Calculating IDEA Maintenance of Effort Based on Projected Data Entered by "&B4&" Based on US Department of Education Guidance as of September 9, 2010 (click here for more information)." -> Section 4: Exceptions that May be Considered in Calculating IDEA Maintenance of Effort Based on Projected Data Entered by 0 Based on US Department of Education Guidance as of September 9, 2010 (click here for more information).
A57: §300.204 - Voluntary Departures, Termination of Services, Program Termination
C59: =C$15 -> FY 2025 | D59: =D$15 -> FY 2026
A60: Value of Voluntary Departures Savings in salary and benefits realized when a teacher(s) retires, resigns, or is terminated for just cause. Does NOT include savings due to reduction in force.
A61: Termination of Services to a particular child with a disability that is an exceptionally costly program Approval of VDOE required to utilize this exception. | F61: Examples: student who required residential placement moved from locality (*Division may add local share of CSA costs to base expenditure amount to each year used in the comparison). NOTE: If the terminated services were funded by CSA, the local CSA match must be added to expenditures in the section above ("Local Match Expenditures for Comprehensive Services Act (CSA) Funded Students") in order to use this exception. | R61: Yes
A62: Termination of Costly Expenditures for Long-Term Purchases Exception allows division to avoid "penalty" for expenditures in prior year(s) when the need for those expenditures ceases. | F62: Examples: purchase of high cost technology device(s) to enable communication for students with disabilities; capital expenditures to make buildings/spaces/buses accessible to students with disabilities (*Division may add capital expenditures to base expenditure amount for each year used in the comparison). | R62: No
A63: Allowable Reduction for §300.204 | C63: =SUM(C60:C62) -> 0 | D63: =SUM(D60:D62) -> 0
A65: §300.205 - Reduce the Level of Required Expenditures by not more than 50% of an Increase in its IDEA Allocation
A67: Federal IDEA revenues | B67: =B$15 -> FY 2024 | C67: =C$15 -> FY 2025 | D67: =D$15 -> FY 2026
A68: Base Grant (611 & 619) | B68: =SUM(IF(('ASRFIN Queries'!$Z$14:$Z$516='IDEA MOE'!$B$3)*('ASRFIN Queries'!$AC$275:$AC$491=LEFT('IDEA MOE'!A68,4)),'ASRFIN Queries'!$AB$14:$AB$516)) ->  | F68: Please enter federal funds in the year in which they were allocated, not the year your school division received reimbursement.
A69: ARRA (611 & 619) | B69: =SUM(IF(('ASRFIN Queries'!$Z$14:$Z$516='IDEA MOE'!$B$3)*('ASRFIN Queries'!$AC$275:$AC$491=LEFT('IDEA MOE'!A69,4)),'ASRFIN Queries'!$AB$14:$AB$516)) ->  | C69: N/A | D69: N/A
A70: Total IDEA Revenues | B70: =SUM(B68:B69) ->  | C70: =SUM(C68:C69) -> 0 | D70: =SUM(D68:D69) -> 0
A72: 50% of IDEA Revenue Increase | C72: =IF(C70>0,ROUND(C70/2,2),0) -> 0 | D72: =IF(D70>0,ROUND(D70/2,2),0) -> 0
A73: Is Coordinated Early Intervening Services (CEIS) required for this division? | F73: If CEIS is mandatory, you may not use the reduction for §300.205.
A74: Amount Spent on CEIS
A75: Allowable Reduction for §300.205 | C75: =IF(C73="Yes",0,C72-C74) -> 0 | D75: =IF(D73="Yes",0,D72-D74) -> 0
A77: Total Allowable Reductions for §300.204 and §300.205 | C77: =C75+C63 -> 0 | D77: =D75+D63 -> 0
A79: IDEA MOE Calculation, Adjusted for §300.204 and §300.205
A80: Option 1: Local Special Education Spending (Total) | C80: =C15 -> FY 2025 | D80: =D15 -> FY 2026 | F80: Option 2: Local Special Education Spending Per Pupil (Per Capita) | H80: =C15 -> FY 2025 | I80: =D15 -> FY 2026
A81: Expenditure Variance from Prior Year | C81: =C26 -> 0 | D81: =D26 -> 0 | F81: PER PUPIL Expenditure Variance from Prior Year | H81: =H26 -> 0 | I81: =I26 -> 0
A82: Value of Total Allowable Reductions | C82: =C77 -> 0 | D82: =D77 -> 0 | F82: PER PUPIL Value of Total Allowable Reductions | H82: =IF(H17=0,0,C77/H17) -> 0 | I82: =IF(I17=0,0,D77/I17) -> 0
A83: Projected Status for Local Expenditure MOE: | C83: =IF(C81>=0,"OPTION 1 MET",IF(C81<0,IF(C82>=ABS(C81),"OPTION 1 MET","OPTION 1 NOT MET"))) -> OPTION 1 MET | D83: =IF(D81>=0,"OPTION 1 MET",IF(D81<0,IF(D82>=ABS(D81),"OPTION 1 MET","OPTION 1 NOT MET"))) -> OPTION 1 MET | F83: Projected Status for Local Expenditure PPA MOE: | H83: =IF(H81>=0,"OPTION 2 MET",IF(H81<0,IF(H82>=ABS(H81),"OPTION 2 MET","OPTION 2 NOT MET"))) -> OPTION 2 MET | I83: =IF(I81>=0,"OPTION 2 MET",IF(I81<0,IF(I82>=ABS(I81),"OPTION 2 MET","OPTION 2 NOT MET"))) -> OPTION 2 MET
C84: =IF(ISERROR(FIND("NOT",C83,1)),0,1) -> 0 | D84: =IF(ISERROR(FIND("NOT",D83,1)),0,1) -> 0 | H84: =IF(ISERROR(FIND("NOT",H83,1)),0,1) -> 0 | I84: =IF(ISERROR(FIND("NOT",I83,1)),0,1) -> 0
A85: Option 3: Local & State Special Education Spending (Total) | C85: =C80 -> FY 2025 | D85: =D80 -> FY 2026 | F85: Option 4: Local & State Special Education Spending Per Pupil (Per Capita) | H85: =H80 -> FY 2025 | I85: =I80 -> FY 2026
A86: Expenditure Variance from Prior Year | C86: =C32 -> 0 | D86: =D32 -> 0 | F86: PER PUPIL Expenditure Variance from Prior Year | H86: =H32 -> 0 | I86: =I32 -> 0
A87: Value of Total Allowable Reductions | C87: =C77 -> 0 | D87: =D77 -> 0 | F87: PER PUPIL Value of Total Allowable Reductions | H87: =IF(H17=0,0,C77/H17) -> 0 | I87: =IF(I17=0,0,D77/I17) -> 0
A88: Projected Status for Local & State Expenditure MOE: | C88: =IF(C86>=0,"OPTION 3 MET",IF(C86<0,IF(C87>=ABS(C86),"OPTION 3 MET","OPTION 3 NOT MET"))) -> OPTION 3 MET | D88: =IF(D86>=0,"OPTION 3 MET",IF(D86<0,IF(D87>=ABS(D86),"OPTION 3 MET","OPTION 3 NOT MET"))) -> OPTION 3 MET | F88: Projected Status for Local & State Expenditure PPA MOE: | H88: =IF(H86>=0,"OPTION 4 MET",IF(H86<0,IF(H87>=ABS(H86),"OPTION 4 MET","OPTION 4 NOT MET"))) -> OPTION 4 MET | I88: =IF(I86>=0,"OPTION 4 MET",IF(I86<0,IF(I87>=ABS(I86),"OPTION 4 MET","OPTION 4 NOT MET"))) -> OPTION 4 MET
C89: =IF(ISERROR(FIND("NOT",C88,1)),0,1) -> 0 | D89: =IF(ISERROR(FIND("NOT",D88,1)),0,1) -> 0 | H89: =IF(ISERROR(FIND("NOT",H88,1)),0,1) -> 0 | I89: =IF(ISERROR(FIND("NOT",I88,1)),0,1) -> 0
A90: =IF(OR(C19=0,H19=0),"Please complete the yellow shaded cells in order to determine your current preliminary IDEA MOE status.",IF(AND(C89>0,C84>0,C28>0,C34>0,C47>0,C53>0,H89>0,H84>0,H28>0,H34>0,H47,H53>0),"For local planning purposes, "&$B$4&" has NOT met its IDEA Maintenance of Effort for "&$C$15&".","For local planning purposes, "&$B$4&" has met its IDEA Maintenance of Effort for "&$C$15&".")) -> Please complete the yellow shaded cells in order to determine your current preliminary IDEA MOE status. | F90: =IF(OR(D19=0,I19=0),"Please complete the yellow shaded cells in order to determine your current preliminary IDEA MOE status.",IF(AND(D89>0,D84>0,D28>0,D34>0,D47>0,D53>0,I89>0,I84>0,I28>0,I34>0,I47>0,I53>0),"For local planning purposes, "&$B$4&" has NOT met its IDEA Maintenance of Effort for "&$D$15&".","For local planning purposes, "&$B$4&" has met its IDEA Maintenance of Effort for "&$D$15&".")) -> Please complete the yellow shaded cells in order to determine your current preliminary IDEA MOE status.

Sheet ASRFIN Queries (hidden)
A1: Prior year Beginning School Year | C1: 2022 | D1: Fill in to update sheet
A2: Double check that all agencies have populated data.
A4: Verify that all queries updated: | C4: Beg Yr | D4: Status
A5: State & Local Expenditures | C5: =F14 -> 2022 | D5: =IF(C5=$C$1,"OK!","ERROR") -> OK!
A6: Community Services Expenditures | C6: =K14 -> 2022 | D6: =IF(C6=$C$1,"OK!","ERROR") -> OK!
A7: Special Education Expenditures | C7: =O14 -> 2022 | D7: =IF(C7=$C$1,"OK!","ERROR") -> OK!
A8: December 1 Child Count | C8: =T14 -> 2022 | D8: =IF(C8=$C$1,"OK!","ERROR") -> OK!
A9: Federal IDEA Revenues | C9: =Y14 -> 2022 | D9: =IF(C9=$C$1,"OK!","ERROR") -> OK!
A11: Total State and Local Expenditures (For Title 1 MOE Worksheet) | I11: Community Services - Function 65300, all Objects except 8200 (For Title 1 MOE Worksheet) | M11: Special Ed and Related Expenses for Federal, State, and Local Funds (for IDEA MOE Worksheet) | S11: December 1 Non-duplicated Serving Child Count (0-22 Years) (for IDEA MOE Worksheet) | Y11: Federal IDEA Revenues (for IDEA MOE Worksheet) | AE11: December Child Count: CSA-Funded Students only
A13: EDAGENCY_NUM | B13: LOCALAMT | C13: STATEAMT | D13: STATETAXAMT | E13: NAME | F13: BEG_SCH_YR | G13: Total funding | I13: EDAGENCY_NUM | J13: SUM(EXPENDITURES.AMOUNT) | K13: BEG_SCH_YR | M13: EDAGENCY_NUM | N13: FUNDS_TYPE | O13: BEG_SCH_YR | P13: (SUPPLEMENTAL_SCHEDULE.REL_SERV_AMT+SUPPLEMENTAL_SCHEDULE.SPED_AMT) | S13: EDAGENCY_NUM | T13: BEG_SCH_YR | U13: SUM(DISAB_BY_EA_YR_VIEW.STUCOUNT) | V13: SUM(DISAB_BY_EA_YR_VIEW.STUCOUNT) | Y13: BEG_SCH_YR | Z13: EDAGENCY_NUM | AA13: REVENUE_SOURCE | AB13: AMOUNT | AE13: SERVING_ED_AGENCY_ID | AF13: TOTAL
A14: 1 | B14: 14758102 | C14: 36933344 | D14: 6775676 | E14: Accomack County | F14: 2022 | G14: =SUM(B14:D14) -> 58467122 | I14: 5 | J14: 35289.92 | K14: 2022 | M14: 1 | N14: CC | O14: 2022 | P14: 5581406.43 | S14: 1 | T14: 2022 | U14: 734 | V14: 703 | Y14: 2022 | Z14: 1 | AA14: 84027 | AB14: 92308.32 | AE14: 1 | AF14: 7
A15: 2 | B15: 177312274 | C15: 46868616 | D15: 21966406 | E15: Albemarle County | F15: 2022 | G15: 246147296 | I15: 7 | J15: 15962113.41 | K15: 2022 | M15: 1 | N15: FED | O15: 2022 | P15: 1511493.69 | S15: 2 | T15: 2022 | U15: 1840 | V15: 1673 | Y15: 2022 | Z15: 1 | AA15: 84027 | AB15: 1282983.65 | AE15: 2 | AF15: 33
A16: 3 | B16: 8766156 | C16: 25077327 | D16: 4148144 | E16: Alleghany Highlands | F16: 2022 | G16: 37991627 | I16: 18 | J16: 9222.81 | K16: 2022 | M16: 1 | N16: STATE | O16: 2022 | P16: 2322315.13 | S16: 3 | T16: 2022 | U16: 487 | V16: 316 | Y16: 2022 | Z16: 1 | AA16: 84173 | AB16: 21145 | AE16: 3 | AF16: 22
A17: 4 | B17: 5843219 | C17: 12353233 | D17: 2701235 | E17: Amelia County | F17: 2022 | G17: 20897687 | I17: 33 | J17: 51276.69 | K17: 2022 | M17: 2 | N17: CC | O17: 2022 | P17: 26662313.74 | S17: 4 | T17: 2022 | U17: 189 | V17: 200 | Y17: 2022 | Z17: 1 | AA17: 84173 | AB17: 34723.62 | AE17: 4 | AF17: 6
A18: 5 | B18: 12356541 | C18: 31626567 | D18: 6203812 | E18: Amherst County | F18: 2022 | G18: 50186920 | I18: 57 | J18: 13605.53 | K18: 2022 | M18: 2 | N18: FED | O18: 2022 | P18: 3121790.7 | S18: 5 | T18: 2022 | U18: 622 | V18: 593 | Y18: 2022 | Z18: 2 | AA18: 84027 | AB18: 88612.02 | AE18: 5 | AF18: 13
A19: 6 | B19: 5381395 | C19: 17653096 | D19: 3386191 | E19: Appomattox County | F19: 2022 | G19: 26420682 | I19: 60 | J19: 23477.53 | K19: 2022 | M19: 2 | N19: STATE | O19: 2022 | P19: 3990802.9 | S19: 6 | T19: 2022 | U19: 289 | V19: 234 | Y19: 2022 | Z19: 2 | AA19: 84027 | AB19: 2443937.03 | AE19: 6 | AF19: 15
A20: 7 | B20: 560185782 | C20: 61489593 | D20: 41404928 | E20: Arlington County | F20: 2022 | G20: 663080303 | I20: 96 | J20: 905343.42 | K20: 2022 | M20: 3 | N20: CC | O20: 2022 | P20: 2586594 | S20: 7 | T20: 2022 | U20: 4127 | V20: 3762 | Y20: 2022 | Z20: 2 | AA20: 84027 | AB20: 512612.7 | AE20: 7 | AF20: 48
A21: 8 | B21: 48283591 | C21: 63971501 | D21: 14830266 | E21: Augusta County | F21: 2022 | G21: 127085358 | I21: 101 | J21: 1893853.35 | K21: 2022 | M21: 3 | N21: FED | O21: 2022 | P21: 1157840 | S21: 8 | T21: 2022 | U21: 1114 | V21: 731 | Y21: 2022 | Z21: 2 | AA21: 84173 | AB21: 1133.87 | AE21: 8 | AF21: 32
A22: 9 | B22: 7020945 | C22: 2595685 | D22: 685545 | E22: Bath County | F22: 2022 | G22: 10302175 | I22: 109 | J22: 1424809.3 | K22: 2022 | M22: 3 | N22: STATE | O22: 2022 | P22: 1824192 | S22: 9 | T22: 2022 | U22: 91 | V22: 86 | Y22: 2022 | Z22: 2 | AA22: 84173 | AB22: 74288.2 | AE22: 9 | AF22: 0
A23: 10 | B23: 39483970 | C23: 54578715 | D23: 15854948 | E23: Bedford County | F23: 2022 | G23: 109917633 | I23: 112 | J23: 47388 | K23: 2022 | M23: 4 | N23: CC | O23: 2022 | P23: 1768008.19 | S23: 10 | T23: 2022 | U23: 1137 | V23: 1113 | Y23: 2022 | Z23: 3 | AA23: 84027 | AB23: 104113.5 | AE23: 10 | AF23: 16
A24: 11 | B24: 3408810 | C24: 5619385 | D24: 1030944 | E24: Bland County | F24: 2022 | G24: 10059139 | I24: 114 | J24: 309140.77 | K24: 2022 | M24: 4 | N24: FED | O24: 2022 | P24: 505429.4 | S24: 11 | T24: 2022 | U24: 158 | V24: 133 | Y24: 2022 | Z24: 3 | AA24: 84027 | AB24: 711816.17 | AE24: 11 | AF24: 1
A25: 12 | B25: 25296797 | C25: 25937676 | D25: 6825979 | E25: Botetourt County | F25: 2022 | G25: 58060452 | I25: 115 | J25: 204305.07 | K25: 2022 | M25: 4 | N25: STATE | O25: 2022 | P25: 808201.22 | S25: 12 | T25: 2022 | U25: 738 | V25: 652 | Y25: 2022 | Z25: 3 | AA25: 84173 | AB25: 18922.3 | AE25: 12 | AF25: 19
A26: 13 | B26: 7009367 | C26: 11414432 | D26: 2592834 | E26: Brunswick County | F26: 2022 | G26: 21016633 | I26: 116 | J26: 50334.13 | K26: 2022 | M26: 5 | N26: CC | O26: 2022 | P26: 4818746.67 | S26: 13 | T26: 2022 | U26: 192 | V26: 234 | Y26: 2022 | Z26: 4 | AA26: 84027 | AB26: 71265.82 | AE26: 13 | AF26: 10
A27: 14 | B27: 5856108 | C27: 20798801 | D27: 3916244 | E27: Buchanan County | F27: 2022 | G27: 30571153 | I27: 119 | J27: 235033.22 | K27: 2022 | M27: 5 | N27: FED | O27: 2022 | P27: 1167772.25 | S27: 14 | T27: 2022 | U27: 478 | V27: 489 | Y27: 2022 | Z27: 4 | AA27: 84027 | AB27: 474831.91 | AE27: 14 | AF27: 0
A28: 15 | B28: 6879086 | C28: 16100938 | D28: 3055173 | E28: Buckingham County | F28: 2022 | G28: 26035197 | I28: 120 | J28: 21150.37 | K28: 2022 | M28: 5 | N28: STATE | O28: 2022 | P28: 3403471.72 | S28: 15 | T28: 2022 | U28: 321 | V28: 303 | Y28: 2022 | Z28: 4 | AA28: 84173 | AB28: 14388 | AE28: 15 | AF28: 0
A29: 16 | B29: 26684336 | C29: 54146961 | D29: 11048396 | E29: Campbell County | F29: 2022 | G29: 91879693 | I29: 135 | J29: 33393.44 | K29: 2022 | M29: 6 | N29: CC | O29: 2022 | P29: 1241617.61 | S29: 16 | T29: 2022 | U29: 1137 | V29: 946 | Y29: 2022 | Z29: 5 | AA29: 84027 | AB29: 129081.48 | AE29: 16 | AF29: 10
A30: 17 | B30: 18578798 | C30: 24550872 | D30: 6557419 | E30: Caroline County | F30: 2022 | G30: 49687089 | I30: 144 | J30: 5706.39 | K30: 2022 | M30: 6 | N30: FED | O30: 2022 | P30: 645782.87 | S30: 17 | T30: 2022 | U30: 589 | V30: 562 | Y30: 2022 | Z30: 5 | AA30: 84027 | AB30: 910875.47 | AE30: 17 | AF30: 16
A31: 18 | B31: 7443096 | C31: 30718529 | D31: 5322201 | E31: Carroll County | F31: 2022 | G31: 43483826 | M31: 6 | N31: STATE | O31: 2022 | P31: 1082371.78 | S31: 18 | T31: 2022 | U31: 660 | V31: 677 | Y31: 2022 | Z31: 5 | AA31: 84173 | AB31: 39036.34 | AE31: 18 | AF31: 2
A32: 19 | B32: 4637499 | C32: 4050546 | D32: 1041175 | E32: Charles City County | F32: 2022 | G32: 9729220 | M32: 7 | N32: CC | O32: 2022 | P32: 110364519.1 | S32: 19 | T32: 2022 | U32: 119 | V32: 99 | Y32: 2022 | Z32: 6 | AA32: 84027 | AB32: 17200 | AE32: 19 | AF32: 7
A33: 20 | B33: 4954145 | C33: 15016494 | D33: 2552429 | E33: Charlotte County | F33: 2022 | G33: 22523068 | M33: 7 | N33: FED | O33: 2022 | P33: 6713156.73 | S33: 20 | T33: 2022 | U33: 202 | V33: 254 | Y33: 2022 | Z33: 6 | AA33: 84027 | AB33: 462322.11 | AE33: 20 | AF33: 6
A34: 21 | B34: 286987921 | C34: 388878476 | D34: 86627803 | E34: Chesterfield County | F34: 2022 | G34: 762494200 | M34: 7 | N34: STATE | O34: 2022 | P34: 5804211 | S34: 21 | T34: 2022 | U34: 8250 | V34: 7440 | Y34: 2022 | Z34: 6 | AA34: 84173 | AB34: 14562.26 | AE34: 21 | AF34: 80
A35: 22 | B35: 14573798 | C35: 7990849 | D35: 2981954 | E35: Clarke County | F35: 2022 | G35: 25546601 | M35: 8 | N35: CC | O35: 2022 | P35: 9392408.02 | S35: 22 | T35: 2022 | U35: 217 | V35: 236 | Y35: 2022 | Z35: 7 | AA35: 84027 | AB35: 841697.66 | AE35: 22 | AF35: 6
A36: 23 | B36: 1257745 | C36: 4818360 | D36: 941491 | E36: Craig County | F36: 2022 | G36: 7017596 | M36: 8 | N36: FED | O36: 2022 | P36: 3073812.46 | S36: 23 | T36: 2022 | U36: 131 | V36: 145 | Y36: 2022 | Z36: 7 | AA36: 84027 | AB36: 5405381.82 | AE36: 23 | AF36: 5
A37: 24 | B37: 32385897 | C37: 49891574 | D37: 13064045 | E37: Culpeper County | F37: 2022 | G37: 95341516 | M37: 8 | N37: STATE | O37: 2022 | P37: 4031973.71 | S37: 24 | T37: 2022 | U37: 998 | V37: 860 | Y37: 2022 | Z37: 7 | AA37: 84173 | AB37: 606.77 | AE37: 24 | AF37: 12
A38: 25 | B38: 3427950 | C38: 12757445 | D38: 1960488 | E38: Cumberland County | F38: 2022 | G38: 18145883 | M38: 9 | N38: CC | O38: 2022 | P38: 1255340.66 | S38: 25 | T38: 2022 | U38: 168 | V38: 142 | Y38: 2022 | Z38: 7 | AA38: 84173 | AB38: 130724.89 | AE38: 25 | AF38: 11
A39: 26 | B39: 4231592 | C39: 18778696 | D39: 2876931 | E39: Dickenson County | F39: 2022 | G39: 25887219 | M39: 9 | N39: FED | O39: 2022 | P39: 173982.25 | S39: 26 | T39: 2022 | U39: 301 | V39: 405 | Y39: 2022 | Z39: 8 | AA39: 84027 | AB39: 325681.1 | AE39: 26 | AF39: 0
A40: 27 | B40: 16450859 | C40: 34261009 | D40: 5885740 | E40: Dinwiddie County | F40: 2022 | G40: 56597608 | M40: 9 | N40: STATE | O40: 2022 | P40: 138991.11 | S40: 27 | T40: 2022 | U40: 639 | V40: 602 | Y40: 2022 | Z40: 8 | AA40: 84027 | AB40: 2331386.26 | AE40: 27 | AF40: 1
A41: 28 | B41: 6245086 | C41: 10058754 | D41: 1945750 | E41: Essex County | F41: 2022 | G41: 18249590 | M41: 10 | N41: CC | O41: 2022 | P41: 11421513.43 | S41: 28 | T41: 2022 | U41: 213 | V41: 229 | Y41: 2022 | Z41: 8 | AA41: 84173 | AB41: 1533.77 | AE41: 28 | AF41: 5
A42: 29 | B42: 2319210167 | C42: 661131632 | D42: 271243978 | E42: Fairfax County | F42: 2022 | G42: 3251585777 | M42: 10 | N42: FED | O42: 2022 | P42: 2361264.37 | S42: 29 | T42: 2022 | U42: 28299 | V42: 26085 | Y42: 2022 | Z42: 8 | AA42: 84173 | AB42: 66945 | AE42: 29 | AF42: 283
A43: 30 | B43: 98125225 | C43: 47170736 | D43: 16772559 | E43: Fauquier County | F43: 2022 | G43: 162068520 | M43: 10 | N43: STATE | O43: 2022 | P43: 4051614.86 | S43: 30 | T43: 2022 | U43: 1691 | V43: 1582 | Y43: 2022 | Z43: 9 | AA43: 84027 | AB43: 25923.25 | AE43: 30 | AF43: 27
A44: 31 | B44: 7773583 | C44: 12864066 | D44: 3026597 | E44: Floyd County | F44: 2022 | G44: 23664246 | M44: 11 | N44: CC | O44: 2022 | P44: 431585.12 | S44: 31 | T44: 2022 | U44: 287 | V44: 295 | Y44: 2022 | Z44: 9 | AA44: 84027 | AB44: 143843 | AE44: 31 | AF44: 2
A45: 32 | B45: 18107912 | C45: 21098984 | D45: 5311328 | E45: Fluvanna County | F45: 2022 | G45: 44518224 | M45: 11 | N45: FED | O45: 2022 | P45: 216518.87 | S45: 32 | T45: 2022 | U45: 493 | V45: 427 | Y45: 2022 | Z45: 9 | AA45: 84173 | AB45: 4216 | AE45: 32 | AF45: 4
A46: 33 | B46: 30834171 | C46: 39552044 | D46: 10828438 | E46: Franklin County | F46: 2022 | G46: =SUM(B46:D46) -> 81214653 | M46: 11 | N46: STATE | O46: 2022 | P46: 517726 | S46: 33 | T46: 2022 | U46: 1068 | V46: 1177 | Y46: 2022 | Z46: 10 | AA46: 84027 | AB46: 194342.47 | AE46: 33 | AF46: 0
A47: 34 | B47: 97162596 | C47: 77959857 | D47: 20785300 | E47: Frederick County | F47: 2022 | G47: 195907753 | M47: 12 | N47: CC | O47: 2022 | P47: 6425128.47 | S47: 34 | T47: 2022 | U47: 1924 | V47: 1720 | Y47: 2022 | Z47: 10 | AA47: 84027 | AB47: 2136109.1 | AE47: 34 | AF47: 11
A48: 35 | B48: 9893794 | C48: 24820880 | D48: 3496754 | E48: Giles County | F48: 2022 | G48: 38211428 | M48: 12 | N48: FED | O48: 2022 | P48: 1225265.07 | S48: 35 | T48: 2022 | U48: 453 | V48: 383 | Y48: 2022 | Z48: 10 | AA48: 84173 | AB48: 4399.94 | AE48: 35 | AF48: 6
A49: 36 | B49: 30612734 | C49: 30698798 | D49: 7531625 | E49: Gloucester County | F49: 2022 | G49: 68843157 | M49: 12 | N49: STATE | O49: 2022 | P49: 1932452.08 | S49: 36 | T49: 2022 | U49: 792 | V49: 694 | Y49: 2022 | Z49: 10 | AA49: 84173 | AB49: 67991.84 | AE49: 36 | AF49: 11
A50: 37 | B50: 26322055 | C50: 6551334 | D50: 4486114 | E50: Goochland County | F50: 2022 | G50: 37359503 | M50: 13 | N50: CC | O50: 2022 | P50: 1967865.66 | S50: 37 | T50: 2022 | U50: 356 | V50: 334 | Y50: 2022 | Z50: 11 | AA50: 84027 | AB50: 238 | AE50: 37 | AF50: 8
A51: 38 | B51: 6060642 | C51: 12251122 | D51: 2630439 | E51: Grayson County | F51: 2022 | G51: 20942203 | M51: 13 | N51: FED | O51: 2022 | P51: 587996.26 | S51: 38 | T51: 2022 | U51: 276 | V51: 272 | Y51: 2022 | Z51: 11 | AA51: 84027 | AB51: 207541.87 | AE51: 38 | AF51: 0
A52: 39 | B52: 12644282 | C52: 19583708 | D52: 4857554 | E52: Greene County | F52: 2022 | G52: 37085544 | M52: 13 | N52: STATE | O52: 2022 | P52: 859332.93 | S52: 39 | T52: 2022 | U52: 385 | V52: 447 | Y52: 2022 | Z52: 11 | AA52: 84173 | AB52: 8739 | AE52: 39 | AF52: 10
A53: 40 | B53: 8554617 | C53: -1054350 | D53: 0 | E53: Greensville County | F53: 2022 | G53: 7500267 | M53: 14 | N53: CC | O53: 2022 | P53: 3413136.8 | S53: 40 | T53: 2022 | U53: 306 | V53: 335 | Y53: 2022 | Z53: 12 | AA53: 84027 | AB53: 0 | AE53: 40 | AF53: 3
A54: 41 | B54: 13874806 | C54: 39337876 | D54: 7211965 | E54: Halifax County | F54: 2022 | G54: 60424647 | M54: 14 | N54: FED | O54: 2022 | P54: 627937.61 | S54: 41 | T54: 2022 | U54: 784 | V54: 959 | Y54: 2022 | Z54: 12 | AA54: 84027 | AB54: 0 | AE54: 41 | AF54: 28
A55: 42 | B55: 102996263 | C55: 84204519 | D55: 25107461 | E55: Hanover County | F55: 2022 | G55: 212308243 | M55: 14 | N55: STATE | O55: 2022 | P55: 993116 | S55: 42 | T55: 2022 | U55: 2571 | V55: 2434 | Y55: 2022 | Z55: 12 | AA55: 84027 | AB55: 1238617.67 | AE55: 42 | AF55: 55
A56: 43 | B56: 307138140 | C56: 220770325 | D56: 73858150 | E56: Henrico County | F56: 2022 | G56: 601766615 | M56: 15 | N56: CC | O56: 2022 | P56: 2297510.3 | S56: 43 | T56: 2022 | U56: 6817 | V56: 6563 | Y56: 2022 | Z56: 12 | AA56: 84027 | AB56: 0 | AE56: 43 | AF56: 93
A57: 44 | B57: 12739374 | C57: 59623317 | D57: 10298072 | E57: Henry County | F57: 2022 | G57: 82660763 | M57: 15 | N57: FED | O57: 2022 | P57: 693960.99 | S57: 44 | T57: 2022 | U57: 1085 | V57: 1060 | Y57: 2022 | Z57: 12 | AA57: 84027 | AB57: 0 | AE57: 44 | AF57: 4
A58: 45 | B58: 1229809 | C58: 2891593 | D58: 286145 | E58: Highland County | F58: 2022 | G58: 4407547 | M58: 15 | N58: STATE | O58: 2022 | P58: 675095 | S58: 45 | T58: 2022 | U58: 30 | V58: 39 | Y58: 2022 | Z58: 12 | AA58: 84027 | AB58: 0 | AE58: 45 | AF58: 0
A59: 46 | B59: 28307369 | C59: 33788350 | D59: 8190762 | E59: Isle of Wight County | F59: 2022 | G59: 70286481 | M59: 16 | N59: CC | O59: 2022 | P59: 7536440.53 | S59: 46 | T59: 2022 | U59: 840 | V59: 699 | Y59: 2022 | Z59: 12 | AA59: 84027 | AB59: 0 | AE59: 46 | AF59: 1
A60: 48 | B60: 19764594 | C60: 27156255 | D60: 6482852 | E60: King George County | F60: 2022 | G60: 53403701 | M60: 16 | N60: FED | O60: 2022 | P60: 2269155.48 | S60: 47 | T60: 2022 | U60: 0 | V60: 0 | Y60: 2022 | Z60: 12 | AA60: 84027 | AB60: 0 | AE60: 48 | AF60: 14
A61: 49 | B61: 3183146 | C61: 7652809 | D61: 1207082 | E61: King and Queen County | F61: 2022 | G61: 12043037 | M61: 16 | N61: STATE | O61: 2022 | P61: 4311102.88 | S61: 48 | T61: 2022 | U61: 686 | V61: 550 | Y61: 2022 | Z61: 12 | AA61: 84027 | AB61: 0 | AE61: 49 | AF61: 4
A62: 50 | B62: 8561909 | C62: 14738590 | D62: 3007870 | E62: King William County | F62: 2022 | G62: 26308369 | M62: 17 | N62: CC | O62: 2022 | P62: 5394227.44 | S62: 49 | T62: 2022 | U62: 159 | V62: 131 | Y62: 2022 | Z62: 12 | AA62: 84027 | AB62: 0 | AE62: 50 | AF62: 4
A63: 51 | B63: 10103401 | C63: 3845778 | D63: 1706835 | E63: Lancaster County | F63: 2022 | G63: 15656014 | M63: 17 | N63: FED | O63: 2022 | P63: 1340840.58 | S63: 50 | T63: 2022 | U63: 298 | V63: 298 | Y63: 2022 | Z63: 12 | AA63: 84027 | AB63: 0 | AE63: 51 | AF63: 5
A64: 52 | B64: 3655970 | C64: 28972362 | D64: 4540388 | E64: Lee County | F64: 2022 | G64: 37168720 | M64: 17 | N64: STATE | O64: 2022 | P64: 1831482.38 | S64: 51 | T64: 2022 | U64: 165 | V64: 169 | Y64: 2022 | Z64: 12 | AA64: 84027 | AB64: 0 | AE64: 52 | AF64: 0
A65: 53 | B65: 1130621127 | C65: 335239009 | D65: 118779688 | E65: Loudoun County | F65: 2022 | G65: 1584639824 | M65: 18 | N65: CC | O65: 2022 | P65: 2107588.98 | S65: 52 | T65: 2022 | U65: 542 | V65: 540 | Y65: 2022 | Z65: 12 | AA65: 84027 | AB65: 0 | AE65: 53 | AF65: 64
A66: 54 | B66: 41200170 | C66: 26359024 | D66: 7267078 | E66: Louisa County | F66: 2022 | G66: 74826272 | M66: 18 | N66: FED | O66: 2022 | P66: 1064190.78 | S66: 53 | T66: 2022 | U66: 9445 | V66: 8949 | Y66: 2022 | Z66: 12 | AA66: 84027 | AB66: 0 | AE66: 54 | AF66: 16
A67: 55 | B67: 3922614 | C67: 14811578 | D67: 2251756 | E67: Lunenburg County | F67: 2022 | G67: 20985948 | M67: 18 | N67: STATE | O67: 2022 | P67: 1677864.21 | S67: 54 | T67: 2022 | U67: 862 | V67: 871 | Y67: 2022 | Z67: 12 | AA67: 84027 | AB67: 0 | AE67: 55 | AF67: 12
A68: 56 | B68: 9142756 | C68: 10033140 | D68: 2670910 | E68: Madison County | F68: 2022 | G68: 21846806 | M68: 19 | N68: CC | O68: 2022 | P68: 775800.11 | S68: 55 | T68: 2022 | U68: 234 | V68: 175 | Y68: 2022 | Z68: 12 | AA68: 84027 | AB68: 0 | AE68: 56 | AF68: 5
A69: 57 | B69: 9360745 | C69: 5562780 | D69: 1370408 | E69: Mathews County | F69: 2022 | G69: 16293933 | M69: 19 | N69: FED | O69: 2022 | P69: 187934.7 | S69: 56 | T69: 2022 | U69: 174 | V69: 202 | Y69: 2022 | Z69: 12 | AA69: 84173 | AB69: 0 | AE69: 57 | AF69: 3
A70: 58 | B70: 19552361 | C70: 26388269 | D70: 5629336 | E70: Mecklenburg County | F70: 2022 | G70: 51569966 | M70: 19 | N70: STATE | O70: 2022 | P70: 338935.3 | S70: 57 | T70: 2022 | U70: 168 | V70: 163 | Y70: 2022 | Z70: 12 | AA70: 84173 | AB70: 0 | AE70: 58 | AF70: 19
A71: 59 | B71: 9106920 | C71: 6492906 | D71: 1673550 | E71: Middlesex County | F71: 2022 | G71: 17273376 | M71: 20 | N71: CC | O71: 2022 | P71: 1073663.17 | S71: 58 | T71: 2022 | U71: 467 | V71: 522 | Y71: 2022 | Z71: 12 | AA71: 84173 | AB71: 27655.3 | AE71: 59 | AF71: 7
A72: 60 | B72: 53589848 | C72: 52873432 | D72: 15668792 | E72: Montgomery County | F72: 2022 | G72: 122132072 | M72: 20 | N72: FED | O72: 2022 | P72: 492635.58 | S72: 59 | T72: 2022 | U72: 210 | V72: 171 | Y72: 2022 | Z72: 12 | AA72: 84173 | AB72: 0 | AE72: 60 | AF72: 10
A73: 62 | B73: 16945146 | C73: 8081005 | D73: 2592793 | E73: Nelson County | F73: 2022 | G73: 27618944 | M73: 20 | N73: STATE | O73: 2022 | P73: 819793 | S73: 60 | T73: 2022 | U73: 1244 | V73: 960 | Y73: 2022 | Z73: 13 | AA73: 84027 | AB73: 517045.05 | AE73: 62 | AF73: 9
A74: 63 | B74: 18338783 | C74: 19422031 | D74: 4666475 | E74: New Kent County | F74: 2022 | G74: 42427289 | M74: 21 | N74: CC | O74: 2022 | P74: 72210794 | S74: 62 | T74: 2022 | U74: 270 | V74: 262 | Y74: 2022 | Z74: 13 | AA74: 84027 | AB74: 57928.21 | AE74: 63 | AF74: 13
A75: 65 | B75: 5554694 | C75: 10959561 | D75: 2234694 | E75: Northampton County | F75: 2022 | G75: 18748949 | M75: 21 | N75: FED | O75: 2022 | P75: 12855990.24 | S75: 63 | T75: 2022 | U75: 420 | V75: 445 | Y75: 2022 | Z75: 13 | AA75: 84173 | AB75: 13023 | AE75: 65 | AF75: 3
A76: 66 | B76: 13315592 | C76: 5400423 | D76: 1795631 | E76: Northumberland County | F76: 2022 | G76: 20511646 | M76: 21 | N76: STATE | O76: 2022 | P76: 22764248 | S76: 65 | T76: 2022 | U76: 208 | V76: 215 | Y76: 2022 | Z76: 14 | AA76: 84027 | AB76: 92501.78 | AE76: 66 | AF76: 2
A77: 67 | B77: 4061945 | C77: 15914644 | D77: 3011673 | E77: Nottoway County | F77: 2022 | G77: 22988262 | M77: 22 | N77: CC | O77: 2022 | P77: 2612069.71 | S77: 66 | T77: 2022 | U77: 155 | V77: 204 | Y77: 2022 | Z77: 14 | AA77: 84027 | AB77: 489841.54 | AE77: 67 | AF77: 4
A78: 68 | B78: 20524586 | C78: 30515903 | D78: 7224280 | E78: Orange County | F78: 2022 | G78: =SUM(B78:D78) -> 58264769 | M78: 22 | N78: FED | O78: 2022 | P78: 475239.62 | S78: 67 | T78: 2022 | U78: 249 | V78: 266 | Y78: 2022 | Z78: 14 | AA78: 84027 | AB78: 11505.4 | AE78: 68 | AF78: 0
A79: 69 | B79: 9170369 | C79: 23383025 | D79: 5877791 | E79: Page County | F79: 2022 | G79: 38431185 | M79: 22 | N79: STATE | O79: 2022 | P79: 555116.76 | S79: 68 | T79: 2022 | U79: 683 | V79: 537 | Y79: 2022 | Z79: 14 | AA79: 84173 | AB79: 428.07 | AE79: 69 | AF79: 13
A80: 70 | B80: 7240561 | C80: 19536300 | D80: 3305092 | E80: Patrick County | F80: 2022 | G80: 30081953 | M80: 23 | N80: CC | O80: 2022 | P80: 407959.85 | S80: 69 | T80: 2022 | U80: 392 | V80: 415 | Y80: 2022 | Z80: 14 | AA80: 84173 | AB80: 33661.22 | AE80: 70 | AF80: 0
A81: 71 | B81: 22597908 | C81: 62316195 | D81: 12034380 | E81: Pittsylvania County | F81: 2022 | G81: 96948483 | M81: 23 | N81: FED | O81: 2022 | P81: 231035.98 | S81: 70 | T81: 2022 | U81: 452 | V81: 426 | Y81: 2022 | Z81: 15 | AA81: 84027 | AB81: 104777.52 | AE81: 71 | AF81: 58
A82: 72 | B82: 25523023 | C82: 19040033 | D82: 5931427 | E82: Powhatan County | F82: 2022 | G82: 50494483 | M82: 23 | N82: STATE | O82: 2022 | P82: 521083.89 | S82: 71 | T82: 2022 | U82: 975 | V82: 1166 | Y82: 2022 | Z82: 15 | AA82: 84027 | AB82: 578296.71 | AE82: 72 | AF82: 30
A83: 73 | B83: 6263747 | C83: 14631126 | D83: 3689430 | E83: Prince Edward County | F83: 2022 | G83: 24584303 | M83: 24 | N83: CC | O83: 2022 | P83: 12486027 | S83: 72 | T83: 2022 | U83: 621 | V83: 573 | Y83: 2022 | Z83: 15 | AA83: 84173 | AB83: 10886.76 | AE83: 73 | AF83: 16
A84: 74 | B84: 16074461 | C84: 45622903 | D84: 8216034 | E84: Prince George County | F84: 2022 | G84: 69913398 | M84: 24 | N84: FED | O84: 2022 | P84: 1978481 | S84: 73 | T84: 2022 | U84: 246 | V84: 320 | Y84: 2022 | Z84: 16 | AA84: 84027 | AB84: 237779.35 | AE84: 74 | AF84: 13
A85: 75 | B85: 561721833 | C85: 606382513 | D85: 124631430 | E85: Prince William County | F85: 2022 | G85: 1292735776 | M85: 24 | N85: STATE | O85: 2022 | P85: 2880674 | S85: 74 | T85: 2022 | U85: 854 | V85: 834 | Y85: 2022 | Z85: 16 | AA85: 84027 | AB85: 1726017.45 | AE85: 75 | AF85: 33
A86: 77 | B86: 13872857 | C86: 30304018 | D86: 6104504 | E86: Pulaski County | F86: 2022 | G86: 50281379 | M86: 25 | N86: CC | O86: 2022 | P86: 1573826.92 | S86: 75 | T86: 2022 | U86: 12003 | V86: 10752 | Y86: 2022 | Z86: 16 | AA86: 84173 | AB86: 24601.39 | AE86: 77 | AF86: 21
A87: 78 | B87: 10017830 | C87: 2519838 | D87: 1228626 | E87: Rappahannock County | F87: 2022 | G87: 13766294 | M87: 25 | N87: FED | O87: 2022 | P87: 391814.86 | S87: 77 | T87: 2022 | U87: 571 | V87: 697 | Y87: 2022 | Z87: 16 | AA87: 84173 | AB87: 47139.04 | AE87: 78 | AF87: 2
A88: 79 | B88: 6010722 | C88: 9135074 | D88: 1646438 | E88: Richmond County | F88: 2022 | G88: 16792234 | M88: 25 | N88: STATE | O88: 2022 | P88: 562515 | S88: 78 | T88: 2022 | U88: 110 | V88: 108 | Y88: 2022 | Z88: 17 | AA88: 84027 | AB88: 220353.17 | AE88: 79 | AF88: 1
A89: 80 | B89: 80630319 | C89: 83273644 | D89: 19750975 | E89: Roanoke County | F89: 2022 | G89: 183654938 | M89: 26 | N89: CC | O89: 2022 | P89: 2297591.11 | S89: 79 | T89: 2022 | U89: 193 | V89: 174 | Y89: 2022 | Z89: 17 | AA89: 84027 | AB89: 870974.62 | AE89: 80 | AF89: 57
A90: 81 | B90: 14543236 | C90: 14951180 | D90: 4007043 | E90: Rockbridge County | F90: 2022 | G90: 33501459 | M90: 26 | N90: FED | O90: 2022 | P90: 329089.63 | S90: 80 | T90: 2022 | U90: 2338 | V90: 2276 | Y90: 2022 | Z90: 17 | AA90: 84027 | AB90: 12251.69 | AE90: 81 | AF90: 29
A91: 82 | B91: 66192838 | C91: 69981884 | D91: 18241303 | E91: Rockingham County | F91: 2022 | G91: 154416025 | M91: 26 | N91: STATE | O91: 2022 | P91: 943106 | S91: 81 | T91: 2022 | U91: 380 | V91: 384 | Y91: 2022 | Z91: 17 | AA91: 84027 | AB91: 8054.43 | AE91: 82 | AF91: 24
A92: 83 | B92: 6796236 | C92: 30263551 | D92: 5239722 | E92: Russell County | F92: 2022 | G92: 42299509 | M92: 27 | N92: CC | O92: 2022 | P92: 5041940.75 | S92: 82 | T92: 2022 | U92: 1325 | V92: 1147 | Y92: 2022 | Z92: 17 | AA92: 84173 | AB92: 17709.76 | AE92: 83 | AF92: 4
A93: 84 | B93: 7151218 | C93: 40478922 | D93: 4483903 | E93: Scott County | F93: 2022 | G93: 52114043 | M93: 27 | N93: FED | O93: 2022 | P93: 1092060.8 | S93: 83 | T93: 2022 | U93: 468 | V93: 620 | Y93: 2022 | Z93: 17 | AA93: 84173 | AB93: 20544 | AE93: 84 | AF93: 0
A94: 85 | B94: 32801477 | C94: 35654343 | D94: 8875964 | E94: Shenandoah County | F94: 2022 | G94: 77331784 | M94: 27 | N94: STATE | O94: 2022 | P94: 2478342.18 | S94: 84 | T94: 2022 | U94: 787 | V94: 628 | Y94: 2022 | Z94: 18 | AA94: 84027 | AB94: 30609.15 | AE94: 85 | AF94: 11
A95: 86 | B95: 11607410 | C95: 35935121 | D95: 6014495 | E95: Smyth County | F95: 2022 | G95: 53557026 | M95: 28 | N95: CC | O95: 2022 | P95: 1902923.66 | S95: 85 | T95: 2022 | U95: 899 | V95: 808 | Y95: 2022 | Z95: 18 | AA95: 84027 | AB95: 1034259.19 | AE95: 86 | AF95: 0
A96: 87 | B96: 10528083 | C96: 21792597 | D96: 3537942 | E96: Southampton County | F96: 2022 | G96: 35858622 | M96: 28 | N96: FED | O96: 2022 | P96: 467529.6 | S96: 86 | T96: 2022 | U96: 694 | V96: 668 | Y96: 2022 | Z96: 18 | AA96: 84173 | AB96: 9918.59 | AE96: 87 | AF96: 0
A97: 88 | B97: 118100325 | C97: 155100065 | D97: 35217775 | E97: Spotsylvania County | F97: 2022 | G97: 308418165 | M97: 28 | N97: STATE | O97: 2022 | P97: 552921 | S97: 87 | T97: 2022 | U97: 346 | V97: 337 | Y97: 2022 | Z97: 18 | AA97: 84173 | AB97: 28450.02 | AE97: 88 | AF97: 34
A98: 89 | B98: 147334380 | C98: 194473512 | D98: 41096177 | E98: Stafford County | F98: 2022 | G98: 382904069 | M98: 29 | N98: CC | O98: 2022 | P98: 553585453 | S98: 88 | T98: 2022 | U98: 3741 | V98: 2881 | Y98: 2022 | Z98: 19 | AA98: 84027 | AB98: 39011.48 | AE98: 89 | AF98: 49
A99: 90 | B99: 12376385 | C99: 3090106 | D99: 1108802 | E99: Surry County | F99: 2022 | G99: 16575293 | M99: 29 | N99: FED | O99: 2022 | P99: 61304912 | S99: 89 | T99: 2022 | U99: 4174 | V99: 2964 | Y99: 2022 | Z99: 19 | AA99: 84027 | AB99: 137742.86 | AE99: 90 | AF99: 0
A100: 91 | B100: 8511389 | C100: 9857982 | D100: 1704750 | E100: Sussex County | F100: 2022 | G100: 20074121 | M100: 29 | N100: STATE | O100: 2022 | P100: 61522183 | S100: 90 | T100: 2022 | U100: 138 | V100: 119 | Y100: 2022 | Z100: 19 | AA100: 84173 | AB100: -7561.2 | AE100: 91 | AF100: 20
A101: 92 | B101: 14192711 | C101: 42198741 | D101: 8180400 | E101: Tazewell County | F101: 2022 | G101: 64571852 | M101: 30 | N101: CC | O101: 2022 | P101: 22746889.74 | S101: 91 | T101: 2022 | U101: 127 | V101: 177 | Y101: 2022 | Z101: 19 | AA101: 84173 | AB101: 16190.61 | AE101: 92 | AF101: 0
A102: 93 | B102: 28606370 | C102: 29928780 | D102: 8537761 | E102: Warren County | F102: 2022 | G102: 67072911 | M102: 30 | N102: FED | O102: 2022 | P102: 2932129.63 | S102: 92 | T102: 2022 | U102: 956 | V102: 864 | Y102: 2022 | Z102: 20 | AA102: 84027 | AB102: 27436.83 | AE102: 93 | AF102: 17
A103: 94 | B103: 28314158 | C103: 45406902 | D103: 9888891 | E103: Washington County | F103: 2022 | G103: 83609951 | M103: 30 | N103: STATE | O103: 2022 | P103: 3447050.93 | S103: 93 | T103: 2022 | U103: 660 | V103: 719 | Y103: 2022 | Z103: 20 | AA103: 84027 | AB103: 375027.97 | AE103: 94 | AF103: 2
A104: 95 | B104: 8936133 | C104: 13212945 | D104: 2516271 | E104: Westmoreland County | F104: 2022 | G104: 24665349 | M104: 31 | N104: CC | O104: 2022 | P104: 1929901.52 | S104: 94 | T104: 2022 | U104: 1197 | V104: 1162 | Y104: 2022 | Z104: 20 | AA104: 84173 | AB104: 931.01 | AE104: 95 | AF104: 7
A105: 96 | B105: 15335356 | C105: 45046701 | D105: 7572798 | E105: Wise County | F105: 2022 | G105: 67954855 | M105: 31 | N105: FED | O105: 2022 | P105: 655855.69 | S105: 95 | T105: 2022 | U105: 233 | V105: 247 | Y105: 2022 | Z105: 20 | AA105: 84173 | AB105: 19194 | AE105: 96 | AF105: 0
A106: 97 | B106: 15901054 | C106: 26556525 | D106: 5718266 | E106: Wythe County | F106: 2022 | G106: 48175845 | M106: 31 | N106: STATE | O106: 2022 | P106: 911462.15 | S106: 96 | T106: 2022 | U106: 907 | V106: 857 | Y106: 2022 | Z106: 21 | AA106: 84027 | AB106: 442247.62 | AE106: 97 | AF106: 20
A107: 98 | B107: 70095947 | C107: 75182117 | D107: 17536017 | E107: York County | F107: 2022 | G107: 162814081 | M107: 32 | N107: CC | O107: 2022 | P107: 5377459.24 | S107: 97 | T107: 2022 | U107: 661 | V107: 488 | Y107: 2022 | Z107: 21 | AA107: 84027 | AB107: 11104123.91 | AE107: 98 | AF107: 17
A108: 101 | B108: 250943447 | C108: 40592530 | D108: 24671845 | E108: Alexandria City | F108: 2022 | G108: 316207822 | M108: 32 | N108: FED | O108: 2022 | P108: 1034761.22 | S108: 98 | T108: 2022 | U108: 1520 | V108: 1415 | Y108: 2022 | Z108: 21 | AA108: 84027 | AB108: 268160.1 | AE108: 101 | AF108: 73
A109: 102 | B109: 8687676 | C109: 16469252 | D109: 3559201 | E109: Bristol City | F109: 2022 | G109: 28716129 | M109: 32 | N109: STATE | O109: 2022 | P109: 1570525.58 | S109: 99 | T109: 2022 | U109: 0 | V109: 0 | Y109: 2022 | Z109: 21 | AA109: 84027 | AB109: 280354.97 | AE109: 102 | AF109: 3
A110: 103 | B110: 1822342 | C110: 9311431 | D110: 1232202 | E110: Buena Vista City | F110: 2022 | G110: =SUM(B110:D110) -> 12365975 | M110: 33 | N110: CC | O110: 2022 | P110: 10194734.69 | S110: 101 | T110: 2022 | U110: 1819 | V110: 1754 | Y110: 2022 | Z110: 21 | AA110: 84173 | AB110: 48972.37 | AE110: 103 | AF110: 8
A111: 104 | B111: 51998702 | C111: 17285554 | D111: 7245057 | E111: Charlottesville City | F111: 2022 | G111: 76529313 | M111: 33 | N111: FED | O111: 2022 | P111: 1793689.61 | S111: 102 | T111: 2022 | U111: 442 | V111: 351 | Y111: 2022 | Z111: 21 | AA111: 84173 | AB111: 158240.45 | AE111: 104 | AF111: 30
A112: 106 | B112: 21619030 | C112: 17465305 | D112: 3613811 | E112: Colonial Heights City | F112: 2022 | G112: 42698146 | M112: 33 | N112: STATE | O112: 2022 | P112: 2051022.47 | S112: 103 | T112: 2022 | U112: 175 | V112: 156 | Y112: 2022 | Z112: 22 | AA112: 84027 | AB112: 433237 | AE112: 106 | AF112: 3
A113: 108 | B113: 26835045 | C113: 48430110 | D113: 9382969 | E113: Danville City | F113: 2022 | G113: 84648124 | M113: 34 | N113: CC | O113: 2022 | P113: 13176607.38 | S113: 104 | T113: 2022 | U113: 600 | V113: 580 | Y113: 2022 | Z113: 22 | AA113: 84173 | AB113: 14379 | AE113: 107 | AF113: 19
A114: 109 | B114: 50270377 | C114: 6542220 | D114: 3661039 | E114: Falls Church City | F114: 2022 | G114: 60473636 | M114: 34 | N114: FED | O114: 2022 | P114: 3443243.36 | S114: 105 | T114: 2022 | U114: 0 | V114: 0 | Y114: 2022 | Z114: 23 | AA114: 84027 | AB114: 34913.83 | AE114: 108 | AF114: 16
A115: 110 | B115: 39337757 | C115: 17985037 | D115: 5453530 | E115: Fredericksburg City | F115: 2022 | G115: 62776324 | M115: 34 | N115: STATE | O115: 2022 | P115: 18926462.31 | S115: 106 | T115: 2022 | U115: 460 | V115: 457 | Y115: 2022 | Z115: 23 | AA115: 84027 | AB115: 172372.1 | AE115: 109 | AF115: 7
A116: 111 | B116: 4570137 | C116: 10525273 | D116: 1681553 | E116: Galax City | F116: 2022 | G116: 16776963 | M116: 35 | N116: CC | O116: 2022 | P116: 2243397.55 | S116: 107 | T116: 2022 | U116: 0 | V116: 215 | Y116: 2022 | Z116: 23 | AA116: 84173 | AB116: 9798 | AE116: 110 | AF116: 15
A117: 112 | B117: 81753970 | C117: 141834520 | D117: 28078683 | E117: Hampton City | F117: 2022 | G117: 251667173 | M117: 35 | N117: FED | O117: 2022 | P117: 610009.17 | S117: 108 | T117: 2022 | U117: 872 | V117: 901 | Y117: 2022 | Z117: 24 | AA117: 84027 | AB117: 331956.08 | AE117: 111 | AF117: 0
A118: 113 | B118: 28783123 | C118: 54151926 | D118: 8402008 | E118: Harrisonburg City | F118: 2022 | G118: 91337057 | M118: 35 | N118: STATE | O118: 2022 | P118: 1747560.49 | S118: 109 | T118: 2022 | U118: 356 | V118: 375 | Y118: 2022 | Z118: 24 | AA118: 84027 | AB118: 1931731.14 | AE118: 112 | AF118: 47
A119: 114 | B119: 11743839 | C119: 34150441 | D119: 5546184 | E119: Hopewell City | F119: 2022 | G119: 51440464 | M119: 36 | N119: CC | O119: 2022 | P119: 5249125.68 | S119: 110 | T119: 2022 | U119: 456 | V119: 360 | Y119: 2022 | Z119: 24 | AA119: 84027 | AB119: 8222.27 | AE119: 113 | AF119: 21
A120: 115 | B120: 39283979 | C120: 51419427 | D120: 14606008 | E120: Lynchburg City | F120: 2022 | G120: 105309414 | M120: 36 | N120: FED | O120: 2022 | P120: 1829777.09 | S120: 111 | T120: 2022 | U120: 215 | V120: 150 | Y120: 2022 | Z120: 24 | AA120: 84173 | AB120: 46750 | AE120: 114 | AF120: 34
A121: 116 | B121: 4328533 | C121: 17626372 | D121: 3233615 | E121: Martinsville City | F121: 2022 | G121: 25188520 | M121: 36 | N121: STATE | O121: 2022 | P121: 1622095.97 | S121: 112 | T121: 2022 | U121: 2683 | V121: 2690 | Y121: 2022 | Z121: 25 | AA121: 84027 | AB121: 1102.51 | AE121: 115 | AF121: 40
A122: 117 | B122: 109890740 | C122: 212627337 | D122: 39542620 | E122: Newport News City | F122: 2022 | G122: 362060697 | M122: 37 | N122: CC | O122: 2022 | P122: 4613723.76 | S122: 113 | T122: 2022 | U122: 684 | V122: 683 | Y122: 2022 | Z122: 25 | AA122: 84027 | AB122: 473179.41 | AE122: 116 | AF122: 0
A123: 118 | B123: 119863355 | C123: 196992307 | D123: 43808526 | E123: Norfolk City | F123: 2022 | G123: 360664188 | M123: 37 | N123: FED | O123: 2022 | P123: 738828.23 | S123: 114 | T123: 2022 | U123: 741 | V123: 623 | Y123: 2022 | Z123: 25 | AA123: 84027 | AB123: 7500 | AE123: 117 | AF123: 57
A124: 119 | B124: 2048089 | C124: 7363419 | D124: 890548 | E124: Norton City | F124: 2022 | G124: 10302056 | M124: 37 | N124: STATE | O124: 2022 | P124: 493033.83 | S124: 115 | T124: 2022 | U124: 1185 | V124: 1231 | Y124: 2022 | Z124: 25 | AA124: 84173 | AB124: 5739 | AE124: 118 | AF124: 15
A125: 120 | B125: 10924988 | C125: 39255638 | D125: 5719290 | E125: Petersburg City | F125: 2022 | G125: 55899916 | M125: 38 | N125: CC | O125: 2022 | P125: 1658715.35 | S125: 116 | T125: 2022 | U125: 232 | V125: 213 | Y125: 2022 | Z125: 25 | AA125: 84173 | AB125: 7793 | AE125: 119 | AF125: 1
A126: 121 | B126: 39569865 | C126: 108930006 | D126: 20491819 | E126: Portsmouth City | F126: 2022 | G126: 168991690 | M126: 38 | N126: FED | O126: 2022 | P126: 712767.02 | S126: 117 | T126: 2022 | U126: 3653 | V126: 3581 | Y126: 2022 | Z126: 26 | AA126: 84027 | AB126: 254269.52 | AE126: 120 | AF126: 21
A127: 122 | B127: 6983218 | C127: 25809246 | D127: 2236250 | E127: Radford City | F127: 2022 | G127: 35028714 | M127: 38 | N127: STATE | O127: 2022 | P127: 854783.74 | S127: 118 | T127: 2022 | U127: 4041 | V127: 4232 | Y127: 2022 | Z127: 26 | AA127: 84173 | AB127: 30954 | AE127: 121 | AF127: 14
A128: 123 | B128: 191889086 | C128: 121408842 | D128: 34342631 | E128: Richmond City | F128: 2022 | G128: 347640559 | M128: 39 | N128: CC | O128: 2022 | P128: 4214505.06 | S128: 119 | T128: 2022 | U128: 149 | V128: 124 | Y128: 2022 | Z128: 27 | AA128: 84027 | AB128: 186646.17 | AE128: 122 | AF128: 2
A129: 124 | B129: 80106285 | C129: 110004639 | D129: 20748217 | E129: Roanoke City | F129: 2022 | G129: 210859141 | M129: 39 | N129: FED | O129: 2022 | P129: 1124348.76 | S129: 120 | T129: 2022 | U129: 470 | V129: 472 | Y129: 2022 | Z129: 27 | AA129: 84027 | AB129: 1062425.15 | AE129: 123 | AF129: 122
A130: 126 | B130: 12969663 | C130: 17261525 | D130: 4615170 | E130: Staunton City | F130: 2022 | G130: 34846358 | M130: 39 | N130: STATE | O130: 2022 | P130: 1700502.1 | S130: 121 | T130: 2022 | U130: 1665 | V130: 1623 | Y130: 2022 | Z130: 27 | AA130: 84173 | AB130: 5927.2 | AE130: 124 | AF130: 109
A131: 127 | B131: 70896735 | C131: 89771010 | D131: 22841829 | E131: Suffolk City | F131: 2022 | G131: 183509574 | M131: 40 | N131: CC | O131: 2022 | P131: 1753311.88 | S131: 122 | T131: 2022 | U131: 395 | V131: 222 | Y131: 2022 | Z131: 27 | AA131: 84173 | AB131: 29635.65 | AE131: 126 | AF131: 0
A132: 128 | B132: 423701836 | C132: 362273409 | D132: 98633260 | E132: Virginia Beach City | F132: 2022 | G132: 884608505 | M132: 40 | N132: FED | O132: 2022 | P132: 879796 | S132: 123 | T132: 2022 | U132: 2818 | V132: 4226 | Y132: 2022 | Z132: 28 | AA132: 84027 | AB132: 446055.43 | AE132: 127 | AF132: 1
A133: 130 | B133: 19278819 | C133: 18195946 | D133: 4793746 | E133: Waynesboro City | F133: 2022 | G133: 42268511 | M133: 40 | N133: STATE | O133: 2022 | P133: 1110975.64 | S133: 124 | T133: 2022 | U133: 2240 | V133: 2109 | Y133: 2022 | Z133: 28 | AA133: 84173 | AB133: 2794.3 | AE133: 128 | AF133: 43
A134: 131 | B134: 91843694 | C134: 48450325 | D134: 17203750 | E134: Williamsburg-James City County | F134: 2022 | G134: 157497769 | M134: 41 | N134: CC | O134: 2022 | P134: 4449934.85 | S134: 126 | T134: 2022 | U134: 376 | V134: 405 | Y134: 2022 | Z134: 28 | AA134: 84173 | AB134: 48856.22 | AE134: 130 | AF134: 7
A135: 132 | B135: 32573399 | C135: 27601619 | D135: 5918188 | E135: Winchester City | F135: 2022 | G135: 66093206 | M135: 41 | N135: FED | O135: 2022 | P135: 2436797.37 | S135: 127 | T135: 2022 | U135: 1832 | V135: 1743 | Y135: 2022 | Z135: 29 | AA135: 84027 | AB135: 6824385.51 | AE135: 131 | AF135: 8
A136: 135 | B136: 4679190 | C136: 10086705 | D136: 1988897 | E136: Franklin City | F136: 2022 | G136: 16754792 | M136: 41 | N136: STATE | O136: 2022 | P136: 7168694 | S136: 128 | T136: 2022 | U136: 8606 | V136: 7926 | Y136: 2022 | Z136: 29 | AA136: 84027 | AB136: 23893365.54 | AE136: 132 | AF136: 6
A137: 136 | B137: 251147731 | C137: 252895854 | D137: 61242731 | E137: Chesapeake City | F137: 2022 | G137: 565286316 | M137: 42 | N137: CC | O137: 2022 | P137: 33255011.73 | S137: 130 | T137: 2022 | U137: 384 | V137: 321 | Y137: 2022 | Z137: 29 | AA137: 84027 | AB137: 5020632.38 | AE137: 135 | AF137: 1
A138: 137 | B138: 2407990 | C138: 4704935 | D138: 842693 | E138: Lexington City | F138: 2022 | G138: 7955618 | M138: 42 | N138: FED | O138: 2022 | P138: 3731721.81 | S138: 131 | T138: 2022 | U138: 1970 | V138: 1715 | Y138: 2022 | Z138: 29 | AA138: 84027 | AB138: 30526.43 | AE138: 136 | AF138: 32
A139: 139 | B139: 22571776 | C139: 22884367 | D139: 5032791 | E139: Salem City | F139: 2022 | G139: 50488934 | M139: 42 | N139: STATE | O139: 2022 | P139: 8038725.83 | S139: 132 | T139: 2022 | U139: 597 | V139: 646 | Y139: 2022 | Z139: 29 | AA139: 84027 | AB139: 15000 | AE139: 137 | AF139: 3
A140: 142 | B140: 10350968 | C140: 12303288 | D140: 3124928 | E140: Poquoson City | F140: 2022 | G140: 25779184 | M140: 43 | N140: CC | O140: 2022 | P140: 68462237.44 | S140: 133 | T140: 2022 | U140: 0 | V140: 0 | Y140: 2022 | Z140: 29 | AA140: 84027 | AB140: 15352.2 | AE140: 139 | AF140: 9
A141: 143 | B141: 47030582 | C141: 58403400 | D141: 10427436 | E141: Manassas City | F141: 2022 | G141: 115861418 | M141: 43 | N141: FED | O141: 2022 | P141: 9096562.12 | S141: 134 | T141: 2022 | U141: 0 | V141: 0 | Y141: 2022 | Z141: 29 | AA141: 84173 | AB141: 544614.5 | AE141: 142 | AF141: 2
A142: 144 | B142: 11471246 | C142: 31116003 | D142: 4545848 | E142: Manassas Park City | F142: 2022 | G142: 47133097 | M142: 43 | N142: STATE | O142: 2022 | P142: 20609301.07 | S142: 135 | T142: 2022 | U142: 121 | V142: 131 | Y142: 2022 | Z142: 29 | AA142: 84173 | AB142: 858581.38 | AE142: 143 | AF142: 16
A143: 202 | B143: 1933632 | C143: 6189639 | D143: 787669 | E143: Colonial Beach | F143: 2022 | G143: 8910940 | M143: 44 | N143: CC | O143: 2022 | P143: 10826833.84 | S143: 136 | T143: 2022 | U143: 6586 | V143: 6735 | Y143: 2022 | Z143: 30 | AA143: 84027 | AB143: 207166.33 | AE143: 144 | AF143: 16
A144: 207 | B144: 4516801 | C144: 7339980 | D144: 984285 | E144: West Point | F144: 2022 | G144: =SUM(#REF!) ->  | M144: 44 | N144: FED | O144: 2022 | P144: 2706519.89 | S144: 137 | T144: 2022 | U144: 57 | V144: 69 | Y144: 2022 | Z144: 30 | AA144: 84027 | AB144: 2275425.94 | AE144: 202 | AF144: 0
G145: =SUM(B144:D144) -> 12841066 | M145: 44 | N145: STATE | O145: 2022 | P145: 901774.83 | S145: 138 | T145: 2022 | U145: 0 | V145: 0 | Y145: 2022 | Z145: 30 | AA145: 84027 | AB145: 5980.9 | AE145: 207 | AF145: 2
M146: 45 | N146: CC | O146: 2022 | P146: 440831.38 | S146: 139 | T146: 2022 | U146: 640 | Y146: 2022 | Z146: 30 | AA146: 84173 | AB146: 62657 | AC146: =IF(OR(AA146=84391,AA146=84392),"ARRA","Base") -> Base
M147: 45 | N147: FED | O147: 2022 | P147: 69849.48 | S147: 140 | T147: 2022 | U147: 0 | Y147: 2022 | Z147: 31 | AA147: 84027 | AB147: 90555.25 | AC147: Base
M148: 45 | N148: STATE | O148: 2022 | P148: 34251 | S148: 142 | T148: 2022 | U148: 259 | Y148: 2022 | Z148: 31 | AA148: 84027 | AB148: 545570.14 | AC148: Base
M149: 46 | N149: CC | O149: 2022 | P149: 9579879.77 | S149: 143 | T149: 2022 | U149: 857 | Y149: 2022 | Z149: 31 | AA149: 84173 | AB149: 19730.3 | AC149: Base
M150: 46 | N150: FED | O150: 2022 | P150: 322822.19 | S150: 144 | T150: 2022 | U150: 494 | Y150: 2022 | Z150: 32 | AA150: 84027 | AB150: 153497.91 | AC150: Base
M151: 46 | N151: STATE | O151: 2022 | P151: 2660782.92 | S151: 202 | T151: 2022 | U151: 96 | Y151: 2022 | Z151: 32 | AA151: 84027 | AB151: 841125.38 | AC151: Base
M152: 47 | N152: CC | O152: 2022 | P152: 0 | S152: 207 | T152: 2022 | U152: 111 | Y152: 2022 | Z152: 32 | AA152: 84027 | AB152: 10000 | AC152: Base
M153: 47 | N153: FED | O153: 2022 | P153: 0 | Y153: 2022 | Z153: 32 | AA153: 84173 | AB153: 21814 | AC153: Base
M154: 47 | N154: STATE | O154: 2022 | P154: 0 | Y154: 2022 | Z154: 32 | AA154: 84173 | AB154: 7927.69 | AC154: Base
M155: 48 | N155: CC | O155: 2022 | P155: 8557593.83 | Y155: 2022 | Z155: 33 | AA155: 84027 | AB155: 153298.24 | AC155: Base
M156: 48 | N156: FED | O156: 2022 | P156: 860835.17 | Y156: 2022 | Z156: 33 | AA156: 84027 | AB156: 1755832.61 | AC156: Base
M157: 48 | N157: STATE | O157: 2022 | P157: 1168115 | Y157: 2022 | Z157: 33 | AA157: 84173 | AB157: 29674 | AC157: Base
M158: 49 | N158: CC | O158: 2022 | P158: 1110849.62 | Y158: 2022 | Z158: 33 | AA158: 84173 | AB158: 37857 | AC158: Base
M159: 49 | N159: FED | O159: 2022 | P159: 319600.2 | Y159: 2022 | Z159: 34 | AA159: 84027 | AB159: 3175366.56 | AC159: Base
M160: 49 | N160: STATE | O160: 2022 | P160: 567021 | Y160: 2022 | Z160: 34 | AA160: 84173 | AB160: 68577.5 | AC160: Base
M161: 50 | N161: CC | O161: 2022 | P161: 2412682.78 | Y161: 2022 | Z161: 35 | AA161: 84027 | AB161: 663773.55 | AC161: Base
M162: 50 | N162: FED | O162: 2022 | P162: 560367.95 | Y162: 2022 | Z162: 35 | AA162: 84173 | AB162: 15888 | AC162: Base
M163: 50 | N163: STATE | O163: 2022 | P163: 949690 | Y163: 2022 | Z163: 36 | AA163: 84027 | AB163: 127940.09 | AC163: Base
M164: 51 | N164: CC | O164: 2022 | P164: 1498535.21 | Y164: 2022 | Z164: 36 | AA164: 84027 | AB164: 1359502.37 | AC164: Base
M165: 51 | N165: FED | O165: 2022 | P165: 359265.75 | Y165: 2022 | Z165: 36 | AA165: 84027 | AB165: 7500 | AC165: Base
M166: 51 | N166: STATE | O166: 2022 | P166: 208756 | Y166: 2022 | Z166: 36 | AA166: 84173 | AB166: 36943 | AC166: Base
M167: 52 | N167: CC | O167: 2022 | P167: 2568481.29 | Y167: 2022 | Z167: 37 | AA167: 84027 | AB167: 60695.72 | AC167: Base
M168: 52 | N168: FED | O168: 2022 | P168: 1007182.84 | Y168: 2022 | Z168: 37 | AA168: 84027 | AB168: 646207.63 | AC168: Base
M169: 52 | N169: STATE | O169: 2022 | P169: 2242879.41 | Y169: 2022 | Z169: 37 | AA169: 84173 | AB169: 5009.08 | AC169: Base
M170: 53 | N170: CC | O170: 2022 | P170: 217468446.1 | Y170: 2022 | Z170: 37 | AA170: 84173 | AB170: 17108.55 | AC170: Base
M171: 53 | N171: FED | O171: 2022 | P171: 21736816.82 | Y171: 2022 | Z171: 38 | AA171: 84027 | AB171: 26877.88 | AC171: Base
M172: 53 | N172: STATE | O172: 2022 | P172: 23945860 | Y172: 2022 | Z172: 38 | AA172: 84027 | AB172: 503856.47 | AC172: Base
M173: 54 | N173: CC | O173: 2022 | P173: 6660421.87 | Y173: 2022 | Z173: 38 | AA173: 84173 | AB173: 25901.76 | AC173: Base
M174: 54 | N174: FED | O174: 2022 | P174: 1106996.13 | Y174: 2022 | Z174: 39 | AA174: 84027 | AB174: 155350.3 | AC174: Base
M175: 54 | N175: STATE | O175: 2022 | P175: 2909161 | Y175: 2022 | Z175: 39 | AA175: 84027 | AB175: 599588.8 | AC175: Base
M176: 55 | N176: CC | O176: 2022 | P176: 2579312.49 | Y176: 2022 | Z176: 39 | AA176: 84173 | AB176: 12438 | AC176: Base
M177: 55 | N177: FED | O177: 2022 | P177: 279143 | Y177: 2022 | Z177: 39 | AA177: 84173 | AB177: 23788.23 | AC177: Base
M178: 55 | N178: STATE | O178: 2022 | P178: 445362 | Y178: 2022 | Z178: 41 | AA178: 84027 | AB178: 1157199 | AC178: Base
M179: 56 | N179: CC | O179: 2022 | P179: 1762627.32 | Y179: 2022 | Z179: 41 | AA179: 84173 | AB179: 107233 | AC179: Base
M180: 56 | N180: FED | O180: 2022 | P180: 538635.11 | Y180: 2022 | Z180: 42 | AA180: 84027 | AB180: 319846 | AC180: Base
M181: 56 | N181: STATE | O181: 2022 | P181: 358485 | Y181: 2022 | Z181: 42 | AA181: 84027 | AB181: 3180107.81 | AC181: Base
M182: 57 | N182: CC | O182: 2022 | P182: 1579703.26 | Y182: 2022 | Z182: 42 | AA182: 84173 | AB182: 56517.99 | AC182: Base
M183: 57 | N183: FED | O183: 2022 | P183: 353711.92 | Y183: 2022 | Z183: 43 | AA183: 84027 | AB183: 1862008.89 | AC183: Base
M184: 57 | N184: STATE | O184: 2022 | P184: 422219 | Y184: 2022 | Z184: 43 | AA184: 84027 | AB184: 6295637.61 | AC184: Base
M185: 58 | N185: CC | O185: 2022 | P185: 5114191.99 | Y185: 2022 | Z185: 43 | AA185: 84027 | AB185: 35182.73 | AC185: Base
M186: 58 | N186: FED | O186: 2022 | P186: 1101588.76 | Y186: 2022 | Z186: 43 | AA186: 84027 | AB186: 953611.07 | AC186: Base
M187: 58 | N187: STATE | O187: 2022 | P187: 1333754.37 | Y187: 2022 | Z187: 43 | AA187: 84027 | AB187: 10400 | AC187: Base
M188: 59 | N188: CC | O188: 2022 | P188: 2155081.05 | Y188: 2022 | Z188: 43 | AA188: 84173 | AB188: 135018.82 | AC188: Base
M189: 59 | N189: FED | O189: 2022 | P189: 328843.22 | Y189: 2022 | Z189: 44 | AA189: 84027 | AB189: 310622.59 | AC189: Base
M190: 59 | N190: STATE | O190: 2022 | P190: 403695 | Y190: 2022 | Z190: 44 | AA190: 84027 | AB190: 2263934.68 | AC190: Base
M191: 60 | N191: CC | O191: 2022 | P191: 10088728.03 | Y191: 2022 | Z191: 44 | AA191: 84173 | AB191: 1581 | AC191: Base
M192: 60 | N192: FED | O192: 2022 | P192: 2735863.36 | Y192: 2022 | Z192: 44 | AA192: 84173 | AB192: 90576.39 | AC192: Base
M193: 60 | N193: STATE | O193: 2022 | P193: 3681012.9 | Y193: 2022 | Z193: 45 | AA193: 84027 | AB193: 11016.48 | AC193: Base
M194: 62 | N194: CC | O194: 2022 | P194: 3370819.07 | Y194: 2022 | Z194: 45 | AA194: 84027 | AB194: 56007 | AC194: Base
M195: 62 | N195: FED | O195: 2022 | P195: 513993.33 | Y195: 2022 | Z195: 45 | AA195: 84173 | AB195: 805 | AC195: Base
M196: 62 | N196: STATE | O196: 2022 | P196: 125119.69 | Y196: 2022 | Z196: 45 | AA196: 84173 | AB196: 2021 | AC196: Base
M197: 63 | N197: CC | O197: 2022 | P197: 4359224.23 | Y197: 2022 | Z197: 46 | AA197: 84027 | AB197: 1137996.23 | AC197: Base
M198: 63 | N198: FED | O198: 2022 | P198: 755807.81 | Y198: 2022 | Z198: 46 | AA198: 84173 | AB198: 17859.87 | AC198: Base
M199: 63 | N199: STATE | O199: 2022 | P199: 1128257.44 | Y199: 2022 | Z199: 48 | AA199: 84027 | AB199: 1550 | AC199: Base
M200: 65 | N200: CC | O200: 2022 | P200: 1138635.44 | Y200: 2022 | Z200: 48 | AA200: 84027 | AB200: 867480.77 | AC200: Base
M201: 65 | N201: FED | O201: 2022 | P201: 355076.43 | Y201: 2022 | Z201: 48 | AA201: 84173 | AB201: 18433.43 | AC201: Base
M202: 65 | N202: STATE | O202: 2022 | P202: 1110125.21 | Y202: 2022 | Z202: 49 | AA202: 84027 | AB202: 259568.98 | AC202: Base
M203: 66 | N203: CC | O203: 2022 | P203: 2653560.06 | Y203: 2022 | Z203: 49 | AA203: 84173 | AB203: 22618.23 | AC203: Base
... 313 more rows

Sheet EOY ADM (hidden)
C1: Division Level Funded End-of_Year ADM with Addition and Deduction for school year 2022-2023
A2: School Year | B2: Division Number | C2: Division Name | D2: Unadjusted ADM | E2: Pupils for whom you pay tuition in Excess of the Local Share of the Serving Division to Another School Division in Virginia | F2: Disabled Pupils ages 20 or 21 | G2: Pupils in Alternative Education Programs | H2: Nonpublic School Pupils | I2: Pupils in ISAEP | J2: Pupils in Home-Based Education Program | K2: Pupils for whom tuition to a private institution was paid with local funds | L2: Pupils for whom the state's share of tuition to a private day or private residential program was funded with Comprehensive Services Act (CSA) funds | M2: Interstate Compact Placement | N2: Contiguous Out-of-State Students: with same attendance privileges | O2: Contiguous Out-of-State Students: without same attendance privileges | P2: Students enrolled in a Virtual Program Delivered by an approved Multi-Division Online Provider | Q2: Students Served in a Local Center within a Public School Division | R2: Total Addition | S2: Postgraduate Pupils | T2: Pupils under age 5 | U2: Pupils age 20 and over (over age pupils) | V2: Pupils in approved Public Special Education Regional Program or State-Operated Program and Institutions | W2: Pupils for whom you receive tuition in Excess of the Local Share from Another School Division in Virginia | X2: Pupils for whom the state's share of tuition to a private day or private residential program was funded with Comprehensive Services Act (CSA) funds | Y2: Interstate Compact Placement | Z2: Tuition in Excess of Local Share Received from Contiguous Out-of-State Students: With same attendance privileges | AA2: Contiguous Out-of-State Students: without same attendance privileges | AB2: Non-Contiguous State or Territory Outside of the United States and Foreign Exchange Students Charged with Tuition in Excess of the Local Share | AC2: Students enrolled in a Virtual Program Delivered by an approved Multi-Division Online Provider who also meet one of the deduction criteria above. | AD2: Students enrolled in a Virtual Program by an approved Multi-Division Online Provider who are also enrolled full time in the responsible division. | AE2: Total Deduction | AF2: Funded End-of-Year ADM | AH2: Unadjusted ADM | AI2: Plus: Total Additions | AJ2: Less: Under Age 5 | AK2: Less: CSA Students | AL2: Less: Tuition Students | AM2: Table 15 EOY ADM no Pre-K | AN2: Unadjusted ADM | AO2: Pupils for whom you pay tuition to another school division in Virginia | AP2: Disabled Pupils ages 20 or 21 | AQ2: Pupils in Alternative Education Programs | AR2: Nonpublic School Pupils | AS2: Pupils in ISAEP | AT2: Pupils in Home-Based Education Program | AU2: Pupils for whom tuition to a private institution was paid with local funds | AV2: Pupils for whom the state's share of tuition to a private day or private residential program was funded with Comprehensive Services Act (CSA) funds | AW2: Interstate Compact Placement | AX2: Tuition Received from Contiguous Out-of-State Students: with same attendance privileges | AY2: Tuition Received from Contiguous Out-of-State Students: without same attendance privileges | AZ2: Total Addition | BA2: Postgraduate Pupils | BB2: Pupils under age 5 | BC2: Pupils age 20 and over (over age pupils) | BD2: Pupils in approved Public Special Education Regional Program or State-Operated Program and Institutions | BE2: Pupils for whom you receive tuition from another school division in Virginia | BF2: Pupils for whom the state's share of tuition to a private day or private residential program was funded with Comprehensive Services Act (CSA) funds | BG2: Interstate Compact Placement | BH2: Tuition Received from Contiguous Out-of-State Students: without same attendance privileges | BI2: Tuition from Non-Contiguous State or Territory Outside of the United States | BJ2: Total Deduction | BK2: Funded End-of-Year ADM | BL2: Table 15 EOY ADM
A3: 2022 | B3: 1 | C3: ACCOMACK CO PBLC SCHS | D3: 4596.97 | E3: 0 | F3: 0.25 | G3: 0 | H3: 0 | I3: 0 | J3: 0 | K3: 0 | L3: 0 | M3: 0 | N3: 0 | O3: 0 | P3: 0 | Q3: 0 | R3: 0.25 | S3: 12.01 | T3: 0.23 | U3: 0.12 | V3: 8 | W3: 0 | X3: 0 | Y3: 0 | Z3: 0 | AA3: 0 | AB3: 0 | AC3: 0 | AD3: 0 | AE3: 20.35 | AF3: 4576.87 | AH3: =D3 -> 4596.97 | AI3: =R3 -> 0.25 | AJ3: =-T3 -> -0.23 | AK3: =-X3 -> 0 | AL3: =-SUM(W3,Y3:AB3) -> 0 | AM3: =SUM(AH3:AL3) -> 4596.99 | AN3: 4812.62 | AO3: 0 | AP3: 0 | AQ3: 0 | AR3: 0 | AS3: 23.02 | AT3: 0 | AU3: 0 | AV3: 5.03 | AW3: 0 | AX3: 0 | AY3: 0 | AZ3: 28.06 | BA3: 4.83 | BB3: 0.01 | BC3: 0 | BD3: 0 | BE3: 0 | BF3: 5.03 | BG3: 0 | BH3: 0 | BI3: 0 | BJ3: 9.88 | BK3: 4830.8 | BL3: =AN3+AZ3 -> 4840.68
A4: 2022 | B4: 2 | C4: ALBEMARLE CO PBLC SCHS | D4: 13539.03 | E4: 0 | F4: 8.24 | G4: 0 | H4: 8.38 | I4: 13.77 | J4: 0 | K4: 0 | L4: 57.86 | M4: 0 | N4: 0 | O4: 0 | P4: 0 | Q4: 0 | R4: 88.25 | S4: 0 | T4: 1 | U4: 0 | V4: 103.94 | W4: 0 | X4: 57.86 | Y4: 0 | Z4: 0 | AA4: 0 | AB4: 0 | AC4: 0 | AD4: 0 | AE4: 162.8 | AF4: 13464.48 | AH4: =D4 -> 13539.03 | AI4: =R4 -> 88.25 | AJ4: =-T4 -> -1 | AK4: =-X4 -> -57.86 | AL4: =-SUM(W4,Y4:AB4) -> 0 | AM4: =SUM(AH4:AL4) -> 13568.42 | AN4: 12711.1 | AO4: 0 | AP4: 13.81 | AQ4: 0 | AR4: 8.04 | AS4: 6.45 | AT4: 0 | AU4: 0 | AV4: 39.01 | AW4: 0 | AX4: 0 | AY4: 0 | AZ4: 67.32 | BA4: 0 | BB4: 0 | BC4: 0.73 | BD4: 101.72 | BE4: 0 | BF4: 39.01 | BG4: 0 | BH4: 0 | BI4: 0 | BJ4: 141.46 | BK4: 12636.96 | BL4: =AN4+AZ4 -> 12778.42
A5: 2022 | B5: 3 | C5: ALLEGHANY HIGHLANDS PBLC SCHS | D5: 2702.06 | E5: 0 | F5: 1 | G5: 0 | H5: 0.5 | I5: 16.11 | J5: 0 | K5: 0 | L5: 46.97 | M5: 0 | N5: 0 | O5: 0 | P5: 0 | Q5: 0 | R5: 64.58 | S5: 0 | T5: 20.86 | U5: 0.47 | V5: 10.93 | W5: 0 | X5: 46.97 | Y5: 0 | Z5: 0 | AA5: 0 | AB5: 0 | AC5: 0 | AD5: 0 | AE5: 79.23 | AF5: 2687.41 | AH5: 2702.06 | AI5: 64.58 | AJ5: -20.86 | AK5: -46.97 | AL5: 0 | AM5: 2698.81 | AN5: 2761.42 | AO5: 0 | AP5: 3 | AQ5: 0 | AR5: 0 | AS5: 1.43 | AT5: 0 | AU5: 0 | AV5: 25.5 | AW5: 0 | AX5: 0 | AY5: 0 | AZ5: 29.93 | BA5: 0 | BB5: 0 | BC5: 0 | BD5: 0 | BE5: 0 | BF5: 25.5 | BG5: 0 | BH5: 0 | BI5: 0 | BJ5: 25.5 | BK5: 2765.85 | BL5: 2791.35
A6: 2022 | B6: 4 | C6: AMELIA CO PBLC SCHS | D6: 1579.55 | E6: 0 | F6: 0 | G6: 0 | H6: 0 | I6: 0 | J6: 0.67 | K6: 0 | L6: 5 | M6: 0 | N6: 0 | O6: 0 | P6: 0 | Q6: 0 | R6: 5.67 | S6: 0 | T6: 0 | U6: 0 | V6: 2 | W6: 0 | X6: 5 | Y6: 0 | Z6: 0 | AA6: 0 | AB6: 0 | AC6: 0 | AD6: 0 | AE6: 7 | AF6: 1578.22 | AH6: 1579.55 | AI6: 5.67 | AJ6: 0 | AK6: -5 | AL6: 0 | AM6: 1580.22 | AN6: 1792.27 | AO6: 0 | AP6: 0 | AQ6: 0 | AR6: 0 | AS6: 0 | AT6: 0 | AU6: 0 | AV6: 0 | AW6: 0 | AX6: 0 | AY6: 0 | AZ6: 0 | BA6: 0 | BB6: 0 | BC6: 0 | BD6: 0 | BE6: 0 | BF6: 0 | BG6: 0 | BH6: 0 | BI6: 0 | BJ6: 0 | BK6: 1792.27 | BL6: 1792.27
A7: 2022 | B7: 5 | C7: AMHERST CO PBLC SCHS | D7: 3783.69 | E7: 0 | F7: 0 | G7: 3.68 | H7: 0 | I7: 0 | J7: 0 | K7: 1.99 | L7: 20.42 | M7: 0 | N7: 0 | O7: 0 | P7: 0 | Q7: 7 | R7: 33.09 | S7: 5.98 | T7: 0 | U7: 0 | V7: 29.42 | W7: 0 | X7: 20.42 | Y7: 0 | Z7: 0 | AA7: 0 | AB7: 0 | AC7: 0 | AD7: 0 | AE7: 55.82 | AF7: 3760.96 | AH7: 3783.69 | AI7: 33.09 | AJ7: 0 | AK7: -20.42 | AL7: 0 | AM7: 3796.36 | AN7: 4430.5 | AO7: 0 | AP7: 3.27 | AQ7: 0 | AR7: 0.75 | AS7: 22.4 | AT7: 0 | AU7: 4.69 | AV7: 12.48 | AW7: 0 | AX7: 0 | AY7: 0 | AZ7: 43.58 | BA7: 1.9 | BB7: 1.06 | BC7: 0 | BD7: 27.8 | BE7: 0 | BF7: 12.48 | BG7: 0 | BH7: 0 | BI7: 0 | BJ7: 43.23 | BK7: 4430.85 | BL7: 4474.08
A8: 2022 | B8: 6 | C8: APPOMATTOX CO PBLC SCHS | D8: 2239.81 | E8: 0 | F8: 1 | G8: 3.94 | H8: 0 | I8: 12.23 | J8: 7.68 | K8: 0 | L8: 19.64 | M8: 0 | N8: 0 | O8: 0 | P8: 0 | Q8: 2 | R8: 46.5 | S8: 0 | T8: 0 | U8: 0 | V8: 5.82 | W8: 0 | X8: 19.64 | Y8: 0 | Z8: 0 | AA8: 0 | AB8: 0 | AC8: 0 | AD8: 0 | AE8: 25.46 | AF8: 2260.84 | AH8: 2239.81 | AI8: 46.5 | AJ8: 0 | AK8: -19.64 | AL8: 0 | AM8: 2266.67 | AN8: 2190.22 | AO8: 0 | AP8: 2.98 | AQ8: 0 | AR8: 0 | AS8: 13.95 | AT8: 0 | AU8: 0 | AV8: 20.55 | AW8: 0 | AX8: 0 | AY8: 0 | AZ8: 37.47 | BA8: 0 | BB8: 2 | BC8: 0 | BD8: 10.15 | BE8: 0 | BF8: 20.55 | BG8: 0 | BH8: 0 | BI8: 0 | BJ8: 32.7 | BK8: 2195 | BL8: 2227.69
A9: 2022 | B9: 7 | C9: ARLINGTON CO PBLC SCHS | D9: 26535.48 | E9: 93.5 | F9: 41.69 | G9: 0 | H9: 0 | I9: 7.1 | J9: 3.84 | K9: 0 | L9: 46.58 | M9: 0 | N9: 0 | O9: 0 | P9: 0 | Q9: 0 | R9: 192.72 | S9: 0 | T9: 0 | U9: 102.33 | V9: 108.65 | W9: 0 | X9: 46.58 | Y9: 0 | Z9: 0 | AA9: 0 | AB9: 0 | AC9: 0 | AD9: 0 | AE9: 257.56 | AF9: 26470.64 | AH9: 26535.48 | AI9: 192.72 | AJ9: 0 | AK9: -46.58 | AL9: 0 | AM9: 26681.62 | AN9: 19161.64 | AO9: 75 | AP9: 31.38 | AQ9: 0 | AR9: 1.08 | AS9: 2.78 | AT9: 0 | AU9: 0 | AV9: 53.11 | AW9: 0 | AX9: 0 | AY9: 0 | AZ9: 163.35 | BA9: 0 | BB9: 0 | BC9: 0 | BD9: 0 | BE9: 0 | BF9: 53.11 | BG9: 0 | BH9: 0 | BI9: 0 | BJ9: 53.11 | BK9: 19271.89 | BL9: 19324.99
A10: 2022 | B10: 8 | C10: AUGUSTA CO PBLC SCHS | D10: 9647.37 | E10: 0 | F10: 8 | G10: 18.69 | H10: 2.71 | I10: 9.24 | J10: 2.25 | K10: 0 | L10: 62.68 | M10: 0 | N10: 0 | O10: 0 | P10: 0 | Q10: 0 | R10: 103.57 | S10: 0 | T10: 0 | U10: 0 | V10: 62.2 | W10: 0 | X10: 62.68 | Y10: 0 | Z10: 0 | AA10: 0 | AB10: 0 | AC10: 0 | AD10: 0 | AE10: 124.88 | AF10: 9626.05 | AH10: 9647.37 | AI10: 103.57 | AJ10: 0 | AK10: -62.68 | AL10: 0 | AM10: 9688.26 | AN10: 10483.4 | AO10: 0 | AP10: 6.12 | AQ10: 17.91 | AR10: 0 | AS10: 33.46 | AT10: 1.97 | AU10: 0 | AV10: 30.36 | AW10: 0 | AX10: 0 | AY10: 0 | AZ10: 89.82 | BA10: 0 | BB10: 0 | BC10: 0 | BD10: 38.03 | BE10: 0 | BF10: 30.36 | BG10: 0 | BH10: 0 | BI10: 0 | BJ10: 68.4 | BK10: 10504.82 | BL10: 10573.22
A11: 2022 | B11: 9 | C11: BATH CO PBLC SCHS | D11: 477.53 | E11: 0 | F11: 0 | G11: 0 | H11: 0 | I11: 0 | J11: 0 | K11: 0 | L11: 3 | M11: 0 | N11: 0 | O11: 0 | P11: 0 | Q11: 0 | R11: 3 | S11: 0 | T11: 0 | U11: 0 | V11: 0 | W11: 0 | X11: 3 | Y11: 0 | Z11: 0 | AA11: 0 | AB11: 0 | AC11: 0 | AD11: 0 | AE11: 3 | AF11: 477.53 | AH11: 477.53 | AI11: 3 | AJ11: 0 | AK11: -3 | AL11: 0 | AM11: 477.53 | AN11: 663.38 | AO11: 0 | AP11: 0.27 | AQ11: 0 | AR11: 0 | AS11: 4.99 | AT11: 0 | AU11: 1.32 | AV11: 0 | AW11: 0 | AX11: 0 | AY11: 0 | AZ11: 6.58 | BA11: 0 | BB11: 0 | BC11: 0 | BD11: 0 | BE11: 0 | BF11: 0 | BG11: 0 | BH11: 0 | BI11: 0 | BJ11: 0 | BK11: 669.96 | BL11: 669.96
A12: 2022 | B12: 10 | C12: BEDFORD CO PBLC SCHS | D12: 8779.7 | E12: 0 | F12: 6.48 | G12: 0 | H12: 0.13 | I12: 7.67 | J12: 7.5 | K12: 0 | L12: 41.31 | M12: 0 | N12: 0 | O12: 0 | P12: 0 | Q12: 0 | R12: 63.09 | S12: 0 | T12: 1 | U12: 0 | V12: 21.32 | W12: 0 | X12: 41.31 | Y12: 0 | Z12: 0 | AA12: 0 | AB12: 0 | AC12: 0 | AD12: 0 | AE12: 63.63 | AF12: 8779.17 | AH12: 8779.7 | AI12: 63.09 | AJ12: -1 | AK12: -41.31 | AL12: 0 | AM12: 8800.48 | AN12: 9701.38 | AO12: 0 | AP12: 6 | AQ12: 0 | AR12: 2.21 | AS12: 17.6 | AT12: 0 | AU12: 7.43 | AV12: 12.5 | AW12: 0 | AX12: 0 | AY12: 0 | AZ12: 45.74 | BA12: 0 | BB12: 2.1 | BC12: 0.02 | BD12: 18 | BE12: 0 | BF12: 12.5 | BG12: 0 | BH12: 0 | BI12: 0 | BJ12: 32.62 | BK12: 9714.5 | BL12: 9747.12
A13: 2022 | B13: 11 | C13: BLAND CO PBLC SCHS | D13: 780.49 | E13: 0 | F13: 0 | G13: 0 | H13: 0 | I13: 0 | J13: 0 | K13: 0 | L13: 0 | M13: 0 | N13: 0 | O13: 0 | P13: 0 | Q13: 0 | R13: 0 | S13: 0 | T13: 0 | U13: 0 | V13: 4.93 | W13: 0 | X13: 0 | Y13: 0 | Z13: 0 | AA13: 0 | AB13: 0 | AC13: 0 | AD13: 0 | AE13: 4.93 | AF13: 775.55 | AH13: 780.49 | AI13: 0 | AJ13: 0 | AK13: 0 | AL13: 0 | AM13: 780.49 | AN13: 923.61 | AO13: 0 | AP13: 0 | AQ13: 0 | AR13: 0 | AS13: 0.24 | AT13: 0 | AU13: 0 | AV13: 0 | AW13: 0 | AX13: 0 | AY13: 0 | AZ13: 0.24 | BA13: 0 | BB13: 0 | BC13: 0 | BD13: 0 | BE13: 0 | BF13: 0 | BG13: 0 | BH13: 0 | BI13: 0 | BJ13: 0 | BK13: 923.85 | BL13: 923.85
A14: 2022 | B14: 12 | C14: BOTETOURT CO PBLC SCHS | D14: 4336.17 | E14: 0 | F14: 5.71 | G14: 0 | H14: 0 | I14: 1.97 | J14: 3.16 | K14: 0 | L14: 17.93 | M14: 0 | N14: 0 | O14: 0 | P14: 0 | Q14: 0 | R14: 28.76 | S14: 0 | T14: 2 | U14: 0 | V14: 10 | W14: 0 | X14: 17.93 | Y14: 0 | Z14: 0 | AA14: 0 | AB14: 0 | AC14: 0 | AD14: 0 | AE14: 29.93 | AF14: 4335 | AH14: 4336.17 | AI14: 28.76 | AJ14: -2 | AK14: -17.93 | AL14: 0 | AM14: 4345 | AN14: 4966.84 | AO14: 0 | AP14: 2 | AQ14: 0 | AR14: 0 | AS14: 5.46 | AT14: 0 | AU14: 0 | AV14: 17.48 | AW14: 0 | AX14: 0 | AY14: 0 | AZ14: 24.94 | BA14: 0 | BB14: 0 | BC14: 0 | BD14: 8 | BE14: 0 | BF14: 17.48 | BG14: 0 | BH14: 0 | BI14: 0 | BJ14: 25.48 | BK14: 4966.31 | BL14: 4991.78
A15: 2022 | B15: 13 | C15: BRUNSWICK CO PBLC SCHS | D15: 1346.16 | E15: 0 | F15: 0.75 | G15: 0 | H15: 0 | I15: 2.45 | J15: 1.53 | K15: 0 | L15: 10.35 | M15: 0 | N15: 0 | O15: 0 | P15: 0 | Q15: 0 | R15: 15.08 | S15: 0 | T15: 0 | U15: 0 | V15: 0 | W15: 0 | X15: 10.35 | Y15: 0 | Z15: 0 | AA15: 0 | AB15: 0 | AC15: 0 | AD15: 0 | AE15: 10.35 | AF15: 1350.89 | AH15: 1346.16 | AI15: 15.08 | AJ15: 0 | AK15: -10.35 | AL15: 0 | AM15: 1350.89 | AN15: 2160.5 | AO15: 0 | AP15: 0 | AQ15: 0 | AR15: 0 | AS15: 0 | AT15: 0 | AU15: 0 | AV15: 0 | AW15: 0 | AX15: 0 | AY15: 0 | AZ15: 0 | BA15: 0 | BB15: 0.12 | BC15: 0.59 | BD15: 0 | BE15: 0 | BF15: 0 | BG15: 0 | BH15: 0 | BI15: 0 | BJ15: 0.72 | BK15: 2159.79 | BL15: 2160.5
A16: 2022 | B16: 14 | C16: BUCHANAN CO PBLC SCHS | D16: 2313.5 | E16: 0 | F16: 1 | G16: 0 | H16: 0 | I16: 8.3 | J16: 0 | K16: 0 | L16: 0.88 | M16: 0 | N16: 0 | O16: 0 | P16: 0 | Q16: 0 | R16: 10.18 | S16: 0 | T16: 0 | U16: 0 | V16: 5 | W16: 0 | X16: 0.88 | Y16: 0 | Z16: 0 | AA16: 0 | AB16: 0 | AC16: 0 | AD16: 0 | AE16: 5.88 | AF16: 2317.81 | AH16: 2313.5 | AI16: 10.18 | AJ16: 0 | AK16: -0.88 | AL16: 0 | AM16: 2322.8 | AN16: 3237.57 | AO16: 0 | AP16: 2 | AQ16: 0 | AR16: 0 | AS16: 10.56 | AT16: 0 | AU16: 0 | AV16: 6.72 | AW16: 0 | AX16: 0 | AY16: 0 | AZ16: 19.27 | BA16: 0 | BB16: 0 | BC16: 0 | BD16: 0 | BE16: 0 | BF16: 6.72 | BG16: 0 | BH16: 0 | BI16: 0 | BJ16: 6.72 | BK16: 3250.13 | BL16: 3256.84
A17: 2022 | B17: 15 | C17: BUCKINGHAM CO PBLC SCHS | D17: 1851.89 | E17: 0 | F17: 1 | G17: 0 | H17: 0 | I17: 0.49 | J17: 1.99 | K17: 0 | L17: 28.32 | M17: 0 | N17: 0 | O17: 0 | P17: 0 | Q17: 0 | R17: 31.8 | S17: 0 | T17: 1 | U17: 0 | V17: 9.85 | W17: 0 | X17: 28.32 | Y17: 0 | Z17: 0 | AA17: 0 | AB17: 0 | AC17: 0 | AD17: 0 | AE17: 39.17 | AF17: 1844.52 | AH17: 1851.89 | AI17: 31.8 | AJ17: -1 | AK17: -28.32 | AL17: 0 | AM17: 1854.37 | AN17: 1941.12 | AO17: 0 | AP17: 0.72 | AQ17: 0 | AR17: 0 | AS17: 6.6 | AT17: 0 | AU17: 0 | AV17: 17.07 | AW17: 0 | AX17: 0 | AY17: 0 | AZ17: 24.4 | BA17: 0 | BB17: 0 | BC17: 0 | BD17: 0 | BE17: 0 | BF17: 17.07 | BG17: 0 | BH17: 0 | BI17: 0 | BJ17: 17.07 | BK17: 1948.44 | BL17: 1965.52
A18: 2022 | B18: 16 | C18: CAMPBELL CO PBLC SCHS | D18: 7465.14 | E18: 0 | F18: 4 | G18: 0 | H18: 0 | I18: 9.55 | J18: 0 | K18: 0 | L18: 60.73 | M18: 0 | N18: 0 | O18: 0 | P18: 0 | Q18: 0 | R18: 74.29 | S18: 0 | T18: 1 | U18: 0 | V18: 50.81 | W18: 0 | X18: 60.73 | Y18: 0 | Z18: 0 | AA18: 0 | AB18: 0 | AC18: 0 | AD18: 0 | AE18: 112.54 | AF18: 7426.88 | AH18: 7465.14 | AI18: 74.29 | AJ18: -1 | AK18: -60.73 | AL18: 0 | AM18: 7477.7 | AN18: 8358.91 | AO18: 0 | AP18: 11.93 | AQ18: 0 | AR18: 0 | AS18: 19.21 | AT18: 0 | AU18: 0 | AV18: 8.51 | AW18: 0 | AX18: 0 | AY18: 0 | AZ18: 39.66 | BA18: 0 | BB18: 1 | BC18: 2.13 | BD18: 45.77 | BE18: 0 | BF18: 8.51 | BG18: 0 | BH18: 0 | BI18: 0 | BJ18: 57.42 | BK18: 8341.15 | BL18: 8398.57
A19: 2022 | B19: 17 | C19: CAROLINE CO PBLC SCHS | D19: 4151.83 | E19: 0 | F19: 1 | G19: 0 | H19: 0 | I19: 6.75 | J19: 0 | K19: 0 | L19: 26.87 | M19: 0 | N19: 0 | O19: 0 | P19: 0 | Q19: 0 | R19: 34.63 | S19: 0 | T19: 0 | U19: 0 | V19: 15.91 | W19: 0 | X19: 26.87 | Y19: 0 | Z19: 0 | AA19: 0 | AB19: 0 | AC19: 0 | AD19: 0 | AE19: 42.79 | AF19: 4143.67 | AH19: 4151.83 | AI19: 34.63 | AJ19: 0 | AK19: -26.87 | AL19: 0 | AM19: 4159.59 | AN19: 4080.31 | AO19: 1.98 | AP19: 2.92 | AQ19: 0 | AR19: 0 | AS19: 11.59 | AT19: 0 | AU19: 0 | AV19: 0 | AW19: 0 | AX19: 0 | AY19: 0 | AZ19: 16.49 | BA19: 0 | BB19: 0 | BC19: 0 | BD19: 0 | BE19: 0 | BF19: 0 | BG19: 0 | BH19: 0 | BI19: 0 | BJ19: 0 | BK19: 4096.8 | BL19: 4096.8
A20: 2022 | B20: 18 | C20: CARROLL CO PBLC SCHS | D20: 3272.69 | E20: 0 | F20: 1 | G20: 14.61 | H20: 0.5 | I20: 7.71 | J20: 6.02 | K20: 0 | L20: 13.09 | M20: 0 | N20: 0 | O20: 0 | P20: 0 | Q20: 0 | R20: 42.92 | S20: 0 | T20: 0 | U20: 0 | V20: 8.48 | W20: 0 | X20: 13.09 | Y20: 0 | Z20: 0 | AA20: 0 | AB20: 0 | AC20: 0 | AD20: 0 | AE20: 21.57 | AF20: 3294.04 | AH20: 3272.69 | AI20: 42.92 | AJ20: 0 | AK20: -13.09 | AL20: 0 | AM20: 3302.52 | AN20: 3941.97 | AO20: 0 | AP20: 2.98 | AQ20: 34.2 | AR20: 0 | AS20: 7.27 | AT20: 0 | AU20: 0 | AV20: 5.82 | AW20: 0 | AX20: 0 | AY20: 0 | AZ20: 50.28 | BA20: 0.92 | BB20: 0.85 | BC20: 0 | BD20: 9.56 | BE20: 0 | BF20: 5.82 | BG20: 0 | BH20: 0 | BI20: 0 | BJ20: 17.15 | BK20: 3975.11 | BL20: 3992.25
A21: 2022 | B21: 19 | C21: CHARLES CITY CO PBLC SCHS | D21: 501.36 | E21: 0 | F21: 0 | G21: 0 | H21: 0 | I21: 0 | J21: 0 | K21: 0 | L21: 5.98 | M21: 0 | N21: 0 | O21: 0 | P21: 0 | Q21: 0 | R21: 5.98 | S21: 0 | T21: 0 | U21: 0 | V21: 2.98 | W21: 0 | X21: 5.98 | Y21: 0 | Z21: 0 | AA21: 0 | AB21: 0 | AC21: 0 | AD21: 0 | AE21: 8.96 | AF21: 498.38 | AH21: 501.36 | AI21: 5.98 | AJ21: 0 | AK21: -5.98 | AL21: 0 | AM21: 501.36 | AN21: 823.51 | AO21: 1 | AP21: 0 | AQ21: 0 | AR21: 0 | AS21: 0.78 | AT21: 0 | AU21: 0 | AV21: 7.94 | AW21: 0 | AX21: 0 | AY21: 0 | AZ21: 9.72 | BA21: 0 | BB21: 0 | BC21: 0 | BD21: 0 | BE21: 0 | BF21: 7.94 | BG21: 0 | BH21: 0 | BI21: 0 | BJ21: 7.94 | BK21: 825.29 | BL21: 833.23
A22: 2022 | B22: 20 | C22: CHARLOTTE CO PBLC SCHS | D22: 1570.43 | E22: 0 | F22: 1 | G22: 0 | H22: 0 | I22: 10.75 | J22: 1.15 | K22: 0 | L22: 10.46 | M22: 0 | N22: 0 | O22: 0 | P22: 0 | Q22: 0 | R22: 23.37 | S22: 0 | T22: 0 | U22: 0 | V22: 5 | W22: 0 | X22: 10.46 | Y22: 0 | Z22: 0 | AA22: 0 | AB22: 0 | AC22: 0 | AD22: 0 | AE22: 15.46 | AF22: 1578.34 | AH22: 1570.43 | AI22: 23.37 | AJ22: 0 | AK22: -10.46 | AL22: 0 | AM22: 1583.34 | AN22: 2044.92 | AO22: 0 | AP22: 0 | AQ22: 0 | AR22: 0 | AS22: 18.01 | AT22: 0 | AU22: 0 | AV22: 12.76 | AW22: 0 | AX22: 0 | AY22: 0 | AZ22: 30.77 | BA22: 0 | BB22: 0 | BC22: 0 | BD22: 0 | BE22: 0 | BF22: 12.76 | BG22: 0 | BH22: 0 | BI22: 0 | BJ22: 12.76 | BK22: 2062.93 | BL22: 2075.69
A23: 2022 | B23: 21 | C23: CHESTERFIELD CO PBLC SCHS | D23: 62120.5 | E23: 0 | F23: 69.85 | G23: 0 | H23: 23.14 | I23: 50.99 | J23: 84.12 | K23: 1.54 | L23: 130.59 | M23: 0 | N23: 0 | O23: 0 | P23: 0 | Q23: 0 | R23: 360.24 | S23: 0 | T23: 3.69 | U23: 1.21 | V23: 33.29 | W23: 0 | X23: 130.59 | Y23: 0 | Z23: 0 | AA23: 0 | AB23: 0 | AC23: 0 | AD23: 0 | AE23: 168.8 | AF23: 62311.93 | AH23: 62120.5 | AI23: 360.24 | AJ23: -3.69 | AK23: -130.59 | AL23: 0 | AM23: 62346.46 | AN23: 58056.18 | AO23: 0 | AP23: 31.78 | AQ23: 0 | AR23: 13.81 | AS23: 64.82 | AT23: 101.84 | AU23: 4.22 | AV23: 84.39 | AW23: 0 | AX23: 0 | AY23: 0 | AZ23: 300.85 | BA23: 0 | BB23: 1.07 | BC23: 4.45 | BD23: 0 | BE23: 0.99 | BF23: 84.39 | BG23: 0 | BH23: 0 | BI23: 0 | BJ23: 90.91 | BK23: 58266.13 | BL23: 58357.03
A24: 2022 | B24: 22 | C24: CLARKE CO PBLC SCHS | D24: 1860.07 | E24: 0 | F24: 1 | G24: 0 | H24: 1.27 | I24: 0 | J24: 0 | K24: 0 | L24: 2 | M24: 0 | N24: 0 | O24: 0 | P24: 0 | Q24: 0 | R24: 4.27 | S24: 0 | T24: 0.48 | U24: 0 | V24: 7 | W24: 0 | X24: 2 | Y24: 0 | Z24: 0 | AA24: 0 | AB24: 0 | AC24: 0 | AD24: 0 | AE24: 9.48 | AF24: 1854.86 | AH24: 1860.07 | AI24: 4.27 | AJ24: -0.48 | AK24: -2 | AL24: 0 | AM24: 1861.86 | AN24: 2131.34 | AO24: 0 | AP24: 0 | AQ24: 0 | AR24: 2.23 | AS24: 1.99 | AT24: 0 | AU24: 6.99 | AV24: 0 | AW24: 0 | AX24: 0 | AY24: 0 | AZ24: 11.21 | BA24: 0 | BB24: 0 | BC24: 0 | BD24: 5 | BE24: 0 | BF24: 0 | BG24: 0 | BH24: 0 | BI24: 0 | BJ24: 5 | BK24: 2137.55 | BL24: 2142.55
A25: 2022 | B25: 23 | C25: CRAIG CO PBLC SCHS | D25: 458.37 | E25: 0 | F25: 0 | G25: 0 | H25: 0 | I25: 1.93 | J25: 0 | K25: 0 | L25: 4.14 | M25: 0 | N25: 0 | O25: 0 | P25: 0 | Q25: 0 | R25: 6.07 | S25: 0 | T25: 0 | U25: 0 | V25: 6 | W25: 0 | X25: 4.14 | Y25: 0 | Z25: 0 | AA25: 0 | AB25: 0 | AC25: 0 | AD25: 0 | AE25: 10.14 | AF25: 454.3 | AH25: 458.37 | AI25: 6.07 | AJ25: 0 | AK25: -4.14 | AL25: 0 | AM25: 460.3 | AN25: 698.32 | AO25: 0 | AP25: 0 | AQ25: 0 | AR25: 0 | AS25: 1 | AT25: 0 | AU25: 2 | AV25: 4.62 | AW25: 0 | AX25: 0 | AY25: 0 | AZ25: 7.62 | BA25: 0 | BB25: 0 | BC25: 0 | BD25: 3 | BE25: 0 | BF25: 4.62 | BG25: 0 | BH25: 0 | BI25: 0 | BJ25: 7.62 | BK25: 698.32 | BL25: 705.94
A26: 2022 | B26: 24 | C26: CULPEPER CO PBLC SCHS | D26: 8144.93 | E26: 0 | F26: 1.86 | G26: 0 | H26: 0 | I26: 0 | J26: 6.52 | K26: 0 | L26: 14.46 | M26: 0 | N26: 0 | O26: 0 | P26: 0 | Q26: 0 | R26: 22.83 | S26: 0 | T26: 0 | U26: 0 | V26: 35.22 | W26: 0 | X26: 14.46 | Y26: 0 | Z26: 0 | AA26: 0 | AB26: 0 | AC26: 0 | AD26: 0 | AE26: 49.68 | AF26: 8118.08 | AH26: 8144.93 | AI26: 22.83 | AJ26: 0 | AK26: -14.46 | AL26: 0 | AM26: 8153.3 | AN26: 7389.42 | AO26: 0 | AP26: 2.86 | AQ26: 0 | AR26: 0.5 | AS26: 31.74 | AT26: 14.34 | AU26: 0 | AV26: 17.3 | AW26: 0 | AX26: 0 | AY26: 0 | AZ26: 66.74 | BA26: 0 | BB26: 0 | BC26: 0 | BD26: 22.99 | BE26: 0 | BF26: 17.3 | BG26: 0 | BH26: 0 | BI26: 0 | BJ26: 40.29 | BK26: 7415.87 | BL26: 7456.16
A27: 2022 | B27: 25 | C27: CUMBERLAND CO PBLC SCHS | D27: 1185.63 | E27: 0 | F27: 1 | G27: 0 | H27: 0 | I27: 9.04 | J27: 0 | K27: 0 | L27: 3.69 | M27: 0 | N27: 0 | O27: 0 | P27: 0 | Q27: 0 | R27: 13.73 | S27: 0 | T27: 0 | U27: 0.22 | V27: 4 | W27: 0 | X27: 3.69 | Y27: 0 | Z27: 0 | AA27: 0 | AB27: 0 | AC27: 0 | AD27: 0 | AE27: 7.91 | AF27: 1191.45 | AH27: 1185.63 | AI27: 13.73 | AJ27: 0 | AK27: -3.69 | AL27: 0 | AM27: 1195.67 | AN27: 1384.88 | AO27: 0 | AP27: 1 | AQ27: 0 | AR27: 0 | AS27: 3.54 | AT27: 0 | AU27: 0 | AV27: 10.75 | AW27: 0 | AX27: 0 | AY27: 0 | AZ27: 15.3 | BA27: 0 | BB27: 0 | BC27: 0 | BD27: 0 | BE27: 0 | BF27: 10.75 | BG27: 0 | BH27: 0 | BI27: 0 | BJ27: 10.75 | BK27: 1389.42 | BL27: 1400.18
A28: 2022 | B28: 26 | C28: DICKENSON CO PBLC SCHS | D28: 1842.43 | E28: 0 | F28: 1 | G28: 1.74 | H28: 0 | I28: 0 | J28: 0 | K28: 0 | L28: 0 | M28: 0 | N28: 0 | O28: 0 | P28: 0 | Q28: 0 | R28: 2.74 | S28: 0 | T28: 0 | U28: 0.13 | V28: 14.58 | W28: 0 | X28: 0 | Y28: 0 | Z28: 0 | AA28: 0 | AB28: 0 | AC28: 0 | AD28: 0 | AE28: 14.71 | AF28: 1830.46 | AH28: 1842.43 | AI28: 2.74 | AJ28: 0 | AK28: 0 | AL28: 0 | AM28: 1845.17 | AN28: 2440.73 | AO28: 0 | AP28: 2.99 | AQ28: 0 | AR28: 0 | AS28: 4.6 | AT28: 0 | AU28: 0 | AV28: 0 | AW28: 0 | AX28: 0 | AY28: 0 | AZ28: 7.59 | BA28: 0 | BB28: 0 | BC28: 0 | BD28: 0 | BE28: 0 | BF28: 0 | BG28: 0 | BH28: 0 | BI28: 0 | BJ28: 0 | BK28: 2448.32 | BL28: 2448.32
A29: 2022 | B29: 27 | C29: DINWIDDIE CO PBLC SCHS | D29: 4108.27 | E29: 0 | F29: 2 | G29: 0.3 | H29: 0 | I29: 12.61 | J29: 0 | K29: 0.99 | L29: 18.66 | M29: 0 | N29: 0 | O29: 0 | P29: 0 | Q29: 0 | R29: 34.56 | S29: 0 | T29: 0.37 | U29: 0 | V29: 18 | W29: 0 | X29: 18.66 | Y29: 0 | Z29: 0 | AA29: 0 | AB29: 0 | AC29: 0 | AD29: 0 | AE29: 37.03 | AF29: 4105.8 | AH29: 4108.27 | AI29: 34.56 | AJ29: -0.37 | AK29: -18.66 | AL29: 0 | AM29: 4123.8 | AN29: 4655.32 | AO29: 2 | AP29: 1.72 | AQ29: 0 | AR29: 0 | AS29: 9.16 | AT29: 0 | AU29: 0 | AV29: 5.48 | AW29: 0 | AX29: 0 | AY29: 0 | AZ29: 18.36 | BA29: 0 | BB29: 0 | BC29: 0 | BD29: 0 | BE29: 0 | BF29: 5.48 | BG29: 0 | BH29: 0 | BI29: 0 | BJ29: 5.48 | BK29: 4668.2 | BL29: 4673.68
A30: 2022 | B30: 28 | C30: ESSEX CO PBLC SCHS | D30: 1127.81 | E30: 0 | F30: 1 | G30: 1 | H30: 0 | I30: 0 | J30: 0 | K30: 0 | L30: 19.33 | M30: 0 | N30: 0 | O30: 0 | P30: 0 | Q30: 0 | R30: 21.33 | S30: 0 | T30: 0 | U30: 0 | V30: 0 | W30: 0 | X30: 19.33 | Y30: 0 | Z30: 0 | AA30: 0 | AB30: 0 | AC30: 0 | AD30: 0 | AE30: 19.33 | AF30: 1129.81 | AH30: 1127.81 | AI30: 21.33 | AJ30: 0 | AK30: -19.33 | AL30: 0 | AM30: 1129.81 | AN30: 1598.05 | AO30: 0 | AP30: 1.92 | AQ30: 9.48 | AR30: 0 | AS30: 1.95 | AT30: 0 | AU30: 0 | AV30: 4.45 | AW30: 0 | AX30: 0 | AY30: 0 | AZ30: 17.8 | BA30: 0.66 | BB30: 0 | BC30: 0 | BD30: 0 | BE30: 0 | BF30: 4.45 | BG30: 0 | BH30: 0 | BI30: 0 | BJ30: 5.11 | BK30: 1610.73 | BL30: 1615.85
A31: 2022 | B31: 29 | C31: FAIRFAX CO PBLC SCHS | D31: 172781.73 | E31: 0 | F31: 272.48 | G31: 13.02 | H31: 11.47 | I31: 23.18 | J31: 42.85 | K31: 0 | L31: 200.65 | M31: 0 | N31: 0 | O31: 0 | P31: 0 | Q31: 0 | R31: 563.65 | S31: 2.24 | T31: 1.41 | U31: 20.01 | V31: 183.12 | W31: 622.55 | X31: 200.65 | Y31: 0 | Z31: 0 | AA31: 0 | AB31: 0 | AC31: 0 | AD31: 0 | AE31: 1029.97 | AF31: 172315.4 | AH31: 172781.73 | AI31: 563.65 | AJ31: -1.41 | AK31: -200.65 | AL31: -622.55 | AM31: 172520.77 | AN31: 165481.43 | AO31: 0 | AP31: 231.05 | AQ31: 0 | AR31: 3.49 | AS31: 71.43 | AT31: 41.84 | AU31: 1.07 | AV31: 285.03 | AW31: 0 | AX31: 0 | AY31: 7.37 | AZ31: 641.28 | BA31: 11.71 | BB31: 0.03 | BC31: 128.85 | BD31: 4.78 | BE31: 306 | BF31: 285.03 | BG31: 0 | BH31: 7.37 | BI31: 0 | BJ31: 743.77 | BK31: 165378.93 | BL31: 166122.71
A32: 2022 | B32: 30 | C32: FAUQUIER CO PBLC SCHS | D32: 10464.19 | E32: 0 | F32: 18.69 | G32: 80.19 | H32: 0 | I32: 8.28 | J32: 7.78 | K32: 0.08 | L32: 41.69 | M32: 0 | N32: 0 | O32: 0 | P32: 0 | Q32: 0 | R32: 156.72 | S32: 0 | T32: 0.03 | U32: 0 | V32: 59.41 | W32: 0 | X32: 41.69 | Y32: 0 | Z32: 0 | AA32: 0 | AB32: 0 | AC32: 0 | AD32: 0 | AE32: 101.14 | AF32: 10519.78 | AH32: 10464.19 | AI32: 156.72 | AJ32: -0.03 | AK32: -41.69 | AL32: 0 | AM32: 10579.19 | AN32: 11071.64 | AO32: 5 | AP32: 2.91 | AQ32: 0 | AR32: 0.5 | AS32: 31.07 | AT32: 0 | AU32: 0 | AV32: 26.44 | AW32: 0 | AX32: 0 | AY32: 0 | AZ32: 65.92 | BA32: 2.46 | BB32: 0.56 | BC32: 0 | BD32: 2.46 | BE32: 0.54 | BF32: 26.44 | BG32: 0 | BH32: 0 | BI32: 0 | BJ32: 32.46 | BK32: 11105.1 | BL32: 11137.56
A33: 2022 | B33: 31 | C33: FLOYD CO PBLC SCHS | D33: 1666.39 | E33: 0 | F33: 2 | G33: 0 | H33: 0.83 | I33: 2.79 | J33: 3.33 | K33: 0 | L33: 5.83 | M33: 0 | N33: 0 | O33: 0 | P33: 0 | Q33: 0 | R33: 14.78 | S33: 0 | T33: 0 | U33: 0 | V33: 8 | W33: 0 | X33: 5.83 | Y33: 0 | Z33: 0 | AA33: 0 | AB33: 0 | AC33: 0 | AD33: 0 | AE33: 13.83 | AF33: 1667.34 | AH33: 1666.39 | AI33: 14.78 | AJ33: 0 | AK33: -5.83 | AL33: 0 | AM33: 1675.34 | AN33: 2080.84 | AO33: 0 | AP33: 0 | AQ33: 0 | AR33: 1.46 | AS33: 3.18 | AT33: 0 | AU33: 0 | AV33: 3.19 | AW33: 0 | AX33: 0 | AY33: 0 | AZ33: 7.83 | BA33: 0 | BB33: 0 | BC33: 0 | BD33: 0 | BE33: 0 | BF33: 3.19 | BG33: 0 | BH33: 0 | BI33: 0 | BJ33: 3.19 | BK33: 2085.48 | BL33: 2088.67
A34: 2022 | B34: 32 | C34: FLUVANNA CO PBLC SCHS | D34: 3336.73 | E34: 0 | F34: 5.48 | G34: 0 | H34: 0 | I34: 0 | J34: 4.14 | K34: 0 | L34: 15.45 | M34: 0 | N34: 0 | O34: 0 | P34: 0 | Q34: 0 | R34: 25.07 | S34: 0 | T34: 0 | U34: 0 | V34: 21.62 | W34: 0 | X34: 15.45 | Y34: 0 | Z34: 0 | AA34: 0 | AB34: 0 | AC34: 0 | AD34: 0 | AE34: 37.07 | AF34: 3324.73 | AH34: 3336.73 | AI34: 25.07 | AJ34: 0 | AK34: -15.45 | AL34: 0 | AM34: 3346.35 | AN34: 3696.94 | AO34: 0 | AP34: 2 | AQ34: 0 | AR34: 0 | AS34: 0.56 | AT34: 0 | AU34: 0 | AV34: 7.25 | AW34: 0 | AX34: 0 | AY34: 0 | AZ34: 9.81 | BA34: 0 | BB34: 0 | BC34: 0 | BD34: 23.48 | BE34: 0 | BF34: 7.25 | BG34: 0 | BH34: 0 | BI34: 0 | BJ34: 30.73 | BK34: 3676.03 | BL34: 3706.75
A35: 2022 | B35: 33 | C35: FRANKLIN CO PBLC SCHS | D35: 5935.02 | E35: 0 | F35: 4 | G35: 0 | H35: 0.25 | I35: 0 | J35: 7.09 | K35: 0 | L35: 51.38 | M35: 0 | N35: 0 | O35: 0 | P35: 0 | Q35: 0 | R35: 62.72 | S35: 1.62 | T35: 1.16 | U35: 0 | V35: 23.99 | W35: 0 | X35: 51.38 | Y35: 0 | Z35: 0 | AA35: 0 | AB35: 0 | AC35: 0 | AD35: 0 | AE35: 78.15 | AF35: 5919.59 | AH35: 5935.02 | AI35: 62.72 | AJ35: -1.16 | AK35: -51.38 | AL35: 0 | AM35: 5945.2 | AN35: 7181.49 | AO35: 0 | AP35: 2.51 | AQ35: 0 | AR35: 0 | AS35: 32.7 | AT35: 0 | AU35: 0 | AV35: 27.85 | AW35: 0 | AX35: 0 | AY35: 0 | AZ35: 63.06 | BA35: 0 | BB35: 1 | BC35: 0 | BD35: 24.44 | BE35: 0 | BF35: 27.85 | BG35: 0 | BH35: 0 | BI35: 0 | BJ35: 53.29 | BK35: 7191.26 | BL35: 7244.55
A36: 2022 | B36: 34 | C36: FREDERICK CO PBLC SCHS | D36: 13384.35 | E36: 0 | F36: 12.79 | G36: 0 | H36: 1.24 | I36: 10.57 | J36: 13.35 | K36: 0 | L36: 19.39 | M36: 0 | N36: 0 | O36: 0 | P36: 0 | Q36: 0 | R36: 57.33 | S36: 0 | T36: 0 | U36: 0 | V36: 61.26 | W36: 0 | X36: 19.39 | Y36: 0 | Z36: 0 | AA36: 0 | AB36: 0 | AC36: 0 | AD36: 0 | AE36: 80.64 | AF36: 13361.04 | AH36: 13384.35 | AI36: 57.33 | AJ36: 0 | AK36: -19.39 | AL36: 0 | AM36: 13422.29 | AN36: 12910.1 | AO36: 0 | AP36: 9.44 | AQ36: 0 | AR36: 2 | AS36: 37.59 | AT36: 0 | AU36: 0 | AV36: 12.81 | AW36: 0 | AX36: 6 | AY36: 0 | AZ36: 67.85 | BA36: 0.83 | BB36: 0 | BC36: 0 | BD36: 32.11 | BE36: 0 | BF36: 12.81 | BG36: 0 | BH36: 0 | BI36: 0 | BJ36: 45.75 | BK36: 12932.19 | BL36: 12977.95
A37: 2022 | B37: 35 | C37: GILES CO PBLC SCHS | D37: 3298.74 | E37: 0 | F37: 2.99 | G37: 0 | H37: 1 | I37: 6.63 | J37: 6.99 | K37: 0 | L37: 0 | M37: 0 | N37: 62.93 | O37: 0 | P37: 0 | Q37: 0 | R37: 80.54 | S37: 0 | T37: 0 | U37: 0 | V37: 7 | W37: 0 | X37: 0 | Y37: 0 | Z37: 0 | AA37: 0 | AB37: 0 | AC37: 0 | AD37: 0 | AE37: 7 | AF37: 3372.29 | AH37: 3298.74 | AI37: 80.54 | AJ37: 0 | AK37: 0 | AL37: 0 | AM37: 3379.28 | AN37: 2527.39 | AO37: 0 | AP37: 1.97 | AQ37: 0 | AR37: 0 | AS37: 9.74 | AT37: 2.99 | AU37: 0 | AV37: 8.04 | AW37: 0 | AX37: 0 | AY37: 0 | AZ37: 22.74 | BA37: 0 | BB37: 0 | BC37: 0 | BD37: 0 | BE37: 0 | BF37: 8.04 | BG37: 0 | BH37: 0 | BI37: 0 | BJ37: 8.04 | BK37: 2542.09 | BL37: 2550.13
A38: 2022 | B38: 36 | C38: GLOUCESTER CO PBLC SCHS | D38: 4864.41 | E38: 0 | F38: 3.89 | G38: 12.76 | H38: 0.32 | I38: 4.01 | J38: 3.29 | K38: 0 | L38: 19.1 | M38: 0 | N38: 0 | O38: 0 | P38: 0 | Q38: 0 | R38: 43.38 | S38: 0 | T38: 0 | U38: 0 | V38: 27.37 | W38: 0.38 | X38: 19.1 | Y38: 0 | Z38: 0 | AA38: 0 | AB38: 0 | AC38: 0 | AD38: 0 | AE38: 46.85 | AF38: 4860.94 | AH38: 4864.41 | AI38: 43.38 | AJ38: 0 | AK38: -19.1 | AL38: -0.38 | AM38: 4888.31 | AN38: 5915.24 | AO38: 0 | AP38: 2 | AQ38: 0 | AR38: 0 | AS38: 16.35 | AT38: 0 | AU38: 0 | AV38: 9.03 | AW38: 0 | AX38: 0 | AY38: 0 | AZ38: 27.38 | BA38: 0 | BB38: 0 | BC38: 0.01 | BD38: 26.38 | BE38: 2 | BF38: 9.03 | BG38: 0 | BH38: 0 | BI38: 0 | BJ38: 37.42 | BK38: 5905.2 | BL38: 5942.62
A39: 2022 | B39: 37 | C39: GOOCHLAND CO PBLC SCHS | D39: 2533.25 | E39: 0 | F39: 0 | G39: 2.01 | H39: 0 | I39: 2.18 | J39: 0 | K39: 0 | L39: 6 | M39: 0 | N39: 0 | O39: 0 | P39: 0 | Q39: 0 | R39: 10.19 | S39: 0 | T39: 0 | U39: 0 | V39: 3 | W39: 0 | X39: 6 | Y39: 0 | Z39: 0 | AA39: 0 | AB39: 0 | AC39: 0 | AD39: 0 | AE39: 9 | AF39: 2534.44 | AH39: 2533.25 | AI39: 10.19 | AJ39: 0 | AK39: -6 | AL39: 0 | AM39: 2537.44 | AN39: 2446.04 | AO39: 0 | AP39: 1 | AQ39: 0 | AR39: 0.52 | AS39: 6.65 | AT39: 0 | AU39: 6.24 | AV39: 1.58 | AW39: 0 | AX39: 0 | AY39: 0 | AZ39: 15.99 | BA39: 0 | BB39: 1 | BC39: 0 | BD39: 0 | BE39: 0 | BF39: 1.58 | BG39: 0 | BH39: 0 | BI39: 0 | BJ39: 2.58 | BK39: 2459.45 | BL39: 2462.03
A40: 2022 | B40: 38 | C40: GRAYSON CO PBLC SCHS | D40: 1517.17 | E40: 0 | F40: 0 | G40: 0 | H40: 0 | I40: 0 | J40: 0 | K40: 0 | L40: 2 | M40: 0 | N40: 0 | O40: 0 | P40: 0 | Q40: 0 | R40: 2 | S40: 0 | T40: 0 | U40: 0 | V40: 17.26 | W40: 0 | X40: 2 | Y40: 0 | Z40: 0 | AA40: 0 | AB40: 0 | AC40: 0 | AD40: 0 | AE40: 19.26 | AF40: 1499.92 | AH40: 1517.17 | AI40: 2 | AJ40: 0 | AK40: -2 | AL40: 0 | AM40: 1517.17 | AN40: 1938.39 | AO40: 0 | AP40: 0.92 | AQ40: 0 | AR40: 0 | AS40: 0 | AT40: 0 | AU40: 0 | AV40: 2.38 | AW40: 0 | AX40: 0 | AY40: 0 | AZ40: 3.31 | BA40: 0 | BB40: 0 | BC40: 0 | BD40: 12.14 | BE40: 0 | BF40: 2.38 | BG40: 0 | BH40: 0 | BI40: 0 | BJ40: 14.52 | BK40: 1927.17 | BL40: 1941.7
A41: 2022 | B41: 39 | C41: GREENE CO PBLC SCHS | D41: 2784.64 | E41: 0 | F41: 5 | G41: 0 | H41: 0 | I41: 0 | J41: 0 | K41: 0 | L41: 4.47 | M41: 0 | N41: 0 | O41: 0 | P41: 0 | Q41: 0 | R41: 9.47 | S41: 0 | T41: 2 | U41: 0 | V41: 31.8 | W41: 0 | X41: 4.47 | Y41: 0 | Z41: 0 | AA41: 0 | AB41: 0 | AC41: 0 | AD41: 0 | AE41: 38.27 | AF41: 2755.84 | AH41: 2784.64 | AI41: 9.47 | AJ41: -2 | AK41: -4.47 | AL41: 0 | AM41: 2787.64 | AN41: 2764.72 | AO41: 0.14 | AP41: 0 | AQ41: 0 | AR41: 0.75 | AS41: 4.84 | AT41: 1 | AU41: 0 | AV41: 11.83 | AW41: 0 | AX41: 0 | AY41: 0 | AZ41: 18.56 | BA41: 2.89 | BB41: 0.93 | BC41: 0 | BD41: 31.96 | BE41: 0 | BF41: 11.83 | BG41: 0 | BH41: 0 | BI41: 0 | BJ41: 47.6 | BK41: 2735.68 | BL41: 2783.28
A42: 2022 | B42: 40 | C42: GREENSVILLE CO PBLC SCHS | D42: 1110.97 | E42: 0 | F42: 0 | G42: 0 | H42: 0 | I42: 0 | J42: 0 | K42: 0 | L42: 8.33 | M42: 0 | N42: 4.41 | O42: 0 | P42: 0 | Q42: 0 | R42: 12.74 | S42: 0 | T42: 0 | U42: 0 | V42: 0 | W42: 0 | X42: 8.33 | Y42: 0 | Z42: 0 | AA42: 0 | AB42: 0 | AC42: 0 | AD42: 0 | AE42: 8.33 | AF42: 1115.38 | AH42: 1110.97 | AI42: 12.74 | AJ42: 0 | AK42: -8.33 | AL42: 0 | AM42: 1115.38 | AN42: 1562.05 | AO42: 0 | AP42: 1 | AQ42: 0 | AR42: 0 | AS42: 0 | AT42: 0 | AU42: 0 | AV42: 5.53 | AW42: 0 | AX42: 0 | AY42: 0 | AZ42: 6.53 | BA42: 0 | BB42: 0 | BC42: 0 | BD42: 0 | BE42: 0 | BF42: 5.53 | BG42: 0 | BH42: 0 | BI42: 0 | BJ42: 5.53 | BK42: 1563.05 | BL42: 1568.58
A43: 2022 | B43: 41 | C43: HALIFAX CO PBLC SCHS | D43: 4226.42 | E43: 0 | F43: 2.33 | G43: 0 | H43: 2 | I43: 2.58 | J43: 0 | K43: 3.64 | L43: 27.88 | M43: 0 | N43: 0 | O43: 0 | P43: 0 | Q43: 0.59 | R43: 39.02 | S43: 0 | T43: 1 | U43: 0 | V43: 5 | W43: 0 | X43: 27.88 | Y43: 0 | Z43: 0 | AA43: 0 | AB43: 0 | AC43: 0 | AD43: 0 | AE43: 33.88 | AF43: 4231.56 | AH43: 4226.42 | AI43: 39.02 | AJ43: -1 | AK43: -27.88 | AL43: 0 | AM43: 4236.56 | AN43: 5626.61 | AO43: 0 | AP43: 3.98 | AQ43: 0 | AR43: 0 | AS43: 0 | AT43: 0 | AU43: 0 | AV43: 21.51 | AW43: 0 | AX43: 0 | AY43: 0 | AZ43: 25.48 | BA43: 0 | BB43: 1.81 | BC43: 0 | BD43: 0 | BE43: 0 | BF43: 21.51 | BG43: 0 | BH43: 0 | BI43: 0 | BJ43: 23.31 | BK43: 5628.78 | BL43: 5652.09
A44: 2022 | B44: 42 | C44: HANOVER CO PBLC SCHS | D44: 16685.85 | E44: 0 | F44: 8.08 | G44: 4.18 | H44: 0 | I44: 1.29 | J44: 5.76 | K44: 0 | L44: 56.01 | M44: 0 | N44: 0 | O44: 0 | P44: 0 | Q44: 0 | R44: 75.32 | S44: 0 | T44: 0.51 | U44: 0 | V44: 76.36 | W44: 0 | X44: 56.01 | Y44: 0 | Z44: 0 | AA44: 0 | AB44: 0 | AC44: 0 | AD44: 0 | AE44: 132.88 | AF44: 16628.29 | AH44: 16685.85 | AI44: 75.32 | AJ44: -0.51 | AK44: -56.01 | AL44: 0 | AM44: 16704.65 | AN44: 18381.36 | AO44: 0 | AP44: 10.43 | AQ44: 5.18 | AR44: 0 | AS44: 20.16 | AT44: 6.98 | AU44: 0 | AV44: 55.85 | AW44: 0 | AX44: 0 | AY44: 0 | AZ44: 98.61 | BA44: 0 | BB44: 0 | BC44: 0.24 | BD44: 0 | BE44: 0 | BF44: 55.85 | BG44: 0 | BH44: 0 | BI44: 0 | BJ44: 56.1 | BK44: 18423.88 | BL44: 18479.97
A45: 2022 | B45: 43 | C45: HENRICO CO PBLC SCHS | D45: 48772.67 | E45: 0 | F45: 39.19 | G45: 0 | H45: 0 | I45: 8.17 | J45: 16.67 | K45: 0 | L45: 188.24 | M45: 0 | N45: 0 | O45: 0 | P45: 0 | Q45: 0 | R45: 252.27 | S45: 0 | T45: 0.06 | U45: 1 | V45: 33.96 | W45: 0 | X45: 188.24 | Y45: 0 | Z45: 0 | AA45: 0 | AB45: 0 | AC45: 0 | AD45: 0 | AE45: 223.26 | AF45: 48801.67 | AH45: 48772.67 | AI45: 252.27 | AJ45: -0.06 | AK45: -188.24 | AL45: 0 | AM45: 48836.64 | AN45: 48174.2 | AO45: 0 | AP45: 23.68 | AQ45: 0 | AR45: 0 | AS45: 33.39 | AT45: 0 | AU45: 0 | AV45: 0 | AW45: 0 | AX45: 0 | AY45: 0 | AZ45: 57.07 | BA45: 0 | BB45: 1 | BC45: 1.61 | BD45: 0 | BE45: 0 | BF45: 0 | BG45: 0 | BH45: 0 | BI45: 0 | BJ45: 2.61 | BK45: 48228.66 | BL45: 48231.27
A46: 2022 | B46: 44 | C46: HENRY CO PBLC SCHS | D46: 6679.35 | E46: 0 | F46: 3.33 | G46: 0 | H46: 0 | I46: 14 | J46: 0 | K46: 0 | L46: 16.7 | M46: 0 | N46: 1 | O46: 0 | P46: 0 | Q46: 0 | R46: 35.03 | S46: 0 | T46: 0 | U46: 0 | V46: 45.24 | W46: 0 | X46: 16.7 | Y46: 0 | Z46: 0 | AA46: 0 | AB46: 0 | AC46: 0 | AD46: 0 | AE46: 61.94 | AF46: 6652.44 | AH46: 6679.35 | AI46: 35.03 | AJ46: 0 | AK46: -16.7 | AL46: 0 | AM46: 6697.68 | AN46: 7151.79 | AO46: 0 | AP46: 7 | AQ46: 0 | AR46: 0 | AS46: 17.42 | AT46: 0 | AU46: 0 | AV46: 1 | AW46: 0 | AX46: 0 | AY46: 0 | AZ46: 25.42 | BA46: 0 | BB46: 0 | BC46: 0.07 | BD46: 33.95 | BE46: 0 | BF46: 1 | BG46: 0 | BH46: 0 | BI46: 0 | BJ46: 35.02 | BK46: 7142.2 | BL46: 7177.21
A47: 2022 | B47: 45 | C47: HIGHLAND CO PBLC SCHS | D47: 188.22 | E47: 0 | F47: 0 | G47: 0 | H47: 0 | I47: 0 | J47: 0 | K47: 0 | L47: 0 | M47: 0 | N47: 0 | O47: 0 | P47: 0 | Q47: 0 | R47: 0 | S47: 0 | T47: 0 | U47: 0 | V47: 1 | W47: 0 | X47: 0 | Y47: 0 | Z47: 0 | AA47: 0 | AB47: 0 | AC47: 0 | AD47: 0 | AE47: 1 | AF47: 187.22 | AH47: 188.22 | AI47: 0 | AJ47: 0 | AK47: 0 | AL47: 0 | AM47: 188.22 | AN47: 243.51 | AO47: 0 | AP47: 0 | AQ47: 0 | AR47: 0 | AS47: 1 | AT47: 0 | AU47: 0 | AV47: 0 | AW47: 0 | AX47: 0 | AY47: 0 | AZ47: 1 | BA47: 0 | BB47: 0 | BC47: 0 | BD47: 0 | BE47: 0 | BF47: 0 | BG47: 0 | BH47: 0 | BI47: 0 | BJ47: 0 | BK47: 244.51 | BL47: 244.51
A48: 2022 | B48: 46 | C48: ISLE OF WIGHT CO PBLC SCHS | D48: 5464.08 | E48: 0 | F48: 1.97 | G48: 0.45 | H48: 1 | I48: 6.04 | J48: 3 | K48: 0 | L48: 3.54 | M48: 0 | N48: 0 | O48: 0 | P48: 0 | Q48: 0 | R48: 16 | S48: 0 | T48: 0.48 | U48: 0 | V48: 31.61 | W48: 0 | X48: 3.54 | Y48: 0 | Z48: 0 | AA48: 0 | AB48: 0 | AC48: 0 | AD48: 0 | AE48: 35.63 | AF48: 5444.45 | AH48: 5464.08 | AI48: 16 | AJ48: -0.48 | AK48: -3.54 | AL48: 0 | AM48: 5476.06 | AN48: 5387.05 | AO48: 0 | AP48: 3.48 | AQ48: 0 | AR48: 0 | AS48: 7.39 | AT48: 0 | AU48: 0 | AV48: 0 | AW48: 0 | AX48: 0 | AY48: 0 | AZ48: 10.87 | BA48: 2 | BB48: 2.6 | BC48: 0 | BD48: 26.61 | BE48: 0 | BF48: 0 | BG48: 0 | BH48: 0 | BI48: 0 | BJ48: 31.21 | BK48: 5366.7 | BL48: 5397.92
A49: 2022 | B49: 47 | C49: JAMES CITY COUNTY | D49: 10200.92 | E49: 0 | F49: 9.34 | G49: 4.05 | H49: 0 | I49: 19.74 | J49: 10.98 | K49: 0 | L49: 16.05 | M49: 0 | N49: 0 | O49: 0 | P49: 0 | Q49: 0 | R49: 60.16 | S49: 0 | T49: 0 | U49: 0 | V49: 70.6 | W49: 0 | X49: 16.05 | Y49: 0 | Z49: 0 | AA49: 0 | AB49: 0 | AC49: 0 | AD49: 0 | AE49: 86.65 | AF49: 10174.43 | AH49: 10200.92 | AI49: 60.16 | AJ49: 0 | AK49: -16.05 | AL49: 0 | AM49: 10245.03 | AN49: 9632.78 | AO49: 0 | AP49: 10 | AQ49: 1.96 | AR49: 0 | AS49: 10.47 | AT49: 0 | AU49: 5.85 | AV49: 0 | AW49: 0 | AX49: 0 | AY49: 0 | AZ49: 28.28 | BA49: 0 | BB49: 0.41 | BC49: 0 | BD49: 10.78 | BE49: 0 | BF49: 0 | BG49: 0 | BH49: 0 | BI49: 0 | BJ49: 11.19 | BK49: 9649.87 | BL49: 9661.06
A50: 2022 | B50: 48 | C50: KING GEO CO PBLC SCHS | D50: 4331.14 | E50: 0 | F50: 3 | G50: 0 | H50: 0.24 | I50: 1.65 | J50: 6.52 | K50: 0 | L50: 32.4 | M50: 0 | N50: 0 | O50: 0 | P50: 0 | Q50: 1.94 | R50: 45.75 | S50: 0 | T50: 0 | U50: 1 | V50: 13.97 | W50: 0 | X50: 32.4 | Y50: 0 | Z50: 0 | AA50: 0 | AB50: 0 | AC50: 0 | AD50: 0 | AE50: 47.37 | AF50: 4329.52 | AH50: 4331.14 | AI50: 45.75 | AJ50: 0 | AK50: -32.4 | AL50: 0 | AM50: 4344.49 | AN50: 4005.14 | AO50: 0 | AP50: 1 | AQ50: 11.82 | AR50: 0.71 | AS50: 4.48 | AT50: 8.79 | AU50: 0 | AV50: 22.4 | AW50: 0 | AX50: 0 | AY50: 0 | AZ50: 49.2 | BA50: 4 | BB50: 0 | BC50: 0 | BD50: 0 | BE50: 0 | BF50: 22.4 | BG50: 0 | BH50: 0 | BI50: 0 | BJ50: 26.4 | BK50: 4027.94 | BL50: 4054.34
A51: 2022 | B51: 49 | C51: KING AND QUEEN CO PBLC SCHS | D51: 775.37 | E51: 0 | F51: 0 | G51: 4.02 | H51: 0 | I51: 9.75 | J51: 0.17 | K51: 0 | L51: 5.57 | M51: 0 | N51: 0 | O51: 0 | P51: 0 | Q51: 0 | R51: 19.52 | S51: 0 | T51: 1 | U51: 0 | V51: 3 | W51: 0 | X51: 5.57 | Y51: 0 | Z51: 0 | AA51: 0 | AB51: 0 | AC51: 0 | AD51: 0 | AE51: 9.57 | AF51: 785.31 | AH51: 775.37 | AI51: 19.52 | AJ51: -1 | AK51: -5.57 | AL51: 0 | AM51: 788.32 | AN51: 730.15 | AO51: 0 | AP51: 0 | AQ51: 0 | AR51: 0 | AS51: 0 | AT51: 0 | AU51: 0 | AV51: 5.87 | AW51: 0 | AX51: 0 | AY51: 0 | AZ51: 5.87 | BA51: 0 | BB51: 0.08 | BC51: 0 | BD51: 0 | BE51: 0 | BF51: 5.87 | BG51: 0 | BH51: 0 | BI51: 0 | BJ51: 5.95 | BK51: 730.07 | BL51: 736.02
A52: 2022 | B52: 50 | C52: KING WILLIAM CO PBLC SCHS | D52: 2019.48 | E52: 0 | F52: 1 | G52: 5.77 | H52: 0 | I52: 0 | J52: 0 | K52: 5 | L52: 5.25 | M52: 0 | N52: 0 | O52: 0 | P52: 0 | Q52: 0 | R52: 17.02 | S52: 0 | T52: 0 | U52: 0 | V52: 0 | W52: 0 | X52: 5.25 | Y52: 0 | Z52: 0 | AA52: 0 | AB52: 0 | AC52: 0 | AD52: 0 | AE52: 5.25 | AF52: 2031.25 | AH52: 2019.48 | AI52: 17.02 | AJ52: 0 | AK52: -5.25 | AL52: 0 | AM52: 2031.25 | AN52: 2138.52 | AO52: 0 | AP52: 0 | AQ52: 4.11 | AR52: 0 | AS52: 2.49 | AT52: 0 | AU52: 0 | AV52: 4.13 | AW52: 0 | AX52: 0 | AY52: 0 | AZ52: 10.74 | BA52: 0 | BB52: 2 | BC52: 0 | BD52: 0 | BE52: 0 | BF52: 4.13 | BG52: 0 | BH52: 0 | BI52: 0 | BJ52: 6.13 | BK52: 2143.12 | BL52: 2149.26
A53: 2022 | B53: 51 | C53: LANCASTER CO PBLC SCHS | D53: 948.15 | E53: 0 | F53: 0 | G53: 0 | H53: 0 | I53: 0 | J53: 0.67 | K53: 0 | L53: 7.08 | M53: 0 | N53: 0 | O53: 0 | P53: 0 | Q53: 0 | R53: 7.75 | S53: 0 | T53: 0 | U53: 0 | V53: 5 | W53: 0 | X53: 7.08 | Y53: 0 | Z53: 0 | AA53: 0 | AB53: 0 | AC53: 0 | AD53: 0 | AE53: 12.08 | AF53: 943.82 | AH53: 948.15 | AI53: 7.75 | AJ53: 0 | AK53: -7.08 | AL53: 0 | AM53: 948.82 | AN53: 1302.75 | AO53: 0 | AP53: 2 | AQ53: 4.53 | AR53: 0 | AS53: 2.4 | AT53: 0 | AU53: 0 | AV53: 7.77 | AW53: 0 | AX53: 0 | AY53: 0 | AZ53: 16.7 | BA53: 0 | BB53: 0 | BC53: 0 | BD53: 0 | BE53: 0 | BF53: 7.77 | BG53: 0 | BH53: 0 | BI53: 0 | BJ53: 7.77 | BK53: 1311.67 | BL53: 1319.45
A54: 2022 | B54: 52 | C54: LEE CO PBLC SCHS | D54: 2757.92 | E54: 0 | F54: 1 | G54: 0 | H54: 0 | I54: 2.64 | J54: 0 | K54: 0 | L54: 2 | M54: 0 | N54: 0 | O54: 0 | P54: 0 | Q54: 0 | R54: 5.64 | S54: 0 | T54: 2 | U54: 0 | V54: 7.39 | W54: 0 | X54: 2 | Y54: 0 | Z54: 0 | AA54: 0 | AB54: 0 | AC54: 0 | AD54: 0 | AE54: 11.39 | AF54: 2752.18 | AH54: 2757.92 | AI54: 5.64 | AJ54: -2 | AK54: -2 | AL54: 0 | AM54: 2759.56 | AN54: 3363.55 | AO54: 0 | AP54: 1.78 | AQ54: 0 | AR54: 0 | AS54: 1.81 | AT54: 0 | AU54: 0 | AV54: 1.55 | AW54: 0 | AX54: 0 | AY54: 0 | AZ54: 5.15 | BA54: 0 | BB54: 0 | BC54: 1.12 | BD54: 0 | BE54: 0 | BF54: 1.55 | BG54: 0 | BH54: 0 | BI54: 0 | BJ54: 2.67 | BK54: 3366.04 | BL54: 3368.7
A55: 2022 | B55: 53 | C55: LOUDOUN CO PBLC SCHS | D55: 81228.84 | E55: 365.86 | F55: 76.22 | G55: 0 | H55: 16.87 | I55: 30.01 | J55: 0.98 | K55: 0 | L55: 38.78 | M55: 0 | N55: 0 | O55: 0 | P55: 0 | Q55: 0 | R55: 528.72 | S55: 0 | T55: 0 | U55: 1 | V55: 96.7 | W55: 0 | X55: 38.78 | Y55: 0 | Z55: 0 | AA55: 0 | AB55: 0 | AC55: 0 | AD55: 0 | AE55: 136.47 | AF55: 81621.09 | AH55: 81228.84 | AI55: 528.72 | AJ55: 0 | AK55: -38.78 | AL55: 0 | AM55: 81718.78 | AN55: 59079.17 | AO55: 150.6 | AP55: 29.89 | AQ55: 0 | AR55: 10.85 | AS55: 19.66 | AT55: 21.13 | AU55: 2.11 | AV55: 72.06 | AW55: 0 | AX55: 0 | AY55: 0 | AZ55: 306.31 | BA55: 29.11 | BB55: 0.03 | BC55: 1 | BD55: 0 | BE55: 0 | BF55: 72.06 | BG55: 0 | BH55: 0 | BI55: 0 | BJ55: 102.2 | BK55: 59283.28 | BL55: 59385.48
A56: 2022 | B56: 54 | C56: LOUISA CO PBLC SCHS | D56: 4946.26 | E56: 0 | F56: 3.02 | G56: 17.24 | H56: 0 | I56: 1.96 | J56: 7.05 | K56: 5.34 | L56: 35.21 | M56: 0 | N56: 0 | O56: 0 | P56: 0 | Q56: 0 | R56: 69.81 | S56: 0 | T56: 1 | U56: 0.98 | V56: 42.92 | W56: 0 | X56: 35.21 | Y56: 0 | Z56: 0 | AA56: 0 | AB56: 0 | AC56: 0 | AD56: 0 | AE56: 80.11 | AF56: 4935.97 | AH56: 4946.26 | AI56: 69.81 | AJ56: -1 | AK56: -35.21 | AL56: 0 | AM56: 4979.86 | AN56: 4517.64 | AO56: 0 | AP56: 1.97 | AQ56: 17.01 | AR56: 0 | AS56: 3.78 | AT56: 0 | AU56: 1 | AV56: 17.04 | AW56: 0 | AX56: 0 | AY56: 0 | AZ56: 40.8 | BA56: 0 | BB56: 0 | BC56: 0 | BD56: 13.5 | BE56: 0 | BF56: 17.04 | BG56: 0 | BH56: 0 | BI56: 0 | BJ56: 30.54 | BK56: 4527.89 | BL56: 4558.44
A57: 2022 | B57: 55 | C57: LUNENBURG CO PBLC SCHS | D57: 1484.84 | E57: 0 | F57: 1.89 | G57: 0 | H57: 0 | I57: 3.81 | J57: 2.32 | K57: 0.29 | L57: 14.64 | M57: 0 | N57: 0 | O57: 0 | P57: 0 | Q57: 0 | R57: 22.95 | S57: 0 | T57: 0 | U57: 0 | V57: 1 | W57: 0 | X57: 14.64 | Y57: 0 | Z57: 0 | AA57: 0 | AB57: 0 | AC57: 0 | AD57: 0 | AE57: 15.64 | AF57: 1492.15 | AH57: 1484.84 | AI57: 22.95 | AJ57: 0 | AK57: -14.64 | AL57: 0 | AM57: 1493.15 | AN57: 1544.7 | AO57: 0 | AP57: 4 | AQ57: 5.94 | AR57: 0 | AS57: 8.19 | AT57: 2.19 | AU57: 0 | AV57: 9.41 | AW57: 0 | AX57: 0 | AY57: 0 | AZ57: 29.73 | BA57: 0 | BB57: 0 | BC57: 0 | BD57: 0 | BE57: 0 | BF57: 9.41 | BG57: 0 | BH57: 0 | BI57: 0 | BJ57: 9.41 | BK57: 1565.02 | BL57: 1574.43
A58: 2022 | B58: 56 | C58: MADISON CO PBLC SCHS | D58: 1612.51 | E58: 0 | F58: 0 | G58: 0 | H58: 0.57 | I58: 5.07 | J58: 0 | K58: 0 | L58: 3.88 | M58: 0 | N58: 0 | O58: 0 | P58: 0 | Q58: 0 | R58: 9.52 | S58: 0 | T58: 0 | U58: 0 | V58: 5.92 | W58: 0 | X58: 3.88 | Y58: 0 | Z58: 0 | AA58: 0 | AB58: 0 | AC58: 0 | AD58: 0 | AE58: 9.8 | AF58: 1612.23 | AH58: 1612.51 | AI58: 9.52 | AJ58: 0 | AK58: -3.88 | AL58: 0 | AM58: 1618.15 | AN58: 1803.7 | AO58: 0 | AP58: 1 | AQ58: 0 | AR58: 0.87 | AS58: 0.98 | AT58: 0 | AU58: 0 | AV58: 6.11 | AW58: 0 | AX58: 0 | AY58: 0 | AZ58: 8.96 | BA58: 0 | BB58: 0 | BC58: 0 | BD58: 0 | BE58: 0 | BF58: 6.11 | BG58: 0 | BH58: 0 | BI58: 0 | BJ58: 6.11 | BK58: 1806.55 | BL58: 1812.66
A59: 2022 | B59: 57 | C59: MATHEWS CO PBLC SCHS | D59: 862.47 | E59: 0 | F59: 2 | G59: 1.74 | H59: 0 | I59: 0.5 | J59: 0 | K59: 0 | L59: 7.05 | M59: 0 | N59: 0 | O59: 0 | P59: 0 | Q59: 0 | R59: 11.29 | S59: 0 | T59: 0 | U59: 0 | V59: 7.17 | W59: 0 | X59: 7.05 | Y59: 0 | Z59: 0 | AA59: 0 | AB59: 0 | AC59: 0 | AD59: 0 | AE59: 14.22 | AF59: 859.53 | AH59: 862.47 | AI59: 11.29 | AJ59: 0 | AK59: -7.05 | AL59: 0 | AM59: 866.71 | AN59: 1234.11 | AO59: 0 | AP59: 1.95 | AQ59: 2.69 | AR59: 0 | AS59: 0 | AT59: 0 | AU59: 0 | AV59: 3.85 | AW59: 0 | AX59: 0 | AY59: 0 | AZ59: 8.49 | BA59: 0 | BB59: 0 | BC59: 0 | BD59: 0 | BE59: 0 | BF59: 3.85 | BG59: 0 | BH59: 0 | BI59: 0 | BJ59: 3.85 | BK59: 1238.75 | BL59: 1242.6
A60: 2022 | B60: 58 | C60: MECKLENBURG CO PBLC SCHS | D60: 3684.42 | E60: 0 | F60: 2 | G60: 0 | H60: 0.5 | I60: 6.04 | J60: 15.69 | K60: 0 | L60: 33.24 | M60: 0 | N60: 0 | O60: 0 | P60: 0 | Q60: 0 | R60: 57.47 | S60: 0 | T60: 0.18 | U60: 0 | V60: 1 | W60: 0 | X60: 33.24 | Y60: 0 | Z60: 0 | AA60: 0 | AB60: 0 | AC60: 0 | AD60: 0 | AE60: 34.42 | AF60: 3707.47 | AH60: 3684.42 | AI60: 57.47 | AJ60: -0.18 | AK60: -33.24 | AL60: 0 | AM60: 3708.47 | AN60: 4605.36 | AO60: 0 | AP60: 1.51 | AQ60: 0 | AR60: 0 | AS60: 3.46 | AT60: 0 | AU60: 0 | AV60: 27.99 | AW60: 0 | AX60: 0 | AY60: 0 | AZ60: 32.96 | BA60: 0 | BB60: 0 | BC60: 0 | BD60: 0 | BE60: 0 | BF60: 27.99 | BG60: 0 | BH60: 0 | BI60: 0 | BJ60: 27.99 | BK60: 4610.33 | BL60: 4638.32
A61: 2022 | B61: 59 | C61: MIDDLESEX CO PBLC SCHS | D61: 1157.85 | E61: 0.38 | F61: 0 | G61: 0.35 | H61: 0 | I61: 0 | J61: 0 | K61: 0 | L61: 10.21 | M61: 0 | N61: 0 | O61: 0 | P61: 0 | Q61: 0 | R61: 10.94 | S61: 0 | T61: 0 | U61: 0 | V61: 3 | W61: 0 | X61: 10.21 | Y61: 0 | Z61: 0 | AA61: 0 | AB61: 0 | AC61: 0 | AD61: 0 | AE61: 13.21 | AF61: 1155.57 | AH61: 1157.85 | AI61: 10.94 | AJ61: 0 | AK61: -10.21 | AL61: 0 | AM61: 1158.58 | AN61: 1169.12 | AO61: 0 | AP61: 1.99 | AQ61: 6.94 | AR61: 0 | AS61: 2.16 | AT61: 1.99 | AU61: 6.75 | AV61: 1.99 | AW61: 0 | AX61: 0 | AY61: 0 | AZ61: 21.81 | BA61: 0 | BB61: 0 | BC61: 0 | BD61: 3.98 | BE61: 0 | BF61: 1.99 | BG61: 0 | BH61: 0 | BI61: 0 | BJ61: 5.97 | BK61: 1184.97 | BL61: 1190.93
A62: 2022 | B62: 60 | C62: MONTGOMERY CO PBLC SCHS | D62: 9412.03 | E62: 0 | F62: 14 | G62: 0 | H62: 0 | I62: 4.8 | J62: 30.46 | K62: 0 | L62: 11.27 | M62: 0 | N62: 0 | O62: 0 | P62: 0 | Q62: 0.95 | R62: 61.48 | S62: 0 | T62: 0 | U62: 0.37 | V62: 16.84 | W62: 0 | X62: 11.27 | Y62: 0 | Z62: 0 | AA62: 0 | AB62: 0 | AC62: 0 | AD62: 0 | AE62: 28.48 | AF62: 9445.03 | AH62: 9412.03 | AI62: 61.48 | AJ62: 0 | AK62: -11.27 | AL62: 0 | AM62: 9462.24 | AN62: 9468 | AO62: 0 | AP62: 1.06 | AQ62: 0 | AR62: 0 | AS62: 29.39 | AT62: 0 | AU62: 6.98 | AV62: 5 | AW62: 0 | AX62: 0 | AY62: 0 | AZ62: 42.43 | BA62: 27.59 | BB62: 0 | BC62: 0 | BD62: 0 | BE62: 0 | BF62: 5 | BG62: 0 | BH62: 0 | BI62: 0 | BJ62: 32.59 | BK62: 9477.84 | BL62: 9510.43
A63: 2022 | B63: 62 | C63: NELSON CO PBLC SCHS | D63: 1413.11 | E63: 0 | F63: 0 | G63: 0.61 | H63: 0 | I63: 5.19 | J63: 0 | K63: 0 | L63: 11.57 | M63: 0 | N63: 0 | O63: 0 | P63: 0 | Q63: 0 | R63: 17.38 | S63: 0 | T63: 0 | U63: 0 | V63: 7.65 | W63: 0 | X63: 11.57 | Y63: 0 | Z63: 0 | AA63: 0 | AB63: 0 | AC63: 0 | AD63: 0 | AE63: 19.22 | AF63: 1411.26 | AH63: 1413.11 | AI63: 17.38 | AJ63: 0 | AK63: -11.57 | AL63: 0 | AM63: 1418.92 | AN63: 1881.2 | AO63: 0 | AP63: 0.28 | AQ63: 0 | AR63: 0 | AS63: 10.49 | AT63: 0 | AU63: 0 | AV63: 10.96 | AW63: 0 | AX63: 0 | AY63: 0 | AZ63: 21.72 | BA63: 1.44 | BB63: 0.98 | BC63: 0 | BD63: 5 | BE63: 0 | BF63: 10.96 | BG63: 0 | BH63: 0 | BI63: 0 | BJ63: 18.38 | BK63: 1884.55 | BL63: 1902.92
A64: 2022 | B64: 63 | C64: NEW KENT CO PBLC SCHS | D64: 3384.92 | E64: 0 | F64: 1 | G64: 2.83 | H64: 0 | I64: 0 | J64: 0 | K64: 0 | L64: 3.02 | M64: 0 | N64: 0 | O64: 0 | P64: 0 | Q64: 0 | R64: 6.85 | S64: 0 | T64: 0 | U64: 0 | V64: 4.98 | W64: 0 | X64: 3.02 | Y64: 0 | Z64: 0 | AA64: 0 | AB64: 0 | AC64: 0 | AD64: 0 | AE64: 8 | AF64: 3383.77 | AH64: 3384.92 | AI64: 6.85 | AJ64: 0 | AK64: -3.02 | AL64: 0 | AM64: 3388.75 | AN64: 2775.17 | AO64: 1 | AP64: 0.23 | AQ64: 0.92 | AR64: 0 | AS64: 8.73 | AT64: 0 | AU64: 0 | AV64: 13.46 | AW64: 0 | AX64: 0 | AY64: 0 | AZ64: 24.34 | BA64: 0 | BB64: 0 | BC64: 0 | BD64: 0 | BE64: 0 | BF64: 13.46 | BG64: 0 | BH64: 0 | BI64: 0 | BJ64: 13.46 | BK64: 2786.05 | BL64: 2799.51
A65: 2022 | B65: 65 | C65: NORTHAMPTON CO PBLC SCHS | D65: 1283.2 | E65: 0 | F65: 2 | G65: 0 | H65: 0 | I65: 0 | J65: 0 | K65: 0 | L65: 3.4 | M65: 0 | N65: 0 | O65: 0 | P65: 0 | Q65: 0 | R65: 5.4 | S65: 0 | T65: 0 | U65: 0 | V65: 5 | W65: 0 | X65: 3.4 | Y65: 0 | Z65: 0 | AA65: 0 | AB65: 0 | AC65: 0 | AD65: 0 | AE65: 8.4 | AF65: 1280.2 | AH65: 1283.2 | AI65: 5.4 | AJ65: 0 | AK65: -3.4 | AL65: 0 | AM65: 1285.2 | AN65: 1671.75 | AO65: 0 | AP65: 0 | AQ65: 0 | AR65: 0 | AS65: 17.58 | AT65: 0 | AU65: 1 | AV65: 5.08 | AW65: 0 | AX65: 0 | AY65: 0 | AZ65: 23.67 | BA65: 0 | BB65: 1 | BC65: 0 | BD65: 0 | BE65: 0 | BF65: 5.08 | BG65: 0 | BH65: 0 | BI65: 0 | BJ65: 6.08 | BK65: 1689.33 | BL65: 1695.42
A66: 2022 | B66: 66 | C66: NORTHUMBERLAND CO PBLC SCHS | D66: 1123.56 | E66: 0 | F66: 0 | G66: 2.41 | H66: 0 | I66: 1.56 | J66: 4.97 | K66: 0 | L66: 5.38 | M66: 0 | N66: 0 | O66: 0 | P66: 0 | Q66: 0 | R66: 14.31 | S66: 0 | T66: 0 | U66: 0 | V66: 0 | W66: 0 | X66: 5.38 | Y66: 0 | Z66: 0 | AA66: 0 | AB66: 0 | AC66: 0 | AD66: 0 | AE66: 5.38 | AF66: 1132.49 | AH66: 1123.56 | AI66: 14.31 | AJ66: 0 | AK66: -5.38 | AL66: 0 | AM66: 1132.49 | AN66: 1360.22 | AO66: 0 | AP66: 2 | AQ66: 0 | AR66: 0 | AS66: 10.48 | AT66: 0 | AU66: 0 | AV66: 3.86 | AW66: 0 | AX66: 0 | AY66: 0 | AZ66: 16.34 | BA66: 0 | BB66: 0 | BC66: 0 | BD66: 0 | BE66: 0 | BF66: 3.86 | BG66: 0 | BH66: 0 | BI66: 0 | BJ66: 3.86 | BK66: 1372.7 | BL66: 1376.56
A67: 2022 | B67: 67 | C67: NOTTOWAY CO PBLC SCHS | D67: 1711.82 | E67: 0 | F67: 0.98 | G67: 1.53 | H67: 0 | I67: 0.1 | J67: 2.2 | K67: 1 | L67: 5.22 | M67: 0 | N67: 0 | O67: 0 | P67: 0 | Q67: 0 | R67: 11.03 | S67: 0 | T67: 0 | U67: 0 | V67: 0 | W67: 0 | X67: 5.22 | Y67: 0 | Z67: 0 | AA67: 0 | AB67: 0 | AC67: 0 | AD67: 0 | AE67: 5.22 | AF67: 1717.63 | AH67: 1711.82 | AI67: 11.03 | AJ67: 0 | AK67: -5.22 | AL67: 0 | AM67: 1717.63 | AN67: 2157.61 | AO67: 1.99 | AP67: 3 | AQ67: 6.33 | AR67: 0 | AS67: 1.65 | AT67: 0 | AU67: 0 | AV67: 4.71 | AW67: 0 | AX67: 0 | AY67: 0 | AZ67: 17.69 | BA67: 0 | BB67: 0 | BC67: 0 | BD67: 0 | BE67: 0 | BF67: 4.71 | BG67: 0 | BH67: 0 | BI67: 0 | BJ67: 4.71 | BK67: 2170.59 | BL67: 2175.3
A68: 2022 | B68: 68 | C68: ORANGE CO PBLC SCHS | D68: 4752.26 | E68: 0 | F68: 7.59 | G68: 0 | H68: 0.5 | I68: 9.27 | J68: 0 | K68: 1.66 | L68: 31.28 | M68: 0 | N68: 0 | O68: 0 | P68: 0 | Q68: 0 | R68: 50.3 | S68: 0 | T68: 0 | U68: 0 | V68: 16.43 | W68: 0 | X68: 31.28 | Y68: 0 | Z68: 0 | AA68: 0 | AB68: 0 | AC68: 0 | AD68: 0 | AE68: 47.71 | AF68: 4754.85 | AH68: =D68 -> 4752.26 | AI68: =R68 -> 50.3 | AJ68: =-T68 -> 0 | AK68: =-X68 -> -31.28 | AL68: =-SUM(W68,Y68:AB68) -> 0 | AM68: =SUM(AH68:AL68) -> 4771.28 | AN68: 5036.81 | AO68: 0 | AP68: 5.37 | AQ68: 0 | AR68: 0.13 | AS68: 9.06 | AT68: 0 | AU68: 0 | AV68: 0 | AW68: 0 | AX68: 0 | AY68: 0 | AZ68: 14.57 | BA68: 0 | BB68: 0 | BC68: 0 | BD68: 4.01 | BE68: 0.14 | BF68: 0 | BG68: 0 | BH68: 0 | BI68: 0 | BJ68: 4.15 | BK68: 5047.22 | BL68: =AN68+AZ68 -> 5051.38
A69: 2022 | B69: 69 | C69: PAGE CO PBLC SCHS | D69: 2901.38 | E69: 0 | F69: 0 | G69: 0 | H69: 1 | I69: 0 | J69: 0 | K69: 0 | L69: 12.64 | M69: 0 | N69: 0 | O69: 0 | P69: 0 | Q69: 0 | R69: 13.64 | S69: 0 | T69: 0 | U69: 0 | V69: 21.43 | W69: 0 | X69: 12.64 | Y69: 0 | Z69: 0 | AA69: 0 | AB69: 0 | AC69: 0 | AD69: 0 | AE69: 34.07 | AF69: 2880.95 | AH69: 2901.38 | AI69: 13.64 | AJ69: 0 | AK69: -12.64 | AL69: 0 | AM69: 2902.38 | AN69: 3511.1 | AO69: 0 | AP69: 2 | AQ69: 0 | AR69: 0 | AS69: 7.78 | AT69: 0 | AU69: 0 | AV69: 14.8 | AW69: 0 | AX69: 0 | AY69: 0 | AZ69: 24.58 | BA69: 0 | BB69: 1.96 | BC69: 0 | BD69: 37.31 | BE69: 0 | BF69: 14.8 | BG69: 0 | BH69: 0 | BI69: 0 | BJ69: 54.08 | BK69: 3481.61 | BL69: 3535.68
A70: 2022 | B70: 70 | C70: PATRICK CO PBLC SCHS | D70: 2351.89 | E70: 0 | F70: 0 | G70: 0 | H70: 0 | I70: 5.06 | J70: 1.04 | K70: 0 | L70: 1.39 | M70: 0 | N70: 19.05 | O70: 0 | P70: 0 | Q70: 0 | R70: 26.54 | S70: 0 | T70: 0 | U70: 0 | V70: 1 | W70: 0 | X70: 1.39 | Y70: 0 | Z70: 0 | AA70: 0 | AB70: 0 | AC70: 0 | AD70: 0 | AE70: 2.39 | AF70: 2376.04 | AH70: 2351.89 | AI70: 26.54 | AJ70: 0 | AK70: -1.39 | AL70: 0 | AM70: 2377.04 | AN70: 2490.92 | AO70: 0 | AP70: 1 | AQ70: 0 | AR70: 0 | AS70: 2.86 | AT70: 3.62 | AU70: 0 | AV70: 0 | AW70: 0 | AX70: 0 | AY70: 0 | AZ70: 7.48 | BA70: 0 | BB70: 0 | BC70: 0 | BD70: 0 | BE70: 0 | BF70: 0 | BG70: 0 | BH70: 0 | BI70: 0 | BJ70: 0 | BK70: 2498.4 | BL70: 2498.4
A71: 2022 | B71: 71 | C71: PITTSYLVANIA CO PBLC SCHS | D71: 7494.93 | E71: 0 | F71: 2 | G71: 53.37 | H71: 0.63 | I71: 0.9 | J71: 5.04 | K71: 0 | L71: 44.69 | M71: 0 | N71: 0 | O71: 0 | P71: 0 | Q71: 0 | R71: 106.62 | S71: 0 | T71: 0 | U71: 0 | V71: 10.88 | W71: 0 | X71: 44.69 | Y71: 0 | Z71: 0 | AA71: 0 | AB71: 0 | AC71: 0 | AD71: 0 | AE71: 55.57 | AF71: 7545.99 | AH71: 7494.93 | AI71: 106.62 | AJ71: 0 | AK71: -44.69 | AL71: 0 | AM71: 7556.86 | AN71: 8887.01 | AO71: 0 | AP71: 7 | AQ71: 17.79 | AR71: 0.71 | AS71: 27.09 | AT71: 11.2 | AU71: 0 | AV71: 86.75 | AW71: 0 | AX71: 0 | AY71: 0 | AZ71: 150.54 | BA71: 0 | BB71: 0 | BC71: 0 | BD71: 2 | BE71: 0 | BF71: 86.75 | BG71: 0 | BH71: 0 | BI71: 0 | BJ71: 88.75 | BK71: 8948.8 | BL71: 9037.55
A72: 2022 | B72: 72 | C72: POWHATAN CO PBLC SCHS | D72: 4075.78 | E72: 0 | F72: 5 | G72: 20.19 | H72: 4.38 | I72: 7.21 | J72: 3.24 | K72: 0 | L72: 22.5 | M72: 0 | N72: 0 | O72: 0 | P72: 0 | Q72: 0 | R72: 62.52 | S72: 0 | T72: 0 | U72: 0 | V72: 8 | W72: 0 | X72: 22.5 | Y72: 0 | Z72: 0 | AA72: 0 | AB72: 0 | AC72: 0 | AD72: 0 | AE72: 30.5 | AF72: 4107.8 | AH72: 4075.78 | AI72: 62.52 | AJ72: 0 | AK72: -22.5 | AL72: 0 | AM72: 4115.8 | AN72: 4412.89 | AO72: 0 | AP72: 0.93 | AQ72: 0 | AR72: 3 | AS72: 3.01 | AT72: 0 | AU72: 0 | AV72: 28.99 | AW72: 0 | AX72: 0 | AY72: 0 | AZ72: 35.93 | BA72: 1 | BB72: 0 | BC72: 0 | BD72: 0 | BE72: 0 | BF72: 28.99 | BG72: 0 | BH72: 0 | BI72: 0 | BJ72: 29.99 | BK72: 4418.83 | BL72: 4448.82
A73: 2022 | B73: 73 | C73: PRINCE EDWARD CO PBLC SCHS | D73: 1768.38 | E73: 0 | F73: 1 | G73: 0 | H73: 0.5 | I73: 9.95 | J73: 0 | K73: 0 | L73: 1 | M73: 0 | N73: 0 | O73: 0 | P73: 0 | Q73: 0 | R73: 12.45 | S73: 4 | T73: 0 | U73: 0 | V73: 0.25 | W73: 0 | X73: 1 | Y73: 0 | Z73: 0 | AA73: 0 | AB73: 0 | AC73: 0 | AD73: 0 | AE73: 5.25 | AF73: 1775.58 | AH73: 1768.38 | AI73: 12.45 | AJ73: 0 | AK73: -1 | AL73: 0 | AM73: 1779.83 | AN73: 2453.11 | AO73: 0 | AP73: 4.74 | AQ73: 0 | AR73: 0 | AS73: 2.96 | AT73: 0 | AU73: 0 | AV73: 14.08 | AW73: 0 | AX73: 0 | AY73: 0 | AZ73: 21.78 | BA73: 0 | BB73: 0.45 | BC73: 0 | BD73: 0 | BE73: 1 | BF73: 14.08 | BG73: 0 | BH73: 0 | BI73: 0 | BJ73: 15.53 | BK73: 2459.36 | BL73: 2474.89
A74: 2022 | B74: 74 | C74: PRINCE GEORGE CO PBLC SCHS | D74: 5871.02 | E74: 0 | F74: 2 | G74: 0 | H74: 0.05 | I74: 1.02 | J74: 5.05 | K74: 0 | L74: 23.48 | M74: 0 | N74: 0 | O74: 0 | P74: 0 | Q74: 0 | R74: 31.59 | S74: 0 | T74: 0 | U74: 0 | V74: 11.86 | W74: 0 | X74: 23.48 | Y74: 0 | Z74: 0 | AA74: 0 | AB74: 0 | AC74: 0 | AD74: 0 | AE74: 35.33 | AF74: 5867.29 | AH74: 5871.02 | AI74: 31.59 | AJ74: 0 | AK74: -23.48 | AL74: 0 | AM74: 5879.13 | AN74: 6129.92 | AO74: 13.43 | AP74: 1 | AQ74: 0 | AR74: 0 | AS74: 10.77 | AT74: 0 | AU74: 2.91 | AV74: 13.36 | AW74: 0 | AX74: 0 | AY74: 0 | AZ74: 41.47 | BA74: 0 | BB74: 0 | BC74: 0 | BD74: 0 | BE74: 6.1 | BF74: 13.36 | BG74: 0 | BH74: 0 | BI74: 0 | BJ74: 19.46 | BK74: 6151.93 | BL74: 6171.39
A75: 2022 | B75: 75 | C75: PRINCE WILLIAM CO PBLC SCHS | D75: 88605.8 | E75: 151.47 | F75: 65.99 | G75: 25.32 | H75: 5.74 | I75: 9.91 | J75: 88.11 | K75: 0.96 | L75: 195.74 | M75: 0 | N75: 0 | O75: 0 | P75: 0 | Q75: 0 | R75: 543.23 | S75: 0 | T75: 1.72 | U75: 2.63 | V75: 307.86 | W75: 0 | X75: 195.74 | Y75: 0 | Z75: 0 | AA75: 0 | AB75: 0 | AC75: 0 | AD75: 0 | AE75: 507.96 | AF75: 88641.08 | AH75: 88605.8 | AI75: 543.23 | AJ75: -1.72 | AK75: -195.74 | AL75: 0 | AM75: 88951.57 | AN75: 75875.46 | AO75: 50.99 | AP75: 54.05 | AQ75: 110.3 | AR75: 5.63 | AS75: 22.39 | AT75: 59.14 | AU75: 5.89 | AV75: 36.56 | AW75: 0 | AX75: 0 | AY75: 0 | AZ75: 344.95 | BA75: 0.25 | BB75: 3.94 | BC75: 2.27 | BD75: 1131.15 | BE75: 2.95 | BF75: 36.56 | BG75: 0 | BH75: 0 | BI75: 0 | BJ75: 1177.11 | BK75: 75043.3 | BL75: 76220.41
A76: 2022 | B76: 77 | C76: PULASKI CO PBLC SCHS | D76: 3773.6 | E76: 0 | F76: 1 | G76: 0 | H76: 0 | I76: 1.2 | J76: 17.05 | K76: 0 | L76: 22.41 | M76: 0 | N76: 0 | O76: 0 | P76: 0 | Q76: 0 | R76: 41.66 | S76: 0 | T76: 2 | U76: 0 | V76: 8 | W76: 0 | X76: 22.41 | Y76: 0 | Z76: 0 | AA76: 0 | AB76: 0 | AC76: 0 | AD76: 0 | AE76: 32.41 | AF76: 3782.85 | AH76: 3773.6 | AI76: 41.66 | AJ76: -2 | AK76: -22.41 | AL76: 0 | AM76: 3790.85 | AN76: 4550.18 | AO76: 0 | AP76: 6.7 | AQ76: 0 | AR76: 0 | AS76: 14.54 | AT76: 0 | AU76: 0 | AV76: 43.08 | AW76: 0 | AX76: 0 | AY76: 0 | AZ76: 64.32 | BA76: 0 | BB76: 0 | BC76: 0 | BD76: 0 | BE76: 0 | BF76: 43.08 | BG76: 0 | BH76: 0 | BI76: 0 | BJ76: 43.08 | BK76: 4571.42 | BL76: 4614.5
A77: 2022 | B77: 78 | C77: RAPPAHANNOCK CO PBLC SCHS | D77: 678.27 | E77: 0 | F77: 0 | G77: 1.94 | H77: 0.16 | I77: 0.92 | J77: 0 | K77: 0 | L77: 4.46 | M77: 0 | N77: 0 | O77: 0 | P77: 0 | Q77: 0 | R77: 7.48 | S77: 0 | T77: 0 | U77: 0 | V77: 0 | W77: 0 | X77: 4.46 | Y77: 0 | Z77: 0 | AA77: 0 | AB77: 0 | AC77: 0 | AD77: 0 | AE77: 4.46 | AF77: 681.29 | AH77: 678.27 | AI77: 7.48 | AJ77: 0 | AK77: -4.46 | AL77: 0 | AM77: 681.29 | AN77: 928.19 | AO77: 0.54 | AP77: 0 | AQ77: 0 | AR77: 0 | AS77: 1.3 | AT77: 0 | AU77: 0 | AV77: 0 | AW77: 0 | AX77: 0 | AY77: 0 | AZ77: 1.84 | BA77: 0 | BB77: 0 | BC77: 0 | BD77: 0 | BE77: 0 | BF77: 0 | BG77: 0 | BH77: 0 | BI77: 0 | BJ77: 0 | BK77: 930.03 | BL77: 930.03
A78: 2022 | B78: 79 | C78: RICHMOND CO PBLC SCHS | D78: 1307.43 | E78: 0 | F78: 1 | G78: 0 | H78: 0 | I78: 0.2 | J78: 0 | K78: 0 | L78: 3.91 | M78: 0 | N78: 0 | O78: 0 | P78: 0 | Q78: 0 | R78: 5.11 | S78: 0 | T78: 0 | U78: 0 | V78: 4.89 | W78: 0 | X78: 3.91 | Y78: 0 | Z78: 0 | AA78: 0 | AB78: 0 | AC78: 0 | AD78: 0 | AE78: 8.81 | AF78: 1303.74 | AH78: 1307.43 | AI78: 5.11 | AJ78: 0 | AK78: -3.91 | AL78: 0 | AM78: 1308.63 | AN78: 1199.66 | AO78: 0 | AP78: 2 | AQ78: 0.13 | AR78: 0 | AS78: 9.32 | AT78: 0.97 | AU78: 0 | AV78: 2.15 | AW78: 0 | AX78: 0 | AY78: 0 | AZ78: 14.57 | BA78: 0 | BB78: 0 | BC78: 0 | BD78: 0 | BE78: 0 | BF78: 2.15 | BG78: 0 | BH78: 0 | BI78: 0 | BJ78: 2.15 | BK78: 1212.08 | BL78: 1214.23
A79: 2022 | B79: 80 | C79: ROANOKE CO PBLC SCHS | D79: 13372.77 | E79: 0 | F79: 5.83 | G79: 0 | H79: 0.11 | I79: 9.42 | J79: 8.85 | K79: 0 | L79: 88.73 | M79: 0 | N79: 0 | O79: 0 | P79: 0 | Q79: 0 | R79: 112.94 | S79: 0 | T79: 0 | U79: 0 | V79: 37.85 | W79: 0 | X79: 88.73 | Y79: 0 | Z79: 0 | AA79: 0 | AB79: 0 | AC79: 0 | AD79: 0 | AE79: 126.58 | AF79: 13359.13 | AH79: 13372.77 | AI79: 112.94 | AJ79: 0 | AK79: -88.73 | AL79: 0 | AM79: 13396.98 | AN79: 14419.37 | AO79: 0 | AP79: 9 | AQ79: 5.14 | AR79: 0 | AS79: 26.61 | AT79: 0 | AU79: 0 | AV79: 67.08 | AW79: 0 | AX79: 0 | AY79: 0 | AZ79: 107.83 | BA79: 0 | BB79: 0 | BC79: 0 | BD79: 3.91 | BE79: 0 | BF79: 67.08 | BG79: 0 | BH79: 0 | BI79: 0 | BJ79: 70.99 | BK79: 14456.21 | BL79: 14527.2
A80: 2022 | B80: 81 | C80: ROCKBRIDGE CO PBLC SCHS | D80: 2415.54 | E80: 0 | F80: 0 | G80: 0 | H80: 1 | I80: 3.53 | J80: 0 | K80: 0 | L80: 42.49 | M80: 0 | N80: 0 | O80: 0 | P80: 0 | Q80: 0 | R80: 47.02 | S80: 0 | T80: 0.24 | U80: 0 | V80: 10.66 | W80: 166.15 | X80: 42.49 | Y80: 0 | Z80: 0 | AA80: 0 | AB80: 0 | AC80: 0 | AD80: 0 | AE80: 219.53 | AF80: 2243.03 | AH80: 2415.54 | AI80: 47.02 | AJ80: -0.24 | AK80: -42.49 | AL80: -166.15 | AM80: 2253.68 | AN80: 2630.81 | AO80: 0 | AP80: 0 | AQ80: 0 | AR80: 0 | AS80: 6.01 | AT80: 0.24 | AU80: 0 | AV80: 44.7 | AW80: 0 | AX80: 0 | AY80: 0 | AZ80: 50.94 | BA80: 0 | BB80: 1.75 | BC80: 0 | BD80: 1 | BE80: 130.33 | BF80: 44.7 | BG80: 0 | BH80: 0 | BI80: 0 | BJ80: 177.79 | BK80: 2503.97 | BL80: 2681.75
A81: 2022 | B81: 82 | C81: ROCKINGHAM CO PBLC SCHS | D81: 11003.11 | E81: 0 | F81: 19.09 | G81: 0 | H81: 4.21 | I81: 9.29 | J81: 8.96 | K81: 0 | L81: 43.97 | M81: 0 | N81: 0 | O81: 0 | P81: 0 | Q81: 0 | R81: 85.53 | S81: 0 | T81: 0 | U81: 0 | V81: 61.76 | W81: 0 | X81: 43.97 | Y81: 0 | Z81: 0 | AA81: 0 | AB81: 0 | AC81: 0 | AD81: 0 | AE81: 105.74 | AF81: 10982.9 | AH81: 11003.11 | AI81: 85.53 | AJ81: 0 | AK81: -43.97 | AL81: 0 | AM81: 11044.67 | AN81: 11394.57 | AO81: 0 | AP81: 14.85 | AQ81: 0 | AR81: 11.11 | AS81: 10.99 | AT81: 0 | AU81: 0 | AV81: 25.03 | AW81: 0 | AX81: 0 | AY81: 0 | AZ81: 61.99 | BA81: 1 | BB81: 1 | BC81: 0 | BD81: 87.35 | BE81: 0 | BF81: 25.03 | BG81: 0 | BH81: 0 | BI81: 0 | BJ81: 114.39 | BK81: 11342.17 | BL81: 11456.56
A82: 2022 | B82: 83 | C82: RUSSELL CO PBLC SCHS | D82: 3173.24 | E82: 0 | F82: 0 | G82: 0 | H82: 0 | I82: 7.13 | J82: 0 | K82: 0 | L82: 0 | M82: 0 | N82: 0 | O82: 0 | P82: 0 | Q82: 0 | R82: 7.13 | S82: 0 | T82: 1.01 | U82: 0 | V82: 0 | W82: 0 | X82: 0 | Y82: 0 | Z82: 0 | AA82: 0 | AB82: 0 | AC82: 0 | AD82: 0 | AE82: 1.01 | AF82: 3179.36 | AH82: 3173.24 | AI82: 7.13 | AJ82: -1.01 | AK82: 0 | AL82: 0 | AM82: 3179.36 | AN82: 4038.87 | AO82: 0 | AP82: 0 | AQ82: 0 | AR82: 0 | AS82: 21.8 | AT82: 0 | AU82: 0 | AV82: 0 | AW82: 0 | AX82: 0 | AY82: 0 | AZ82: 21.8 | BA82: 2.86 | BB82: 0 | BC82: 0 | BD82: 0 | BE82: 0 | BF82: 0 | BG82: 0 | BH82: 0 | BI82: 0 | BJ82: 2.86 | BK82: 4057.81 | BL82: 4060.67
A83: 2022 | B83: 84 | C83: SCOTT CO PBLC SCHS | D83: 3381.53 | E83: 0 | F83: 0 | G83: 0 | H83: 1.49 | I83: 0.74 | J83: 0 | K83: 0 | L83: 0 | M83: 0 | N83: 412.64 | O83: 0 | P83: 0 | Q83: 0 | R83: 414.87 | S83: 0 | T83: 0 | U83: 0 | V83: 12.98 | W83: 0 | X83: 0 | Y83: 0 | Z83: 0 | AA83: 0 | AB83: 0 | AC83: 0 | AD83: 0 | AE83: 12.98 | AF83: 3783.42 | AH83: 3381.53 | AI83: 414.87 | AJ83: 0 | AK83: 0 | AL83: 0 | AM83: 3796.4 | AN83: 3738.87 | AO83: 0 | AP83: 0 | AQ83: 0 | AR83: 0 | AS83: 10.84 | AT83: 0 | AU83: 0 | AV83: 0.3 | AW83: 0 | AX83: 0 | AY83: 0 | AZ83: 11.14 | BA83: 0 | BB83: 0 | BC83: 0 | BD83: 0 | BE83: 0 | BF83: 0.3 | BG83: 0 | BH83: 0 | BI83: 0 | BJ83: 0.3 | BK83: 3749.71 | BL83: 3750.01
A84: 2022 | B84: 85 | C84: SHENANDOAH CO PBLC SCHS | D84: 5394.53 | E84: 0 | F84: 7 | G84: 0 | H84: 0 | I84: 0.47 | J84: 5.34 | K84: 0 | L84: 25.85 | M84: 0 | N84: 0 | O84: 0 | P84: 0 | Q84: 0 | R84: 38.66 | S84: 0 | T84: 0.98 | U84: 0 | V84: 32.72 | W84: 0 | X84: 25.85 | Y84: 0 | Z84: 0 | AA84: 0 | AB84: 0 | AC84: 0 | AD84: 0 | AE84: 59.55 | AF84: 5373.64 | AH84: 5394.53 | AI84: 38.66 | AJ84: -0.98 | AK84: -25.85 | AL84: 0 | AM84: 5406.36 | AN84: 6031.7 | AO84: 0.96 | AP84: 4 | AQ84: 0 | AR84: 3.52 | AS84: 23.79 | AT84: 0 | AU84: 0 | AV84: 20.28 | AW84: 0 | AX84: 0 | AY84: 0 | AZ84: 52.55 | BA84: 0 | BB84: 0 | BC84: 0 | BD84: 63.13 | BE84: 0 | BF84: 20.28 | BG84: 0 | BH84: 0 | BI84: 0 | BJ84: 83.41 | BK84: 6000.84 | BL84: 6084.25
A85: 2022 | B85: 86 | C85: SMYTH CO PBLC SCHS | D85: 3789.85 | E85: 0 | F85: 6 | G85: 0 | H85: 0.12 | I85: 1.84 | J85: 0 | K85: 0.24 | L85: 15.09 | M85: 0 | N85: 0 | O85: 0 | P85: 0 | Q85: 0 | R85: 23.29 | S85: 0 | T85: 0 | U85: 0 | V85: 34 | W85: 0 | X85: 15.09 | Y85: 0 | Z85: 0 | AA85: 0 | AB85: 0 | AC85: 0 | AD85: 0 | AE85: 49.09 | AF85: 3764.06 | AH85: 3789.85 | AI85: 23.29 | AJ85: 0 | AK85: -15.09 | AL85: 0 | AM85: 3798.05 | AN85: 4762.56 | AO85: 0 | AP85: 3.98 | AQ85: 0 | AR85: 0 | AS85: 20.76 | AT85: 1 | AU85: 0.44 | AV85: 10.07 | AW85: 0 | AX85: 0 | AY85: 0 | AZ85: 36.26 | BA85: 0 | BB85: 0 | BC85: 0 | BD85: 9.75 | BE85: 0 | BF85: 10.07 | BG85: 0 | BH85: 0 | BI85: 0 | BJ85: 19.83 | BK85: 4778.99 | BL85: 4798.82
A86: 2022 | B86: 87 | C86: SOUTHAMPTON CO PBLC SCHS | D86: 2406.64 | E86: 0 | F86: 0 | G86: 0 | H86: 0 | I86: 0.17 | J86: 0 | K86: 0 | L86: 9.51 | M86: 0 | N86: 0 | O86: 0 | P86: 0 | Q86: 0 | R86: 9.67 | S86: 0 | T86: 0 | U86: 0 | V86: 14.8 | W86: 0 | X86: 9.51 | Y86: 0 | Z86: 0 | AA86: 0 | AB86: 0 | AC86: 0 | AD86: 0 | AE86: 24.31 | AF86: 2392 | AH86: 2406.64 | AI86: 9.67 | AJ86: 0 | AK86: -9.51 | AL86: 0 | AM86: 2406.8 | AN86: 2777.76 | AO86: 4.68 | AP86: 2.12 | AQ86: 0 | AR86: 0 | AS86: 8.21 | AT86: 0 | AU86: 0 | AV86: 3.49 | AW86: 0 | AX86: 0 | AY86: 0 | AZ86: 18.5 | BA86: 0 | BB86: 0 | BC86: 0 | BD86: 23.28 | BE86: 0 | BF86: 3.49 | BG86: 0 | BH86: 0 | BI86: 0 | BJ86: 26.78 | BK86: 2769.49 | BL86: 2796.26
A87: 2022 | B87: 88 | C87: SPOTSYLVANIA CO PBLC SCHS | D87: 23576.57 | E87: 0 | F87: 23.26 | G87: 0 | H87: 2.24 | I87: 22.51 | J87: 32.83 | K87: 3 | L87: 81.74 | M87: 0 | N87: 0 | O87: 0 | P87: 0 | Q87: 0 | R87: 165.58 | S87: 0 | T87: 0 | U87: 0 | V87: 56.66 | W87: 0 | X87: 81.74 | Y87: 0 | Z87: 0 | AA87: 0 | AB87: 0 | AC87: 0 | AD87: 0 | AE87: 138.39 | AF87: 23603.76 | AH87: 23576.57 | AI87: 165.58 | AJ87: 0 | AK87: -81.74 | AL87: 0 | AM87: 23660.41 | AN87: 23671.79 | AO87: 0 | AP87: 7.53 | AQ87: 0 | AR87: 0 | AS87: 35.61 | AT87: 0 | AU87: 2.49 | AV87: 32.34 | AW87: 0 | AX87: 0 | AY87: 0 | AZ87: 77.97 | BA87: 17.66 | BB87: 2.36 | BC87: 5.89 | BD87: 16.83 | BE87: 0 | BF87: 32.34 | BG87: 0 | BH87: 0 | BI87: 0 | BJ87: 75.07 | BK87: 23674.69 | BL87: 23749.76
A88: 2022 | B88: 89 | C88: STAFFORD CO PBLC SCHS | D88: 30530.9 | E88: 0 | F88: 26.57 | G88: 22.83 | H88: 6.08 | I88: 9.23 | J88: 8.92 | K88: 0 | L88: 61.8 | M88: 0 | N88: 0 | O88: 0 | P88: 0 | Q88: 0 | R88: 135.43 | S88: 0 | T88: 0.14 | U88: 0 | V88: 25.82 | W88: 0 | X88: 61.8 | Y88: 0 | Z88: 0 | AA88: 0 | AB88: 0 | AC88: 0 | AD88: 0 | AE88: 87.76 | AF88: 30578.57 | AH88: 30530.9 | AI88: 135.43 | AJ88: -0.14 | AK88: -61.8 | AL88: 0 | AM88: 30604.39 | AN88: 26605.01 | AO88: 0 | AP88: 14.01 | AQ88: 0 | AR88: 5.53 | AS88: 8.28 | AT88: 0 | AU88: 0 | AV88: 47.27 | AW88: 0 | AX88: 0 | AY88: 0 | AZ88: 75.1 | BA88: 0 | BB88: 0 | BC88: 0 | BD88: 0 | BE88: 0 | BF88: 47.27 | BG88: 0 | BH88: 0 | BI88: 0 | BJ88: 47.27 | BK88: 26632.84 | BL88: 26680.11
A89: 2022 | B89: 90 | C89: SURRY CO PBLC SCHS | D89: 642.78 | E89: 0 | F89: 0 | G89: 0 | H89: 0 | I89: 0 | J89: 2.13 | K89: 0 | L89: 8.13 | M89: 0 | N89: 0 | O89: 0 | P89: 0 | Q89: 0 | R89: 10.25 | S89: 0 | T89: 0 | U89: 0 | V89: 0 | W89: 0 | X89: 8.13 | Y89: 0 | Z89: 0 | AA89: 0 | AB89: 0 | AC89: 0 | AD89: 0 | AE89: 8.13 | AF89: 644.9 | AH89: 642.78 | AI89: 10.25 | AJ89: 0 | AK89: -8.13 | AL89: 0 | AM89: 644.9 | AN89: 928.73 | AO89: 0 | AP89: 0 | AQ89: 0 | AR89: 0 | AS89: 0 | AT89: 0 | AU89: 0 | AV89: 2.31 | AW89: 0 | AX89: 0 | AY89: 0 | AZ89: 2.31 | BA89: 0 | BB89: 1 | BC89: 0 | BD89: 0 | BE89: 0 | BF89: 2.31 | BG89: 0 | BH89: 0 | BI89: 0 | BJ89: 3.31 | BK89: 927.73 | BL89: 931.04
A90: 2022 | B90: 91 | C90: SUSSEX CO PBLC SCHS | D90: 948.72 | E90: 0 | F90: 0 | G90: 6.43 | H90: 0 | I90: 0 | J90: 0.18 | K90: 0.18 | L90: 6.17 | M90: 0 | N90: 0 | O90: 0 | P90: 0 | Q90: 0 | R90: 12.96 | S90: 0 | T90: 0 | U90: 0 | V90: 2 | W90: 0 | X90: 6.17 | Y90: 0 | Z90: 0 | AA90: 0 | AB90: 0 | AC90: 0 | AD90: 0 | AE90: 8.17 | AF90: 953.5 | AH90: 948.72 | AI90: 12.96 | AJ90: 0 | AK90: -6.17 | AL90: 0 | AM90: 955.51 | AN90: 1206.21 | AO90: 1.37 | AP90: 0 | AQ90: 0 | AR90: 0 | AS90: 4.64 | AT90: 0 | AU90: 2.92 | AV90: 19.03 | AW90: 0 | AX90: 0 | AY90: 0 | AZ90: 27.96 | BA90: 0 | BB90: 0 | BC90: 1 | BD90: 0 | BE90: 0 | BF90: 19.03 | BG90: 0 | BH90: 0 | BI90: 0 | BJ90: 20.03 | BK90: 1214.13 | BL90: 1234.17
A91: 2022 | B91: 92 | C91: TAZEWELL CO PBLC SCHS | D91: 5201.75 | E91: 0 | F91: 1 | G91: 0 | H91: 0 | I91: 2.59 | J91: 0 | K91: 0 | L91: 7.72 | M91: 0 | N91: 0 | O91: 0 | P91: 0 | Q91: 0 | R91: 11.31 | S91: 0.26 | T91: 0 | U91: 0 | V91: 0 | W91: 0 | X91: 7.72 | Y91: 0 | Z91: 0 | AA91: 0 | AB91: 0 | AC91: 0 | AD91: 0 | AE91: 7.98 | AF91: 5205.07 | AH91: 5201.75 | AI91: 11.31 | AJ91: 0 | AK91: -7.72 | AL91: 0 | AM91: 5205.34 | AN91: 6542.1 | AO91: 0 | AP91: 1.44 | AQ91: 0 | AR91: 0 | AS91: 8.64 | AT91: 5.81 | AU91: 0 | AV91: 0.51 | AW91: 0 | AX91: 0 | AY91: 0 | AZ91: 16.41 | BA91: 7.24 | BB91: 1.29 | BC91: 0 | BD91: 0 | BE91: 0 | BF91: 0.51 | BG91: 0 | BH91: 0 | BI91: 0 | BJ91: 9.04 | BK91: 6549.47 | BL91: 6558.51
A92: 2022 | B92: 93 | C92: WARREN CO PBLC SCHS | D92: 4962.41 | E92: 0 | F92: 12 | G92: 0 | H92: 0.95 | I92: 0 | J92: 0 | K92: 0 | L92: 17.5 | M92: 0 | N92: 0 | O92: 0 | P92: 0 | Q92: 0 | R92: 30.45 | S92: 0 | T92: 0 | U92: 0 | V92: 8.97 | W92: 0 | X92: 17.5 | Y92: 0 | Z92: 0 | AA92: 0 | AB92: 0 | AC92: 0 | AD92: 0 | AE92: 26.46 | AF92: 4966.39 | AH92: 4962.41 | AI92: 30.45 | AJ92: 0 | AK92: -17.5 | AL92: 0 | AM92: 4975.36 | AN92: 5308.63 | AO92: 0 | AP92: 3 | AQ92: 0 | AR92: 1.47 | AS92: 5.58 | AT92: 0 | AU92: 0 | AV92: 19.31 | AW92: 0 | AX92: 0 | AY92: 0 | AZ92: 29.36 | BA92: 0 | BB92: 0 | BC92: 0 | BD92: 0 | BE92: 0 | BF92: 19.31 | BG92: 0 | BH92: 0 | BI92: 0 | BJ92: 19.31 | BK92: 5318.69 | BL92: 5337.99
A93: 2022 | B93: 94 | C93: WASHINGTON CO PBLC SCHS | D93: 6313.42 | E93: 0 | F93: 0 | G93: 0 | H93: 1.12 | I93: 5.3 | J93: 11.43 | K93: 12.94 | L93: 6.08 | M93: 0 | N93: 118.23 | O93: 0 | P93: 0 | Q93: 0 | R93: 155.11 | S93: 0 | T93: 1 | U93: 0 | V93: 23 | W93: 0 | X93: 6.08 | Y93: 0 | Z93: 0 | AA93: 0 | AB93: 0 | AC93: 0 | AD93: 0 | AE93: 30.08 | AF93: 6438.46 | AH93: 6313.42 | AI93: 155.11 | AJ93: -1 | AK93: -6.08 | AL93: 0 | AM93: 6461.45 | AN93: 7194.04 | AO93: 0 | AP93: 4.29 | AQ93: 0 | AR93: 1.64 | AS93: 26.86 | AT93: 0 | AU93: 0 | AV93: 3.21 | AW93: 0 | AX93: 21.48 | AY93: 0 | AZ93: 57.48 | BA93: 0 | BB93: 1 | BC93: 0 | BD93: 16.55 | BE93: 0 | BF93: 3.21 | BG93: 0 | BH93: 0 | BI93: 0 | BJ93: 20.76 | BK93: 7230.76 | BL93: 7251.52
A94: 2022 | B94: 95 | C94: WESTMORELAND CO PBLC SCHS | D94: 1459.05 | E94: 0 | F94: 0 | G94: 1.55 | H94: 0 | I94: 0 | J94: 2.41 | K94: 0.11 | L94: 12.98 | M94: 0 | N94: 0 | O94: 0 | P94: 0 | Q94: 0 | R94: 17.05 | S94: 0 | T94: 0 | U94: 0 | V94: 0 | W94: 0 | X94: 12.98 | Y94: 0 | Z94: 0 | AA94: 0 | AB94: 0 | AC94: 0 | AD94: 0 | AE94: 12.98 | AF94: 1463.13 | AH94: 1459.05 | AI94: 17.05 | AJ94: 0 | AK94: -12.98 | AL94: 0 | AM94: 1463.12 | AN94: 1692.94 | AO94: 0 | AP94: 0 | AQ94: 11.53 | AR94: 0 | AS94: 1.84 | AT94: 0 | AU94: 0 | AV94: 8.59 | AW94: 0 | AX94: 0 | AY94: 0 | AZ94: 21.95 | BA94: 1 | BB94: 0 | BC94: 0 | BD94: 0 | BE94: 0 | BF94: 8.59 | BG94: 0 | BH94: 0 | BI94: 0 | BJ94: 9.59 | BK94: 1705.3 | BL94: 1714.89
A95: 2022 | B95: 96 | C95: WISE CO PBLC SCHS | D95: 5366.38 | E95: 0 | F95: 10.99 | G95: 25.29 | H95: 0 | I95: 0.44 | J95: 0 | K95: 0 | L95: 9.71 | M95: 0 | N95: 71.94 | O95: 0 | P95: 0 | Q95: 0 | R95: 118.37 | S95: 0 | T95: 1.19 | U95: 0 | V95: 0 | W95: 0 | X95: 9.71 | Y95: 0 | Z95: 26.08 | AA95: 0 | AB95: 0 | AC95: 0 | AD95: 0 | AE95: 36.97 | AF95: 5447.77 | AH95: 5366.38 | AI95: 118.37 | AJ95: -1.19 | AK95: -9.71 | AL95: -26.08 | AM95: 5447.77 | AN95: 6470.58 | AO95: 0 | AP95: 7.09 | AQ95: 0 | AR95: 0.16 | AS95: 7.42 | AT95: 0 | AU95: 0 | AV95: 0 | AW95: 0 | AX95: 0 | AY95: 0 | AZ95: 14.67 | BA95: 0 | BB95: 0.18 | BC95: 0 | BD95: 0 | BE95: 0 | BF95: 0 | BG95: 0 | BH95: 0 | BI95: 0 | BJ95: 0.18 | BK95: 6485.07 | BL95: 6485.25
A96: 2022 | B96: 97 | C96: WYTHE CO PBLC SCHS | D96: 3652.88 | E96: 0 | F96: 1 | G96: 35.77 | H96: 0.55 | I96: 3.64 | J96: 14.73 | K96: 0 | L96: 22.55 | M96: 0 | N96: 0 | O96: 0 | P96: 0 | Q96: 0 | R96: 78.23 | S96: 0 | T96: 0 | U96: 0 | V96: 9.78 | W96: 0 | X96: 22.55 | Y96: 0 | Z96: 0 | AA96: 0 | AB96: 0 | AC96: 0 | AD96: 0 | AE96: 32.32 | AF96: 3698.79 | AH96: 3652.88 | AI96: 78.23 | AJ96: 0 | AK96: -22.55 | AL96: 0 | AM96: 3708.56 | AN96: 4150.85 | AO96: 0 | AP96: 0 | AQ96: 8.81 | AR96: 1 | AS96: 45.66 | AT96: 0 | AU96: 0 | AV96: 22.44 | AW96: 0 | AX96: 0 | AY96: 0 | AZ96: 77.91 | BA96: 0 | BB96: 0 | BC96: 0 | BD96: 2 | BE96: 0 | BF96: 22.44 | BG96: 0 | BH96: 0 | BI96: 0 | BJ96: 24.44 | BK96: 4204.32 | BL96: 4228.76
A97: 2022 | B97: 98 | C97: YORK CO PBLC SCHS | D97: 12420.27 | E97: 0 | F97: 3 | G97: 2.32 | H97: 94.78 | I97: 1.21 | J97: 5.89 | K97: 0 | L97: 24.52 | M97: 0 | N97: 0 | O97: 0 | P97: 0 | Q97: 225.19 | R97: 356.91 | S97: 0 | T97: 0.66 | U97: 0 | V97: 66.56 | W97: 0 | X97: 24.52 | Y97: 0 | Z97: 0 | AA97: 0 | AB97: 0 | AC97: 0 | AD97: 0 | AE97: 91.75 | AF97: 12685.43 | AH97: 12420.27 | AI97: 356.91 | AJ97: -0.66 | AK97: -24.52 | AL97: 0 | AM97: 12752 | AN97: 12512.63 | AO97: 0 | AP97: 4.84 | AQ97: 9.35 | AR97: 0 | AS97: 7.62 | AT97: 8.28 | AU97: 0.76 | AV97: 13.8 | AW97: 0 | AX97: 0 | AY97: 0 | AZ97: 44.65 | BA97: 11.31 | BB97: 0 | BC97: 0 | BD97: 18.51 | BE97: 0 | BF97: 13.8 | BG97: 0 | BH97: 0 | BI97: 0 | BJ97: 43.62 | BK97: 12513.66 | BL97: 12557.28
A98: 2022 | B98: 101 | C98: ALEXANDRIA CITY PBLC SCHS | D98: 15470.06 | E98: 0 | F98: 5.11 | G98: 0 | H98: 13.17 | I98: 14.24 | J98: 0 | K98: 0 | L98: 57.43 | M98: 0 | N98: 0 | O98: 0 | P98: 0 | Q98: 0 | R98: 89.95 | S98: 0 | T98: 1.71 | U98: 0 | V98: 105.37 | W98: 0 | X98: 57.43 | Y98: 0 | Z98: 0 | AA98: 0 | AB98: 0 | AC98: 0 | AD98: 0 | AE98: 164.51 | AF98: 15395.5 | AH98: 15470.06 | AI98: 89.95 | AJ98: -1.71 | AK98: -57.43 | AL98: 0 | AM98: 15500.87 | AN98: 11358.01 | AO98: 15.47 | AP98: 14.66 | AQ98: 0 | AR98: 0 | AS98: 23.04 | AT98: 0 | AU98: 11.7 | AV98: 74.23 | AW98: 0 | AX98: 0 | AY98: 0 | AZ98: 139.09 | BA98: 0 | BB98: 4.37 | BC98: 1.14 | BD98: 0 | BE98: 0 | BF98: 74.23 | BG98: 0 | BH98: 0 | BI98: 0 | BJ98: 79.75 | BK98: 11417.36 | BL98: 11497.1
A99: 2022 | B99: 102 | C99: BRISTOL CITY PBLC SCHS | D99: 2099.08 | E99: 0 | F99: 3.65 | G99: 0 | H99: 0 | I99: 0.18 | J99: 0 | K99: 0 | L99: 11.43 | M99: 0 | N99: 0 | O99: 0 | P99: 0 | Q99: 0 | R99: 15.25 | S99: 0 | T99: 0 | U99: 0 | V99: 9.8 | W99: 0 | X99: 11.43 | Y99: 0 | Z99: 0 | AA99: 0 | AB99: 0 | AC99: 0 | AD99: 0 | AE99: 21.23 | AF99: 2093.1 | AH99: 2099.08 | AI99: 15.25 | AJ99: 0 | AK99: -11.43 | AL99: 0 | AM99: 2102.9 | AN99: 2234.19 | AO99: 0 | AP99: 4 | AQ99: 0 | AR99: 0 | AS99: 10.76 | AT99: 0 | AU99: 0 | AV99: 0 | AW99: 0 | AX99: 0 | AY99: 0 | AZ99: 14.76 | BA99: 2 | BB99: 0.06 | BC99: 0 | BD99: 0 | BE99: 0 | BF99: 0 | BG99: 0 | BH99: 0 | BI99: 0 | BJ99: 2.06 | BK99: 2246.88 | BL99: 2248.95
A100: 2022 | B100: 103 | C100: BUENA VISTA CITY PBLC SCHS | D100: 817.86 | E100: 0 | F100: 0 | G100: 0 | H100: 0 | I100: 0 | J100: 0 | K100: 0 | L100: 23.79 | M100: 0 | N100: 0 | O100: 0 | P100: 0 | Q100: 0 | R100: 23.79 | S100: 0 | T100: 1 | U100: 0 | V100: 0 | W100: 0 | X100: 23.79 | Y100: 0 | Z100: 0 | AA100: 0 | AB100: 0 | AC100: 0 | AD100: 0 | AE100: 24.79 | AF100: 816.86 | AH100: 817.86 | AI100: 23.79 | AJ100: -1 | AK100: -23.79 | AL100: 0 | AM100: 816.86 | AN100: 1121.11 | AO100: 0 | AP100: 0 | AQ100: 0 | AR100: 0 | AS100: 2.56 | AT100: 0 | AU100: 0 | AV100: 11.97 | AW100: 0 | AX100: 0 | AY100: 0 | AZ100: 14.53 | BA100: 0 | BB100: 0 | BC100: 0 | BD100: 2 | BE100: 0 | BF100: 11.97 | BG100: 0 | BH100: 0 | BI100: 0 | BJ100: 13.97 | BK100: 1121.67 | BL100: 1135.64
A101: 2022 | B101: 104 | C101: CHARLOTTESVILLE CTY PBLC SCHS | D101: 4171.19 | E101: 0 | F101: 4.49 | G101: 0 | H101: 2.9 | I101: 3.15 | J101: 1.43 | K101: 0 | L101: 36.94 | M101: 0 | N101: 0 | O101: 0 | P101: 0 | Q101: 0 | R101: 48.91 | S101: 0 | T101: 0 | U101: 0 | V101: 31.96 | W101: 0 | X101: 36.94 | Y101: 0 | Z101: 0 | AA101: 0 | AB101: 0 | AC101: 0 | AD101: 0 | AE101: 68.9 | AF101: 4151.2 | AH101: 4171.19 | AI101: 48.91 | AJ101: 0 | AK101: -36.94 | AL101: 0 | AM101: 4183.16 | AN101: 3787.46 | AO101: 0 | AP101: 1 | AQ101: 0 | AR101: 0 | AS101: 8.72 | AT101: 0 | AU101: 0 | AV101: 14.65 | AW101: 0 | AX101: 0 | AY101: 0 | AZ101: 24.36 | BA101: 0 | BB101: 0 | BC101: 0.02 | BD101: 47.17 | BE101: 0 | BF101: 14.65 | BG101: 0 | BH101: 0 | BI101: 0 | BJ101: 61.83 | BK101: 3749.99 | BL101: 3811.82
A102: 2022 | B102: 106 | C102: COLONIAL HEIGHTS CITY PBLC SCHS | D102: 2718.36 | E102: 0 | F102: 1 | G102: 0 | H102: 0 | I102: 7.48 | J102: 6.9 | K102: 0 | L102: 23.43 | M102: 0 | N102: 0 | O102: 0 | P102: 0 | Q102: 0.15 | R102: 38.97 | S102: 0 | T102: 0 | U102: 0 | V102: 4.83 | W102: 0 | X102: 23.43 | Y102: 0 | Z102: 0 | AA102: 0 | AB102: 0 | AC102: 0 | AD102: 0 | AE102: 28.26 | AF102: 2729.07 | AH102: 2718.36 | AI102: 38.97 | AJ102: 0 | AK102: -23.43 | AL102: 0 | AM102: 2733.9 | AN102: 2820.49 | AO102: 0 | AP102: 1 | AQ102: 0 | AR102: 0.55 | AS102: 0 | AT102: 0 | AU102: 1 | AV102: 3.01 | AW102: 0 | AX102: 0 | AY102: 0 | AZ102: 5.56 | BA102: 0 | BB102: 0 | BC102: 0 | BD102: 0 | BE102: 0 | BF102: 3.01 | BG102: 0 | BH102: 0 | BI102: 0 | BJ102: 3.01 | BK102: 2823.04 | BL102: 2826.05
A103: 2022 | B103: 108 | C103: DANVILLE CITY PBLC SCHS | D103: 5269.18 | E103: 0 | F103: 2.98 | G103: 14.97 | H103: 0 | I103: 15.3 | J103: 23.24 | K103: 0 | L103: 26.14 | M103: 0 | N103: 0 | O103: 0 | P103: 0 | Q103: 0 | R103: 82.63 | S103: 0 | T103: 0 | U103: 0 | V103: 14.58 | W103: 0 | X103: 26.14 | Y103: 0 | Z103: 0 | AA103: 0 | AB103: 0 | AC103: 0 | AD103: 0 | AE103: 40.72 | AF103: 5311.09 | AH103: 5269.18 | AI103: 82.63 | AJ103: 0 | AK103: -26.14 | AL103: 0 | AM103: 5325.67 | AN103: 837.21 | AO103: 0 | AP103: 0 | AQ103: 0 | AR103: 0 | AS103: 0 | AT103: 0 | AU103: 0 | AV103: 25.38 | AW103: 0 | AX103: 0 | AY103: 0 | AZ103: 25.38 | BA103: 0 | BB103: 0 | BC103: 0 | BD103: 0 | BE103: 0 | BF103: 25.38 | BG103: 0 | BH103: 0 | BI103: 0 | BJ103: 25.38 | BK103: 837.21 | BL103: 862.59
A104: 2022 | B104: 109 | C104: FALLS CHURCH CITY PBLC SCHS | D104: 2451.27 | E104: 12.53 | F104: 3 | G104: 0 | H104: 0 | I104: 0 | J104: 0 | K104: 0 | L104: 12.65 | M104: 0 | N104: 0 | O104: 0 | P104: 0 | Q104: 0 | R104: 28.18 | S104: 0 | T104: 0.58 | U104: 0 | V104: 0 | W104: 0 | X104: 12.65 | Y104: 0 | Z104: 0 | AA104: 0 | AB104: 0 | AC104: 0 | AD104: 0 | AE104: 13.23 | AF104: 2466.22 | AH104: 2451.27 | AI104: 28.18 | AJ104: -0.58 | AK104: -12.65 | AL104: 0 | AM104: 2466.22 | AN104: 6080.27 | AO104: 0 | AP104: 4.36 | AQ104: 12.57 | AR104: 0 | AS104: 32.72 | AT104: 0 | AU104: 0 | AV104: 23.56 | AW104: 0 | AX104: 0 | AY104: 0 | AZ104: 73.21 | BA104: 0 | BB104: 0 | BC104: 0 | BD104: 0 | BE104: 0 | BF104: 23.56 | BG104: 0 | BH104: 0 | BI104: 0 | BJ104: 23.56 | BK104: 6129.92 | BL104: 6153.48
A105: 2022 | B105: 110 | C105: FREDERICKSBURG CITY PBLC SCHS | D105: 3580.53 | E105: 0 | F105: 1 | G105: 2.39 | H105: 0 | I105: 10.72 | J105: 0 | K105: 1.37 | L105: 13.61 | M105: 0 | N105: 0 | O105: 0 | P105: 0 | Q105: 1 | R105: 30.08 | S105: 1.96 | T105: 2.77 | U105: 0 | V105: 14.59 | W105: 0 | X105: 13.61 | Y105: 0 | Z105: 0 | AA105: 0 | AB105: 0 | AC105: 0 | AD105: 0 | AE105: 32.93 | AF105: 3577.68 | AH105: 3580.53 | AI105: 30.08 | AJ105: -2.77 | AK105: -13.61 | AL105: 0 | AM105: 3594.23 | AN105: 2004.92 | AO105: 6 | AP105: 2 | AQ105: 0 | AR105: 0 | AS105: 0 | AT105: 0 | AU105: 0 | AV105: 7.05 | AW105: 0 | AX105: 0 | AY105: 0 | AZ105: 15.05 | BA105: 0 | BB105: 0 | BC105: 0 | BD105: 0 | BE105: 0 | BF105: 7.05 | BG105: 0 | BH105: 0 | BI105: 0 | BJ105: 7.05 | BK105: 2012.92 | BL105: 2019.97
A106: 2022 | B106: 111 | C106: GALAX CITY PBLC SCHS | D106: 1310.62 | E106: 0 | F106: 0 | G106: 3.83 | H106: 0.25 | I106: 1.61 | J106: 0 | K106: 0 | L106: 1 | M106: 0 | N106: 3 | O106: 0 | P106: 0 | Q106: 0 | R106: 9.69 | S106: 0 | T106: 1 | U106: 0 | V106: 0 | W106: 0 | X106: 1 | Y106: 0 | Z106: 0 | AA106: 0 | AB106: 0 | AC106: 0 | AD106: 0 | AE106: 2 | AF106: 1318.31 | AH106: 1310.62 | AI106: 9.69 | AJ106: -1 | AK106: -1 | AL106: 0 | AM106: 1318.31 | AN106: 2764.52 | AO106: 0 | AP106: 1 | AQ106: 0 | AR106: 0 | AS106: 16.34 | AT106: 0 | AU106: 0 | AV106: 14.38 | AW106: 0 | AX106: 0 | AY106: 0 | AZ106: 31.72 | BA106: 0 | BB106: 0.27 | BC106: 0 | BD106: 0 | BE106: 0 | BF106: 14.38 | BG106: 0 | BH106: 0 | BI106: 0 | BJ106: 14.65 | BK106: 2781.59 | BL106: 2796.24
A107: 2022 | B107: 112 | C107: HAMPTON CITY PBLC SCHS | D107: 18836.9 | E107: 0 | F107: 16.61 | G107: 0.42 | H107: 0 | I107: 15.01 | J107: 13.65 | K107: 0 | L107: 22.71 | M107: 0 | N107: 0 | O107: 0 | P107: 0 | Q107: 0 | R107: 68.39 | S107: 0 | T107: 0.44 | U107: 1 | V107: 59.89 | W107: 0 | X107: 22.71 | Y107: 0 | Z107: 0 | AA107: 0 | AB107: 0 | AC107: 0 | AD107: 0 | AE107: 84.05 | AF107: 18821.25 | AH107: 18836.9 | AI107: 68.39 | AJ107: -0.44 | AK107: -22.71 | AL107: 0 | AM107: 18882.14 | AN107: 1293.94 | AO107: 0 | AP107: 1 | AQ107: 0.47 | AR107: 0 | AS107: 4.83 | AT107: 0 | AU107: 0 | AV107: 1.51 | AW107: 0 | AX107: 0 | AY107: 0 | AZ107: 7.81 | BA107: 0 | BB107: 0 | BC107: 0 | BD107: 4.23 | BE107: 0 | BF107: 1.51 | BG107: 0 | BH107: 0 | BI107: 0 | BJ107: 5.75 | BK107: 1296.01 | BL107: 1301.75
A108: 2022 | B108: 113 | C108: HARRISONBURG CITY PBLC SCHS | D108: 6339.35 | E108: 0 | F108: 2.99 | G108: 0 | H108: 0.5 | I108: 10.08 | J108: 4.09 | K108: 0 | L108: 15.95 | M108: 0 | N108: 0 | O108: 0 | P108: 0 | Q108: 0 | R108: 33.62 | S108: 0 | T108: 3 | U108: 0 | V108: 25.28 | W108: 0 | X108: 15.95 | Y108: 0 | Z108: 0 | AA108: 0 | AB108: 0 | AC108: 0 | AD108: 0 | AE108: 44.23 | AF108: 6328.74 | AH108: 6339.35 | AI108: 33.62 | AJ108: -3 | AK108: -15.95 | AL108: 0 | AM108: 6354.02 | AN108: 20623.76 | AO108: 0 | AP108: 17.15 | AQ108: 5.02 | AR108: 0 | AS108: 142.01 | AT108: 0 | AU108: 0 | AV108: 40.53 | AW108: 0 | AX108: 0 | AY108: 0 | AZ108: 204.69 | BA108: 5.5 | BB108: 1.23 | BC108: 0 | BD108: 63.27 | BE108: 0 | BF108: 40.53 | BG108: 0 | BH108: 0 | BI108: 0 | BJ108: 110.53 | BK108: 20717.93 | BL108: 20828.45
A109: 2022 | B109: 114 | C109: HOPEWELL CITY PBLC SCHS | D109: 3635.82 | E109: 0 | F109: 1.56 | G109: 0 | H109: 0 | I109: 9.01 | J109: 4.36 | K109: 0 | L109: 36.1 | M109: 0 | N109: 0 | O109: 0 | P109: 0 | Q109: 0 | R109: 51.03 | S109: 0 | T109: 0.09 | U109: 0 | V109: 0 | W109: 0 | X109: 36.1 | Y109: 0 | Z109: 0 | AA109: 0 | AB109: 0 | AC109: 0 | AD109: 0 | AE109: 36.19 | AF109: 3650.66 | AH109: 3635.82 | AI109: 51.03 | AJ109: -0.09 | AK109: -36.1 | AL109: 0 | AM109: 3650.66 | AN109: 4404.32 | AO109: 0 | AP109: 7 | AQ109: 0 | AR109: 0 | AS109: 7.03 | AT109: 0 | AU109: 0 | AV109: 20.95 | AW109: 0 | AX109: 0 | AY109: 0 | AZ109: 34.98 | BA109: 0 | BB109: 0 | BC109: 0 | BD109: 53.67 | BE109: 0 | BF109: 20.95 | BG109: 0 | BH109: 0 | BI109: 0 | BJ109: 74.62 | BK109: 4364.67 | BL109: 4439.3
A110: 2022 | B110: 115 | C110: LYNCHBURG CITY PBLC SCHS | D110: 7294.53 | E110: 0 | F110: 4.5 | G110: 130.59 | H110: 0 | I110: 10.92 | J110: 8.06 | K110: 0 | L110: 63.68 | M110: 0 | N110: 0 | O110: 0 | P110: 0 | Q110: 0 | R110: 217.75 | S110: 6.83 | T110: 2 | U110: 0 | V110: 65.66 | W110: 0 | X110: 63.68 | Y110: 0 | Z110: 0 | AA110: 0 | AB110: 0 | AC110: 0 | AD110: 0 | AE110: 138.18 | AF110: 7374.1 | AH110: 7294.53 | AI110: 217.75 | AJ110: -2 | AK110: -63.68 | AL110: 0 | AM110: 7446.6 | AN110: 3891.8 | AO110: 1.99 | AP110: 5.98 | AQ110: 4.4 | AR110: 0 | AS110: 17.44 | AT110: 0 | AU110: 12.77 | AV110: 30.64 | AW110: 0 | AX110: 0 | AY110: 0 | AZ110: 73.22 | BA110: 0 | BB110: 1.36 | BC110: 0 | BD110: 0 | BE110: 16.32 | BF110: 30.64 | BG110: 0 | BH110: 0 | BI110: 0 | BJ110: 48.32 | BK110: 3916.7 | BL110: 3965.02
A111: 2022 | B111: 116 | C111: MARTINSVILLE CITY PBLC SCHS | D111: 1696.28 | E111: 0 | F111: 1 | G111: 1 | H111: 0 | I111: 1.7 | J111: 1.58 | K111: 0 | L111: 8.59 | M111: 0 | N111: 0 | O111: 0 | P111: 0 | Q111: 0 | R111: 13.88 | S111: 0 | T111: 0 | U111: 0 | V111: 13.49 | W111: 0 | X111: 8.59 | Y111: 0 | Z111: 0 | AA111: 0 | AB111: 0 | AC111: 0 | AD111: 0 | AE111: 22.08 | AF111: 1688.07 | AH111: 1696.28 | AI111: 13.88 | AJ111: 0 | AK111: -8.59 | AL111: 0 | AM111: 1701.57 | AN111: 8232.82 | AO111: 0 | AP111: 4.05 | AQ111: 0 | AR111: 0 | AS111: 8.77 | AT111: 0 | AU111: 0 | AV111: 33.67 | AW111: 0 | AX111: 0 | AY111: 0 | AZ111: 46.49 | BA111: 14.02 | BB111: 4.43 | BC111: 0.79 | BD111: 46.14 | BE111: 0 | BF111: 33.67 | BG111: 0 | BH111: 0 | BI111: 0 | BJ111: 99.06 | BK111: 8180.25 | BL111: 8279.31
A112: 2022 | B112: 117 | C112: NEWPORT NEWS CITY PBLC SCHS | D112: 25119.96 | E112: 0 | F112: 23.26 | G112: 92.79 | H112: 0.48 | I112: 21.04 | J112: 38.34 | K112: 0 | L112: 65.08 | M112: 0 | N112: 0 | O112: 0 | P112: 0 | Q112: 0 | R112: 240.99 | S112: 0 | T112: 0.2 | U112: 0.07 | V112: 242.13 | W112: 0 | X112: 65.08 | Y112: 0 | Z112: 0 | AA112: 0 | AB112: 0 | AC112: 0 | AD112: 0 | AE112: 307.48 | AF112: 25053.48 | AH112: 25119.96 | AI112: 240.99 | AJ112: -0.2 | AK112: -65.08 | AL112: 0 | AM112: 25295.67 | AN112: 2318.24 | AO112: 0 | AP112: 3.99 | AQ112: 0 | AR112: 0 | AS112: 0 | AT112: 0 | AU112: 0 | AV112: 0 | AW112: 0 | AX112: 0 | AY112: 0 | AZ112: 3.99 | BA112: 0 | BB112: 0 | BC112: 0 | BD112: 1 | BE112: 0 | BF112: 0 | BG112: 0 | BH112: 0 | BI112: 0 | BJ112: 1 | BK112: 2321.24 | BL112: 2322.23
A113: 2022 | B113: 118 | C113: NORFOLK CITY PBLC SCHS | D113: 25297.42 | E113: 0 | F113: 24.02 | G113: 0 | H113: 0 | I113: 23.49 | J113: 0 | K113: 0 | L113: 45.35 | M113: 0 | N113: 0 | O113: 0 | P113: 0 | Q113: 0 | R113: 92.86 | S113: 20.64 | T113: 0.98 | U113: 0 | V113: 68.53 | W113: 0 | X113: 45.35 | Y113: 0 | Z113: 0 | AA113: 0 | AB113: 0 | AC113: 0 | AD113: 0 | AE113: 135.5 | AF113: 25254.79 | AH113: 25297.42 | AI113: 92.86 | AJ113: -0.98 | AK113: -45.35 | AL113: 0 | AM113: 25343.95 | AN113: 28471.6 | AO113: 0 | AP113: 18.76 | AQ113: 116.15 | AR113: 0 | AS113: 57.01 | AT113: 0 | AU113: 0 | AV113: 64.57 | AW113: 0 | AX113: 0 | AY113: 0 | AZ113: 256.48 | BA113: 0 | BB113: 1.44 | BC113: 0.49 | BD113: 145.01 | BE113: 0 | BF113: 64.57 | BG113: 0 | BH113: 0 | BI113: 0 | BJ113: 211.51 | BK113: 28516.57 | BL113: 28728.08
A114: 2022 | B114: 119 | C114: NORTON CITY PBLC SCHS | D114: 770.57 | E114: 0 | F114: 0 | G114: 0 | H114: 0 | I114: 1 | J114: 0 | K114: 0 | L114: 1.36 | M114: 0 | N114: 0 | O114: 0 | P114: 0 | Q114: 0 | R114: 2.36 | S114: 0 | T114: 0 | U114: 0 | V114: 8 | W114: 0 | X114: 1.36 | Y114: 0 | Z114: 0 | AA114: 0 | AB114: 0 | AC114: 0 | AD114: 0 | AE114: 9.36 | AF114: 763.57 | AH114: 770.57 | AI114: 2.36 | AJ114: 0 | AK114: -1.36 | AL114: 0 | AM114: 771.57 | AN114: 31163.92 | AO114: 0 | AP114: 37.73 | AQ114: 0 | AR114: 0 | AS114: 86.43 | AT114: 0 | AU114: 0 | AV114: 30.29 | AW114: 0 | AX114: 0 | AY114: 0 | AZ114: 154.45 | BA114: 63.47 | BB114: 2 | BC114: 3.48 | BD114: 176.78 | BE114: 0 | BF114: 30.29 | BG114: 0 | BH114: 0 | BI114: 0 | BJ114: 276.02 | BK114: 31042.36 | BL114: 31318.37
A115: 2022 | B115: 120 | C115: PETERSBURG CITY PBLC SCHS | D115: 3854.02 | E115: 0 | F115: 0.79 | G115: 0 | H115: 0 | I115: 2.71 | J115: 24.72 | K115: 1.61 | L115: 27.38 | M115: 0 | N115: 0 | O115: 0 | P115: 0 | Q115: 0 | R115: 57.21 | S115: 0 | T115: 2.63 | U115: 0 | V115: 11.1 | W115: 0 | X115: 27.38 | Y115: 0 | Z115: 0 | AA115: 0 | AB115: 0 | AC115: 0 | AD115: 0 | AE115: 41.11 | AF115: 3870.12 | AH115: 3854.02 | AI115: 57.21 | AJ115: -2.63 | AK115: -27.38 | AL115: 0 | AM115: 3881.22 | AN115: 815.6 | AO115: 0 | AP115: 0 | AQ115: 0 | AR115: 0 | AS115: 1.05 | AT115: 0 | AU115: 0 | AV115: 0 | AW115: 0 | AX115: 0 | AY115: 0 | AZ115: 1.05 | BA115: 0 | BB115: 0 | BC115: 0 | BD115: 0 | BE115: 0 | BF115: 0 | BG115: 0 | BH115: 0 | BI115: 0 | BJ115: 0 | BK115: 816.64 | BL115: 816.65
A116: 2022 | B116: 121 | C116: PORTSMOUTH CITY PBLC SCHS | D116: 12596.56 | E116: 0 | F116: 13.51 | G116: 0 | H116: 0 | I116: 34.01 | J116: 0 | K116: 0 | L116: 7.78 | M116: 0 | N116: 0 | O116: 0 | P116: 0 | Q116: 0 | R116: 55.3 | S116: 0 | T116: 0.01 | U116: 1.43 | V116: 64.95 | W116: 0.81 | X116: 7.78 | Y116: 0 | Z116: 0 | AA116: 0 | AB116: 0 | AC116: 0 | AD116: 0 | AE116: 74.98 | AF116: 12576.88 | AH116: 12596.56 | AI116: 55.3 | AJ116: -0.01 | AK116: -7.78 | AL116: -0.81 | AM116: 12643.26 | AN116: 4190.67 | AO116: 4 | AP116: 4 | AQ116: 2.54 | AR116: 0 | AS116: 21.96 | AT116: 23.08 | AU116: 0 | AV116: 31.67 | AW116: 0 | AX116: 0 | AY116: 0 | AZ116: 87.25 | BA116: 1.42 | BB116: 0.53 | BC116: 0 | BD116: 1 | BE116: 1.49 | BF116: 31.67 | BG116: 0 | BH116: 0 | BI116: 0 | BJ116: 36.11 | BK116: 4241.82 | BL116: 4277.92
A117: 2022 | B117: 122 | C117: RADFORD CITY PBLC SCHS | D117: 3575.49 | E117: 0 | F117: 0 | G117: 0 | H117: 0 | I117: 0 | J117: 0 | K117: 0 | L117: 8.11 | M117: 0 | N117: 0 | O117: 0 | P117: 0 | Q117: 0 | R117: 8.11 | S117: 0.98 | T117: 0 | U117: 1.14 | V117: 4.66 | W117: 0 | X117: 8.11 | Y117: 0 | Z117: 0 | AA117: 0 | AB117: 0 | AC117: 0 | AD117: 0 | AE117: 14.89 | AF117: 3568.71 | AH117: 3575.49 | AI117: 8.11 | AJ117: 0 | AK117: -8.11 | AL117: 0 | AM117: 3575.49 | AN117: 14155.21 | AO117: 0 | AP117: 22.06 | AQ117: 0 | AR117: 0 | AS117: 134.91 | AT117: 0 | AU117: 0 | AV117: 16.62 | AW117: 0 | AX117: 0 | AY117: 0 | AZ117: 173.59 | BA117: 0 | BB117: 2.12 | BC117: 1.3 | BD117: 118.78 | BE117: 0 | BF117: 16.62 | BG117: 0 | BH117: 0 | BI117: 0 | BJ117: 138.81 | BK117: 14189.99 | BL117: 14328.8
A118: 2022 | B118: 123 | C118: RICHMOND CITY PBLC SCHS | D118: 19848.5 | E118: 0 | F118: 14.5 | G118: 9.32 | H118: 0 | I118: 39.21 | J118: 131.25 | K118: 0 | L118: 59.45 | M118: 0 | N118: 0 | O118: 0 | P118: 0 | Q118: 0 | R118: 253.73 | S118: 0 | T118: 4 | U118: 4.61 | V118: 52.36 | W118: 0 | X118: 59.45 | Y118: 0 | Z118: 0 | AA118: 0 | AB118: 0 | AC118: 0 | AD118: 0 | AE118: 120.42 | AF118: 19981.81 | AH118: 19848.5 | AI118: 253.73 | AJ118: -4 | AK118: -59.45 | AL118: 0 | AM118: 20038.78 | AN118: 1502.7 | AO118: 0 | AP118: 1 | AQ118: 0 | AR118: 0 | AS118: 0 | AT118: 0 | AU118: 0 | AV118: 7.87 | AW118: 0 | AX118: 0 | AY118: 0 | AZ118: 8.87 | BA118: 0 | BB118: 0 | BC118: 0 | BD118: 0 | BE118: 0 | BF118: 7.87 | BG118: 0 | BH118: 0 | BI118: 0 | BJ118: 7.87 | BK118: 1503.7 | BL118: 1511.57
A119: 2022 | B119: 124 | C119: ROANOKE CITY PBLC SCHS | D119: 12849.18 | E119: 0 | F119: 19.63 | G119: 0 | H119: 0.68 | I119: 0 | J119: 26.35 | K119: 0 | L119: 131.99 | M119: 0 | N119: 0 | O119: 0 | P119: 0 | Q119: 0 | R119: 178.64 | S119: 0 | T119: 3.01 | U119: 0 | V119: 139.47 | W119: 0 | X119: 131.99 | Y119: 0 | Z119: 0 | AA119: 0 | AB119: 0 | AC119: 0 | AD119: 0 | AE119: 274.47 | AF119: 12753.35 | AH119: 12849.18 | AI119: 178.64 | AJ119: -3.01 | AK119: -131.99 | AL119: 0 | AM119: 12892.82 | AN119: 21340.89 | AO119: 0 | AP119: 22.92 | AQ119: 0 | AR119: 0 | AS119: 7.42 | AT119: 17.21 | AU119: 0 | AV119: 102.99 | AW119: 0 | AX119: 0 | AY119: 0 | AZ119: 150.55 | BA119: 0 | BB119: 6.63 | BC119: 19.02 | BD119: 0 | BE119: 0 | BF119: 102.99 | BG119: 0 | BH119: 0 | BI119: 0 | BJ119: 128.64 | BK119: 21362.81 | BL119: 21491.44
A120: 2022 | B120: 126 | C120: STAUNTON CITY PBLC SCHS | D120: 2514.6 | E120: 0 | F120: 2.73 | G120: 0 | H120: 0 | I120: 9.02 | J120: 0 | K120: 0 | L120: 20.91 | M120: 0 | N120: 0 | O120: 0 | P120: 0 | Q120: 0 | R120: 32.66 | S120: 0 | T120: 0 | U120: 0 | V120: 19.56 | W120: 0 | X120: 20.91 | Y120: 0 | Z120: 0 | AA120: 0 | AB120: 0 | AC120: 0 | AD120: 0 | AE120: 40.47 | AF120: 2506.79 | AH120: 2514.6 | AI120: 32.66 | AJ120: 0 | AK120: -20.91 | AL120: 0 | AM120: 2526.35 | AN120: 12155.51 | AO120: 0 | AP120: 5 | AQ120: 0 | AR120: 0 | AS120: 0 | AT120: 2.92 | AU120: 0 | AV120: 103.06 | AW120: 0 | AX120: 0 | AY120: 0 | AZ120: 110.98 | BA120: 0 | BB120: 1.58 | BC120: 4.59 | BD120: 65.29 | BE120: 0 | BF120: 103.06 | BG120: 0 | BH120: 0 | BI120: 0 | BJ120: 174.53 | BK120: 12091.97 | BL120: 12266.49
A121: 2022 | B121: 127 | C121: SUFFOLK CITY PBLC SCHS | D121: 13829.56 | E121: 0 | F121: 21.65 | G121: 0 | H121: 0 | I121: 18.31 | J121: 32 | K121: 0 | L121: 22.52 | M121: 0 | N121: 0 | O121: 0 | P121: 0 | Q121: 0 | R121: 94.48 | S121: 0 | T121: 0 | U121: 0 | V121: 40.26 | W121: 0 | X121: 22.52 | Y121: 0 | Z121: 0 | AA121: 0 | AB121: 0 | AC121: 0 | AD121: 0 | AE121: 62.78 | AF121: 13861.26 | AH121: 13829.56 | AI121: 94.48 | AJ121: 0 | AK121: -22.52 | AL121: 0 | AM121: 13901.52 | AN121: 2554.93 | AO121: 0 | AP121: 3 | AQ121: 34.03 | AR121: 0 | AS121: 14.28 | AT121: 0 | AU121: 0 | AV121: 17.94 | AW121: 0 | AX121: 0 | AY121: 0 | AZ121: 69.25 | BA121: 0 | BB121: 0 | BC121: 0 | BD121: 33.91 | BE121: 0 | BF121: 17.94 | BG121: 0 | BH121: 0 | BI121: 0 | BJ121: 51.84 | BK121: 2572.34 | BL121: 2624.18
A122: 2022 | B122: 128 | C122: VA BEACH CITY PBLC SCHS | D122: 63423.51 | E122: 0 | F122: 63.36 | G122: 34.22 | H122: 0 | I122: 18.28 | J122: 7.12 | K122: 0 | L122: 115.59 | M122: 0 | N122: 0 | O122: 0 | P122: 0 | Q122: 0 | R122: 238.57 | S122: 0 | T122: 1 | U122: 0.27 | V122: 319.69 | W122: 0 | X122: 115.59 | Y122: 0 | Z122: 0 | AA122: 0 | AB122: 0 | AC122: 0 | AD122: 0 | AE122: 436.56 | AF122: 63225.53 | AH122: 63423.51 | AI122: 238.57 | AJ122: -1 | AK122: -115.59 | AL122: 0 | AM122: 63545.49 | AN122: 13878.23 | AO122: 0 | AP122: 12.86 | AQ122: 0 | AR122: 0 | AS122: 4.81 | AT122: 0 | AU122: 0 | AV122: 0 | AW122: 0 | AX122: 0 | AY122: 0 | AZ122: 17.67 | BA122: 0 | BB122: 0.26 | BC122: 1 | BD122: 78.86 | BE122: 4.57 | BF122: 0 | BG122: 0 | BH122: 0 | BI122: 0 | BJ122: 84.69 | BK122: 13811.21 | BL122: 13895.9
A123: 2022 | B123: 130 | C123: WAYNESBORO CITY PBLC SCHS | D123: 2812.03 | E123: 0 | F123: 4 | G123: 9.49 | H123: 0.25 | I123: 6.27 | J123: 0 | K123: 0 | L123: 31.3 | M123: 0 | N123: 0 | O123: 0 | P123: 0 | Q123: 0 | R123: 51.32 | S123: 0 | T123: 1 | U123: 0 | V123: 31.36 | W123: 0 | X123: 31.3 | Y123: 0 | Z123: 0 | AA123: 0 | AB123: 0 | AC123: 0 | AD123: 0 | AE123: 63.67 | AF123: 2799.68 | AH123: 2812.03 | AI123: 51.32 | AJ123: -1 | AK123: -31.3 | AL123: 0 | AM123: 2831.05 | AN123: 69403.31 | AO123: 0 | AP123: 55.04 | AQ123: 53.3 | AR123: 0 | AS123: 37.01 | AT123: 0 | AU123: 0.15 | AV123: 52.21 | AW123: 0 | AX123: 0 | AY123: 0 | AZ123: 197.71 | BA123: 15.46 | BB123: 0.04 | BC123: 7.24 | BD123: 406.74 | BE123: 0 | BF123: 52.21 | BG123: 0 | BH123: 0 | BI123: 0 | BJ123: 481.7 | BK123: 69119.32 | BL123: 69601.02
A124: 2022 | B124: 131 | C124: WILLIAMSBURG-JAMES CITY PBLC SCHS | D124: 1026.82 | E124: 0 | F124: 5.75 | G124: 0 | H124: 0 | I124: 4.32 | J124: 1.51 | K124: 0 | L124: 3.65 | M124: 0 | N124: 0 | O124: 0 | P124: 0 | Q124: 0 | R124: 15.23 | S124: 0 | T124: 0 | U124: 0 | V124: 0 | W124: 0 | X124: 3.65 | Y124: 0 | Z124: 0 | AA124: 0 | AB124: 0 | AC124: 0 | AD124: 0 | AE124: 3.65 | AF124: 1038.4 | AH124: 1026.82 | AI124: 15.23 | AJ124: 0 | AK124: -3.65 | AL124: 0 | AM124: 1038.4 | AN124: 2996 | AO124: 0 | AP124: 0 | AQ124: 0 | AR124: 0 | AS124: 14.86 | AT124: 0 | AU124: 0 | AV124: 8.86 | AW124: 0 | AX124: 0 | AY124: 0 | AZ124: 23.71 | BA124: 0 | BB124: 0.1 | BC124: 0 | BD124: 0 | BE124: 0 | BF124: 8.86 | BG124: 0 | BH124: 0 | BI124: 0 | BJ124: 8.96 | BK124: 3010.76 | BL124: 3019.71
A125: 2022 | B125: 132 | C125: WINCHESTER CITY PBLC SCHS | D125: 4033.71 | E125: 0 | F125: 5.3 | G125: 0 | H125: 0 | I125: 2.17 | J125: 0 | K125: 0 | L125: 4.6 | M125: 0 | N125: 0 | O125: 0 | P125: 0 | Q125: 0 | R125: 12.07 | S125: 0 | T125: 0.69 | U125: 0 | V125: 10 | W125: 0 | X125: 4.6 | Y125: 0 | Z125: 0 | AA125: 0 | AB125: 0 | AC125: 0 | AD125: 0 | AE125: 15.3 | AF125: 4030.49 | AH125: 4033.71 | AI125: 12.07 | AJ125: -0.69 | AK125: -4.6 | AL125: 0 | AM125: 4040.49 | AN125: 824.79 | AO125: 0 | AP125: 1 | AQ125: 0.54 | AR125: 0 | AS125: 0.63 | AT125: 0 | AU125: 0 | AV125: 0 | AW125: 0 | AX125: 0 | AY125: 0 | AZ125: 2.16 | BA125: 0 | BB125: 0 | BC125: 0.48 | BD125: 0 | BE125: 1 | BF125: 0 | BG125: 0 | BH125: 0 | BI125: 0 | BJ125: 1.48 | BK125: 825.48 | BL125: 826.95
A126: 2022 | B126: 134 | C126: FAIRFAX CITY PBLC SCHS | D126: 2823.55 | E126: 0 | F126: 6.91 | G126: 0 | H126: 0 | I126: 0 | J126: 0.56 | K126: 0 | L126: 5 | M126: 0 | N126: 0 | O126: 0 | P126: 0 | Q126: 0 | R126: 12.47 | S126: 0 | T126: 0 | U126: 1 | V126: 0 | W126: 0 | X126: 5 | Y126: 0 | Z126: 0 | AA126: 0 | AB126: 0 | AC126: 0 | AD126: 0 | AE126: 6 | AF126: 2830.02 | AH126: 2823.55 | AI126: 12.47 | AJ126: 0 | AK126: -5 | AL126: 0 | AM126: 2831.02 | AN126: 3746.72 | AO126: 0 | AP126: 0.99 | AQ126: 0 | AR126: 0.97 | AS126: 1.34 | AT126: 0 | AU126: 0.34 | AV126: 8.43 | AW126: 0 | AX126: 0 | AY126: 0 | AZ126: 12.07 | BA126: 0 | BB126: 0 | BC126: 0 | BD126: 19.45 | BE126: 0 | BF126: 8.43 | BG126: 0 | BH126: 0 | BI126: 0 | BJ126: 27.88 | BK126: 3730.91 | BL126: 3758.79
A127: 2022 | B127: 135 | C127: FRANKLIN CITY PBLC SCHS | D127: 952.67 | E127: 0 | F127: 1.09 | G127: 0 | H127: 0 | I127: 4.39 | J127: 2.98 | K127: 0 | L127: 0.5 | M127: 0 | N127: 0 | O127: 0 | P127: 0 | Q127: 0 | R127: 8.96 | S127: 0 | T127: 0 | U127: 0 | V127: 5.9 | W127: 0 | X127: 0.5 | Y127: 0 | Z127: 0 | AA127: 0 | AB127: 0 | AC127: 0 | AD127: 0 | AE127: 6.4 | AF127: 955.23 | AH127: 952.67 | AI127: 8.96 | AJ127: 0 | AK127: -0.5 | AL127: 0 | AM127: 961.13 | AN127: 2897.65 | AO127: 0 | AP127: 6.16 | AQ127: 0 | AR127: 0 | AS127: 2.06 | AT127: 0.57 | AU127: 0 | AV127: 7 | AW127: 0 | AX127: 0 | AY127: 0 | AZ127: 15.79 | BA127: 0 | BB127: 0 | BC127: 4.49 | BD127: 0 | BE127: 0 | BF127: 7 | BG127: 0 | BH127: 0 | BI127: 0 | BJ127: 11.49 | BK127: 2901.94 | BL127: 2913.44
A128: 2022 | B128: 136 | C128: CHESAPEAKE CITY PBLC SCHS | D128: 39333.54 | E128: 0 | F128: 30.94 | G128: 13.56 | H128: 0 | I128: 81.6 | J128: 0 | K128: 0 | L128: 61.55 | M128: 0 | N128: 0 | O128: 0 | P128: 0 | Q128: 0 | R128: 187.66 | S128: 0 | T128: 0 | U128: 1.65 | V128: 155.75 | W128: 0 | X128: 61.55 | Y128: 0 | Z128: 0 | AA128: 0 | AB128: 0 | AC128: 0 | AD128: 0 | AE128: 218.96 | AF128: 39302.24 | AH128: 39333.54 | AI128: 187.66 | AJ128: 0 | AK128: -61.55 | AL128: 0 | AM128: 39459.65 | AN128: 1186.99 | AO128: 0 | AP128: 0.78 | AQ128: 5.32 | AR128: 0 | AS128: 8.81 | AT128: 0 | AU128: 0 | AV128: 1.09 | AW128: 0 | AX128: 0 | AY128: 0 | AZ128: 16 | BA128: 0 | BB128: 0 | BC128: 0 | BD128: 20.96 | BE128: 0 | BF128: 1.09 | BG128: 0 | BH128: 0 | BI128: 0 | BJ128: 22.05 | BK128: 1180.94 | BL128: 1202.99
A129: 2022 | B129: 137 | C129: LEXINGTON CITY PBLC SCHS | D129: 482.11 | E129: 166.15 | F129: 0 | G129: 0 | H129: 0 | I129: 0 | J129: 0 | K129: 0 | L129: 6.97 | M129: 0 | N129: 0 | O129: 0 | P129: 0 | Q129: 0 | R129: 173.12 | S129: 0 | T129: 0 | U129: 0 | V129: 0 | W129: 0 | X129: 6.97 | Y129: 0 | Z129: 0 | AA129: 0 | AB129: 0 | AC129: 0 | AD129: 0 | AE129: 6.97 | AF129: 648.25 | AH129: 482.11 | AI129: 173.12 | AJ129: 0 | AK129: -6.97 | AL129: 0 | AM129: 648.26 | AN129: 38902.15 | AO129: 0 | AP129: 32.95 | AQ129: 32.76 | AR129: 4.85 | AS129: 75.52 | AT129: 0.44 | AU129: 0 | AV129: 27.63 | AW129: 0 | AX129: 0 | AY129: 0 | AZ129: 174.15 | BA129: 0 | BB129: 1.35 | BC129: 0 | BD129: 255.14 | BE129: 0 | BF129: 27.63 | BG129: 0 | BH129: 0 | BI129: 0 | BJ129: 284.12 | BK129: 38792.18 | BL129: 39076.3
A130: 2022 | B130: 138 | C130: EMPORIA | D130: 804.22 | E130: 0 | F130: 0 | G130: 0 | H130: 0 | I130: 0 | J130: 0 | K130: 0 | L130: 5.48 | M130: 0 | N130: 0 | O130: 0 | P130: 0 | Q130: 0 | R130: 5.48 | S130: 0 | T130: 0 | U130: 0 | V130: 0 | W130: 0 | X130: 5.48 | Y130: 0 | Z130: 0 | AA130: 0 | AB130: 0 | AC130: 0 | AD130: 0 | AE130: 5.48 | AF130: 804.22 | AH130: 804.22 | AI130: 5.48 | AJ130: 0 | AK130: -5.48 | AL130: 0 | AM130: 804.22 | AN130: 492.4 | AO130: 130.33 | AP130: 0 | AQ130: 0 | AR130: 0 | AS130: 0.77 | AT130: 0 | AU130: 0 | AV130: 1 | AW130: 0 | AX130: 0 | AY130: 0 | AZ130: 131.33 | BA130: 0 | BB130: 0 | BC130: 0 | BD130: 0 | BE130: 0 | BF130: 1 | BG130: 0 | BH130: 0 | BI130: 0 | BJ130: 1 | BK130: 622.73 | BL130: 623.73
A131: 2022 | B131: 139 | C131: SALEM CITY PBLC SCHS | D131: 3621.31 | E131: 0 | F131: 0 | G131: 0 | H131: 0 | I131: 6.57 | J131: 0.32 | K131: 0 | L131: 29.29 | M131: 0 | N131: 0 | O131: 0 | P131: 0 | Q131: 0 | R131: 36.18 | S131: 1 | T131: 0.81 | U131: 0 | V131: 22.37 | W131: 0 | X131: 29.29 | Y131: 0 | Z131: 0 | AA131: 0 | AB131: 0 | AC131: 0 | AD131: 0 | AE131: 53.47 | AF131: 3604.02 | AH131: 3621.31 | AI131: 36.18 | AJ131: -0.81 | AK131: -29.29 | AL131: 0 | AM131: 3627.39 | AN131: 995.28 | AO131: 0 | AP131: 0 | AQ131: 0 | AR131: 0 | AS131: 0 | AT131: 0 | AU131: 0 | AV131: 2 | AW131: 0 | AX131: 0 | AY131: 0 | AZ131: 2 | BA131: 0 | BB131: 0 | BC131: 0 | BD131: 0 | BE131: 0 | BF131: 2 | BG131: 0 | BH131: 0 | BI131: 0 | BJ131: 2 | BK131: 995.28 | BL131: 997.28
A132: 2022 | B132: 142 | C132: POQUOSON CITY PBLC SCHS | D132: 2038.16 | E132: 0 | F132: 1 | G132: 2 | H132: 0 | I132: 6.55 | J132: 0 | K132: 0 | L132: 3 | M132: 0 | N132: 0 | O132: 0 | P132: 0 | Q132: 0 | R132: 12.55 | S132: 0 | T132: 0 | U132: 0 | V132: 11 | W132: 0 | X132: 3 | Y132: 0 | Z132: 0 | AA132: 0 | AB132: 0 | AC132: 0 | AD132: 0 | AE132: 14 | AF132: 2036.71 | AH132: =D132 -> 2038.16 | AI132: =R132 -> 12.55 | AJ132: =-T132 -> 0 | AK132: =-X132 -> -3 | AL132: =-SUM(W132,Y132:AB132) -> 0 | AM132: =SUM(AH132:AL132) -> 2047.71 | AN132: 3912.66 | AO132: 0 | AP132: 4.61 | AQ132: 0 | AR132: 0 | AS132: 10.32 | AT132: 0 | AU132: 0 | AV132: 7.47 | AW132: 0 | AX132: 0 | AY132: 0 | AZ132: 22.39 | BA132: 0 | BB132: 0 | BC132: 0.55 | BD132: 12.99 | BE132: 0 | BF132: 7.47 | BG132: 0 | BH132: 0 | BI132: 0 | BJ132: 21.01 | BK132: 3914.04 | BL132: =AN132+AZ132 -> 3935.05
A133: 2022 | B133: 143 | C133: MANASSAS CITY PBLC SCHS | D133: 7354.19 | E133: 0 | F133: 7.97 | G133: 0 | H133: 5.35 | I133: 4.44 | J133: 0.28 | K133: 0 | L133: 14.24 | M133: 0 | N133: 0 | O133: 0 | P133: 0 | Q133: 3.12 | R133: 35.41 | S133: 0 | T133: 0.25 | U133: 0.13 | V133: 39.27 | W133: 0 | X133: 14.24 | Y133: 0 | Z133: 0 | AA133: 0 | AB133: 0 | AC133: 0 | AD133: 0 | AE133: 53.9 | AF133: 7335.7 | AH133: 7354.19 | AI133: 35.41 | AJ133: -0.25 | AK133: -14.24 | AL133: 0 | AM133: 7375.11 | AN133: 833.94 | AO133: 0 | AP133: 0 | AQ133: 0 | AR133: 0.5 | AS133: 0 | AT133: 0 | AU133: 0 | AV133: 4 | AW133: 0 | AX133: 0 | AY133: 0 | AZ133: 4.5 | BA133: 0 | BB133: 0 | BC133: 0 | BD133: 1 | BE133: 0 | BF133: 4 | BG133: 0 | BH133: 0 | BI133: 0 | BJ133: 5 | BK133: 833.44 | BL133: 838.44
A134: 2022 | B134: 144 | C134: MANASSAS PARK CITY PBLC SCHS | D134: 3254.9 | E134: 0 | F134: 3.95 | G134: 0 | H134: 0 | I134: 1.83 | J134: 4.61 | K134: 0 | L134: 8.03 | M134: 0 | N134: 0 | O134: 0 | P134: 0 | Q134: 1.71 | R134: 20.13 | S134: 0 | T134: 3 | U134: 1 | V134: 38.51 | W134: 0 | X134: 8.03 | Y134: 0 | Z134: 0 | AA134: 0 | AB134: 0 | AC134: 0 | AD134: 0 | AE134: 50.54 | AF134: 3224.5 | AH134: 3254.9 | AI134: 20.13 | AJ134: -3 | AK134: -8.03 | AL134: 0 | AM134: 3264 | AN134: 2372.98 | AO134: 0 | AP134: 1 | AQ134: 1.56 | AR134: 1 | AS134: 5.5 | AT134: 0 | AU134: 0 | AV134: 4.13 | AW134: 0 | AX134: 0 | AY134: 0 | AZ134: 13.2 | BA134: 0.25 | BB134: 0 | BC134: 0.5 | BD134: 9.01 | BE134: 0 | BF134: 4.13 | BG134: 0 | BH134: 0 | BI134: 0 | BJ134: 13.9 | BK134: 2372.27 | BL134: 2386.18
A135: 2022 | B135: 202 | C135: COLONIAL BEACH PBLC SCHS | D135: 535.17 | E135: 0 | F135: 0 | G135: 1 | H135: 0 | I135: 0 | J135: 1 | K135: 0 | L135: 6 | M135: 0 | N135: 0 | O135: 0 | P135: 0 | Q135: 0 | R135: 8 | S135: 0 | T135: 0 | U135: 0 | V135: 0 | W135: 0 | X135: 6 | Y135: 0 | Z135: 0 | AA135: 0 | AB135: 0 | AC135: 0 | AD135: 0 | AE135: 6 | AF135: 537.17 | AH135: 535.17 | AI135: 8 | AJ135: 0 | AK135: -6 | AL135: 0 | AM135: 537.17 | AN135: 6673.29 | AO135: 1.95 | AP135: 9.45 | AQ135: 2 | AR135: 0 | AS135: 16.09 | AT135: 0 | AU135: 3.58 | AV135: 9.35 | AW135: 0 | AX135: 0 | AY135: 0 | AZ135: 42.42 | BA135: 0 | BB135: 0 | BC135: 0.98 | BD135: 115.4 | BE135: 1 | BF135: 9.35 | BG135: 0 | BH135: 0 | BI135: 0 | BJ135: 126.74 | BK135: 6588.98 | BL135: 6715.71
A136: 2022 | B136: 207 | C136: WEST POINT PBLC SCHS | D136: 782.71 | E136: 0 | F136: 1 | G136: 2 | H136: 0 | I136: 0 | J136: 0 | K136: 0 | L136: 2 | M136: 0 | N136: 0 | O136: 0 | P136: 0 | Q136: 0 | R136: 5 | S136: 0 | T136: 0 | U136: 0 | V136: 0 | W136: 0 | X136: 2 | Y136: 0 | Z136: 0 | AA136: 0 | AB136: 0 | AC136: 0 | AD136: 0 | AE136: 2 | AF136: 785.71 | AH136: 782.71 | AI136: 5 | AJ136: 0 | AK136: -2 | AL136: 0 | AM136: 785.71 | AN136: 2658.18 | AO136: 2 | AP136: 1 | AQ136: 1.7 | AR136: 0 | AS136: 10.31 | AT136: 0 | AU136: 4.07 | AV136: 13.14 | AW136: 0 | AX136: 0 | AY136: 0 | AZ136: 32.21 | BA136: 0 | BB136: 0 | BC136: 0 | BD136: 56.86 | BE136: 0 | BF136: 13.14 | BG136: 0 | BH136: 0 | BI136: 0 | BJ136: 70 | BK136: 2620.39 | BL136: 2690.39
A137: 2021 | B137: 207 | C137: WEST POINT PBLC SCHS | D137: 796.41 | E137: 0 | F137: 1 | G137: 0 | H137: 0 | I137: 0.39 | J137: 0 | K137: 0 | L137: 2.06 | M137: 0 | N137: 0 | O137: 0 | P137: 0 | Q137: 0 | R137: 3.44 | S137: 0 | T137: 0 | U137: 0 | V137: 0 | W137: 0 | X137: 2.06 | Y137: 0 | Z137: 0 | AA137: 0 | AB137: 0 | AC137: 0 | AD137: 0 | AE137: 2.06 | AF137: 797.8 | AH137: 796.41 | AI137: 3.44 | AJ137: 0 | AK137: -2.06 | AL137: 0 | AM137: 797.79 | AN137: 595.78 | AO137: 0 | AP137: 2 | AQ137: 0 | AR137: 0 | AS137: 5.53 | AT137: 0 | AU137: 0 | AV137: 6.42 | AW137: 0 | AX137: 0 | AY137: 0 | AZ137: 13.95 | BA137: 0 | BB137: 4 | BC137: 0 | BD137: 0 | BE137: 0 | BF137: 6.42 | BG137: 0 | BH137: 0 | BI137: 0 | BJ137: 10.42 | BK137: 599.3 | BL137: 609.73
AH138: 0 | AI138: 0 | AJ138: 0 | AK138: 0 | AL138: 0 | AM138: 0 | AN138: 771.12 | AO138: 2 | AP138: 0 | AQ138: 0 | AR138: 0 | AS138: 4.73 | AT138: 0 | AU138: 0 | AV138: 1.63 | AW138: 0 | AX138: 0 | AY138: 0 | AZ138: 8.36 | BA138: 0 | BB138: 1 | BC138: 0 | BD138: 4 | BE138: 0 | BF138: 1.63 | BG138: 0 | BH138: 0 | BI138: 0 | BJ138: 6.63 | BK138: 772.84 | BL138: 779.48
AN139: 476.75 | AO139: 0 | AP139: 0.18 | AQ139: 0 | AR139: 0 | AS139: 46.33 | AT139: 0 | AU139: 0 | AV139: 0 | AW139: 0 | AX139: 0 | AY139: 0 | AZ139: 46.51 | BA139: 0.01 | BB139: 0.5 | BC139: 0.01 | BD139: 0 | BE139: 0 | BF139: 0 | BG139: 0 | BH139: 0 | BI139: 0 | BJ139: 0.52 | BK139: 522.74 | BL139: 523.26
AH140: =SUM(AH3:AH139) -> 1215966.83 | AI140: 9098.67 | AJ140: -81.57 | AK140: -3479.5 | AL140: -815.97 | AM140: 1220688.46

Sheet March 31, 2021 ADM (hidden)
A1: Final March 31, 2025 Average Daily Membership | AC1: New
A2: ADM Used to Calculate Final State Payments for Accounts Calculated Using ADM
A3: Data Collected During Spring 2025 Data Collection
B5: Division Number: | C5: ='State & Local Funds Summary'!A7 -> 0
B6: Division Name: | C6: =VLOOKUP(C5,N9:O147,2,FALSE) -> 
A8: Category of Pupils | D8: Total KG-121
A9: 1. Beginning Unadjusted ADM | D9: =VLOOKUP($C$5, $N$9:$AO$147, 3, FALSE) -> 
A11: 2. ADM Additions
A12: Pupils for whom you pay tuition in Excess of the Local Share of the Serving Division to Another School Division in Virginia2 | D12: =VLOOKUP($C$5, $N$9:$AO$147, 4, FALSE) -> 
A13: Disabled Pupils ages 20 or 21 | D13: =VLOOKUP($C$5, $N$9:$AO$147,5, FALSE) -> 
A14: Pupils in Alternative Education Programs | D14: =VLOOKUP($C$5, $N$9:$AO$147, 6, FALSE) -> 
A15: Nonpublic School Pupils | D15: =VLOOKUP($C$5, $N$9:$AO$147, 7, FALSE) -> 
A16: Pupils in ISAEP | D16: =VLOOKUP($C$5, $N$9:$AO$147, 8, FALSE) -> 
A17: Pupils in Home-Based Education Program | D17: =VLOOKUP($C$5, $N$9:$AO$147, 9, FALSE) -> 
A18: Pupils for whom tuition to a private institution was paid with local funds | D18: =VLOOKUP($C$5, $N$9:$AO$147, 10, FALSE) -> 
A19: Pupils for whom the state's share of tuition to a private day or private residential program was funded with Comprehensive Services Act (CSA) funds | D19: =VLOOKUP($C$5, $N$9:$AO$147, 11, FALSE) -> 
A20: Interstate Compact Placement | D20: =VLOOKUP($C$5, $N$9:$AO$147, 12, FALSE) -> 
A21: Contiguous Out-of-State Students: with same attendance privileges | D21: =VLOOKUP($C$5, $N$9:$AO$147, 13, FALSE) -> 
A22: Contiguous Out-of-State Students: without same attendance privileges | D22: =VLOOKUP($C$5, $N$9:$AO$147, 14, FALSE) -> 
A23: Students enrolled in a Virtual Program Delivered by an approved Multi-Division Online Provider | D23: =VLOOKUP($C$5, $N$9:$AO$147, 15, FALSE) -> 
A24: Students Served in a Local Center within a Public School Division | D24: =VLOOKUP($C$5, $N$9:$AO$147, 16, FALSE) -> 
A25: 3. Subtotal: Total Additions to ADM | D25: =SUM(D12:D23) -> 
A27: 4. ADM Deductions
A28: Postgraduate Pupils | D28: =VLOOKUP($C$5, $N$9:$AO$147, 18, FALSE) -> 
A29: Pupils under age 5 | D29: =VLOOKUP($C$5, $N$9:$AO$147, 19, FALSE) -> 
A30: Pupils age 20 and over (over age pupils) | D30: =VLOOKUP($C$5, $N$9:$AO$147, 20, FALSE) -> 
A31: Pupils in approved Public Special Education Regional Program or State-Operated Program and Institutions | D31: =VLOOKUP($C$5, $N$9:$AO$147, 21, FALSE) -> 
A32: Pupils for whom you receive tuition from another school division in Virginia | D32: =VLOOKUP($C$5, $N$9:$AO$147, 22, FALSE) -> 
A33: Pupils for whom the state's share of tuition to a private day or private residential program was funded with Comprehensive Services Act (CSA) funds | D33: =VLOOKUP($C$5, $N$9:$AO$147, 23, FALSE) -> 
A34: Interstate Compact Placement | D34: =VLOOKUP($C$5, $N$9:$AO$147, 24, FALSE) -> 
A35: Tuition in Excess of Local Share Received from Contiguous Out-of-State Students: With same attendance privileges | D35: =VLOOKUP($C$5, $N$9:$AO$147, 25, FALSE) -> 
A36: Contiguous Out-of-State Students: without same attendance privileges | D36: =VLOOKUP($C$5, $N$9:$AO$147, 26, FALSE) -> 
A37: Non-Contiguous State or Territory Outside of the United States and Foreign Exchange Students Charged with Tuition in Excess of the Local Share | D37: =VLOOKUP($C$5, $N$9:$AO$147, 27, FALSE) -> 
A38: Students enrolled in a Virtual Program Delivered by an approved Multi-Division Online Provider who also meet one of the deduction criteria above. | D38: =VLOOKUP($C$5, $N$9:$AO$147, 28, FALSE) -> 
A39: Students enrolled in a Virtual Program by an approved Multi-Division Online Provider who are also enrolled full time in the responsible division. | D39: =VLOOKUP($C$5, $N$9:$BA$150, 29, FALSE) -> 
A40: 5. Subtotal: Total Deductions to ADM | D40: =SUM(D28:D39) -> 
A42: 6. Unadjusted ADM as of March 31, 2023 (line 1 + line 3 - line 5) 3 | D42: =D9+D25-D40 -> 
A43: 7. Adjusted ADM as of March 31, 2023 3 | D43: =VLOOKUP($C$5, $N$9:$BA$150, 31, FALSE) -> 
A45: 1 Kindergarten (KG) count includes students in grades KA, KP, and KG.
A46: 2 Divisions to whom you pay tuition are represented in this ADM. Your final March 31, 2023, ADM used to calculate final state payments is final only after all division ADM submissions have been received.
A47: 3 Total ADM on this sheet may not coincide with ADM values listed on the State & Local Funds Summary sheet due to rounding.

Sheet Adjustments to FY2025 Basic Aid (hidden)
A1: FY 2025 Adjustments to Basic Aid State Payments (as of June 30, 2025)
A2: The "Adjustments to Basic Aid State Payments" report reflects reductions to each school division's Basic Aid state payment where deductions were made for payments on behalf of school divisions made by the Department of Education.
A4: CODE | B4: DIVISION | C4: FY 2025 Unadjusted Basic Aid Payments | D4: Adjustment for Driver's Education Funds1 | E4: Adjustment for Mental Health Local Share2, 3 | F4: Adjustment for Training Centers Operated by the Department of Behavioral Health and Developmental Services Local Share2, 3 | G4: Adjustment for School for the Deaf and Blind Tuition2 | H4: FY 2025 Adjusted Basic Aid Payments
A5: 1 | B5: ACCOMACK | H5: =SUM(C5:G5) -> 0
A6: 2 | B6: ALBEMARLE | H6: 0
A7: 3 | B7: ALLEGHANY | H7: 0
A8: 4 | B8: AMELIA | H8: 0
A9: 5 | B9: AMHERST | H9: 0
A10: 6 | B10: APPOMATTOX | H10: 0
A11: 7 | B11: ARLINGTON | H11: 0
A12: 8 | B12: AUGUSTA | H12: 0
A13: 9 | B13: BATH | H13: 0
A14: 10 | B14: BEDFORD | H14: 0
A15: 11 | B15: BLAND | H15: 0
